Workbook

Sheet LDC Info
AA3: Algoma Power Inc.
AA4: Atikokan Hydro Inc.
AA5: Attawapiskat Power Corporation
AA6: Bluewater Power Distribution Corp.
AA7: Brant County Power
AA8: Brantford Power Inc.
AA9: Burlington Hydro Inc.
AA10: Cambridge and North Dumfries Hydro
AA11: Canadian Niagara Power Inc. – Eastern Ontario Power/Fort Erie/Port Colborne
AA12: Centre Wellington Hydro Ltd.
N13: Version 1.1 | AA13: Chapleau Public Utilities Corporation
D14: Utility Name | E14: Innisfil Hydro Dist. Systems Limited | AA14: COLLUS Power Corp.
AA15: Cooperative Hydro Embrun Inc.
D16: Service Territory | AA16: E.L.K. Energy Inc.
AA17: Enersource Hydro Mississauga Inc.
D18: Assigned EB Number | E18: EB-2012-0139 | AA18: Entegrus Powerlines Inc.
AA19: ENWIN Utilities Ltd.
D20: Name of Contact and Title | E20: Brenda Pinke, Regulatory and CDM Manager | AA20: Erie Thames Powerlines Corp.
AA21: Espanola Regional Hydro Distribution Corporation
D22: Phone Number | E22: 705-431-6870 ext 262 | AA22: Essex Powerlines Corporation
AA23: Festival Hydro Inc.
D24: Email Address | E24: brendap@innisfilhydro.com | AA24: Fort Albany Power Corporation
AA25: Fort Frances Power Corporation
D26: Bridge Year | E26: 2012 | AA26: Greater Sudbury Hydro Inc.
AA27: Grimsby Power Inc.
D28: Test Year | E28: 2013 | AA28: Guelph Hydro Electric Systems Inc.
AA29: Haldimand County Hydro Inc.
D30: Last Rebasing Year | E30: 2009 | AA30: Guelph Hydro Electric Systems Inc.
AA31: Halton Hills Hydro Inc.
B32: Notes | AA32: Hearst Power Distribution Co. Ltd.
AA33: Horizon Utilities Corporation
C34: Pale green cells represent input cells. | AA34: Hydro 2000 Inc.
AA35: Hydro Hawkesbury Inc.
C36: Pale blue cells represent drop-down lists. The applicant should select the appropriate item from the drop-down list. | AA36: Hydro One Brampton Networks Inc.
AA37: Hydro One Networks Inc.
C38: White cells contain fixed values, automatically generated values or formulae. | AA38: Hydro One Remote Communities Inc.
AA39: Hydro Ottawa Limited
AA40: Innisfil Hydro Dist. Systems Limited
AA41: Kashechewan Power Corporation
AA42: Kenora Hydro Electric Corporation Ltd.
AA43: Kingston Hydro Corporation
AA44: Kitchener-Wilmot Hydro Inc.
AA45: Lakefront Utilities Inc.
AA46: Lakeland Power Distribution Ltd.
AA47: London Hydro Inc.
AA48: Midland Power Utility Corporation
AA49: Milton Hydro Distribution Inc.
AA50: Newmarket – Tay Power Distribution Ltd.
AA51: Niagara Peninsula Energy Inc.
AA52: Niagara-on-the-Lake Hydro Inc.
AA53: Norfolk Power Distribution Ltd.
AA54: North Bay Hydro Distribution Limited
AA55: Northern Ontario Wires Inc.
AA56: Oakville Hydro Distribution Inc.
AA57: Orangeville Hydro Limited
AA58: Orillia Power Distribution Corp.
AA59: Oshawa PUC Networks Inc.
AA60: Ottawa River Power Corporation
AA61: Parry Sound Power Corporation
AA62: Peterborough Distribution Inc.
AA63: PowerStream Inc.
AA64: PUC Distribution Inc.
AA65: Renfrew Hydro Inc.
AA66: Rideau St. Lawrence Distribution Inc.
AA67: St. Thomas Energy Inc.
AA68: Sioux Lookout Hydro Inc.
AA69: Thunder Bay Hydro Electricity Distribution
AA70: Tillsonburg Hydro Inc.
AA71: Toronto Hydro-Electric System Limited
AA72: Veridian Connections Inc.
AA73: Wasaga Distribution Inc.
AA74: Waterloo North Hydro Inc.
AA75: Welland Hydro Electric System Corp.
AA76: Wellington North Power Inc.
AA77: West Coast Huron Energy Inc.
AA78: Westario Power Inc.
AA79: Whitby Hydro Electric Corporation
AA80: Woodstock Hydro Services Inc.

Sheet Index
A15: 1 | B15: LDC Information Sheet | E15: 19 | F15: Appendix 2-H OM&A Detailed Analysis
A16: 2 | B16: Index | E16: 20 | F16: Appendix 2-I OM&A Summary Analysis
A17: 3 | B17: Appendix 2-A Capital Projects | E17: 21 | F17: Appendix 2-J OM&A Cost Drivers
A18: 4 | B18: Appendix 2-B Fixed Asset Continuity | E18: 22 | F18: Appendix 2-K Employee Costs
A19: 5 | B19: Appendix 2-CA CGAAP Depreciation Expense 2011 | E19: 23 | F19: Appendix 2-L OM&A per Cust FTEE
A20: 6 | B20: Appendix 2-CB MIFRS Depreciation Expense 2011 | E20: 24 | F20: Appendix 2-M Regulatory Costs
A21: 7 | B21: Appendix 2-CC MIFRS Depreciation Expense 2012 | E21: 25 | F21: Appendix 2-N Corp Cost Allocation
A22: 8 | B22: Appendix 2-CD MIFRS Depreciation Expense 2013 | E22: 26 | F22: Appendix 2-OA Capital Structure and Cost of Capital
A23: 9 | B23: Appendix 2-CE CGAAP Depreciation Expense 2011 | E23: 27 | F23: Appendix 2-OB Debt Instruments
A24: 10 | B24: Appendix 2-CF CGAAP Depreciation Expense 2012 | E24: 28 | F24: Appendix 2-P Cost Allocation
A25: 11 | B25: Appendix 2-CG MIFRS Depreciation Expense 2012 | E25: 29 | F25: Appendix 2-Q Cost of Service Embedded Distributor
A26: 12 | B26: Appendix 2-CH MIFRS Depreciation Expense 2013 | E26: 30 | F26: Appendix 2-R Loss Factors
A27: 13 | B27: Appendix 2-CI Alternative Accounting Standards Depreciation Expense | E27: 31 | F27: Appendix 2-S Stranded Meters
A28: 14 | B28: Appendix 2-D Overhead | E28: 32 | F28: Appendix 2-T 1592 Tax Variance
A29: 15 | B29: Appendix 2-EA PP&E Deferral Account - 2012 IFRS Adopters | E29: 33 | F29: Appendix 2-U IFRS Transition Costs
A30: 16 | B30: Appendix 2-EB PP&E Deferral Account - 2013 IFRS Adopters | E30: 34 | F30: Appendix 2-V Rev Reconciliation
A31: 17 | B31: Appendix 2-F Other Operating Revenue | E31: 35 | F31: Appendix 2-W Bill Impacts
A32: 18 | B32: Appendix 2-G Detailed OM&A Expenses | E32: 36 | F32: Appendix 2-X CoS Flowchart

Sheet App.2-A_Capital Projects
G1: File Number: | H1: ='LDC Info'!$E$18 -> EB-2012-0139
G2: Exhibit: | H2: Exhibit 2
G3: Tab: | H3: Tab 3
G4: Schedule: | H4: Schedule 2
G5: Page:
G7: Date: | H7: 2012-08-31
A9: Appendix 2-A
A10: Capital Projects Table
A13: Projects | B13: =IF(ISBLANK('LDC Info'!E26), "Year 1", 'LDC Info'!E26-5) -> 2007 | C13: =IF(ISBLANK('LDC Info'!E26), "Year 2", 'LDC Info'!E26-4) -> 2008 | D13: =IF(ISBLANK('LDC Info'!E26), "Year 3", 'LDC Info'!E26-3) -> 2009 | E13: =IF(ISBLANK('LDC Info'!E26), "Year 4", 'LDC Info'!E26-2) -> 2010 | F13: =IF(ISBLANK('LDC Info'!E26), "Year 5", 'LDC Info'!E26-1) -> 2011 | G13: ='LDC Info'!E26 & " Bridge Year" -> 2012 Bridge Year | H13: ='LDC Info'!E28 & " Test Year" -> 2013 Test Year
A14: Reporting Basis
A15: 2009 Distribution Plant
A16: DO-001 Pole Replacement | D16: 257033
A17: DO-002 44kv load interruptors | D17: 255043
A18: DO-003 Transformer Replacement | D18: 67421
A19: DO-004 9M4 extension-20 SR 10th Ln & Lockhart rd | D19: 136224
A20: DO-005 Recloser automation & replacement | D20: 84062
A21: DO-007 27.6 SCADA mates | D21: 136546
A22: DO-008 44 kV line ext 20th SR Lockhart to Fairway Rd | D22: 424900
A23: DO-010 Wholesale meters | D23: 61125
A24: DO-011 Guard Rails | D24: 41065
A25: DO-012 Urbanization | D25: 1186136
A26: DO-015 Infrastructure betterments | D26: 147760
A27: DO -017 Line Extension | D27: 656280
A28: Base | D28: 293604
A29: Meter Disposals | D29: -1270515
A30: Sub-Total | B30: =SUM(B26:B27) -> 0 | C30: =SUM(C26:C27) -> 0 | D30: =SUM(D15:D29) -> 2476684 | E30: =SUM(E26:E27) -> 0 | F30: =SUM(F26:F27) -> 0 | G30: =SUM(G26:G27) -> 0 | H30: =SUM(H26:H27) -> 0
A31: 2009 General Plant
A32: GB-008 - Network Upgrades, Servers, Workstations | D32: 88448
A33: Sub-Total | B33: =SUM(B28:B32) -> 0 | C33: 0 | D33: =D32 -> 88448 | E33: 0 | F33: 0 | G33: 0 | H33: 0
A34: 2010 Distribution Plant
A35: DO-006- 20th SR & 7th line extension
A36: DO-008 - Urbanization Precinct 1 | E36: 323380
A37: DO-010 - Pole replacement | E37: 421017
A38: DO-011-Replace porcelain swirches | E38: 157558
A39: DO-015- DS oil re-inhibit treatment | E39: 12207
A40: DO-016 - Replace coiling fans Tempo plastics | E40: 17205
A41: DO-018 - Urbanization Precinct 2a & 3 | E41: 2332944
A42: DO-020 - 20th SR & 6th Line extension | E42: 546690
A43: Base | E43: 272872
A44: Meter Disposals | E44: -492071
A45: Sub-Total | B45: =SUM(B42:B44) -> 0 | C45: =SUM(C42:C44) -> 0 | D45: =SUM(D42:D44) -> 0 | E45: =SUM(E35:E44) -> 3591802 | F45: =SUM(F42:F44) -> 0 | G45: =SUM(G42:G44) -> 0 | H45: =SUM(H42:H44) -> 0
A46: 2010 General Plant
A47: GB-001 Network upgrades and redundancy servers | E47: 64210
A48: GO-010 Fleet trucks | E48: 621180
A49: GO-008 Fleet tools | E49: 260656
A50: Sub-Total | B50: =SUM(B47:B49) -> 0 | C50: 0 | D50: 0 | E50: 946046 | F50: 0 | G50: 0 | H50: 0
A51: 2011Distribution Plant
A52: DO-001 Hwy 89 reconductoring (5th SDRD to Younge ST) | F52: 200328.38
A53: DO-002 Leonards Beach Major Betterment | F53: 264261.75
A54: DO_003 20th SD RD/10th Line extension | F54: 285119.4
A55: DO-006 Reclosurer refurbishments | F55: 160715.37
A56: DO-007 Pole replacement | F56: 254296.56
A57: DO-008 Infrastructure betterments | F57: 104256
A58: DO-009 30th line extension &44kv reconductoring | F58: 567330.76
A59: DO-010 Substation security | F59: 20029.7
A60: DO-011 Hwy 89 & 10SDRD road widening | F60: 277241.3
A61: DO-013 Padmount transformer replacements | F61: 45081.67
A62: DO-014 Substandard transformer re-habs | F62: 67520.59
A63: DO-015 IBR URB precinct 1 | F63: 41358.25
A64: DO-016 IBR URB precinct 2a teardown | F64: 229231.69
A65: Storms | F65: 115256.66
A66: Economic evaluation - Woodland Park | F66: 207565.03
A67: Base | F67: 410360
A68: Sub-Total | B68: =SUM(B66:B67) -> 0 | C68: =SUM(C66:C67) -> 0 | D68: =SUM(D66:D67) -> 0 | E68: =SUM(E66:E67) -> 0 | F68: =SUM(F52:F67) -> 3249953.11 | G68: =SUM(G66:G67) -> 0 | H68: =SUM(H66:H67) -> 0
A69: 2011 General Plant
A70: GB-001 Network upgrades and Hardware | F70: 86927
A71: GO-007 Fleet Trucks | F71: 297131
A72: GO-008 Fleet tools | F72: 58448
A73: Sub-Total | B73: =SUM(B71:B72) -> 0 | C73: =SUM(C71:C72) -> 0 | D73: =SUM(D71:D72) -> 0 | E73: =SUM(E71:E72) -> 0 | F73: =SUM(F69:F72) -> 442506 | G73: =SUM(G71:G72) -> 0 | H73: =SUM(H71:H72) -> 0
A74: 2012 Distribution Plant
A75: DO-005 | G75: 389270
A76: DO-006 | G76: 166850
A77: DO-007 | G77: 33186
A78: DO-009 | G78: 157808
A79: DO-010 | G79: 144906
A80: DO-012 | G80: 67600
A81: DO-013 | G81: 172110
A82: DO-015 | G82: 191876
A83: DO-016 | G83: 197173
A84: DO-017 | G84: 379402
A85: DO-018 | G85: 24000
A86: DO-019 | G86: 154850
A87: DO-021 | G87: 20020
A88: DO-022 | G88: 465000
A89: DB-001 | G89: 74000
A90: Base | G90: 583370
A91: Smart Meter true up | G91: 11384
A92: Sub-Total | B92: =SUM(B89:B91) -> 0 | C92: =SUM(C89:C91) -> 0 | D92: =SUM(D89:D91) -> 0 | E92: =SUM(E89:E91) -> 0 | F92: 0 | G92: =SUM(G75:G91) -> 3232805 | H92: =SUM(H89:H91) -> 0
A93: 2012 General Plant
A94: GO-010 New Building | G94: 2000000
A95: GB-001 Hardware &Software | G95: 193000
A96: GO-012 Eng topobase & IFRS enhancements | G96: 164150
A97: GO - 011 Scada program conversion | G97: 200000
A98: DO-009 27.6kv Scada controlled intercept | G98: 68700
A99: Smart Meter true up | G99: 93156
A100: Sub-Total | B100: 0 | C100: 0 | D100: 0 | E100: 0 | F100: 0 | G100: =SUM(G93:G99) -> 2719006 | H100: 0
A101: 2013 Distribution Plant
A102: DO-001 | H102: 207300
A103: DO-002 | H103: 144500
A104: DO-003 | H104: 181180
A105: DO-004 | H105: 210900
A106: DO-005 | H106: 79700
A107: DO-006 | H107: 182700
A108: DO-007 | H108: 391288
A109: DO-008 | H109: 724294
A110: DO-009 | H110: 110743
A111: DO-010 | H111: 68074
A112: DB-001 | H112: 115900
A113: Base | H113: 615376
A114: Sub-Total | B114: 0 | C114: 0 | D114: 0 | E114: 0 | F114: 0 | G114: =SUM(G102:G113) -> 0 | H114: =SUM(H102:H113) -> 3031955
A115: 2013 General Plant
A116: GB-001 Network Infrastructure for New building | H116: 87500
A117: GO-010 New building | H117: 5000000
A118: GB-003 Hardware | H118: 185000
A119: GO-010Eng topobase & IFRS enhancement | H119: 171000
A120: GO-003 2 Fleet trucks | H120: 80000
A121: GO-007 System Supervisory | H121: 62000
A122: GO-008 Capacitor intelilink to SCADA | H122: 51400
A123: DO - 003 27.6kv mechanized SCADA load interpt | H123: 72000
A124: Sub-Total | B124: 0 | C124: 0 | D124: 0 | E124: 0 | F124: 0 | G124: =SUM(G112:G123) -> 0 | H124: =SUM(H116:H123) -> 5708900
A127: Miscellaneous
A128: Miscellaneous 2009 | D128: 257438
A129: Miscellaneous 2010 | E129: 188227
A130: Miscellaneous 2011 | F130: 201860
A131: Miscellaneous 2012 | G131: 236650
A132: Miscellaneous 2013 | H132: 279997
A133: Total | B133: =SUMPRODUCT(--($A15:$A101="Sub-Total"), B$15:B$101)+B101 -> 0 | C133: =SUMPRODUCT(--($A15:$A101="Sub-Total"), C$15:C$101)+C101 -> 0 | D133: =SUM(D30+D33)+D128 -> 2822570 | E133: =E45+E50+E129 -> 4726075 | F133: =F68+F73+F130 -> 3894319.11 | G133: =G92+G100+G131 -> 6188461 | H133: =H114+H124+H132 -> 9020852
A136: Notes:
A138: 1 Please provide a breakdown of the major components of each capital project. Please ensure that all projects below the materiality threshold are included in the miscellaneous line. Add more projects as required.
A140: 2 Amounts should be reported on a MIFRS basis for the adoption year and any subsequent years, only.

Sheet App.2-B_FA Contin CGAAP 2009
M1: File Number: | N1: ='LDC Info'!$E$18 -> EB-2012-0139
M2: Exhibit: | N2: 2
M3: Tab: | N3: 2
M4: Schedule: | N4: 1
M5: Page: | N5: 6
M7: Date: | N7: 2012-08-31
A9: Appendix 2-B
A10: Fixed Asset Continuity Schedule
F12: Year | G12: 2009
E14: Cost | K14: Accumulated Depreciation
A15: CCA Class | B15: OEB | C15: Description | D15: Depreciation Rate | E15: Opening Balance | F15: Additions | G15: Disposals | H15: Closing Balance | J15: Opening Balance | K15: Additions | L15: Disposals | M15: Closing Balance | N15: Net Book Value
A16: 12 | B16: 1611 | C16: Computer Software (Formally known as Account 1925) | E16: 855124 | F16: 129940 | H16: =E16+F16+G16 -> 985064 | J16: -687862 | K16: -113942 | M16: =J16+K16+L16 -> -801804 | N16: =H16+M16 -> 183260
A17: CEC | B17: 1612 | C17: Land Rights (Formally known as Account 1906) | H17: =E17+F17+G17 -> 0 | M17: =J17+K17+L17 -> 0 | N17: =H17+M17 -> 0
A18: N/A | B18: 1805 | C18: Land | E18: 282031 | G18: -8261 | H18: =E18+F18+G18 -> 273770 | M18: =J18+K18+L18 -> 0 | N18: =H18+M18 -> 273770
A19: CEC | B19: 1806 | C19: Land Rights | E19: 965425 | F19: 11122 | H19: =E19+F19+G19 -> 976547 | J19: -512797 | K19: -14883 | M19: =J19+K19+L19 -> -527680 | N19: =H19+M19 -> 448867
A20: 47 | B20: 1808 | C20: Buildings | H20: =E20+F20+G20 -> 0 | M20: =J20+K20+L20 -> 0 | N20: =H20+M20 -> 0
A21: 13 | B21: 1810 | C21: Leasehold Improvements | E21: 86252 | H21: 86252 | J21: -24150 | K21: -3450 | M21: -27600 | N21: 58652
A22: 47 | B22: 1815 | C22: Transformer Station Equipment >50 kV | H22: 0 | M22: 0 | N22: 0
A23: 47 | B23: 1820 | C23: Distribution Station Equipment <50 kV | E23: 4297046 | F23: 91039 | H23: 4388085 | J23: -2146513 | K23: -142270 | M23: -2288783 | N23: 2099302
A24: 47 | B24: 1825 | C24: Storage Battery Equipment | H24: 0 | M24: 0 | N24: 0
A25: 47 | B25: 1830 | C25: Poles, Towers & Fixtures | E25: 6727068 | F25: 792949 | H25: 7520017 | J25: -3423845 | K25: -287398 | M25: -3711243 | N25: 3808774
A26: 47 | B26: 1835 | C26: Overhead Conductors & Devices | E26: 9716063 | F26: 1549227 | H26: 11265290 | J26: -6561447 | K26: -418334 | M26: -6979781 | N26: 4285509
A27: 47 | B27: 1840 | C27: Underground Conduit | E27: 1771982 | F27: 11848 | H27: 1783830 | J27: -268045 | K27: -70964 | M27: -339009 | N27: 1444821
A28: 47 | B28: 1845 | C28: Underground Conductors & Devices | E28: 5931254 | F28: 1795662 | H28: 7726916 | J28: -3219011 | K28: -272619 | M28: -3491630 | N28: 4235286
A29: 47 | B29: 1850 | C29: Line Transformers | E29: 7595912 | F29: 247676 | H29: 7843588 | J29: -4645272 | K29: -300997 | M29: -4946269 | N29: 2897319
A30: 47 | B30: 1855 | C30: Services (Overhead & Underground) | E30: 3402937 | F30: 167287 | H30: 3570224 | J30: -1317615 | K30: -139481 | M30: -1457096 | N30: 2113128
A31: 47 | B31: 1860 | C31: Meters | E31: 1878437 | F31: 71174 | G31: -1270515 | H31: 679096 | J31: -1214152 | K31: -64321 | L31: 1068808 | M31: -209665 | N31: 469431
A32: 47 | B32: 1860 | C32: Meters (Smart Meters) | H32: 0 | M32: 0 | N32: 0
A33: 47 | B33: 1875 | C33: Street Lighting | E33: 7646 | H33: 7646 | J33: -1755 | K33: -305 | M33: =J33+K33+L33 -> -2060 | N33: =H33+M33 -> 5586
A34: N/A | B34: 1905 | C34: Land | E34: 201049 | H34: 201049 | M34: 0 | N34: 201049
A35: 47 | B35: 1908 | C35: Buildings & Fixtures | E35: 699797 | F35: 3151 | H35: 702948 | J35: -187636 | K35: -27933 | M35: -215569 | N35: 487379
A36: 13 | B36: 1910 | C36: Leasehold Improvements | H36: 0 | M36: 0 | N36: 0
A37: 8 | B37: 1915 | C37: Office Furniture & Equipment (10 years) | E37: 258797 | F37: 14296 | H37: 273093 | J37: -192103 | K37: -12053 | M37: -204156 | N37: 68937
A38: 8 | B38: 1915 | C38: Office Furniture & Equipment (5 years) | H38: 0 | M38: 0 | N38: 0
A39: 10 | B39: 1920 | C39: Computer Equipment - Hardware | E39: 753908 | F39: 53941 | H39: 807849 | J39: -591155 | K39: -60219 | M39: -651374 | N39: 156475
A40: 45 | B40: 1920 | C40: Computer Equip.-Hardware(Post Mar. 22/04) | H40: 0 | M40: 0 | N40: 0
A41: 45.1 | B41: 1920 | C41: Computer Equip.-Hardware(Post Mar. 19/07) | H41: 0 | M41: 0 | N41: 0
A42: 10 | B42: 1930 | C42: Transportation Equipment | E42: 370171 | F42: 83273 | G42: -210930 | H42: 242514 | J42: -307866 | K42: -28689 | L42: 210930 | M42: -125625 | N42: 116889
A43: 8 | B43: 1935 | C43: Stores Equipment | E43: 19404 | F43: 6953 | H43: 26357 | J43: -13303 | K43: -1192 | M43: -14495 | N43: 11862
A44: 8 | B44: 1940 | C44: Tools, Shop & Garage Equipment | E44: 159103 | F44: 6190 | H44: 165293 | J44: -134338 | K44: -3666 | M44: -138004 | N44: 27289
A45: 8 | B45: 1945 | C45: Measurement & Testing Equipment | E45: 17029 | F45: 6064 | H45: 23093 | J45: -7431 | K45: -2006 | M45: -9437 | N45: 13656
A46: 8 | B46: 1950 | C46: Power Operated Equipment | H46: 0 | M46: 0 | N46: 0
A47: 8 | B47: 1955 | C47: Communications Equipment | H47: 0 | M47: 0 | N47: 0
A48: 8 | B48: 1955 | C48: Communication Equipment (Smart Meters) | H48: 0 | M48: 0 | N48: 0
A49: 8 | B49: 1960 | C49: Miscellaneous Equipment | H49: 0 | M49: 0 | N49: 0
A50: 47 | B50: 1975 | C50: Load Management Controls Utility Premises | H50: 0 | M50: 0 | N50: 0
A51: 47 | B51: 1980 | C51: System Supervisor Equipment | E51: 1177189 | F51: 95676 | H51: 1272865 | J51: -529872 | K51: -81593 | M51: -611465 | N51: 661400
A52: 47 | B52: 1985 | C52: Miscellaneous Fixed Assets | H52: 0 | M52: 0 | N52: 0
A53: 47 | B53: 1995 | C53: Contributions & Grants | E53: -4566109 | F53: -825193 | H53: -5391302 | J53: 836374 | K53: 197163 | M53: 1033537 | N53: -4357765
B54: etc. | H54: 0 | M54: 0 | N54: 0
C56: Total | E56: =SUM(E16:E55) -> 42607515 | F56: =SUM(F16:F55) -> 4312275 | G56: -1489706 | H56: 45430084 | J56: =SUM(J16:J55) -> -25149794 | K56: =SUM(K16:K55) -> -1849152 | L56: =SUM(L16:L55) -> 1279738 | M56: -25719208 | N56: 19710876
J58: Less: Fully Allocated Depreciation
A59: 10 | C59: Transportation | J59: Transportation
A60: 8 | C60: Stores Equipment | J60: Stores Equipment
J61: Net Depreciation | L61: =K56-L59-L60 -> -1849152
A63: Notes:
A65: 1 | B65: Tables in the format outlined above covering all fixed asset accounts should be submitted for the Test Year, Bridge Year and all relevant historical years. At a minimum , the applicant must provide data for the earlier of: 1) all historical years back to its last rebasing; or 2) at least three years of historical actuals, in addition to Bridge Year and Test Year forecasts.
A68: 2 | B68: The "CCA Class" for fixed assets should agree with the CCA Class used for tax purposes in Tax Returns. Fixed Assets sub-components may be used where the underlying asset components are classified under multiple CCA Classes for tax purposes. If an applicant uses any different classes from those shown in the table, an explanation should be provided. (also see note 3 below).
A71: 3 | B71: The table may need to be customized for a utility's asset categories or for any new asset accounts announced or authorized by the Board.
A73: 4 | B73: The depreciation column (D) is not required as the relevant information will be provided in the following 2-C series of appendices.

Sheet App.2-B_FA Contin CGAAP 2010
M1: File Number: | N1: ='LDC Info'!$E$18 -> EB-2012-0139
M2: Exhibit: | N2: 2
M3: Tab: | N3: 2
M4: Schedule: | N4: 1
M5: Page: | N5: 7
M7: Date: | N7: 2012-08-31
A9: Appendix 2-B
A10: Fixed Asset Continuity Schedule
F12: Year | G12: 2010
E14: Cost | K14: Accumulated Depreciation
A15: CCA Class | B15: OEB | C15: Description | D15: Depreciation Rate | E15: Opening Balance | F15: Additions | G15: Disposals | H15: Closing Balance | J15: Opening Balance | K15: Additions | L15: Disposals | M15: Closing Balance | N15: Net Book Value
A16: 12 | B16: 1611 | C16: Computer Software (Formally known as Account 1925) | E16: ='App.2-B_FA Contin CGAAP 2009'!H16 -> 985064 | F16: 47687 | H16: =E16+F16+G16 -> 1032751 | J16: ='App.2-B_FA Contin CGAAP 2009'!M16 -> -801804 | K16: -102531 | M16: =J16+K16+L16 -> -904335 | N16: =H16+M16 -> 128416
A17: CEC | B17: 1612 | C17: Land Rights (Formally known as Account 1906) | E17: ='App.2-B_FA Contin CGAAP 2009'!H17 -> 0 | H17: =E17+F17+G17 -> 0 | J17: ='App.2-B_FA Contin CGAAP 2009'!M17 -> 0 | M17: =J17+K17+L17 -> 0 | N17: =H17+M17 -> 0
A18: N/A | B18: 1805 | C18: Land | E18: ='App.2-B_FA Contin CGAAP 2009'!H18 -> 273770 | H18: =E18+F18+G18 -> 273770 | J18: ='App.2-B_FA Contin CGAAP 2009'!M18 -> 0 | M18: =J18+K18+L18 -> 0 | N18: =H18+M18 -> 273770
A19: CEC | B19: 1806 | C19: Land Rights | E19: ='App.2-B_FA Contin CGAAP 2009'!H19 -> 976547 | F19: 11917 | H19: =E19+F19+G19 -> 988464 | J19: ='App.2-B_FA Contin CGAAP 2009'!M19 -> -527680 | K19: -15130 | M19: =J19+K19+L19 -> -542810 | N19: =H19+M19 -> 445654
A20: 47 | B20: 1808 | C20: Buildings | E20: ='App.2-B_FA Contin CGAAP 2009'!H20 -> 0 | H20: =E20+F20+G20 -> 0 | J20: ='App.2-B_FA Contin CGAAP 2009'!M20 -> 0 | M20: =J20+K20+L20 -> 0 | N20: =H20+M20 -> 0
A21: 13 | B21: 1810 | C21: Leasehold Improvements | E21: ='App.2-B_FA Contin CGAAP 2009'!H21 -> 86252 | H21: 86252 | J21: ='App.2-B_FA Contin CGAAP 2009'!M21 -> -27600 | K21: -3450 | M21: -31050 | N21: 55202
A22: 47 | B22: 1815 | C22: Transformer Station Equipment >50 kV | E22: ='App.2-B_FA Contin CGAAP 2009'!H22 -> 0 | H22: 0 | J22: ='App.2-B_FA Contin CGAAP 2009'!M22 -> 0 | M22: 0 | N22: 0
A23: 47 | B23: 1820 | C23: Distribution Station Equipment <50 kV | E23: ='App.2-B_FA Contin CGAAP 2009'!H23 -> 4388085 | F23: 43198 | H23: 4431283 | J23: ='App.2-B_FA Contin CGAAP 2009'!M23 -> -2288783 | K23: -124522 | M23: -2413305 | N23: 2017978
A24: 47 | B24: 1825 | C24: Storage Battery Equipment | E24: ='App.2-B_FA Contin CGAAP 2009'!H24 -> 0 | H24: 0 | J24: ='App.2-B_FA Contin CGAAP 2009'!M24 -> 0 | M24: 0 | N24: 0
A25: 47 | B25: 1830 | C25: Poles, Towers & Fixtures | E25: ='App.2-B_FA Contin CGAAP 2009'!H25 -> 7520017 | F25: 811713 | H25: 8331730 | J25: ='App.2-B_FA Contin CGAAP 2009'!M25 -> -3711243 | K25: -319524 | M25: -4030767 | N25: 4300963
A26: 47 | B26: 1835 | C26: Overhead Conductors & Devices | E26: ='App.2-B_FA Contin CGAAP 2009'!H26 -> 11265290 | F26: 736529 | H26: 12001819 | J26: ='App.2-B_FA Contin CGAAP 2009'!M26 -> -6979781 | K26: -463964 | M26: -7443745 | N26: 4558074
A27: 47 | B27: 1840 | C27: Underground Conduit | E27: ='App.2-B_FA Contin CGAAP 2009'!H27 -> 1783830 | F27: 26610 | H27: 1810440 | J27: ='App.2-B_FA Contin CGAAP 2009'!M27 -> -339009 | K27: -72373 | M27: -411382 | N27: 1399058
A28: 47 | B28: 1845 | C28: Underground Conductors & Devices | E28: ='App.2-B_FA Contin CGAAP 2009'!H28 -> 7726916 | F28: 3834252 | H28: 11561168 | J28: ='App.2-B_FA Contin CGAAP 2009'!M28 -> -3491630 | K28: -384602 | M28: -3876232 | N28: 7684936
A29: 47 | B29: 1850 | C29: Line Transformers | E29: ='App.2-B_FA Contin CGAAP 2009'!H29 -> 7843588 | F29: 291950 | H29: 8135538 | J29: ='App.2-B_FA Contin CGAAP 2009'!M29 -> -4946269 | K29: -314223 | M29: -5260492 | N29: 2875046
A30: 47 | B30: 1855 | C30: Services (Overhead & Underground) | E30: ='App.2-B_FA Contin CGAAP 2009'!H30 -> 3570224 | F30: 141283 | H30: 3711507 | J30: ='App.2-B_FA Contin CGAAP 2009'!M30 -> -1457096 | K30: -145653 | M30: -1602749 | N30: 2108758
A31: 47 | B31: 1860 | C31: Meters | E31: ='App.2-B_FA Contin CGAAP 2009'!H31 -> 679096 | G31: -492071 | H31: 187025 | J31: ='App.2-B_FA Contin CGAAP 2009'!M31 -> -209665 | K31: -22721 | L31: 192417 | M31: -39969 | N31: 147056
A32: 47 | B32: 1860 | C32: Meters (Smart Meters) | E32: ='App.2-B_FA Contin CGAAP 2009'!H32 -> 0 | H32: 0 | J32: ='App.2-B_FA Contin CGAAP 2009'!M32 -> 0 | M32: 0 | N32: 0
A33: 47 | B33: 1875 | C33: Street Lighting | E33: ='App.2-B_FA Contin CGAAP 2009'!H33 -> 7646 | H33: 7646 | J33: ='App.2-B_FA Contin CGAAP 2009'!M33 -> -2060 | K33: -305 | M33: -2365 | N33: 5281
A34: N/A | B34: 1905 | C34: Land | E34: ='App.2-B_FA Contin CGAAP 2009'!H34 -> 201049 | H34: 201049 | J34: ='App.2-B_FA Contin CGAAP 2009'!M34 -> 0 | M34: 0 | N34: 201049
A35: 47 | B35: 1908 | C35: Buildings & Fixtures | E35: ='App.2-B_FA Contin CGAAP 2009'!H35 -> 702948 | F35: 34836 | H35: 737784 | J35: ='App.2-B_FA Contin CGAAP 2009'!M35 -> -215569 | K35: -28795 | M35: -244364 | N35: 493420
A36: 13 | B36: 1910 | C36: Leasehold Improvements | E36: ='App.2-B_FA Contin CGAAP 2009'!H36 -> 0 | H36: 0 | J36: ='App.2-B_FA Contin CGAAP 2009'!M36 -> 0 | M36: 0 | N36: 0
A37: 8 | B37: 1915 | C37: Office Furniture & Equipment (10 years) | E37: ='App.2-B_FA Contin CGAAP 2009'!H37 -> 273093 | F37: 21306 | H37: 294399 | J37: ='App.2-B_FA Contin CGAAP 2009'!M37 -> -204156 | K37: -13478 | M37: -217634 | N37: 76765
A38: 8 | B38: 1915 | C38: Office Furniture & Equipment (5 years) | E38: ='App.2-B_FA Contin CGAAP 2009'!H38 -> 0 | H38: 0 | J38: ='App.2-B_FA Contin CGAAP 2009'!M38 -> 0 | M38: 0 | N38: 0
A39: 10 | B39: 1920 | C39: Computer Equipment - Hardware | E39: ='App.2-B_FA Contin CGAAP 2009'!H39 -> 807849 | F39: 64210 | H39: 872059 | J39: ='App.2-B_FA Contin CGAAP 2009'!M39 -> -651374 | K39: -63093 | M39: -714467 | N39: 157592
A40: 45 | B40: 1920 | C40: Computer Equip.-Hardware(Post Mar. 22/04) | E40: ='App.2-B_FA Contin CGAAP 2009'!H40 -> 0 | H40: 0 | J40: ='App.2-B_FA Contin CGAAP 2009'!M40 -> 0 | M40: 0 | N40: 0
A41: 45.1 | B41: 1920 | C41: Computer Equip.-Hardware(Post Mar. 19/07) | E41: ='App.2-B_FA Contin CGAAP 2009'!H41 -> 0 | H41: 0 | J41: ='App.2-B_FA Contin CGAAP 2009'!M41 -> 0 | M41: 0 | N41: 0
A42: 10 | B42: 1930 | C42: Transportation Equipment | E42: ='App.2-B_FA Contin CGAAP 2009'!H42 -> 242514 | F42: 594402 | H42: 836916 | J42: ='App.2-B_FA Contin CGAAP 2009'!M42 -> -125625 | K42: -90655 | M42: -216280 | N42: 620636
A43: 8 | B43: 1935 | C43: Stores Equipment | E43: ='App.2-B_FA Contin CGAAP 2009'!H43 -> 26357 | F43: 3761 | H43: 30118 | J43: ='App.2-B_FA Contin CGAAP 2009'!M43 -> -14495 | K43: -1728 | M43: -16223 | N43: 13895
A44: 8 | B44: 1940 | C44: Tools, Shop & Garage Equipment | E44: ='App.2-B_FA Contin CGAAP 2009'!H44 -> 165293 | F44: 304092 | H44: 469385 | J44: ='App.2-B_FA Contin CGAAP 2009'!M44 -> -138004 | K44: -19064 | M44: -157068 | N44: 312317
A45: 8 | B45: 1945 | C45: Measurement & Testing Equipment | E45: ='App.2-B_FA Contin CGAAP 2009'!H45 -> 23093 | F45: 597 | H45: 23690 | J45: ='App.2-B_FA Contin CGAAP 2009'!M45 -> -9437 | K45: -2339 | M45: -11776 | N45: 11914
A46: 8 | B46: 1950 | C46: Power Operated Equipment | E46: ='App.2-B_FA Contin CGAAP 2009'!H46 -> 0 | H46: 0 | J46: ='App.2-B_FA Contin CGAAP 2009'!M46 -> 0 | M46: 0 | N46: 0
A47: 8 | B47: 1955 | C47: Communications Equipment | E47: ='App.2-B_FA Contin CGAAP 2009'!H47 -> 0 | H47: 0 | J47: ='App.2-B_FA Contin CGAAP 2009'!M47 -> 0 | M47: 0 | N47: 0
A48: 8 | B48: 1955 | C48: Communication Equipment (Smart Meters) | E48: ='App.2-B_FA Contin CGAAP 2009'!H48 -> 0 | H48: 0 | J48: ='App.2-B_FA Contin CGAAP 2009'!M48 -> 0 | M48: 0 | N48: 0
A49: 8 | B49: 1960 | C49: Miscellaneous Equipment | E49: ='App.2-B_FA Contin CGAAP 2009'!H49 -> 0 | H49: 0 | J49: ='App.2-B_FA Contin CGAAP 2009'!M49 -> 0 | M49: 0 | N49: 0
A50: 47 | B50: 1975 | C50: Load Management Controls Utility Premises | E50: ='App.2-B_FA Contin CGAAP 2009'!H50 -> 0 | H50: 0 | J50: ='App.2-B_FA Contin CGAAP 2009'!M50 -> 0 | M50: 0 | N50: 0
A51: 47 | B51: 1980 | C51: System Supervisor Equipment | E51: ='App.2-B_FA Contin CGAAP 2009'!H51 -> 1272865 | F51: 52041 | H51: 1324906 | J51: ='App.2-B_FA Contin CGAAP 2009'!M51 -> -611465 | K51: -86517 | M51: -697982 | N51: 626924
A52: 47 | B52: 1985 | C52: Miscellaneous Fixed Assets | E52: ='App.2-B_FA Contin CGAAP 2009'!H52 -> 0 | H52: 0 | J52: ='App.2-B_FA Contin CGAAP 2009'!M52 -> 0 | M52: 0 | N52: 0
A53: 47 | B53: 1995 | C53: Contributions & Grants | E53: ='App.2-B_FA Contin CGAAP 2009'!H53 -> -5391302 | F53: -1802237 | H53: -7193539 | J53: ='App.2-B_FA Contin CGAAP 2009'!M53 -> 1033537 | K53: 246054 | M53: 1279591 | N53: -5913948
B54: etc. | E54: ='App.2-B_FA Contin CGAAP 2009'!H54 -> 0 | H54: 0 | M54: 0 | N54: 0
E55: ='App.2-B_FA Contin CGAAP 2009'!H55 -> 0
C56: Total | E56: =SUM(E16:E55) -> 45430084 | F56: =SUM(F16:F55) -> 5218147 | G56: -492071 | H56: 50156160 | J56: =SUM(J16:J55) -> -25719208 | K56: =SUM(K16:K55) -> -2028613 | L56: =SUM(L16:L55) -> 192417 | M56: -27555404 | N56: 22600756
J58: Less: Fully Allocated Depreciation
A59: 10 | C59: Transportation | J59: Transportation | L59: =K42 -> -90655
A60: 8 | C60: Stores Equipment | J60: Stranded meters | L60: 27337
J61: Net Depreciation | L61: =K56-L59-L60 -> -1965295
A63: Notes:
A65: 1 | B65: Tables in the format outlined above covering all fixed asset accounts should be submitted for the Test Year, Bridge Year and all relevant historical years. At a minimum , the applicant must provide data for the earlier of: 1) all historical years back to its last rebasing; or 2) at least three years of historical actuals, in addition to Bridge Year and Test Year forecasts.
A68: 2 | B68: The "CCA Class" for fixed assets should agree with the CCA Class used for tax purposes in Tax Returns. Fixed Assets sub-components may be used where the underlying asset components are classified under multiple CCA Classes for tax purposes. If an applicant uses any different classes from those shown in the table, an explanation should be provided. (also see note 3 below).
A71: 3 | B71: The table may need to be customized for a utility's asset categories or for any new asset accounts announced or authorized by the Board.
A73: 4 | B73: The depreciation column (D) is not required as the relevant information will be provided in the following 2-C series of appendices.

Sheet App.2-B_FA Contin CGAAP 2011
M1: File Number: | N1: ='LDC Info'!$E$18 -> EB-2012-0139
M2: Exhibit: | N2: 2
M3: Tab: | N3: 2
M4: Schedule: | N4: 1
M5: Page: | N5: 8
M7: Date: | N7: 2012-08-31
A9: Appendix 2-B
A10: Fixed Asset Continuity Schedule
F12: Year | G12: 2011
E14: Cost | K14: Accumulated Depreciation
A15: CCA Class | B15: OEB | C15: Description | D15: Depreciation Rate | E15: Opening Balance | F15: Additions | G15: Disposals | H15: Closing Balance | J15: Opening Balance | K15: Additions | L15: Disposals | M15: Closing Balance | N15: Net Book Value
A16: 12 | B16: 1611 | C16: Computer Software (Formally known as Account 1925) | E16: ='App.2-B_FA Contin CGAAP 2010'!H16 -> 1032751 | F16: 73245 | G16: -774930 | H16: =E16+F16+G16 -> 331066 | J16: ='App.2-B_FA Contin CGAAP 2010'!M16 -> -904335 | K16: -81963 | L16: 774427 | M16: =J16+K16+L16 -> -211871 | N16: =H16+M16 -> 119195
A17: CEC | B17: 1612 | C17: Land Rights (Formally known as Account 1906) | E17: ='App.2-B_FA Contin CGAAP 2010'!H17 -> 0 | H17: =E17+F17+G17 -> 0 | J17: ='App.2-B_FA Contin CGAAP 2010'!M17 -> 0 | M17: =J17+K17+L17 -> 0 | N17: =H17+M17 -> 0
A18: N/A | B18: 1805 | C18: Land | E18: ='App.2-B_FA Contin CGAAP 2010'!H18 -> 273770 | H18: =E18+F18+G18 -> 273770 | J18: ='App.2-B_FA Contin CGAAP 2010'!M18 -> 0 | M18: =J18+K18+L18 -> 0 | N18: =H18+M18 -> 273770
A19: CEC | B19: 1806 | C19: Land Rights | E19: ='App.2-B_FA Contin CGAAP 2010'!H19 -> 988464 | F19: 1981 | G19: -7742 | H19: =E19+F19+G19 -> 982703 | J19: ='App.2-B_FA Contin CGAAP 2010'!M19 -> -542810 | K19: -15176 | M19: =J19+K19+L19 -> -557986 | N19: =H19+M19 -> 424717
A20: 47 | B20: 1808 | C20: Buildings | E20: ='App.2-B_FA Contin CGAAP 2010'!H20 -> 0 | H20: =E20+F20+G20 -> 0 | J20: ='App.2-B_FA Contin CGAAP 2010'!M20 -> 0 | M20: =J20+K20+L20 -> 0 | N20: =H20+M20 -> 0
A21: 13 | B21: 1810 | C21: Leasehold Improvements | E21: ='App.2-B_FA Contin CGAAP 2010'!H21 -> 86252 | H21: 86252 | J21: ='App.2-B_FA Contin CGAAP 2010'!M21 -> -31050 | K21: -3450 | M21: -34500 | N21: 51752
A22: 47 | B22: 1815 | C22: Transformer Station Equipment >50 kV | E22: ='App.2-B_FA Contin CGAAP 2010'!H22 -> 0 | H22: 0 | J22: ='App.2-B_FA Contin CGAAP 2010'!M22 -> 0 | M22: 0 | N22: 0
A23: 47 | B23: 1820 | C23: Distribution Station Equipment <50 kV | E23: ='App.2-B_FA Contin CGAAP 2010'!H23 -> 4431283 | F23: 152331 | G23: -225053 | H23: 4358561 | J23: ='App.2-B_FA Contin CGAAP 2010'!M23 -> -2413305 | K23: -125218 | L23: 215647 | M23: -2322876 | N23: 2035685
A24: 47 | B24: 1825 | C24: Storage Battery Equipment | E24: ='App.2-B_FA Contin CGAAP 2010'!H24 -> 0 | H24: 0 | J24: ='App.2-B_FA Contin CGAAP 2010'!M24 -> 0 | M24: 0 | N24: 0
A25: 47 | B25: 1830 | C25: Poles, Towers & Fixtures | E25: ='App.2-B_FA Contin CGAAP 2010'!H25 -> 8331730 | F25: 935010 | G25: -188852 | H25: 9077888 | J25: ='App.2-B_FA Contin CGAAP 2010'!M25 -> -4030767 | K25: -347982 | L25: 92096 | M25: -4286653 | N25: 4791235
A26: 47 | B26: 1835 | C26: Overhead Conductors & Devices | E26: ='App.2-B_FA Contin CGAAP 2010'!H26 -> 12001819 | F26: 1491019 | G26: -299892 | H26: 13192946 | J26: ='App.2-B_FA Contin CGAAP 2010'!M26 -> -7443745 | K26: -289141 | L26: 255965 | M26: -7476921 | N26: 5716025
A27: 47 | B27: 1840 | C27: Underground Conduit | E27: ='App.2-B_FA Contin CGAAP 2010'!H27 -> 1810440 | F27: 225131 | H27: 2035571 | J27: ='App.2-B_FA Contin CGAAP 2010'!M27 -> -411382 | K27: -72418 | L27: -3967 | M27: -487767 | N27: 1547804
A28: 47 | B28: 1845 | C28: Underground Conductors & Devices | E28: ='App.2-B_FA Contin CGAAP 2010'!H28 -> 11561168 | F28: 251455 | G28: -91467 | H28: 11721156 | J28: ='App.2-B_FA Contin CGAAP 2010'!M28 -> -3876232 | K28: -465614 | L28: 2830 | M28: -4339016 | N28: 7382140
A29: 47 | B29: 1850 | C29: Line Transformers | E29: ='App.2-B_FA Contin CGAAP 2010'!H29 -> 8135538 | F29: 487484 | G29: -20236 | H29: 8602786 | J29: ='App.2-B_FA Contin CGAAP 2010'!M29 -> -5260492 | K29: -333051 | L29: 5597 | M29: -5587946 | N29: 3014840
A30: 47 | B30: 1855 | C30: Services (Overhead & Underground) | E30: ='App.2-B_FA Contin CGAAP 2010'!H30 -> 3711507 | F30: 306192 | G30: -563 | H30: 4017136 | J30: ='App.2-B_FA Contin CGAAP 2010'!M30 -> -1602749 | K30: -154495 | L30: 64 | M30: -1757180 | N30: 2259956
A31: 47 | B31: 1860 | C31: Meters | E31: ='App.2-B_FA Contin CGAAP 2010'!H31 -> 187025 | F31: 10308 | G31: 89925 | H31: 287258 | J31: ='App.2-B_FA Contin CGAAP 2010'!M31 -> -39969 | K31: -27067 | M31: -67036 | N31: 220222
A32: 47 | B32: 1860 | C32: Meters (Smart Meters) | E32: ='App.2-B_FA Contin CGAAP 2010'!H32 -> 0 | H32: 0 | J32: ='App.2-B_FA Contin CGAAP 2010'!M32 -> 0 | M32: 0 | N32: 0
A33: 47 | B33: 1875 | C33: Street Lighting | E33: ='App.2-B_FA Contin CGAAP 2010'!H33 -> 7646 | H33: 7646 | J33: ='App.2-B_FA Contin CGAAP 2010'!M33 -> -2365 | K33: -305 | M33: -2670 | N33: 4976
A34: N/A | B34: 1905 | C34: Land | E34: ='App.2-B_FA Contin CGAAP 2010'!H34 -> 201049 | H34: 201049 | J34: ='App.2-B_FA Contin CGAAP 2010'!M34 -> 0 | M34: 0 | N34: 201049
A35: 47 | B35: 1908 | C35: Buildings & Fixtures | E35: ='App.2-B_FA Contin CGAAP 2010'!H35 -> 737784 | F35: 1847 | H35: 739631 | J35: ='App.2-B_FA Contin CGAAP 2010'!M35 -> -244364 | K35: -29548 | M35: -273912 | N35: 465719
A36: 13 | B36: 1910 | C36: Leasehold Improvements | E36: ='App.2-B_FA Contin CGAAP 2010'!H36 -> 0 | H36: 0 | J36: ='App.2-B_FA Contin CGAAP 2010'!M36 -> 0 | M36: 0 | N36: 0
A37: 8 | B37: 1915 | C37: Office Furniture & Equipment (10 years) | E37: ='App.2-B_FA Contin CGAAP 2010'!H37 -> 294399 | F37: 14256 | H37: 308655 | J37: ='App.2-B_FA Contin CGAAP 2010'!M37 -> -217634 | K37: -15014 | M37: -232648 | N37: 76007
A38: 8 | B38: 1915 | C38: Office Furniture & Equipment (5 years) | E38: ='App.2-B_FA Contin CGAAP 2010'!H38 -> 0 | H38: 0 | J38: ='App.2-B_FA Contin CGAAP 2010'!M38 -> 0 | M38: 0 | N38: 0
A39: 10 | B39: 1920 | C39: Computer Equipment - Hardware | E39: ='App.2-B_FA Contin CGAAP 2010'!H39 -> 872059 | F39: 16388 | G39: -373141 | H39: 515306 | J39: ='App.2-B_FA Contin CGAAP 2010'!M39 -> -714467 | K39: -63019 | L39: 377405 | M39: -400081 | N39: 115225
A40: 45 | B40: 1920 | C40: Computer Equip.-Hardware(Post Mar. 22/04) | E40: ='App.2-B_FA Contin CGAAP 2010'!H40 -> 0 | H40: 0 | J40: ='App.2-B_FA Contin CGAAP 2010'!M40 -> 0 | M40: 0 | N40: 0
A41: 45.1 | B41: 1920 | C41: Computer Equip.-Hardware(Post Mar. 19/07) | E41: ='App.2-B_FA Contin CGAAP 2010'!H41 -> 0 | H41: 0 | J41: ='App.2-B_FA Contin CGAAP 2010'!M41 -> 0 | M41: 0 | N41: 0
A42: 10 | B42: 1930 | C42: Transportation Equipment | E42: ='App.2-B_FA Contin CGAAP 2010'!H42 -> 836916 | F42: 297131 | G42: 40149 | H42: 1174196 | J42: ='App.2-B_FA Contin CGAAP 2010'!M42 -> -216280 | K42: -220718 | L42: -23136 | M42: -460134 | N42: 714062
A43: 8 | B43: 1935 | C43: Stores Equipment | E43: ='App.2-B_FA Contin CGAAP 2010'!H43 -> 30118 | F43: 1706 | H43: 31824 | J43: ='App.2-B_FA Contin CGAAP 2010'!M43 -> -16223 | K43: -1949 | M43: -18172 | N43: 13652
A44: 8 | B44: 1940 | C44: Tools, Shop & Garage Equipment | E44: ='App.2-B_FA Contin CGAAP 2010'!H44 -> 469385 | F44: 58448 | G44: -40149 | H44: 487684 | J44: ='App.2-B_FA Contin CGAAP 2010'!M44 -> -157068 | K44: -34180 | L44: 3011 | M44: -188237 | N44: 299447
A45: 8 | B45: 1945 | C45: Measurement & Testing Equipment | E45: ='App.2-B_FA Contin CGAAP 2010'!H45 -> 23690 | F45: 9307 | H45: 32997 | J45: ='App.2-B_FA Contin CGAAP 2010'!M45 -> -11776 | K45: -2450 | M45: -14226 | N45: 18771
A46: 8 | B46: 1950 | C46: Power Operated Equipment | E46: ='App.2-B_FA Contin CGAAP 2010'!H46 -> 0 | H46: 0 | J46: ='App.2-B_FA Contin CGAAP 2010'!M46 -> 0 | M46: 0 | N46: 0
A47: 8 | B47: 1955 | C47: Communications Equipment | E47: ='App.2-B_FA Contin CGAAP 2010'!H47 -> 0 | H47: 0 | J47: ='App.2-B_FA Contin CGAAP 2010'!M47 -> 0 | M47: 0 | N47: 0
A48: 8 | B48: 1955 | C48: Communication Equipment (Smart Meters) | E48: ='App.2-B_FA Contin CGAAP 2010'!H48 -> 0 | H48: 0 | J48: ='App.2-B_FA Contin CGAAP 2010'!M48 -> 0 | M48: 0 | N48: 0
A49: 8 | B49: 1960 | C49: Miscellaneous Equipment | E49: ='App.2-B_FA Contin CGAAP 2010'!H49 -> 0 | H49: 0 | J49: ='App.2-B_FA Contin CGAAP 2010'!M49 -> 0 | M49: 0 | N49: 0
A50: 47 | B50: 1975 | C50: Load Management Controls Utility Premises | E50: ='App.2-B_FA Contin CGAAP 2010'!H50 -> 0 | H50: 0 | J50: ='App.2-B_FA Contin CGAAP 2010'!M50 -> 0 | M50: 0 | N50: 0
A51: 47 | B51: 1980 | C51: System Supervisor Equipment | E51: ='App.2-B_FA Contin CGAAP 2010'!H51 -> 1324906 | F51: 82487 | H51: 1407393 | J51: ='App.2-B_FA Contin CGAAP 2010'!M51 -> -697982 | K51: -91077 | M51: -789059 | N51: 618334
A52: 47 | B52: 1985 | C52: Miscellaneous Fixed Assets | E52: ='App.2-B_FA Contin CGAAP 2010'!H52 -> 0 | H52: 0 | J52: ='App.2-B_FA Contin CGAAP 2010'!M52 -> 0 | M52: 0 | N52: 0
A53: 47 | B53: 1995 | C53: Contributions & Grants | E53: ='App.2-B_FA Contin CGAAP 2010'!H53 -> -7193539 | F53: -521407 | H53: -7714946 | J53: ='App.2-B_FA Contin CGAAP 2010'!M53 -> 1279591 | K53: 290627 | M53: 1570218 | N53: -6144728
B54: etc. | E54: ='App.2-B_FA Contin CGAAP 2009'!H54 -> 0 | H54: 0 | M54: 0 | N54: 0
E55: ='App.2-B_FA Contin CGAAP 2009'!H55 -> 0
C56: Total | E56: =SUM(E16:E55) -> 50156160 | F56: =SUM(F16:F55) -> 3894319 | G56: -1891951 | H56: 52158528 | J56: =SUM(J16:J55) -> -27555404 | K56: =SUM(K16:K55) -> -2083208 | L56: =SUM(L16:L55) -> 1699939 | M56: -27938673 | N56: 24219855
C58: Smart Meter Trueup
A59: 10 | C59: Smart meters | F59: 2162281 | K59: -327495
A60: 8 | C60: Computer software | F60: 32533 | K60: -27111
J62: Less: Fully Allocated Depreciation
J63: Transportation | L63: =K42 -> -220718
J64: Stores Equipment | L64: 31745
J65: Net Depreciation | L65: =K56-L63-L64 -> -1894235
A66: Notes:
A68: 1 | B68: Tables in the format outlined above covering all fixed asset accounts should be submitted for the Test Year, Bridge Year and all relevant historical years. At a minimum , the applicant must provide data for the earlier of: 1) all historical years back to its last rebasing; or 2) at least three years of historical actuals, in addition to Bridge Year and Test Year forecasts.
A71: 2 | B71: The "CCA Class" for fixed assets should agree with the CCA Class used for tax purposes in Tax Returns. Fixed Assets sub-components may be used where the underlying asset components are classified under multiple CCA Classes for tax purposes. If an applicant uses any different classes from those shown in the table, an explanation should be provided. (also see note 3 below).
A74: 3 | B74: The table may need to be customized for a utility's asset categories or for any new asset accounts announced or authorized by the Board.
A76: 4 | B76: The depreciation column (D) is not required as the relevant information will be provided in the following 2-C series of appendices.

Sheet App.2-B_FA Contin CGAAP 2012
M1: File Number: | N1: ='LDC Info'!$E$18 -> EB-2012-0139
M2: Exhibit: | N2: 2
M3: Tab: | N3: 2
M4: Schedule: | N4: 1
M5: Page: | N5: 9
M7: Date: | N7: 2012-08-31
A9: Appendix 2-B
A10: Fixed Asset Continuity Schedule
F12: Year | G12: 2012
E14: Cost | K14: Accumulated Depreciation
A15: CCA Class | B15: OEB | C15: Description | D15: Depreciation Rate | E15: Opening Balance | F15: Additions | G15: Disposals | H15: Closing Balance | J15: Opening Balance | K15: Additions | L15: Disposals | M15: Closing Balance | N15: Net Book Value
A16: 12 | B16: 1611 | C16: Computer Software (Formally known as Account 1925) | E16: ='App.2-B_FA Contin CGAAP 2011'!H16+'App.2-B_FA Contin CGAAP 2011'!F60 -> 363599 | F16: =314683-'App.2-B_FA Contin CGAAP 2011'!F60 -> 282150 | H16: =E16+F16+G16 -> 645749 | J16: ='App.2-B_FA Contin CGAAP 2011'!M16+'App.2-B_FA Contin CGAAP 2011'!K60 -> -238982 | K16: =-113920 -> -113920 | M16: =J16+K16+L16 -> -352902 | N16: =H16+M16 -> 292847
A17: CEC | B17: 1612 | C17: Land Rights (Formally known as Account 1906) | E17: ='App.2-B_FA Contin CGAAP 2011'!H17 -> 0 | H17: =E17+F17+G17 -> 0 | J17: ='App.2-B_FA Contin CGAAP 2011'!M17 -> 0 | M17: =J17+K17+L17 -> 0 | N17: =H17+M17 -> 0
A18: N/A | B18: 1805 | C18: Land | E18: ='App.2-B_FA Contin CGAAP 2011'!H18 -> 273770 | F18: 465000 | H18: =E18+F18+G18 -> 738770 | J18: ='App.2-B_FA Contin CGAAP 2011'!M18 -> 0 | M18: =J18+K18+L18 -> 0 | N18: =H18+M18 -> 738770
A19: CEC | B19: 1806 | C19: Land Rights | E19: ='App.2-B_FA Contin CGAAP 2011'!H19 -> 982703 | H19: =E19+F19+G19 -> 982703 | J19: ='App.2-B_FA Contin CGAAP 2011'!M19 -> -557986 | K19: -14872 | M19: =J19+K19+L19 -> -572858 | N19: =H19+M19 -> 409845
A20: 47 | B20: 1808 | C20: Buildings | E20: ='App.2-B_FA Contin CGAAP 2011'!H20 -> 0 | H20: =E20+F20+G20 -> 0 | J20: ='App.2-B_FA Contin CGAAP 2011'!M20 -> 0 | M20: =J20+K20+L20 -> 0 | N20: =H20+M20 -> 0
A21: 13 | B21: 1810 | C21: Leasehold Improvements | E21: ='App.2-B_FA Contin CGAAP 2011'!H21 -> 86252 | H21: 86252 | J21: ='App.2-B_FA Contin CGAAP 2011'!M21 -> -34500 | K21: -3312 | M21: -37812 | N21: 48440
A22: 47 | B22: 1815 | C22: Transformer Station Equipment >50 kV | E22: ='App.2-B_FA Contin CGAAP 2011'!H22 -> 0 | H22: 0 | J22: ='App.2-B_FA Contin CGAAP 2011'!M22 -> 0 | M22: 0 | N22: 0
A23: 47 | B23: 1820 | C23: Distribution Station Equipment <50 kV | E23: ='App.2-B_FA Contin CGAAP 2011'!H23 -> 4358561 | F23: 35448 | H23: 4394009 | J23: ='App.2-B_FA Contin CGAAP 2011'!M23 -> -2322876 | K23: -120918 | M23: -2443794 | N23: 1950215
A24: 47 | B24: 1825 | C24: Storage Battery Equipment | E24: ='App.2-B_FA Contin CGAAP 2011'!H24 -> 0 | H24: 0 | J24: ='App.2-B_FA Contin CGAAP 2011'!M24 -> 0 | M24: 0 | N24: 0
A25: 47 | B25: 1830 | C25: Poles, Towers & Fixtures | E25: ='App.2-B_FA Contin CGAAP 2011'!H25 -> 9077888 | F25: 1172023 | G25: -100000 | H25: 10149911 | J25: ='App.2-B_FA Contin CGAAP 2011'!M25 -> -4286653 | K25: -357503 | L25: 85000 | M25: -4559156 | N25: 5590755
A26: 47 | B26: 1835 | C26: Overhead Conductors & Devices | E26: ='App.2-B_FA Contin CGAAP 2011'!H26 -> 13192946 | F26: 1314249 | G26: -150000 | H26: 14357195 | J26: ='App.2-B_FA Contin CGAAP 2011'!M26 -> -7476921 | K26: -303860 | L26: 127500 | M26: -7653281 | N26: 6703914
A27: 47 | B27: 1840 | C27: Underground Conduit | E27: ='App.2-B_FA Contin CGAAP 2011'!H27 -> 2035571 | F27: 37200 | H27: 2072771 | J27: ='App.2-B_FA Contin CGAAP 2011'!M27 -> -487767 | K27: -70265 | M27: -558032 | N27: 1514739
A28: 47 | B28: 1845 | C28: Underground Conductors & Devices | E28: ='App.2-B_FA Contin CGAAP 2011'!H28 -> 11721156 | F28: 454700 | G28: -50000 | H28: 12125856 | J28: ='App.2-B_FA Contin CGAAP 2011'!M28 -> -4339016 | K28: -456084 | L28: 42500 | M28: -4752600 | N28: 7373256
A29: 47 | B29: 1850 | C29: Line Transformers | E29: ='App.2-B_FA Contin CGAAP 2011'!H29 -> 8602786 | F29: 545110 | G29: -10000 | H29: 9137896 | J29: ='App.2-B_FA Contin CGAAP 2011'!M29 -> -5587946 | K29: =-48293-282338 -> -330631 | L29: 8500 | M29: -5910077 | N29: 3227819
A30: 47 | B30: 1855 | C30: Services (Overhead & Underground) | E30: ='App.2-B_FA Contin CGAAP 2011'!H30 -> 4017136 | F30: 207405 | H30: 4224541 | J30: ='App.2-B_FA Contin CGAAP 2011'!M30 -> -1757180 | K30: =-33848-118615 -> -152463 | M30: -1909643 | N30: 2314898
A31: 47 | B31: 1860 | C31: Meters | E31: ='App.2-B_FA Contin CGAAP 2011'!H31 -> 287258 | H31: 287258 | J31: ='App.2-B_FA Contin CGAAP 2011'!M31 -> -67036 | K31: =287258*-0.04 -> -11490.32 | M31: -78526.32 | N31: 208731.68
A32: 47 | B32: 1860 | C32: Meters (Smart Meters) | E32: ='App.2-B_FA Contin CGAAP 2011'!F59 -> 2162281 | F32: =2236521-E32 -> 74240 | H32: 2236521 | J32: ='App.2-B_FA Contin CGAAP 2011'!K59 -> -327495 | K32: =-201112-K31+43000 -> -146621.68 | M32: -474116.68 | N32: 1762404.32
A33: 47 | B33: 1875 | C33: Street Lighting | E33: ='App.2-B_FA Contin CGAAP 2011'!H33 -> 7646 | G33: -7646 | H33: 0 | J33: ='App.2-B_FA Contin CGAAP 2011'!M33 -> -2670 | L33: 2670 | M33: 0 | N33: 0
A34: N/A | B34: 1905 | C34: Land | E34: ='App.2-B_FA Contin CGAAP 2011'!H34 -> 201049 | H34: 201049 | J34: ='App.2-B_FA Contin CGAAP 2011'!M34 -> 0 | M34: 0 | N34: 201049
A35: 47 | B35: 1908 | C35: Buildings & Fixtures | E35: ='App.2-B_FA Contin CGAAP 2011'!H35 -> 739631 | F35: 2025000 | H35: 2764631 | J35: ='App.2-B_FA Contin CGAAP 2011'!M35 -> -273912 | K35: -28866 | M35: -302778 | N35: 2461853
A36: 13 | B36: 1910 | C36: Leasehold Improvements | E36: ='App.2-B_FA Contin CGAAP 2011'!H36 -> 0 | H36: 0 | J36: ='App.2-B_FA Contin CGAAP 2011'!M36 -> 0 | M36: 0 | N36: 0
A37: 8 | B37: 1915 | C37: Office Furniture & Equipment (10 years) | E37: ='App.2-B_FA Contin CGAAP 2011'!H37 -> 308655 | F37: 25500 | H37: 334155 | J37: ='App.2-B_FA Contin CGAAP 2011'!M37 -> -232648 | K37: -12536 | M37: -245184 | N37: 88971
A38: 8 | B38: 1915 | C38: Office Furniture & Equipment (5 years) | E38: ='App.2-B_FA Contin CGAAP 2011'!H38 -> 0 | H38: 0 | J38: ='App.2-B_FA Contin CGAAP 2011'!M38 -> 0 | M38: 0 | N38: 0
A39: 10 | B39: 1920 | C39: Computer Equipment - Hardware | E39: ='App.2-B_FA Contin CGAAP 2011'!H39 -> 515306 | F39: 122500 | H39: 637806 | J39: ='App.2-B_FA Contin CGAAP 2011'!M39 -> -400081 | K39: -62665 | M39: -462746 | N39: 175060
A40: 45 | B40: 1920 | C40: Computer Equip.-Hardware(Post Mar. 22/04) | E40: ='App.2-B_FA Contin CGAAP 2011'!H40 -> 0 | H40: 0 | J40: ='App.2-B_FA Contin CGAAP 2011'!M40 -> 0 | M40: 0 | N40: 0
A41: 45.1 | B41: 1920 | C41: Computer Equip.-Hardware(Post Mar. 19/07) | E41: ='App.2-B_FA Contin CGAAP 2011'!H41 -> 0 | H41: 0 | J41: ='App.2-B_FA Contin CGAAP 2011'!M41 -> 0 | M41: 0 | N41: 0
A42: 10 | B42: 1930 | C42: Transportation Equipment | E42: ='App.2-B_FA Contin CGAAP 2011'!H42 -> 1174196 | H42: 1174196 | J42: ='App.2-B_FA Contin CGAAP 2011'!M42 -> -460134 | K42: -159800 | M42: -619934 | N42: 554262
A43: 8 | B43: 1935 | C43: Stores Equipment | E43: ='App.2-B_FA Contin CGAAP 2011'!H43 -> 31824 | F43: 4000 | H43: 35824 | J43: ='App.2-B_FA Contin CGAAP 2011'!M43 -> -18172 | K43: -1954 | M43: -20126 | N43: 15698
A44: 8 | B44: 1940 | C44: Tools, Shop & Garage Equipment | E44: ='App.2-B_FA Contin CGAAP 2011'!H44 -> 487684 | F44: 27000 | H44: 514684 | J44: ='App.2-B_FA Contin CGAAP 2011'!M44 -> -188237 | K44: -32112 | M44: -220349 | N44: 294335
A45: 8 | B45: 1945 | C45: Measurement & Testing Equipment | E45: ='App.2-B_FA Contin CGAAP 2011'!H45 -> 32997 | F45: 8500 | H45: 41497 | J45: ='App.2-B_FA Contin CGAAP 2011'!M45 -> -14226 | K45: -2631 | M45: -16857 | N45: 24640
A46: 8 | B46: 1950 | C46: Power Operated Equipment | E46: ='App.2-B_FA Contin CGAAP 2011'!H46 -> 0 | H46: 0 | J46: ='App.2-B_FA Contin CGAAP 2011'!M46 -> 0 | M46: 0 | N46: 0
A47: 8 | B47: 1955 | C47: Communications Equipment | E47: ='App.2-B_FA Contin CGAAP 2011'!H47 -> 0 | H47: 0 | J47: ='App.2-B_FA Contin CGAAP 2011'!M47 -> 0 | M47: 0 | N47: 0
A48: 8 | B48: 1955 | C48: Communication Equipment (Smart Meters) | E48: ='App.2-B_FA Contin CGAAP 2011'!H48 -> 0 | H48: 0 | J48: ='App.2-B_FA Contin CGAAP 2011'!M48 -> 0 | M48: 0 | N48: 0
A49: 8 | B49: 1960 | C49: Miscellaneous Equipment | E49: ='App.2-B_FA Contin CGAAP 2011'!H49 -> 0 | H49: 0 | J49: ='App.2-B_FA Contin CGAAP 2011'!M49 -> 0 | M49: 0 | N49: 0
A50: 47 | B50: 1975 | C50: Load Management Controls Utility Premises | E50: ='App.2-B_FA Contin CGAAP 2011'!H50 -> 0 | H50: 0 | J50: ='App.2-B_FA Contin CGAAP 2011'!M50 -> 0 | M50: 0 | N50: 0
A51: 47 | B51: 1980 | C51: System Supervisor Equipment | E51: ='App.2-B_FA Contin CGAAP 2011'!H51 -> 1407393 | F51: 367850 | H51: 1775243 | J51: ='App.2-B_FA Contin CGAAP 2011'!M51 -> -789059 | K51: -97267 | M51: -886326 | N51: 888917
A52: 47 | B52: 1985 | C52: Miscellaneous Fixed Assets | E52: ='App.2-B_FA Contin CGAAP 2011'!H52 -> 0 | H52: 0 | J52: ='App.2-B_FA Contin CGAAP 2011'!M52 -> 0 | M52: 0 | N52: 0
A53: 47 | B53: 1995 | C53: Contributions & Grants | E53: ='App.2-B_FA Contin CGAAP 2011'!H53 -> -7714946 | F53: -1083954 | H53: -8798900 | J53: ='App.2-B_FA Contin CGAAP 2011'!M53 -> 1570218 | K53: 300681 | M53: 1870899 | N53: -6928001
B54: etc. | E54: ='App.2-B_FA Contin CGAAP 2009'!H54 -> 0 | H54: 0 | M54: 0 | N54: 0
E55: ='App.2-B_FA Contin CGAAP 2009'!H55 -> 0
C56: Total | E56: =SUM(E16:E55) -> 54353342 | F56: =SUM(F16:F55) -> 6083921 | G56: -317646 | H56: 60119617 | J56: =SUM(J16:J55) -> -28293279 | K56: =SUM(K16:K55) -> -2179090 | L56: =SUM(L16:L55) -> 266170 | M56: -30206199 | N56: 29913418
E58: =E56+J56 -> 26060063 | J58: Less: Fully Allocated Depreciation
A59: 10 | C59: Transportation | E59: =F56+G56+L56 -> 6032445 | J59: Transportation | L59: =K42 -> -159800
A60: 8 | C60: Stores Equipment | E60: =K56 -> -2179090 | J60: Stranded Meters | L60: 43000
E61: =SUM(E58:E60) -> 29913418 | J61: Net Depreciation | L61: =K56-L59-L60 -> -2062290 | M61: =L61-'App.2-B_FA Contin MIFRS 2012'!L61 -> -639864
A63: Notes:
A65: 1 | B65: Tables in the format outlined above covering all fixed asset accounts should be submitted for the Test Year, Bridge Year and all relevant historical years. At a minimum , the applicant must provide data for the earlier of: 1) all historical years back to its last rebasing; or 2) at least three years of historical actuals, in addition to Bridge Year and Test Year forecasts.
A68: 2 | B68: The "CCA Class" for fixed assets should agree with the CCA Class used for tax purposes in Tax Returns. Fixed Assets sub-components may be used where the underlying asset components are classified under multiple CCA Classes for tax purposes. If an applicant uses any different classes from those shown in the table, an explanation should be provided. (also see note 3 below).
A71: 3 | B71: The table may need to be customized for a utility's asset categories or for any new asset accounts announced or authorized by the Board.
A73: 4 | B73: The depreciation column (D) is not required as the relevant information will be provided in the following 2-C series of appendices.

Sheet App.2-B_FA Contin MIFRS 2012
M1: File Number: | N1: ='LDC Info'!$E$18 -> EB-2012-0139
M2: Exhibit: | N2: 2
M3: Tab: | N3: 2
M4: Schedule: | N4: 1
M5: Page: | N5: 10
M7: Date: | N7: Sep. 10, 2012
A9: Appendix 2-B
A10: Fixed Asset Continuity Schedule
F12: Year | G12: 2012
E14: Cost | K14: Accumulated Depreciation
A15: CCA Class | B15: OEB | C15: Description | D15: Depreciation Rate | E15: Opening Balance | F15: Additions | G15: Disposals | H15: Closing Balance | J15: Opening Balance | K15: Additions | L15: Disposals | M15: Closing Balance | N15: Net Book Value
A16: 12 | B16: 1611 | C16: Computer Software (Formally known as Account 1925) | E16: ='App.2-B_FA Contin CGAAP 2011'!H16+'App.2-B_FA Contin CGAAP 2011'!F60 -> 363599 | F16: =314683-'App.2-B_FA Contin CGAAP 2011'!F60 -> 282150 | H16: =E16+F16+G16 -> 645749 | J16: ='App.2-B_FA Contin CGAAP 2011'!M16+'App.2-B_FA Contin CGAAP 2011'!K60 -> -238982 | K16: =-113920 -> -113920 | M16: =J16+K16+L16 -> -352902 | N16: =H16+M16 -> 292847
A17: CEC | B17: 1612 | C17: Land Rights (Formally known as Account 1906) | E17: ='App.2-B_FA Contin CGAAP 2011'!H17 -> 0 | H17: =E17+F17+G17 -> 0 | J17: ='App.2-B_FA Contin CGAAP 2011'!M17 -> 0 | M17: =J17+K17+L17 -> 0 | N17: =H17+M17 -> 0
A18: N/A | B18: 1805 | C18: Land | E18: ='App.2-B_FA Contin CGAAP 2011'!H18 -> 273770 | F18: 465000 | H18: =E18+F18+G18 -> 738770 | J18: ='App.2-B_FA Contin CGAAP 2011'!M18 -> 0 | M18: =J18+K18+L18 -> 0 | N18: =H18+M18 -> 738770
A19: CEC | B19: 1806 | C19: Land Rights | E19: ='App.2-B_FA Contin CGAAP 2011'!H19 -> 982703 | H19: =E19+F19+G19 -> 982703 | J19: ='App.2-B_FA Contin CGAAP 2011'!M19 -> -557986 | K19: -14872 | M19: =J19+K19+L19 -> -572858 | N19: =H19+M19 -> 409845
A20: 47 | B20: 1808 | C20: Buildings | E20: ='App.2-B_FA Contin CGAAP 2011'!H20 -> 0 | H20: =E20+F20+G20 -> 0 | J20: ='App.2-B_FA Contin CGAAP 2011'!M20 -> 0 | M20: =J20+K20+L20 -> 0 | N20: =H20+M20 -> 0
A21: 13 | B21: 1810 | C21: Leasehold Improvements | E21: ='App.2-B_FA Contin CGAAP 2011'!H21 -> 86252 | H21: 86252 | J21: ='App.2-B_FA Contin CGAAP 2011'!M21 -> -34500 | K21: -3312 | M21: -37812 | N21: 48440
A22: 47 | B22: 1815 | C22: Transformer Station Equipment >50 kV | E22: ='App.2-B_FA Contin CGAAP 2011'!H22 -> 0 | H22: 0 | J22: ='App.2-B_FA Contin CGAAP 2011'!M22 -> 0 | M22: 0 | N22: 0
A23: 47 | B23: 1820 | C23: Distribution Station Equipment <50 kV | E23: ='App.2-B_FA Contin CGAAP 2011'!H23 -> 4358561 | F23: 35448 | H23: 4394009 | J23: ='App.2-B_FA Contin CGAAP 2011'!M23 -> -2322876 | K23: -90878 | M23: -2413754 | N23: 1980255
A24: 47 | B24: 1825 | C24: Storage Battery Equipment | E24: ='App.2-B_FA Contin CGAAP 2011'!H24 -> 0 | H24: 0 | J24: ='App.2-B_FA Contin CGAAP 2011'!M24 -> 0 | M24: 0 | N24: 0
A25: 47 | B25: 1830 | C25: Poles, Towers & Fixtures | E25: ='App.2-B_FA Contin CGAAP 2011'!H25 -> 9077888 | F25: 1172023 | G25: -100000 | H25: 10149911 | J25: ='App.2-B_FA Contin CGAAP 2011'!M25 -> -4286653 | K25: -187013 | L25: 85000 | M25: -4388666 | N25: 5761245
A26: 47 | B26: 1835 | C26: Overhead Conductors & Devices | E26: ='App.2-B_FA Contin CGAAP 2011'!H26 -> 13192946 | F26: 1314249 | G26: -150000 | H26: 14357195 | J26: ='App.2-B_FA Contin CGAAP 2011'!M26 -> -7476921 | K26: -147438 | L26: 127500 | M26: -7496859 | N26: 6860336
A27: 47 | B27: 1840 | C27: Underground Conduit | E27: ='App.2-B_FA Contin CGAAP 2011'!H27 -> 2035571 | F27: 37200 | H27: 2072771 | J27: ='App.2-B_FA Contin CGAAP 2011'!M27 -> -487767 | K27: -48744 | M27: -536511 | N27: 1536260
A28: 47 | B28: 1845 | C28: Underground Conductors & Devices | E28: ='App.2-B_FA Contin CGAAP 2011'!H28 -> 11721156 | F28: 454700 | G28: -50000 | H28: 12125856 | J28: ='App.2-B_FA Contin CGAAP 2011'!M28 -> -4339016 | K28: -316093 | L28: 42500 | M28: -4612609 | N28: 7513247
A29: 47 | B29: 1850 | C29: Line Transformers | E29: ='App.2-B_FA Contin CGAAP 2011'!H29 -> 8602786 | F29: 545110 | G29: -10000 | H29: 9137896 | J29: ='App.2-B_FA Contin CGAAP 2011'!M29 -> -5587946 | K29: -206644 | L29: 8500 | M29: -5786090 | N29: 3351806
A30: 47 | B30: 1855 | C30: Services (Overhead & Underground) | E30: ='App.2-B_FA Contin CGAAP 2011'!H30 -> 4017136 | F30: 207405 | H30: 4224541 | J30: ='App.2-B_FA Contin CGAAP 2011'!M30 -> -1757180 | K30: -79751 | M30: -1836931 | N30: 2387610
A31: 47 | B31: 1860 | C31: Meters | E31: ='App.2-B_FA Contin CGAAP 2011'!H31 -> 287258 | H31: 287258 | J31: ='App.2-B_FA Contin CGAAP 2011'!M31 -> -67036 | K31: =287258*-0.04 -> -11490.32 | M31: -78526.32 | N31: 208731.68
A32: 47 | B32: 1860 | C32: Meters (Smart Meters) | E32: ='App.2-B_FA Contin CGAAP 2011'!F59 -> 2162281 | F32: =2236521-E32 -> 74240 | H32: 2236521 | J32: ='App.2-B_FA Contin CGAAP 2011'!K59 -> -327495 | K32: =-201112-K31+43000 -> -146621.68 | M32: -474116.68 | N32: 1762404.32
A33: 47 | B33: 1875 | C33: Street Lighting | E33: ='App.2-B_FA Contin CGAAP 2011'!H33 -> 7646 | G33: -7646 | H33: 0 | J33: ='App.2-B_FA Contin CGAAP 2011'!M33 -> -2670 | L33: 2670 | M33: 0 | N33: 0
A34: N/A | B34: 1905 | C34: Land | E34: ='App.2-B_FA Contin CGAAP 2011'!H34 -> 201049 | H34: 201049 | J34: ='App.2-B_FA Contin CGAAP 2011'!M34 -> 0 | M34: 0 | N34: 201049
A35: 47 | B35: 1908 | C35: Buildings & Fixtures | E35: ='App.2-B_FA Contin CGAAP 2011'!H35 -> 739631 | F35: 2025000 | H35: 2764631 | J35: ='App.2-B_FA Contin CGAAP 2011'!M35 -> -273912 | K35: -28866 | M35: -302778 | N35: 2461853
A36: 13 | B36: 1910 | C36: Leasehold Improvements | E36: ='App.2-B_FA Contin CGAAP 2011'!H36 -> 0 | H36: 0 | J36: ='App.2-B_FA Contin CGAAP 2011'!M36 -> 0 | M36: 0 | N36: 0
A37: 8 | B37: 1915 | C37: Office Furniture & Equipment (10 years) | E37: ='App.2-B_FA Contin CGAAP 2011'!H37 -> 308655 | F37: 25500 | H37: 334155 | J37: ='App.2-B_FA Contin CGAAP 2011'!M37 -> -232648 | K37: -12536 | M37: -245184 | N37: 88971
A38: 8 | B38: 1915 | C38: Office Furniture & Equipment (5 years) | E38: ='App.2-B_FA Contin CGAAP 2011'!H38 -> 0 | H38: 0 | J38: ='App.2-B_FA Contin CGAAP 2011'!M38 -> 0 | M38: 0 | N38: 0
A39: 10 | B39: 1920 | C39: Computer Equipment - Hardware | E39: ='App.2-B_FA Contin CGAAP 2011'!H39 -> 515306 | F39: 122500 | H39: 637806 | J39: ='App.2-B_FA Contin CGAAP 2011'!M39 -> -400081 | K39: -62665 | M39: -462746 | N39: 175060
A40: 45 | B40: 1920 | C40: Computer Equip.-Hardware(Post Mar. 22/04) | E40: ='App.2-B_FA Contin CGAAP 2011'!H40 -> 0 | H40: 0 | J40: ='App.2-B_FA Contin CGAAP 2011'!M40 -> 0 | M40: 0 | N40: 0
A41: 45.1 | B41: 1920 | C41: Computer Equip.-Hardware(Post Mar. 19/07) | E41: ='App.2-B_FA Contin CGAAP 2011'!H41 -> 0 | H41: 0 | J41: ='App.2-B_FA Contin CGAAP 2011'!M41 -> 0 | M41: 0 | N41: 0
A42: 10 | B42: 1930 | C42: Transportation Equipment | E42: ='App.2-B_FA Contin CGAAP 2011'!H42 -> 1174196 | H42: 1174196 | J42: ='App.2-B_FA Contin CGAAP 2011'!M42 -> -460134 | K42: -159800 | M42: -619934 | N42: 554262
A43: 8 | B43: 1935 | C43: Stores Equipment | E43: ='App.2-B_FA Contin CGAAP 2011'!H43 -> 31824 | F43: 4000 | H43: 35824 | J43: ='App.2-B_FA Contin CGAAP 2011'!M43 -> -18172 | K43: -1954 | M43: -20126 | N43: 15698
A44: 8 | B44: 1940 | C44: Tools, Shop & Garage Equipment | E44: ='App.2-B_FA Contin CGAAP 2011'!H44 -> 487684 | F44: 27000 | H44: 514684 | J44: ='App.2-B_FA Contin CGAAP 2011'!M44 -> -188237 | K44: -32112 | M44: -220349 | N44: 294335
A45: 8 | B45: 1945 | C45: Measurement & Testing Equipment | E45: ='App.2-B_FA Contin CGAAP 2011'!H45 -> 32997 | F45: 8500 | H45: 41497 | J45: ='App.2-B_FA Contin CGAAP 2011'!M45 -> -14226 | K45: -2631 | M45: -16857 | N45: 24640
A46: 8 | B46: 1950 | C46: Power Operated Equipment | E46: ='App.2-B_FA Contin CGAAP 2011'!H46 -> 0 | H46: 0 | J46: ='App.2-B_FA Contin CGAAP 2011'!M46 -> 0 | M46: 0 | N46: 0
A47: 8 | B47: 1955 | C47: Communications Equipment | E47: ='App.2-B_FA Contin CGAAP 2011'!H47 -> 0 | H47: 0 | J47: ='App.2-B_FA Contin CGAAP 2011'!M47 -> 0 | M47: 0 | N47: 0
A48: 8 | B48: 1955 | C48: Communication Equipment (Smart Meters) | E48: ='App.2-B_FA Contin CGAAP 2011'!H48 -> 0 | H48: 0 | J48: ='App.2-B_FA Contin CGAAP 2011'!M48 -> 0 | M48: 0 | N48: 0
A49: 8 | B49: 1960 | C49: Miscellaneous Equipment | E49: ='App.2-B_FA Contin CGAAP 2011'!H49 -> 0 | H49: 0 | J49: ='App.2-B_FA Contin CGAAP 2011'!M49 -> 0 | M49: 0 | N49: 0
A50: 47 | B50: 1975 | C50: Load Management Controls Utility Premises | E50: ='App.2-B_FA Contin CGAAP 2011'!H50 -> 0 | H50: 0 | J50: ='App.2-B_FA Contin CGAAP 2011'!M50 -> 0 | M50: 0 | N50: 0
A51: 47 | B51: 1980 | C51: System Supervisor Equipment | E51: ='App.2-B_FA Contin CGAAP 2011'!H51 -> 1407393 | F51: 367850 | H51: 1775243 | J51: ='App.2-B_FA Contin CGAAP 2011'!M51 -> -789059 | K51: -97267 | M51: -886326 | N51: 888917
A52: 47 | B52: 1985 | C52: Miscellaneous Fixed Assets | E52: ='App.2-B_FA Contin CGAAP 2011'!H52 -> 0 | H52: 0 | J52: ='App.2-B_FA Contin CGAAP 2011'!M52 -> 0 | M52: 0 | N52: 0
A53: 47 | B53: 1995 | C53: Contributions & Grants | E53: ='App.2-B_FA Contin CGAAP 2011'!H53 -> -7714946 | F53: -1083954 | H53: -8798900 | J53: ='App.2-B_FA Contin CGAAP 2011'!M53 -> 1570218 | K53: 225382 | M53: 1795600 | N53: -7003300
B54: etc. | E54: ='App.2-B_FA Contin CGAAP 2009'!H54 -> 0 | H54: 0 | M54: 0 | N54: 0
E55: ='App.2-B_FA Contin CGAAP 2009'!H55 -> 0
C56: Total | E56: =SUM(E16:E55) -> 54353342 | F56: =SUM(F16:F55) -> 6083921 | G56: -317646 | H56: 60119617 | J56: =SUM(J16:J55) -> -28293279 | K56: =SUM(K16:K55) -> -1539226 | L56: =SUM(L16:L55) -> 266170 | M56: -29566335 | N56: 30553282
N57: =N56+75000 -> 30628282
J58: Less: Fully Allocated Depreciation
A59: 10 | C59: Transportation | J59: Transportation | L59: =K42 -> -159800
A60: 8 | C60: Stores Equipment | J60: Stranded Meters | L60: 43000
J61: Net Depreciation | L61: =K56-L59-L60 -> -1422426
A63: Notes:
A65: 1 | B65: Tables in the format outlined above covering all fixed asset accounts should be submitted for the Test Year, Bridge Year and all relevant historical years. At a minimum , the applicant must provide data for the earlier of: 1) all historical years back to its last rebasing; or 2) at least three years of historical actuals, in addition to Bridge Year and Test Year forecasts.
A68: 2 | B68: The "CCA Class" for fixed assets should agree with the CCA Class used for tax purposes in Tax Returns. Fixed Assets sub-components may be used where the underlying asset components are classified under multiple CCA Classes for tax purposes. If an applicant uses any different classes from those shown in the table, an explanation should be provided. (also see note 3 below).
A71: 3 | B71: The table may need to be customized for a utility's asset categories or for any new asset accounts announced or authorized by the Board.
A73: 4 | B73: The depreciation column (D) is not required as the relevant information will be provided in the following 2-C series of appendices.

Sheet App.2-B_FA Contin MIFRS 2013
M1: File Number: | N1: ='LDC Info'!$E$18 -> EB-2012-0139
M2: Exhibit: | N2: 2
M3: Tab: | N3: 2
M4: Schedule: | N4: 1
M5: Page: | N5: 11
M7: Date: | N7: 2012-08-31
A9: Appendix 2-B
A10: Fixed Asset Continuity Schedule
F12: Year | G12: 2013
E14: Cost | K14: Accumulated Depreciation
A15: CCA Class | B15: OEB | C15: Description | D15: Depreciation Rate | E15: Opening Balance | F15: Additions | G15: Disposals | H15: Closing Balance | J15: Opening Balance | K15: Additions | L15: Disposals | M15: Closing Balance | N15: Net Book Value
A16: 12 | B16: 1611 | C16: Computer Software (Formally known as Account 1925) | E16: ='App.2-B_FA Contin MIFRS 2012'!H16 -> 645749 | F16: 278500 | H16: =E16+F16+G16 -> 924249 | J16: ='App.2-B_FA Contin MIFRS 2012'!M16 -> -352902 | K16: -174811 | M16: =J16+K16+L16 -> -527713 | N16: =H16+M16 -> 396536
A17: CEC | B17: 1612 | C17: Land Rights (Formally known as Account 1906) | E17: ='App.2-B_FA Contin MIFRS 2012'!H17 -> 0 | H17: =E17+F17+G17 -> 0 | J17: ='App.2-B_FA Contin MIFRS 2012'!M17 -> 0 | M17: =J17+K17+L17 -> 0 | N17: =H17+M17 -> 0
A18: N/A | B18: 1805 | C18: Land | E18: ='App.2-B_FA Contin MIFRS 2012'!H18 -> 738770 | H18: =E18+F18+G18 -> 738770 | J18: ='App.2-B_FA Contin MIFRS 2012'!M18 -> 0 | M18: =J18+K18+L18 -> 0 | N18: =H18+M18 -> 738770
A19: CEC | B19: 1806 | C19: Land Rights | E19: ='App.2-B_FA Contin MIFRS 2012'!H19 -> 982703 | H19: =E19+F19+G19 -> 982703 | J19: ='App.2-B_FA Contin MIFRS 2012'!M19 -> -572858 | K19: -14575 | M19: =J19+K19+L19 -> -587433 | N19: =H19+M19 -> 395270
A20: 47 | B20: 1808 | C20: Buildings | E20: ='App.2-B_FA Contin MIFRS 2012'!H20 -> 0 | H20: =E20+F20+G20 -> 0 | J20: ='App.2-B_FA Contin MIFRS 2012'!M20 -> 0 | M20: =J20+K20+L20 -> 0 | N20: =H20+M20 -> 0
A21: 13 | B21: 1810 | C21: Leasehold Improvements | E21: ='App.2-B_FA Contin MIFRS 2012'!H21 -> 86252 | H21: 86252 | J21: ='App.2-B_FA Contin MIFRS 2012'!M21 -> -37812 | K21: -3312 | M21: -41124 | N21: 45128
A22: 47 | B22: 1815 | C22: Transformer Station Equipment >50 kV | E22: ='App.2-B_FA Contin MIFRS 2012'!H22 -> 0 | H22: 0 | J22: ='App.2-B_FA Contin MIFRS 2012'!M22 -> 0 | M22: 0 | N22: 0
A23: 47 | B23: 1820 | C23: Distribution Station Equipment <50 kV | E23: ='App.2-B_FA Contin MIFRS 2012'!H23 -> 4394009 | F23: 194422 | H23: 4588431 | J23: ='App.2-B_FA Contin MIFRS 2012'!M23 -> -2413754 | K23: -93752 | M23: -2507506 | N23: 2080925
A24: 47 | B24: 1825 | C24: Storage Battery Equipment | E24: ='App.2-B_FA Contin MIFRS 2012'!H24 -> 0 | H24: 0 | J24: ='App.2-B_FA Contin MIFRS 2012'!M24 -> 0 | M24: 0 | N24: 0
A25: 47 | B25: 1830 | C25: Poles, Towers & Fixtures | E25: ='App.2-B_FA Contin MIFRS 2012'!H25 -> 10149911 | F25: 918153 | G25: -105000 | H25: 10963064 | J25: ='App.2-B_FA Contin MIFRS 2012'!M25 -> -4388666 | K25: -210238 | L25: 89250 | M25: -4509654 | N25: 6453410
A26: 47 | B26: 1835 | C26: Overhead Conductors & Devices | E26: ='App.2-B_FA Contin MIFRS 2012'!H26 -> 14357195 | F26: 1123543 | G26: -157500 | H26: 15323238 | J26: ='App.2-B_FA Contin MIFRS 2012'!M26 -> -7496859 | K26: -167753 | L26: 133875 | M26: -7530737 | N26: 7792501
A27: 47 | B27: 1840 | C27: Underground Conduit | E27: ='App.2-B_FA Contin MIFRS 2012'!H27 -> 2072771 | F27: 38205 | H27: 2110976 | J27: ='App.2-B_FA Contin MIFRS 2012'!M27 -> -536511 | K27: -49686 | M27: -586197 | N27: 1524779
A28: 47 | B28: 1845 | C28: Underground Conductors & Devices | E28: ='App.2-B_FA Contin MIFRS 2012'!H28 -> 12125856 | F28: 157573 | G28: -52500 | H28: 12230929 | J28: ='App.2-B_FA Contin MIFRS 2012'!M28 -> -4612609 | K28: -323746 | L28: 44625 | M28: -4891730 | N28: 7339199
A29: 47 | B29: 1850 | C29: Line Transformers | E29: ='App.2-B_FA Contin MIFRS 2012'!H29 -> 9137896 | F29: 649500 | G29: -10500 | H29: 9776896 | J29: ='App.2-B_FA Contin MIFRS 2012'!M29 -> -5786090 | K29: =-38983-182594 -> -221577 | L29: 8925 | M29: -5998742 | N29: 3778154
A30: 47 | B30: 1855 | C30: Services (Overhead & Underground) | E30: ='App.2-B_FA Contin MIFRS 2012'!H30 -> 4224541 | F30: 216912 | H30: 4441453 | J30: ='App.2-B_FA Contin MIFRS 2012'!M30 -> -1836931 | K30: =-17945-66049 -> -83994 | M30: -1920925 | N30: 2520528
A31: 47 | B31: 1860 | C31: Meters | E31: ='App.2-B_FA Contin MIFRS 2012'!H31 -> 287258 | H31: 287258 | J31: ='App.2-B_FA Contin MIFRS 2012'!M31 -> -78526.32 | K31: -11490 | M31: -90016.32 | N31: 197241.68
A32: 47 | B32: 1860 | C32: Meters (Smart Meters) | E32: ='App.2-B_FA Contin MIFRS 2012'!H32 -> 2236521 | F32: 116170 | H32: 2352691 | J32: ='App.2-B_FA Contin MIFRS 2012'!M32 -> -474116.68 | K32: =-164458-K31 -> -152968 | M32: -627084.68 | N32: 1725606.32
A33: 47 | B33: 1875 | C33: Street Lighting | E33: ='App.2-B_FA Contin MIFRS 2012'!H33 -> 0 | H33: 0 | J33: ='App.2-B_FA Contin MIFRS 2012'!M33 -> 0 | M33: 0 | N33: 0
A34: N/A | B34: 1905 | C34: Land | E34: ='App.2-B_FA Contin MIFRS 2012'!H34 -> 201049 | H34: 201049 | J34: ='App.2-B_FA Contin MIFRS 2012'!M34 -> 0 | M34: 0 | N34: 201049
A35: 47 | B35: 1908 | C35: Buildings & Fixtures | E35: ='App.2-B_FA Contin MIFRS 2012'!H35 -> 2764631 | F35: 5127500 | H35: 7892131 | J35: ='App.2-B_FA Contin MIFRS 2012'!M35 -> -302778 | K35: -100391 | M35: -403169 | N35: 7488962
A36: 13 | B36: 1910 | C36: Leasehold Improvements | E36: ='App.2-B_FA Contin MIFRS 2012'!H36 -> 0 | H36: 0 | J36: ='App.2-B_FA Contin MIFRS 2012'!M36 -> 0 | M36: 0 | N36: 0
A37: 8 | B37: 1915 | C37: Office Furniture & Equipment (10 years) | E37: ='App.2-B_FA Contin MIFRS 2012'!H37 -> 334155 | F37: 35000 | H37: 369155 | J37: ='App.2-B_FA Contin MIFRS 2012'!M37 -> -245184 | K37: -15561 | M37: -260745 | N37: 108410
A38: 8 | B38: 1915 | C38: Office Furniture & Equipment (5 years) | E38: ='App.2-B_FA Contin MIFRS 2012'!H38 -> 0 | H38: 0 | J38: ='App.2-B_FA Contin MIFRS 2012'!M38 -> 0 | M38: 0 | N38: 0
A39: 10 | B39: 1920 | C39: Computer Equipment - Hardware | E39: ='App.2-B_FA Contin MIFRS 2012'!H39 -> 637806 | F39: 128000 | H39: 765806 | J39: ='App.2-B_FA Contin MIFRS 2012'!M39 -> -462746 | K39: -75182 | M39: -537928 | N39: 227878
A40: 45 | B40: 1920 | C40: Computer Equip.-Hardware(Post Mar. 22/04) | E40: ='App.2-B_FA Contin MIFRS 2012'!H40 -> 0 | H40: 0 | J40: ='App.2-B_FA Contin MIFRS 2012'!M40 -> 0 | M40: 0 | N40: 0
A41: 45.1 | B41: 1920 | C41: Computer Equip.-Hardware(Post Mar. 19/07) | E41: ='App.2-B_FA Contin MIFRS 2012'!H41 -> 0 | H41: 0 | J41: ='App.2-B_FA Contin MIFRS 2012'!M41 -> 0 | M41: 0 | N41: 0
A42: 10 | B42: 1930 | C42: Transportation Equipment | E42: ='App.2-B_FA Contin MIFRS 2012'!H42 -> 1174196 | F42: 110000 | H42: 1284196 | J42: ='App.2-B_FA Contin MIFRS 2012'!M42 -> -619934 | K42: -170800 | M42: -790734 | N42: 493462
A43: 8 | B43: 1935 | C43: Stores Equipment | E43: ='App.2-B_FA Contin MIFRS 2012'!H43 -> 35824 | F43: 4200 | H43: 40024 | J43: ='App.2-B_FA Contin MIFRS 2012'!M43 -> -20126 | K43: -2364 | M43: -22490 | N43: 17534
A44: 8 | B44: 1940 | C44: Tools, Shop & Garage Equipment | E44: ='App.2-B_FA Contin MIFRS 2012'!H44 -> 514684 | F44: 20000 | H44: 534684 | J44: ='App.2-B_FA Contin MIFRS 2012'!M44 -> -220349 | K44: -34462 | M44: -254811 | N44: 279873
A45: 8 | B45: 1945 | C45: Measurement & Testing Equipment | E45: ='App.2-B_FA Contin MIFRS 2012'!H45 -> 41497 | F45: 19000 | H45: 60497 | J45: ='App.2-B_FA Contin MIFRS 2012'!M45 -> -16857 | K45: -4006 | M45: -20863 | N45: 39634
A46: 8 | B46: 1950 | C46: Power Operated Equipment | E46: ='App.2-B_FA Contin MIFRS 2012'!H46 -> 0 | H46: 0 | J46: ='App.2-B_FA Contin MIFRS 2012'!M46 -> 0 | M46: 0 | N46: 0
A47: 8 | B47: 1955 | C47: Communications Equipment | E47: ='App.2-B_FA Contin MIFRS 2012'!H47 -> 0 | H47: 0 | J47: ='App.2-B_FA Contin MIFRS 2012'!M47 -> 0 | M47: 0 | N47: 0
A48: 8 | B48: 1955 | C48: Communication Equipment (Smart Meters) | E48: ='App.2-B_FA Contin MIFRS 2012'!H48 -> 0 | H48: 0 | J48: ='App.2-B_FA Contin MIFRS 2012'!M48 -> 0 | M48: 0 | N48: 0
A49: 8 | B49: 1960 | C49: Miscellaneous Equipment | E49: ='App.2-B_FA Contin MIFRS 2012'!H49 -> 0 | H49: 0 | J49: ='App.2-B_FA Contin MIFRS 2012'!M49 -> 0 | M49: 0 | N49: 0
A50: 47 | B50: 1975 | C50: Load Management Controls Utility Premises | E50: ='App.2-B_FA Contin MIFRS 2012'!H50 -> 0 | H50: 0 | J50: ='App.2-B_FA Contin MIFRS 2012'!M50 -> 0 | M50: 0 | N50: 0
A51: 47 | B51: 1980 | C51: System Supervisor Equipment | E51: ='App.2-B_FA Contin MIFRS 2012'!H51 -> 1775243 | F51: 266697 | H51: 2041940 | J51: ='App.2-B_FA Contin MIFRS 2012'!M51 -> -886326 | K51: -118418 | M51: -1004744 | N51: 1037196
A52: 47 | B52: 1985 | C52: Miscellaneous Fixed Assets | E52: ='App.2-B_FA Contin MIFRS 2012'!H52 -> 0 | H52: 0 | J52: ='App.2-B_FA Contin MIFRS 2012'!M52 -> 0 | M52: 0 | N52: 0
A53: 47 | B53: 1995 | C53: Contributions & Grants | E53: ='App.2-B_FA Contin MIFRS 2012'!H53 -> -8798900 | F53: -382523 | H53: -9181423 | J53: ='App.2-B_FA Contin MIFRS 2012'!M53 -> 1795600 | K53: 246332 | M53: 2041932 | N53: -7139491
B54: etc. | E54: ='App.2-B_FA Contin CGAAP 2009'!H54 -> 0 | H54: 0 | M54: 0 | N54: 0
E55: ='App.2-B_FA Contin CGAAP 2009'!H55 -> 0
C56: Total | E56: =SUM(E16:E55) -> 60119617 | F56: =SUM(F16:F55) -> 9020852 | G56: -325500 | H56: 68814969 | J56: =SUM(J16:J55) -> -29566335 | K56: =SUM(K16:K55) -> -1782754 | L56: =SUM(L16:L55) -> 276675 | M56: -31072414 | N56: 37742555
N57: =N56+75000 -> 37817555
J58: Less: Fully Allocated Depreciation
A59: 10 | C59: Transportation | J59: Transportation | L59: =K42 -> -170800
A60: 8 | C60: Stores Equipment | J60: Stranded Meters
J61: Net Depreciation | L61: =K56-L59-L60 -> -1611954
A63: Notes:
A65: 1 | B65: Tables in the format outlined above covering all fixed asset accounts should be submitted for the Test Year, Bridge Year and all relevant historical years. At a minimum , the applicant must provide data for the earlier of: 1) all historical years back to its last rebasing; or 2) at least three years of historical actuals, in addition to Bridge Year and Test Year forecasts.
A68: 2 | B68: The "CCA Class" for fixed assets should agree with the CCA Class used for tax purposes in Tax Returns. Fixed Assets sub-components may be used where the underlying asset components are classified under multiple CCA Classes for tax purposes. If an applicant uses any different classes from those shown in the table, an explanation should be provided. (also see note 3 below).
A71: 3 | B71: The table may need to be customized for a utility's asset categories or for any new asset accounts announced or authorized by the Board.
A73: 4 | B73: The depreciation column (D) is not required as the relevant information will be provided in the following 2-C series of appendices.

Sheet App.2-CE_CGAAP_DepExp_2011
L1: File Number: | M1: ='LDC Info'!$E$18 -> EB-2012-0139
L2: Exhibit: | M2: 2
L3: Tab: | M3: 2
L4: Schedule: | M4: 4
L5: Page: | M5: 1
L7: Date: | M7: 2012-08-31
A9: Appendix 2-CE
A10: Depreciation and Amortization Expense
A11: Assumes the applicant adopted IFRS for financial reporting purposes January 1, 2013
C12: Year | D12: 2011 | F12: CGAAP
A14: Account | B14: Description | C14: Opening Regulatory Gross PP&E as at Jan 1, 2011 | D14: Less Fully Depreciated | F14: Net for Depreciation | G14: Additions | H14: Total for Depreciation | I14: Years | J14: Depreciation Rate | K14: 2011 Depreciation Expense | L14: 2011 Depreciation Expense per Appendix 2-B Fixed Assets, Column K (l) | M14: Variance 2
C15: (a) | D15: (b) | F15: (c) | G15: (d) | H15: (e) = (c) + ½ x (d) 1 | I15: (f) | J15: (g) = 1 / (f) | K15: (h) = (e) / (f) | M15: (m) = (h) - (l)
A16: 1611 | B16: Computer Software (Formally known as Account 1925) | C16: ='App.2-B_FA Contin CGAAP 2011'!E16 -> 1032751 | D16: 823484.5 | E16: =D16/C16 -> 0.7973698404 | F16: =C16-D16 -> 209266.5 | G16: ='App.2-B_FA Contin CGAAP 2011'!F16 -> 73245 | H16: =F16+0.5*G16 -> 245889 | I16: 3 | J16: =IF(I16=0,"",1/I16) -> 0.3333333333 | K16: =IF(I16=0,0,H16/I16) -> 81963 | L16: =-'App.2-B_FA Contin CGAAP 2011'!K16 -> 81963 | M16: =IF(ISERROR(+K16-L16), "", +K16-L16) -> 0
A17: 1612 | B17: Land Rights (Formally known as Account 1906) | C17: ='App.2-B_FA Contin CGAAP 2011'!E17 -> 0 | F17: =C17-D17 -> 0 | G17: ='App.2-B_FA Contin CGAAP 2011'!F17 -> 0 | H17: =F17+0.5*G17 -> 0 | K17: 0 | L17: =-'App.2-B_FA Contin CGAAP 2011'!K17 -> 0 | M17: =IF(ISERROR(+K17-L17), "", +K17-L17) -> 0
A18: 1805 | B18: Land | C18: ='App.2-B_FA Contin CGAAP 2011'!E18 -> 273770 | F18: 273770 | G18: ='App.2-B_FA Contin CGAAP 2011'!F18 -> 0 | H18: 273770 | K18: 0 | L18: =-'App.2-B_FA Contin CGAAP 2011'!K18 -> 0 | M18: 0
A19: 1806 | B19: Land rights | C19: ='App.2-B_FA Contin CGAAP 2011'!E19 -> 988464 | D19: 230654.3 | E19: =D19/C19 -> 0.2333461816 | F19: =C19-D19 -> 757809.7 | G19: ='App.2-B_FA Contin CGAAP 2011'!F19 -> 1981 | H19: =F19+0.5*G19 -> 758800.2 | I19: 50 | J19: =IF(I19=0,"",1/I19) -> 0.02 | K19: =IF(I19=0,0,H19/I19) -> 15176.004 | L19: =-'App.2-B_FA Contin CGAAP 2011'!K19 -> 15176 | M19: =IF(ISERROR(+K19-L19), "", +K19-L19) -> 0.003999999999
A20: 1808 | B20: Buildings | C20: ='App.2-B_FA Contin CGAAP 2011'!E20 -> 0 | F20: 0 | G20: ='App.2-B_FA Contin CGAAP 2011'!F20 -> 0 | H20: 0 | K20: 0 | L20: =-'App.2-B_FA Contin CGAAP 2011'!K20 -> 0 | M20: 0
A21: 1810 | B21: Leasehold Improvements | C21: ='App.2-B_FA Contin CGAAP 2011'!E21 -> 86252 | D21: 0 | F21: 86252 | G21: ='App.2-B_FA Contin CGAAP 2011'!F21 -> 0 | H21: 86252 | I21: 25 | J21: 0.04 | K21: 3450.08 | L21: =-'App.2-B_FA Contin CGAAP 2011'!K21 -> 3450 | M21: 0.08
A22: 1815 | B22: Transformer Station Equipment >50 kV | C22: ='App.2-B_FA Contin CGAAP 2011'!E22 -> 0 | F22: 0 | G22: ='App.2-B_FA Contin CGAAP 2011'!F22 -> 0 | H22: 0 | K22: 0 | L22: =-'App.2-B_FA Contin CGAAP 2011'!K22 -> 0 | M22: 0
A23: 1820 | B23: Distribution Station Equipment <50 kV | C23: ='App.2-B_FA Contin CGAAP 2011'!E23 -> 4431283 | D23: 1376998.5 | E23: =D23/C23 -> 0.3107448791 | F23: 3054284.5 | G23: ='App.2-B_FA Contin CGAAP 2011'!F23 -> 152331 | H23: 3130450 | I23: 25 | J23: 0.04 | K23: 125218 | L23: =-'App.2-B_FA Contin CGAAP 2011'!K23 -> 125218 | M23: 0
A24: 1825 | B24: Storage Battery Equipment | C24: ='App.2-B_FA Contin CGAAP 2011'!E24 -> 0 | F24: 0 | G24: ='App.2-B_FA Contin CGAAP 2011'!F24 -> 0 | H24: 0 | K24: 0 | L24: =-'App.2-B_FA Contin CGAAP 2011'!K24 -> 0 | M24: 0
A25: 1830 | B25: Poles, Towers & Fixtures | C25: ='App.2-B_FA Contin CGAAP 2011'!E25 -> 8331730 | D25: 99685 | E25: =D25/C25 -> 0.01196450197 | F25: 8232045 | G25: ='App.2-B_FA Contin CGAAP 2011'!F25 -> 935010 | H25: 8699550 | I25: 25 | J25: 0.04 | K25: 347982 | L25: =-'App.2-B_FA Contin CGAAP 2011'!K25 -> 347982 | M25: 0
A26: 1835 | B26: Overhead Conductors & Devices | C26: ='App.2-B_FA Contin CGAAP 2011'!E26 -> 12001819 | D26: 5518803.5 | E26: 0.459830589 | F26: 6483015.5 | G26: ='App.2-B_FA Contin CGAAP 2011'!F26 -> 1491019 | H26: 7228525 | I26: 25 | J26: 0.04 | K26: 289141 | L26: =-'App.2-B_FA Contin CGAAP 2011'!K26 -> 289141 | M26: 0
A27: 1840 | B27: Underground Conduit | C27: ='App.2-B_FA Contin CGAAP 2011'!E27 -> 1810440 | D27: 112555.6 | E27: 0.06217030114 | F27: 1697884.4 | G27: ='App.2-B_FA Contin CGAAP 2011'!F27 -> 225131 | H27: 1810449.9 | I27: 25 | J27: 0.04 | K27: 72417.996 | L27: =-'App.2-B_FA Contin CGAAP 2011'!K27 -> 72418 | M27: -0.004000000001
A28: 1845 | B28: Underground Conductors & Devices | C28: ='App.2-B_FA Contin CGAAP 2011'!E28 -> 11561168 | D28: 46545.4 | E28: 0.004026011905 | F28: 11514622.6 | G28: ='App.2-B_FA Contin CGAAP 2011'!F28 -> 251455 | H28: 11640350.1 | I28: 25 | J28: 0.04 | K28: 465614.004 | L28: =-'App.2-B_FA Contin CGAAP 2011'!K28 -> 465614 | M28: 0.003999999957
A29: 1850 | B29: Line Transformers | C29: ='App.2-B_FA Contin CGAAP 2011'!E29 -> 8135538 | D29: 53005 | E29: 0.006515242139 | F29: 8082533 | G29: ='App.2-B_FA Contin CGAAP 2011'!F29 -> 487484 | H29: 8326275 | I29: 25 | J29: 0.04 | K29: 333051 | L29: =-'App.2-B_FA Contin CGAAP 2011'!K29 -> 333051 | M29: 0
A30: 1855 | B30: Services (Overhead & Underground) | C30: ='App.2-B_FA Contin CGAAP 2011'!E30 -> 3711507 | D30: 2228 | E30: 0.000600295244 | F30: 3709279 | G30: ='App.2-B_FA Contin CGAAP 2011'!F30 -> 306192 | H30: 3862375 | I30: 25 | J30: 0.04 | K30: 154495 | L30: =-'App.2-B_FA Contin CGAAP 2011'!K30 -> 154495 | M30: 0
A31: 1860 | B31: Meters | C31: ='App.2-B_FA Contin CGAAP 2011'!E31 -> 187025 | D31: 0 | E31: 0 | F31: 187025 | G31: ='App.2-B_FA Contin CGAAP 2011'!F31 -> 10308 | H31: 192179 | I31: 25 | J31: 0.04 | K31: 7687.16 | L31: =-'App.2-B_FA Contin CGAAP 2011'!K31 -> 27067 | M31: -19379.84 | N31: Correction of overstating stranded meters and associated accumulated depreciation. Corrected in 2011.
A32: 1860 | B32: Meters (Smart Meters) | C32: ='App.2-B_FA Contin CGAAP 2011'!E32 -> 0 | F32: 0 | G32: ='App.2-B_FA Contin CGAAP 2011'!F32 -> 0 | H32: 0 | K32: 0 | L32: =-'App.2-B_FA Contin CGAAP 2011'!K32 -> 0 | M32: 0
A33: 1875 | B33: Street Lighting | C33: ='App.2-B_FA Contin CGAAP 2011'!E33 -> 7646 | E33: =D33/C33 -> 0 | F33: =C33-D33 -> 7646 | G33: ='App.2-B_FA Contin CGAAP 2011'!F33 -> 0 | H33: =F33+0.5*G33 -> 7646 | I33: 25 | J33: =IF(I33=0,"",1/I33) -> 0.04 | K33: =IF(I33=0,0,H33/I33) -> 305.84 | L33: =-'App.2-B_FA Contin CGAAP 2011'!K33 -> 305 | M33: =IF(ISERROR(+K33-L33), "", +K33-L33) -> 0.84
A34: 1905 | B34: Land | C34: ='App.2-B_FA Contin CGAAP 2011'!E34 -> 201049 | E34: 0 | F34: 201049 | G34: ='App.2-B_FA Contin CGAAP 2011'!F34 -> 0 | H34: 201049 | I34: 0 | K34: 0 | L34: =-'App.2-B_FA Contin CGAAP 2011'!K34 -> 0 | M34: 0
A35: 1908 | B35: Buildings & Fixtures | C35: ='App.2-B_FA Contin CGAAP 2011'!E35 -> 737784 | E35: 0 | F35: 737784 | G35: ='App.2-B_FA Contin CGAAP 2011'!F35 -> 1847 | H35: 738707.5 | I35: 25 | J35: 0.04 | K35: 29548.3 | L35: =-'App.2-B_FA Contin CGAAP 2011'!K35 -> 29548 | M35: 0.3
A36: 1910 | B36: Leasehold Improvements | C36: ='App.2-B_FA Contin CGAAP 2011'!E36 -> 0 | F36: 0 | G36: ='App.2-B_FA Contin CGAAP 2011'!F36 -> 0 | H36: 0 | K36: 0 | L36: =-'App.2-B_FA Contin CGAAP 2011'!K36 -> 0 | M36: 0
A37: 1915 | B37: Office Furniture & Equipment (10 years) | C37: ='App.2-B_FA Contin CGAAP 2011'!E37 -> 294399 | D37: 151387 | E37: =D37/C37 -> 0.5142238934 | F37: 143012 | G37: ='App.2-B_FA Contin CGAAP 2011'!F37 -> 14256 | H37: 150140 | I37: 10 | J37: 0.1 | K37: 15014 | L37: =-'App.2-B_FA Contin CGAAP 2011'!K37 -> 15014 | M37: 0
A38: 1915 | B38: Office Furniture & Equipment (5 years) | C38: ='App.2-B_FA Contin CGAAP 2011'!E38 -> 0 | F38: 0 | G38: ='App.2-B_FA Contin CGAAP 2011'!F38 -> 0 | H38: 0 | K38: 0 | L38: =-'App.2-B_FA Contin CGAAP 2011'!K38 -> 0 | M38: 0
A39: 1920 | B39: Computer Equipment - Hardware | C39: ='App.2-B_FA Contin CGAAP 2011'!E39 -> 872059 | D39: 565158 | E39: =D39/C39 -> 0.6480731235 | F39: 306901 | G39: ='App.2-B_FA Contin CGAAP 2011'!F39 -> 16388 | H39: 315095 | I39: 5 | J39: 0.2 | K39: 63019 | L39: =-'App.2-B_FA Contin CGAAP 2011'!K39 -> 63019 | M39: 0
A40: 1920 | B40: Computer Equip.-Hardware(Post Mar. 22/04) | C40: ='App.2-B_FA Contin CGAAP 2011'!E40 -> 0 | F40: 0 | G40: ='App.2-B_FA Contin CGAAP 2011'!F40 -> 0 | H40: 0 | K40: 0 | L40: =-'App.2-B_FA Contin CGAAP 2011'!K40 -> 0 | M40: 0
A41: 1920 | B41: Computer Equip.-Hardware(Post Mar. 19/07) | C41: ='App.2-B_FA Contin CGAAP 2011'!E41 -> 0 | F41: 0 | G41: ='App.2-B_FA Contin CGAAP 2011'!F41 -> 0 | H41: 0 | K41: 0 | L41: =-'App.2-B_FA Contin CGAAP 2011'!K41 -> 0 | M41: 0
A42: 1930 | B42: Transportation Equipment | C42: ='App.2-B_FA Contin CGAAP 2011'!E42 -> 836916 | D42: 0 | E42: =D42/C42 -> 0 | F42: 836916 | G42: ='App.2-B_FA Contin CGAAP 2011'!F42 -> 297131 | H42: 985481.5 | I42: 5 | J42: 0.2 | K42: 197096.3 | L42: =-'App.2-B_FA Contin CGAAP 2011'!K42 -> 220718 | M42: -23621.7 | N42: Correction of fixed asset subledger to G/L.
A43: 1935 | B43: Stores Equipment | C43: ='App.2-B_FA Contin CGAAP 2011'!E43 -> 30118 | D43: 11481 | E43: 0.3812006109 | F43: 18637 | G43: ='App.2-B_FA Contin CGAAP 2011'!F43 -> 1706 | H43: 19490 | I43: 10 | J43: 0.1 | K43: 1949 | L43: =-'App.2-B_FA Contin CGAAP 2011'!K43 -> 1949 | M43: 0
A44: 1940 | B44: Tools, Shop & Garage Equipment | C44: ='App.2-B_FA Contin CGAAP 2011'!E44 -> 469385 | D44: 156809 | E44: 0.3340733087 | F44: 312576 | G44: ='App.2-B_FA Contin CGAAP 2011'!F44 -> 58448 | H44: 341800 | I44: 10 | J44: 0.1 | K44: 34180 | L44: =-'App.2-B_FA Contin CGAAP 2011'!K44 -> 34180 | M44: 0
A45: 1945 | B45: Measurement & Testing Equipment | C45: ='App.2-B_FA Contin CGAAP 2011'!E45 -> 23690 | D45: 3843.5 | E45: 0.1622414521 | F45: 19846.5 | G45: ='App.2-B_FA Contin CGAAP 2011'!F45 -> 9307 | H45: 24500 | I45: 10 | J45: 0.1 | K45: 2450 | L45: =-'App.2-B_FA Contin CGAAP 2011'!K45 -> 2450 | M45: 0
A46: 1950 | B46: Power Operated Equipment | C46: ='App.2-B_FA Contin CGAAP 2011'!E46 -> 0 | F46: 0 | G46: ='App.2-B_FA Contin CGAAP 2011'!F46 -> 0 | H46: 0 | K46: 0 | L46: =-'App.2-B_FA Contin CGAAP 2011'!K46 -> 0 | M46: 0
A47: 1955 | B47: Communications Equipment | C47: ='App.2-B_FA Contin CGAAP 2011'!E47 -> 0 | F47: 0 | G47: ='App.2-B_FA Contin CGAAP 2011'!F47 -> 0 | H47: 0 | K47: 0 | L47: =-'App.2-B_FA Contin CGAAP 2011'!K47 -> 0 | M47: 0
A48: 1955 | B48: Communication Equipment (Smart Meters) | C48: ='App.2-B_FA Contin CGAAP 2011'!E48 -> 0 | F48: 0 | G48: ='App.2-B_FA Contin CGAAP 2011'!F48 -> 0 | H48: 0 | K48: 0 | L48: =-'App.2-B_FA Contin CGAAP 2011'!K48 -> 0 | M48: 0
A49: 1960 | B49: Miscellaneous Equipment | C49: ='App.2-B_FA Contin CGAAP 2011'!E49 -> 0 | F49: 0 | G49: ='App.2-B_FA Contin CGAAP 2011'!F49 -> 0 | H49: 0 | K49: 0 | L49: =-'App.2-B_FA Contin CGAAP 2011'!K49 -> 0 | M49: 0
A50: 1975 | B50: Load Management Controls Utility Premises | C50: ='App.2-B_FA Contin CGAAP 2011'!E50 -> 0 | F50: 0 | G50: ='App.2-B_FA Contin CGAAP 2011'!F50 -> 0 | H50: 0 | K50: 0 | L50: =-'App.2-B_FA Contin CGAAP 2011'!K50 -> 0 | M50: 0
A51: 1980 | B51: System Supervisor Equipment | C51: ='App.2-B_FA Contin CGAAP 2011'!E51 -> 1324906 | F51: 1324906 | G51: ='App.2-B_FA Contin CGAAP 2011'!F51 -> 82487 | H51: 1366149.5 | I51: 15 | J51: 0.06666666667 | K51: 91076.63333 | L51: =-'App.2-B_FA Contin CGAAP 2011'!K51 -> 91077 | M51: -0.3666666667
A52: 1985 | B52: Miscellaneous Fixed Assets | C52: ='App.2-B_FA Contin CGAAP 2011'!E52 -> 0 | F52: 0 | G52: ='App.2-B_FA Contin CGAAP 2011'!F52 -> 0 | H52: 0 | K52: 0 | L52: =-'App.2-B_FA Contin CGAAP 2011'!K52 -> 0 | M52: 0
A53: 1995 | B53: Contributions & Grants | C53: ='App.2-B_FA Contin CGAAP 2011'!E53 -> -7193539 | D53: -188567.5 | F53: -7004971.5 | G53: ='App.2-B_FA Contin CGAAP 2011'!F53 -> -521407 | H53: -7265675 | I53: 25 | J53: 0.04 | K53: -290627 | L53: =-'App.2-B_FA Contin CGAAP 2011'!K53 -> -290627 | M53: 0
A54: etc. | F54: 0 | H54: 0 | K54: 0 | M54: 0
F55: 0 | H55: 0 | K55: 0 | M55: 0
B56: Total | C56: =SUM(C16:C55) -> 50156160 | D56: =SUM(D16:D55) -> 8964070.8 | E56: =D56/C56 -> 0.1787232276 | F56: =SUM(F16:F55) -> 41192089.2 | G56: =SUM(G16:G55) -> 3894319 | H56: =SUM(H16:H55) -> 43139248.7 | K56: =SUM(K16:K55) -> 2040207.317 | L56: =SUM(L16:L55) -> 2083208 | M56: =SUM(M16:M55) -> -43000.68267
A58: Notes:
A59: 1 | B59: Board policy of the "half-year" rule - the applicant must ensure that additions in the year attract a half-year depreciation expense in the first year. Deviations from this standard practice must be supported in the application.
A60: 2 | B60: The applicant must provide an explanation of material variances in evidence
A61: General: | B61: Applicants must provide a breakdown of depreciation and amortization expense in the above format for all relevant accounts. Asset Retirement Obligations (AROs), depreciation and accretion expense should be disclosed separately consistent with the Notes of historical Audited Financial Statements.

Sheet App.2-CF_CGAAP_DepExp_2012
L1: File Number: | M1: ='LDC Info'!$E$18 -> EB-2012-0139
L2: Exhibit: | M2: 2
L3: Tab: | M3: 2
L4: Schedule: | M4: 4
L5: Page: | M5: 2
L7: Date: | M7: 2012-08-31
A9: Appendix 2-CF
A10: Depreciation and Amortization Expense
A11: Assumes the applicant adopted IFRS for financial reporting purposes January 1, 2013
C12: Year | D12: 2012 | F12: CGAAP
A14: Account | B14: Description | C14: Opening Regulatory Gross PP&E as at Jan 1, 2012 | D14: Less Fully Depreciated | F14: Net for Depreciation | G14: Additions | H14: Total for Depreciation | I14: Years | J14: Depreciation Rate | K14: 2012 Depreciation Expense | L14: 2012 Depreciation Expense per Appendix 2-B Fixed Assets, Column K (l) | M14: Variance 2
C15: (a) | D15: (b) | F15: (c) | G15: (d) | H15: (e) = (c) + ½ x (d) 1 | I15: (f) | J15: (g) = 1 / (f) | K15: (h) = (e) / (f) | M15: (m) = (h) - (l)
A16: 1611 | B16: Computer Software (Formally known as Account 1925) | C16: ='App.2-B_FA Contin CGAAP 2012'!E16 -> 363599 | D16: 162914 | E16: =D16-'App.2-CE_CGAAP_DepExp_2011'!D16 -> -660570.5 | F16: =C16-D16 -> 200685 | G16: ='App.2-B_FA Contin CGAAP 2012'!F16 -> 282150 | H16: =F16+0.5*G16 -> 341760 | I16: ='App.2-CE_CGAAP_DepExp_2011'!I16 -> 3 | J16: =IF(I16=0,0,1/I16) -> 0.3333333333 | K16: =IF(I16=0,0,H16/I16) -> 113920 | L16: =-'App.2-B_FA Contin CGAAP 2012'!K16 -> 113920 | M16: =IF(ISERROR(+K16-L16), 0, +K16-L16) -> 0
A17: 1612 | B17: Land Rights (Formally known as Account 1906) | C17: ='App.2-B_FA Contin CGAAP 2012'!E17 -> 0 | D17: ='App.2-CE_CGAAP_DepExp_2011'!D17 -> 0 | E17: =D17-'App.2-CE_CGAAP_DepExp_2011'!D17 -> 0 | F17: =C17-D17 -> 0 | G17: ='App.2-B_FA Contin CGAAP 2012'!F17 -> 0 | H17: =F17+0.5*G17 -> 0 | I17: ='App.2-CE_CGAAP_DepExp_2011'!I17 -> 0 | J17: 0 | K17: 0 | L17: =-'App.2-B_FA Contin CGAAP 2012'!K17 -> 0 | M17: 0
A18: 1805 | B18: Land | C18: ='App.2-B_FA Contin CGAAP 2012'!E18 -> 273770 | D18: ='App.2-CE_CGAAP_DepExp_2011'!D18 -> 0 | E18: =D18-'App.2-CE_CGAAP_DepExp_2011'!D18 -> 0 | F18: 273770 | G18: ='App.2-B_FA Contin CGAAP 2012'!F18 -> 465000 | H18: 506270 | I18: ='App.2-CE_CGAAP_DepExp_2011'!I18 -> 0 | J18: 0 | K18: 0 | L18: =-'App.2-B_FA Contin CGAAP 2012'!K18 -> 0 | M18: 0
A19: 1806 | B19: Land rights | C19: ='App.2-B_FA Contin CGAAP 2012'!E19 -> 982703 | D19: ='App.2-CE_CGAAP_DepExp_2011'!D19+8448.5 -> 239102.8 | E19: =D19-'App.2-CE_CGAAP_DepExp_2011'!D19 -> 8448.5 | F19: =C19-D19 -> 743600.2 | G19: ='App.2-B_FA Contin CGAAP 2012'!F19 -> 0 | H19: =F19+0.5*G19 -> 743600.2 | I19: ='App.2-CE_CGAAP_DepExp_2011'!I19 -> 50 | J19: =IF(I19=0,0,1/I19) -> 0.02 | K19: =IF(I19=0,0,H19/I19) -> 14872.004 | L19: =-'App.2-B_FA Contin CGAAP 2012'!K19 -> 14872 | M19: =IF(ISERROR(+K19-L19), 0, +K19-L19) -> 0.003999999999
A20: 1808 | B20: Buildings | C20: ='App.2-B_FA Contin CGAAP 2012'!E20 -> 0 | D20: ='App.2-CE_CGAAP_DepExp_2011'!D20 -> 0 | E20: =D20-'App.2-CE_CGAAP_DepExp_2011'!D20 -> 0 | F20: 0 | G20: ='App.2-B_FA Contin CGAAP 2012'!F20 -> 0 | H20: 0 | I20: ='App.2-CE_CGAAP_DepExp_2011'!I20 -> 0 | J20: 0 | K20: 0 | L20: =-'App.2-B_FA Contin CGAAP 2012'!K20 -> 0 | M20: 0
A21: 1810 | B21: Leasehold Improvements | C21: ='App.2-B_FA Contin CGAAP 2012'!E21 -> 86252 | D21: 3452 | E21: =D21-'App.2-CE_CGAAP_DepExp_2011'!D21 -> 3452 | F21: 82800 | G21: ='App.2-B_FA Contin CGAAP 2012'!F21 -> 0 | H21: 82800 | I21: ='App.2-CE_CGAAP_DepExp_2011'!I21 -> 25 | J21: 0.04 | K21: 3312 | L21: =-'App.2-B_FA Contin CGAAP 2012'!K21 -> 3312 | M21: 0
A22: 1815 | B22: Transformer Station Equipment >50 kV | C22: ='App.2-B_FA Contin CGAAP 2012'!E22 -> 0 | D22: ='App.2-CE_CGAAP_DepExp_2011'!D22 -> 0 | F22: 0 | G22: ='App.2-B_FA Contin CGAAP 2012'!F22 -> 0 | H22: 0 | I22: ='App.2-CE_CGAAP_DepExp_2011'!I22 -> 0 | J22: 0 | K22: 0 | L22: =-'App.2-B_FA Contin CGAAP 2012'!K22 -> 0 | M22: 0
A23: 1820 | B23: Distribution Station Equipment <50 kV | C23: ='App.2-B_FA Contin CGAAP 2012'!E23 -> 4358561 | D23: ='App.2-CE_CGAAP_DepExp_2011'!D23-23663.5 -> 1353335 | E23: =D23-'App.2-CE_CGAAP_DepExp_2011'!D23 -> -23663.5 | F23: 3005226 | G23: ='App.2-B_FA Contin CGAAP 2012'!F23 -> 35448 | H23: 3022950 | I23: ='App.2-CE_CGAAP_DepExp_2011'!I23 -> 25 | J23: 0.04 | K23: 120918 | L23: =-'App.2-B_FA Contin CGAAP 2012'!K23 -> 120918 | M23: 0
A24: 1825 | B24: Storage Battery Equipment | C24: ='App.2-B_FA Contin CGAAP 2012'!E24 -> 0 | D24: ='App.2-CE_CGAAP_DepExp_2011'!D24 -> 0 | F24: 0 | G24: ='App.2-B_FA Contin CGAAP 2012'!F24 -> 0 | H24: 0 | I24: ='App.2-CE_CGAAP_DepExp_2011'!I24 -> 0 | J24: 0 | K24: 0 | L24: =-'App.2-B_FA Contin CGAAP 2012'!K24 -> 0 | M24: 0
A25: 1830 | B25: Poles, Towers & Fixtures | C25: ='App.2-B_FA Contin CGAAP 2012'!E25 -> 9077888 | D25: ='App.2-CE_CGAAP_DepExp_2011'!D25+626639.5 -> 726324.5 | E25: =D25-'App.2-CE_CGAAP_DepExp_2011'!D25 -> 626639.5 | F25: 8351563.5 | G25: ='App.2-B_FA Contin CGAAP 2012'!F25 -> 1172023 | H25: 8937575 | I25: ='App.2-CE_CGAAP_DepExp_2011'!I25 -> 25 | J25: 0.04 | K25: 357503 | L25: =-'App.2-B_FA Contin CGAAP 2012'!K25 -> 357503 | M25: 0
A26: 1835 | B26: Overhead Conductors & Devices | C26: ='App.2-B_FA Contin CGAAP 2012'!E26 -> 13192946 | D26: ='App.2-CE_CGAAP_DepExp_2011'!D26+734767 -> 6253570.5 | E26: =D26-'App.2-CE_CGAAP_DepExp_2011'!D26 -> 734767 | F26: 6939375.5 | G26: ='App.2-B_FA Contin CGAAP 2012'!F26 -> 1314249 | H26: 7596500 | I26: ='App.2-CE_CGAAP_DepExp_2011'!I26 -> 25 | J26: 0.04 | K26: 303860 | L26: =-'App.2-B_FA Contin CGAAP 2012'!K26 -> 303860 | M26: 0
A27: 1840 | B27: Underground Conduit | C27: ='App.2-B_FA Contin CGAAP 2012'!E27 -> 2035571 | D27: ='App.2-CE_CGAAP_DepExp_2011'!D27+184990.5 -> 297546.1 | E27: =D27-'App.2-CE_CGAAP_DepExp_2011'!D27 -> 184990.5 | F27: 1738024.9 | G27: ='App.2-B_FA Contin CGAAP 2012'!F27 -> 37200 | H27: 1756624.9 | I27: ='App.2-CE_CGAAP_DepExp_2011'!I27 -> 25 | J27: 0.04 | K27: 70264.996 | L27: =-'App.2-B_FA Contin CGAAP 2012'!K27 -> 70265 | M27: -0.004000000001
A28: 1845 | B28: Underground Conductors & Devices | C28: ='App.2-B_FA Contin CGAAP 2012'!E28 -> 11721156 | D28: ='App.2-CE_CGAAP_DepExp_2011'!D28+499860.5 -> 546405.9 | E28: =D28-'App.2-CE_CGAAP_DepExp_2011'!D28 -> 499860.5 | F28: 11174750.1 | G28: ='App.2-B_FA Contin CGAAP 2012'!F28 -> 454700 | H28: 11402100.1 | I28: ='App.2-CE_CGAAP_DepExp_2011'!I28 -> 25 | J28: 0.04 | K28: 456084.004 | L28: =-'App.2-B_FA Contin CGAAP 2012'!K28 -> 456084 | M28: 0.003999999957
A29: 1850 | B29: Line Transformers | C29: ='App.2-B_FA Contin CGAAP 2012'!E29 -> 8602786 | D29: ='App.2-CE_CGAAP_DepExp_2011'!D29+556561 -> 609566 | E29: =D29-'App.2-CE_CGAAP_DepExp_2011'!D29 -> 556561 | F29: 7993220 | G29: ='App.2-B_FA Contin CGAAP 2012'!F29 -> 545110 | H29: 8265775 | I29: ='App.2-CE_CGAAP_DepExp_2011'!I29 -> 25 | J29: 0.04 | K29: 330631 | L29: =-'App.2-B_FA Contin CGAAP 2012'!K29 -> 330631 | M29: 0
A30: 1855 | B30: Services (Overhead & Underground) | C30: ='App.2-B_FA Contin CGAAP 2012'!E30 -> 4017136 | D30: ='App.2-CE_CGAAP_DepExp_2011'!D30+307035.5 -> 309263.5 | E30: =D30-'App.2-CE_CGAAP_DepExp_2011'!D30 -> 307035.5 | F30: 3707872.5 | G30: ='App.2-B_FA Contin CGAAP 2012'!F30 -> 207405 | H30: 3811575 | I30: ='App.2-CE_CGAAP_DepExp_2011'!I30 -> 25 | J30: 0.04 | K30: 152463 | L30: =-'App.2-B_FA Contin CGAAP 2012'!K30 -> 152463 | M30: 0
A31: 1860 | B31: Meters | C31: ='App.2-B_FA Contin CGAAP 2012'!E31 -> 287258 | D31: 0 | E31: =D31-'App.2-CE_CGAAP_DepExp_2011'!D31 -> 0 | F31: 287258 | G31: ='App.2-B_FA Contin CGAAP 2012'!F31 -> 0 | H31: 287258 | I31: ='App.2-CE_CGAAP_DepExp_2011'!I31 -> 25 | J31: 0.04 | K31: 11490.32 | L31: =-'App.2-B_FA Contin CGAAP 2012'!K31 -> 11490.32 | M31: 0
A32: 1860 | B32: Meters (Smart Meters) | C32: ='App.2-B_FA Contin CGAAP 2012'!E32 -> 2162281 | D32: ='App.2-CE_CGAAP_DepExp_2011'!D32 -> 0 | E32: =D32-'App.2-CE_CGAAP_DepExp_2011'!D32 -> 0 | F32: 2162281 | G32: ='App.2-B_FA Contin CGAAP 2012'!F32 -> 74240 | H32: 2199401 | I32: 15 | J32: 0.06666666667 | K32: 146626.7333 | L32: =-'App.2-B_FA Contin CGAAP 2012'!K32 -> 146621.68 | M32: 5.053333333
A33: 1875 | B33: Street Lighting | C33: ='App.2-B_FA Contin CGAAP 2012'!E33 -> 7646 | D33: 7646 | E33: =D33-'App.2-CE_CGAAP_DepExp_2011'!D33 -> 7646 | F33: =C33-D33 -> 0 | G33: ='App.2-B_FA Contin CGAAP 2012'!F33 -> 0 | H33: =F33+0.5*G33 -> 0 | I33: ='App.2-CE_CGAAP_DepExp_2011'!I33 -> 25 | J33: =IF(I33=0,0,1/I33) -> 0.04 | K33: =IF(I33=0,0,H33/I33) -> 0 | L33: =-'App.2-B_FA Contin CGAAP 2012'!K33 -> 0 | M33: =IF(ISERROR(+K33-L33), 0, +K33-L33) -> 0
A34: 1905 | B34: Land | C34: ='App.2-B_FA Contin CGAAP 2012'!E34 -> 201049 | D34: ='App.2-CE_CGAAP_DepExp_2011'!D34 -> 0 | E34: =D34-'App.2-CE_CGAAP_DepExp_2011'!D34 -> 0 | F34: 201049 | G34: ='App.2-B_FA Contin CGAAP 2012'!F34 -> 0 | H34: 201049 | I34: ='App.2-CE_CGAAP_DepExp_2011'!I34 -> 0 | J34: 0 | K34: 0 | L34: =-'App.2-B_FA Contin CGAAP 2012'!K34 -> 0 | M34: 0
A35: 1908 | B35: Buildings & Fixtures | C35: ='App.2-B_FA Contin CGAAP 2012'!E35 -> 739631 | D35: ='App.2-CE_CGAAP_DepExp_2011'!D35 -> 0 | E35: =D35-'App.2-CE_CGAAP_DepExp_2011'!D35 -> 0 | F35: 739631 | G35: ='App.2-B_FA Contin CGAAP 2012'!F35 -> 2025000 | H35: 1752131 | I35: ='App.2-CE_CGAAP_DepExp_2011'!I35 -> 25 | J35: 0.04 | K35: 70085.24 | L35: =-'App.2-B_FA Contin CGAAP 2012'!K35 -> 28866 | M35: 41219.24 | N35: New building addition depreciation deferred to 2013
A36: 1910 | B36: Leasehold Improvements | C36: ='App.2-B_FA Contin CGAAP 2012'!E36 -> 0 | D36: ='App.2-CE_CGAAP_DepExp_2011'!D36 -> 0 | E36: =D36-'App.2-CE_CGAAP_DepExp_2011'!D36 -> 0 | F36: 0 | G36: ='App.2-B_FA Contin CGAAP 2012'!F36 -> 0 | H36: 0 | I36: ='App.2-CE_CGAAP_DepExp_2011'!I36 -> 0 | J36: 0 | K36: 0 | L36: =-'App.2-B_FA Contin CGAAP 2012'!K36 -> 0 | M36: 0
A37: 1915 | B37: Office Furniture & Equipment (10 years) | C37: ='App.2-B_FA Contin CGAAP 2012'!E37 -> 308655 | D37: ='App.2-CE_CGAAP_DepExp_2011'!D37+44658 -> 196045 | E37: =D37-'App.2-CE_CGAAP_DepExp_2011'!D37 -> 44658 | F37: 112610 | G37: ='App.2-B_FA Contin CGAAP 2012'!F37 -> 25500 | H37: 125360 | I37: ='App.2-CE_CGAAP_DepExp_2011'!I37 -> 10 | J37: 0.1 | K37: 12536 | L37: =-'App.2-B_FA Contin CGAAP 2012'!K37 -> 12536 | M37: 0
A38: 1915 | B38: Office Furniture & Equipment (5 years) | C38: ='App.2-B_FA Contin CGAAP 2012'!E38 -> 0 | D38: ='App.2-CE_CGAAP_DepExp_2011'!D38 -> 0 | E38: =D38-'App.2-CE_CGAAP_DepExp_2011'!D38 -> 0 | F38: 0 | G38: ='App.2-B_FA Contin CGAAP 2012'!F38 -> 0 | H38: 0 | I38: ='App.2-CE_CGAAP_DepExp_2011'!I38 -> 0 | J38: 0 | K38: 0 | L38: =-'App.2-B_FA Contin CGAAP 2012'!K38 -> 0 | M38: 0
A39: 1920 | B39: Computer Equipment - Hardware | C39: ='App.2-B_FA Contin CGAAP 2012'!E39 -> 515306 | D39: 263231 | E39: =D39-'App.2-CE_CGAAP_DepExp_2011'!D39 -> -301927 | F39: 252075 | G39: ='App.2-B_FA Contin CGAAP 2012'!F39 -> 122500 | H39: 313325 | I39: ='App.2-CE_CGAAP_DepExp_2011'!I39 -> 5 | J39: 0.2 | K39: 62665 | L39: =-'App.2-B_FA Contin CGAAP 2012'!K39 -> 62665 | M39: 0
A40: 1920 | B40: Computer Equip.-Hardware(Post Mar. 22/04) | C40: ='App.2-B_FA Contin CGAAP 2012'!E40 -> 0 | D40: ='App.2-CE_CGAAP_DepExp_2011'!D40 -> 0 | E40: =D40-'App.2-CE_CGAAP_DepExp_2011'!D40 -> 0 | F40: 0 | G40: ='App.2-B_FA Contin CGAAP 2012'!F40 -> 0 | H40: 0 | I40: ='App.2-CE_CGAAP_DepExp_2011'!I40 -> 0 | J40: 0 | K40: 0 | L40: =-'App.2-B_FA Contin CGAAP 2012'!K40 -> 0 | M40: 0
A41: 1920 | B41: Computer Equip.-Hardware(Post Mar. 19/07) | C41: ='App.2-B_FA Contin CGAAP 2012'!E41 -> 0 | D41: ='App.2-CE_CGAAP_DepExp_2011'!D41 -> 0 | E41: =D41-'App.2-CE_CGAAP_DepExp_2011'!D41 -> 0 | F41: 0 | G41: ='App.2-B_FA Contin CGAAP 2012'!F41 -> 0 | H41: 0 | I41: ='App.2-CE_CGAAP_DepExp_2011'!I41 -> 0 | J41: 0 | K41: 0 | L41: =-'App.2-B_FA Contin CGAAP 2012'!K41 -> 0 | M41: 0
A42: 1930 | B42: Transportation Equipment | C42: ='App.2-B_FA Contin CGAAP 2012'!E42 -> 1174196 | E42: =D42-'App.2-CE_CGAAP_DepExp_2011'!D42 -> 0 | F42: 1174196 | G42: ='App.2-B_FA Contin CGAAP 2012'!F42 -> 0 | H42: 1174196 | I42: 7.35 | J42: 0.1360544218 | K42: 159754.5578 | L42: =-'App.2-B_FA Contin CGAAP 2012'!K42 -> 159800 | M42: -45.44217687
A43: 1935 | B43: Stores Equipment | C43: ='App.2-B_FA Contin CGAAP 2012'!E43 -> 31824 | D43: ='App.2-CE_CGAAP_DepExp_2011'!D43+2803 -> 14284 | E43: =D43-'App.2-CE_CGAAP_DepExp_2011'!D43 -> 2803 | F43: 17540 | G43: ='App.2-B_FA Contin CGAAP 2012'!F43 -> 4000 | H43: 19540 | I43: ='App.2-CE_CGAAP_DepExp_2011'!I43 -> 10 | J43: 0.1 | K43: 1954 | L43: =-'App.2-B_FA Contin CGAAP 2012'!K43 -> 1954 | M43: 0
A44: 1940 | B44: Tools, Shop & Garage Equipment | C44: ='App.2-B_FA Contin CGAAP 2012'!E44 -> 487684 | D44: ='App.2-CE_CGAAP_DepExp_2011'!D44+23255 -> 180064 | E44: =D44-'App.2-CE_CGAAP_DepExp_2011'!D44 -> 23255 | F44: 307620 | G44: ='App.2-B_FA Contin CGAAP 2012'!F44 -> 27000 | H44: 321120 | I44: ='App.2-CE_CGAAP_DepExp_2011'!I44 -> 10 | J44: 0.1 | K44: 32112 | L44: =-'App.2-B_FA Contin CGAAP 2012'!K44 -> 32112 | M44: 0
A45: 1945 | B45: Measurement & Testing Equipment | C45: ='App.2-B_FA Contin CGAAP 2012'!E45 -> 32997 | D45: ='App.2-CE_CGAAP_DepExp_2011'!D45+7093.5 -> 10937 | E45: =D45-'App.2-CE_CGAAP_DepExp_2011'!D45 -> 7093.5 | F45: 22060 | G45: ='App.2-B_FA Contin CGAAP 2012'!F45 -> 8500 | H45: 26310 | I45: ='App.2-CE_CGAAP_DepExp_2011'!I45 -> 10 | J45: 0.1 | K45: 2631 | L45: =-'App.2-B_FA Contin CGAAP 2012'!K45 -> 2631 | M45: 0
A46: 1950 | B46: Power Operated Equipment | C46: ='App.2-B_FA Contin CGAAP 2012'!E46 -> 0 | D46: ='App.2-CE_CGAAP_DepExp_2011'!D46 -> 0 | E46: =D46-'App.2-CE_CGAAP_DepExp_2011'!D46 -> 0 | F46: 0 | G46: ='App.2-B_FA Contin CGAAP 2012'!F46 -> 0 | H46: 0 | I46: ='App.2-CE_CGAAP_DepExp_2011'!I46 -> 0 | J46: 0 | K46: 0 | L46: =-'App.2-B_FA Contin CGAAP 2012'!K46 -> 0 | M46: 0
A47: 1955 | B47: Communications Equipment | C47: ='App.2-B_FA Contin CGAAP 2012'!E47 -> 0 | D47: ='App.2-CE_CGAAP_DepExp_2011'!D47 -> 0 | E47: =D47-'App.2-CE_CGAAP_DepExp_2011'!D47 -> 0 | F47: 0 | G47: ='App.2-B_FA Contin CGAAP 2012'!F47 -> 0 | H47: 0 | I47: ='App.2-CE_CGAAP_DepExp_2011'!I47 -> 0 | J47: 0 | K47: 0 | L47: =-'App.2-B_FA Contin CGAAP 2012'!K47 -> 0 | M47: 0
A48: 1955 | B48: Communication Equipment (Smart Meters) | C48: ='App.2-B_FA Contin CGAAP 2012'!E48 -> 0 | D48: ='App.2-CE_CGAAP_DepExp_2011'!D48 -> 0 | E48: =D48-'App.2-CE_CGAAP_DepExp_2011'!D48 -> 0 | F48: 0 | G48: ='App.2-B_FA Contin CGAAP 2012'!F48 -> 0 | H48: 0 | I48: ='App.2-CE_CGAAP_DepExp_2011'!I48 -> 0 | J48: 0 | K48: 0 | L48: =-'App.2-B_FA Contin CGAAP 2012'!K48 -> 0 | M48: 0
A49: 1960 | B49: Miscellaneous Equipment | C49: ='App.2-B_FA Contin CGAAP 2012'!E49 -> 0 | D49: ='App.2-CE_CGAAP_DepExp_2011'!D49 -> 0 | E49: =D49-'App.2-CE_CGAAP_DepExp_2011'!D49 -> 0 | F49: 0 | G49: ='App.2-B_FA Contin CGAAP 2012'!F49 -> 0 | H49: 0 | I49: ='App.2-CE_CGAAP_DepExp_2011'!I49 -> 0 | J49: 0 | K49: 0 | L49: =-'App.2-B_FA Contin CGAAP 2012'!K49 -> 0 | M49: 0
A50: 1975 | B50: Load Management Controls Utility Premises | C50: ='App.2-B_FA Contin CGAAP 2012'!E50 -> 0 | D50: ='App.2-CE_CGAAP_DepExp_2011'!D50 -> 0 | E50: =D50-'App.2-CE_CGAAP_DepExp_2011'!D50 -> 0 | F50: 0 | G50: ='App.2-B_FA Contin CGAAP 2012'!F50 -> 0 | H50: 0 | I50: ='App.2-CE_CGAAP_DepExp_2011'!I50 -> 0 | J50: 0 | K50: 0 | L50: =-'App.2-B_FA Contin CGAAP 2012'!K50 -> 0 | M50: 0
A51: 1980 | B51: System Supervisor Equipment | C51: ='App.2-B_FA Contin CGAAP 2012'!E51 -> 1407393 | D51: 132313 | E51: =D51-'App.2-CE_CGAAP_DepExp_2011'!D51 -> 132313 | F51: 1275080 | G51: ='App.2-B_FA Contin CGAAP 2012'!F51 -> 367850 | H51: 1459005 | I51: ='App.2-CE_CGAAP_DepExp_2011'!I51 -> 15 | J51: 0.06666666667 | K51: 97267 | L51: =-'App.2-B_FA Contin CGAAP 2012'!K51 -> 97267 | M51: 0
A52: 1985 | B52: Miscellaneous Fixed Assets | C52: ='App.2-B_FA Contin CGAAP 2012'!E52 -> 0 | D52: ='App.2-CE_CGAAP_DepExp_2011'!D52 -> 0 | E52: =D52-'App.2-CE_CGAAP_DepExp_2011'!D52 -> 0 | F52: 0 | G52: ='App.2-B_FA Contin CGAAP 2012'!F52 -> 0 | H52: 0 | I52: ='App.2-CE_CGAAP_DepExp_2011'!I52 -> 0 | J52: 0 | K52: 0 | L52: =-'App.2-B_FA Contin CGAAP 2012'!K52 -> 0 | M52: 0
A53: 1995 | B53: Contributions & Grants | C53: ='App.2-B_FA Contin CGAAP 2012'!E53 -> -7714946 | D53: ='App.2-CE_CGAAP_DepExp_2011'!D53-551330.5 -> -739898 | E53: =D53-'App.2-CE_CGAAP_DepExp_2011'!D53 -> -551330.5 | F53: -6975048 | G53: ='App.2-B_FA Contin CGAAP 2012'!F53 -> -1083954 | H53: -7517025 | I53: ='App.2-CE_CGAAP_DepExp_2011'!I53 -> 25 | J53: 0.04 | K53: -300681 | L53: =-'App.2-B_FA Contin CGAAP 2012'!K53 -> -300681 | M53: 0
A54: etc. | F54: 0 | H54: 0 | J54: 0 | K54: 0 | M54: 0
F55: 0 | H55: 0 | J55: 0 | K55: 0 | M55: 0
B56: Total | C56: =SUM(C16:C55) -> 54353342 | D56: =SUM(D16:D55) -> 10566102.3 | F56: =SUM(F16:F55) -> 43787239.7 | G56: =SUM(G16:G55) -> 6083921 | H56: =SUM(H16:H55) -> 46829200.2 | K56: =SUM(K16:K55) -> 2220268.855 | L56: =SUM(L16:L55) -> 2179090 | M56: =SUM(M16:M55) -> 41178.85516
A58: Notes:
A59: 1 | B59: Board policy of the "half-year" rule - the applicant must ensure that additions in the year attract a half-year depreciation expense in the first year. Deviations from this standard practice must be supported in the application.
A60: 2 | B60: The applicant must provide an explanation of material variances in evidence
A62: General: | B62: Applicants must provide a breakdown of depreciation and amortization expense in the above format for all relevant accounts. Asset Retirement Obligations (AROs), depreciation and accretion expense should be disclosed separately consistent with the Notes of historical Audited Financial Statements.

Sheet App.2-CG_MIFRS_DepExp_2012
N1: File Number: | O1: ='LDC Info'!$E$18 -> EB-2012-0139
N2: Exhibit: | O2: 2
N3: Tab: | O3: 2
N4: Schedule: | O4: 4
N5: Page: | O5: 3
N7: Date: | O7: 2012-08-31
A9: Appendix 2-CG
A10: Depreciation and Amortization Expense
A11: Assumes the applicant adopted IFRS for financial reporting purposes January 1, 2013
C12: Year | D12: 2012 | E12: MIFRS
A14: Account | B14: Description | C14: Opening NBV as at Jan 1, 2012 5 | D14: Additions | E14: Average Remaining Life of Opening NBV 4 | F14: Years (new additions only) 3 | G14: Depreciation Rate on New Additions | H14: Depreciation Expense on Opening NBV | I14: Depreciation Expense on Additions 1 | J14: 2012 Depreciation Expense | K14: 2012 Depreciation Expense per Appendix 2-B Fixed Assets, Column K (l) | L14: Variance 2 | M14: Depreciation Expense on 2012 Full Year Additions | N14: Less Depreciation Expense on Assets Fully Depreciated during the year (o) | O14: 2012 Full Year Depreciation 6
C15: (a) | D15: (d) | E15: (i) | F15: (f) | G15: (g) = 1 / (f) | H15: (j) = (a) / (i) | I15: (h)=((d)*0.5)/(f) | J15: (k) = (j) + (h) | L15: (m) = (k) - (l) | M15: (n)=((d))/(f) | O15: (p) = (j) + (n) - (o)
A16: 1611 | B16: Computer Software (Formally known as Account 1925) | C16: ='App.2-B_FA Contin CGAAP 2011'!N16 -> 119195 | D16: ='App.2-B_FA Contin MIFRS 2012'!F16 -> 282150 | E16: 1.78183 | F16: 3 | G16: =IF(F16=0,0,1/F16) -> 0.3333333333 | H16: =IF(E16=0,0,+C16/E16) -> 66894.70937 | I16: =IF(F16=0,0,+(D16*0.5)/F16) -> 47025 | J16: =IF(ISERROR(+H16+I16), 0, +H16+I16) -> 113919.7094 | K16: =-'App.2-B_FA Contin MIFRS 2012'!K16 -> 113920 | L16: =IF(ISERROR(+J16-K16), 0, +J16-K16) -> -0.2906281744 | M16: =IF(F16=0,0,+(D16)/F16) -> 94050 | N16: 32550 | O16: =IF(ISERROR(+M16+H16-N16), 0, +M16+H16-N16) -> 128394.7094
A17: 1612 | B17: Land Rights (Formally known as Account 1906) | C17: ='App.2-B_FA Contin CGAAP 2011'!N17 -> 0 | D17: ='App.2-B_FA Contin MIFRS 2012'!F17 -> 0 | G17: 0 | H17: 0 | I17: 0 | J17: 0 | K17: =-'App.2-B_FA Contin MIFRS 2012'!K17 -> 0 | L17: 0 | M17: 0 | O17: =IF(ISERROR(+M17+H17-N17), 0, +M17+H17-N17) -> 0
A18: 1805 | B18: Land | C18: ='App.2-B_FA Contin CGAAP 2011'!N18 -> 273770 | D18: ='App.2-B_FA Contin MIFRS 2012'!F18 -> 465000 | G18: 0 | H18: 0 | I18: 0 | J18: 0 | K18: =-'App.2-B_FA Contin MIFRS 2012'!K18 -> 0 | L18: 0 | M18: 0 | O18: 0
A19: 1806 | B19: Land rights | C19: ='App.2-B_FA Contin CGAAP 2011'!N19 -> 424717 | D19: ='App.2-B_FA Contin MIFRS 2012'!F19 -> 0 | E19: 28.558 | F19: 50 | G19: =IF(F19=0,0,1/F19) -> 0.02 | H19: =IF(E19=0,0,+C19/E19) -> 14872.08488 | I19: =IF(F19=0,0,+(D19*0.5)/F19) -> 0 | J19: =IF(ISERROR(+H19+I19), 0, +H19+I19) -> 14872.08488 | K19: =-'App.2-B_FA Contin MIFRS 2012'!K19 -> 14872 | L19: =IF(ISERROR(+J19-K19), 0, +J19-K19) -> 0.08487989355 | M19: =IF(F19=0,0,+(D19)/F19) -> 0 | N19: 297 | O19: =IF(ISERROR(+M19+H19-N19), 0, +M19+H19-N19) -> 14575.08488
A20: 1808 | B20: Buildings | C20: ='App.2-B_FA Contin CGAAP 2011'!N20 -> 0 | D20: ='App.2-B_FA Contin MIFRS 2012'!F20 -> 0 | G20: 0 | H20: 0 | I20: 0 | J20: 0 | K20: =-'App.2-B_FA Contin MIFRS 2012'!K20 -> 0 | L20: 0 | M20: 0 | O20: 0
A21: 1810 | B21: Leasehold Improvements | C21: ='App.2-B_FA Contin CGAAP 2011'!N21 -> 51752 | D21: ='App.2-B_FA Contin MIFRS 2012'!F21 -> 0 | E21: 15.625 | F21: 25 | G21: 0.04 | H21: 3312.128 | I21: 0 | J21: 3312.128 | K21: =-'App.2-B_FA Contin MIFRS 2012'!K21 -> 3312 | L21: 0.128 | M21: 0 | O21: 3312.128
A22: 1815 | B22: Transformer Station Equipment >50 kV | C22: ='App.2-B_FA Contin CGAAP 2011'!N22 -> 0 | D22: ='App.2-B_FA Contin MIFRS 2012'!F22 -> 0 | G22: 0 | H22: 0 | I22: 0 | J22: 0 | K22: =-'App.2-B_FA Contin MIFRS 2012'!K22 -> 0 | L22: 0 | M22: 0 | O22: 0
A23: 1820 | B23: Distribution Station Equipment <50 kV | C23: ='App.2-B_FA Contin CGAAP 2011'!N23 -> 2035685 | D23: ='App.2-B_FA Contin MIFRS 2012'!F23 -> 35448 | E23: 22.51 | F23: 40 | G23: 0.025 | H23: 90434.69569 | I23: 443.1 | J23: 90877.79569 | K23: =-'App.2-B_FA Contin MIFRS 2012'!K23 -> 90878 | L23: -0.2043091959 | M23: 886.2 | O23: 91320.89569
A24: 1825 | B24: Storage Battery Equipment | C24: ='App.2-B_FA Contin CGAAP 2011'!N24 -> 0 | D24: ='App.2-B_FA Contin MIFRS 2012'!F24 -> 0 | G24: 0 | H24: 0 | I24: 0 | J24: 0 | K24: =-'App.2-B_FA Contin MIFRS 2012'!K24 -> 0 | L24: 0 | M24: 0 | O24: 0
A25: 1830 | B25: Poles, Towers & Fixtures | C25: ='App.2-B_FA Contin CGAAP 2011'!N25 -> 4791235 | D25: ='App.2-B_FA Contin MIFRS 2012'!F25 -> 1172023 | E25: 27.5374 | F25: 45 | G25: 0.02222222222 | H25: 173990.1007 | I25: 13022.47778 | J25: 187012.5785 | K25: =-'App.2-B_FA Contin MIFRS 2012'!K25 -> 187013 | L25: -0.4214864955 | M25: 26044.95556 | O25: =IF(ISERROR(+M25+H25-N25), 0, +M25+H25-N25) -> 200035.0563
A26: 1835 | B26: Overhead Conductors & Devices | C26: ='App.2-B_FA Contin CGAAP 2011'!N26 -> 5716025 | D26: ='App.2-B_FA Contin MIFRS 2012'!F26 -> 1314249 | E26: 41.88 | F26: 60 | G26: 0.01666666667 | H26: 136485.7927 | I26: 10952.075 | J26: 147437.8677 | K26: =-'App.2-B_FA Contin MIFRS 2012'!K26 -> 147438 | L26: -0.1322588348 | M26: 21904.15 | O26: 158389.9427
A27: 1840 | B27: Underground Conduit | C27: ='App.2-B_FA Contin CGAAP 2011'!N27 -> 1547804 | D27: ='App.2-B_FA Contin MIFRS 2012'!F27 -> 37200 | E27: 32.0595 | F27: 40 | G27: 0.025 | H27: 48279.10604 | I27: 465 | J27: 48744.10604 | K27: =-'App.2-B_FA Contin MIFRS 2012'!K27 -> 48744 | L27: 0.1060372121 | M27: 930 | O27: 49209.10604
A28: 1845 | B28: Underground Conductors & Devices | C28: ='App.2-B_FA Contin CGAAP 2011'!N28 -> 7382140 | D28: ='App.2-B_FA Contin MIFRS 2012'!F28 -> 454700 | E28: 23.78195 | F28: 40 | G28: 0.025 | H28: 310409.3651 | I28: 5683.75 | J28: 316093.1151 | K28: =-'App.2-B_FA Contin MIFRS 2012'!K28 -> 316093 | L28: 0.1150857058 | M28: 11367.5 | O28: 321776.8651
A29: 1850 | B29: Line Transformers | C29: ='App.2-B_FA Contin CGAAP 2011'!N29 -> 3014840 | D29: ='App.2-B_FA Contin MIFRS 2012'!F29 -> 545110 | E29: 15.087 | F29: 40 | G29: 0.025 | H29: 199830.3175 | I29: 6813.875 | J29: 206644.1925 | K29: =-'App.2-B_FA Contin MIFRS 2012'!K29 -> 206644 | L29: 0.1924918804 | M29: 13627.75 | O29: 213458.0675
A30: 1855 | B30: Services (Overhead & Underground) | C30: ='App.2-B_FA Contin CGAAP 2011'!N30 -> 2259956 | D30: ='App.2-B_FA Contin MIFRS 2012'!F30 -> 207405 | E30: 29.0944 | F30: 50 | G30: 0.02 | H30: 77676.6663 | I30: 2074.05 | J30: 79750.7163 | K30: =-'App.2-B_FA Contin MIFRS 2012'!K30 -> 79751 | L30: -0.283699956 | M30: 4148.1 | O30: 81824.7663
A31: 1860 | B31: Meters | C31: ='App.2-B_FA Contin CGAAP 2011'!N31 -> 220222 | D31: ='App.2-B_FA Contin MIFRS 2012'!F31 -> 0 | E31: 19.166 | F31: 25 | G31: 0.04 | H31: 11490.24314 | I31: 0 | J31: 11490.24314 | K31: =-'App.2-B_FA Contin MIFRS 2012'!K31 -> 11490.32 | L31: -0.07686110821 | M31: 0 | O31: 11490.24314
A32: 1860 | B32: Meters (Smart Meters) | C32: ='App.2-B_FA Contin MIFRS 2012'!E32+'App.2-B_FA Contin MIFRS 2012'!J32 -> 1834786 | D32: ='App.2-B_FA Contin MIFRS 2012'!F32 -> 74240 | E32: 12.7286 | F32: 15 | G32: 0.06666666667 | H32: 144146.7247 | I32: 2474.666667 | J32: 146621.3914 | K32: =-'App.2-B_FA Contin MIFRS 2012'!K32 -> 146621.68 | L32: -0.2886346233 | M32: 4949.333333 | O32: 149096.058
A33: 1875 | B33: Street Lighting | C33: ='App.2-B_FA Contin CGAAP 2011'!N33 -> 4976 | D33: ='App.2-B_FA Contin MIFRS 2012'!F33 -> 0 | F33: 0 | G33: =IF(F33=0,0,1/F33) -> 0 | H33: =IF(E33=0,0,+C33/E33) -> 0 | I33: =IF(F33=0,0,+(D33*0.5)/F33) -> 0 | J33: =IF(ISERROR(+H33+I33), 0, +H33+I33) -> 0 | K33: =-'App.2-B_FA Contin MIFRS 2012'!K33 -> 0 | L33: =IF(ISERROR(+J33-K33), 0, +J33-K33) -> 0 | M33: =IF(F33=0,0,+(D33)/F33) -> 0 | O33: =IF(ISERROR(+M33+H33-N33), 0, +M33+H33-N33) -> 0
A34: 1905 | B34: Land | C34: ='App.2-B_FA Contin CGAAP 2011'!N34 -> 201049 | D34: ='App.2-B_FA Contin MIFRS 2012'!F34 -> 0 | G34: 0 | H34: 0 | I34: 0 | J34: 0 | K34: =-'App.2-B_FA Contin MIFRS 2012'!K34 -> 0 | L34: 0 | M34: 0 | O34: 0
A35: 1908 | B35: Buildings & Fixtures | C35: ='App.2-B_FA Contin CGAAP 2011'!N35 -> 465719 | D35: ='App.2-B_FA Contin MIFRS 2012'!F35-2000000 -> 25000 | E35: 16.275 | F35: 50 | G35: 0.02 | H35: 28615.60676 | I35: 250 | J35: 28865.60676 | K35: =-'App.2-B_FA Contin MIFRS 2012'!K35 -> 28866 | L35: -0.3932411674 | M35: 500 | O35: 29115.60676
A36: 1910 | B36: Leasehold Improvements | C36: ='App.2-B_FA Contin CGAAP 2011'!N36 -> 0 | D36: ='App.2-B_FA Contin MIFRS 2012'!F36 -> 0 | G36: 0 | H36: 0 | I36: 0 | J36: 0 | K36: =-'App.2-B_FA Contin MIFRS 2012'!K36 -> 0 | L36: 0 | M36: 0 | O36: 0
A37: 1915 | B37: Office Furniture & Equipment (10 years) | C37: ='App.2-B_FA Contin CGAAP 2011'!N37 -> 76007 | D37: ='App.2-B_FA Contin MIFRS 2012'!F37 -> 25500 | E37: 6.7495 | F37: 10 | G37: 0.1 | H37: 11261.13045 | I37: 1275 | J37: 12536.13045 | K37: =-'App.2-B_FA Contin MIFRS 2012'!K37 -> 12536 | L37: 0.1304541077 | M37: 2550 | O37: 13811.13045
A38: 1915 | B38: Office Furniture & Equipment (5 years) | C38: ='App.2-B_FA Contin CGAAP 2011'!N38 -> 0 | D38: ='App.2-B_FA Contin MIFRS 2012'!F38 -> 0 | G38: 0 | H38: 0 | I38: 0 | J38: 0 | K38: =-'App.2-B_FA Contin MIFRS 2012'!K38 -> 0 | L38: 0 | M38: 0 | O38: 0
A39: 1920 | B39: Computer Equipment - Hardware | C39: ='App.2-B_FA Contin CGAAP 2011'!N39 -> 115225 | D39: ='App.2-B_FA Contin MIFRS 2012'!F39 -> 122500 | E39: 2.28555 | F39: 5 | G39: 0.2 | H39: 50414.56105 | I39: 12250 | J39: 62664.56105 | K39: =-'App.2-B_FA Contin MIFRS 2012'!K39 -> 62665 | L39: -0.4389534248 | M39: 24500 | N39: 12533 | O39: 62381.56105
A40: 1920 | B40: Computer Equip.-Hardware(Post Mar. 22/04) | C40: ='App.2-B_FA Contin CGAAP 2011'!N40 -> 0 | D40: ='App.2-B_FA Contin MIFRS 2012'!F40 -> 0 | G40: 0 | H40: 0 | I40: 0 | J40: 0 | K40: =-'App.2-B_FA Contin MIFRS 2012'!K40 -> 0 | L40: 0 | M40: 0 | O40: 0
A41: 1920 | B41: Computer Equip.-Hardware(Post Mar. 19/07) | C41: ='App.2-B_FA Contin CGAAP 2011'!N41 -> 0 | D41: ='App.2-B_FA Contin MIFRS 2012'!F41 -> 0 | G41: 0 | H41: 0 | I41: 0 | J41: 0 | K41: =-'App.2-B_FA Contin MIFRS 2012'!K41 -> 0 | L41: 0 | M41: 0 | O41: 0
A42: 1930 | B42: Transportation Equipment | C42: ='App.2-B_FA Contin CGAAP 2011'!N42 -> 714062 | D42: ='App.2-B_FA Contin MIFRS 2012'!F42 -> 0 | E42: 4.46846 | F42: 5 | G42: 0.2 | H42: 159800.4682 | I42: 0 | J42: 159800.4682 | K42: =-'App.2-B_FA Contin MIFRS 2012'!K42 -> 159800 | L42: 0.4681702421 | M42: 0 | O42: 159800.4682
A43: 1935 | B43: Stores Equipment | C43: ='App.2-B_FA Contin CGAAP 2011'!N43 -> 13652 | D43: ='App.2-B_FA Contin MIFRS 2012'!F43 -> 4000 | E43: 7.785 | F43: 10 | G43: 0.1 | H43: 1753.628773 | I43: 200 | J43: 1953.628773 | K43: =-'App.2-B_FA Contin MIFRS 2012'!K43 -> 1954 | L43: -0.371226718 | M43: 400 | O43: 2153.628773
A44: 1940 | B44: Tools, Shop & Garage Equipment | C44: ='App.2-B_FA Contin CGAAP 2011'!N44 -> 299447 | D44: ='App.2-B_FA Contin MIFRS 2012'!F44 -> 27000 | E44: 9.7342 | F44: 10 | G44: 0.1 | H44: 30762.36363 | I44: 1350 | J44: 32112.36363 | K44: =-'App.2-B_FA Contin MIFRS 2012'!K44 -> 32112 | L44: 0.3636251567 | M44: 2700 | O44: 33462.36363
A45: 1945 | B45: Measurement & Testing Equipment | C45: ='App.2-B_FA Contin CGAAP 2011'!N45 -> 18771 | D45: ='App.2-B_FA Contin MIFRS 2012'!F45 -> 8500 | E45: 8.51 | F45: 10 | G45: 0.1 | H45: 2205.757932 | I45: 425 | J45: 2630.757932 | K45: =-'App.2-B_FA Contin MIFRS 2012'!K45 -> 2631 | L45: -0.2420681551 | M45: 850 | O45: 3055.757932
A46: 1950 | B46: Power Operated Equipment | C46: ='App.2-B_FA Contin CGAAP 2011'!N46 -> 0 | D46: ='App.2-B_FA Contin MIFRS 2012'!F46 -> 0 | G46: 0 | H46: 0 | I46: 0 | J46: 0 | K46: =-'App.2-B_FA Contin MIFRS 2012'!K46 -> 0 | L46: 0 | M46: 0 | O46: 0
A47: 1955 | B47: Communications Equipment | C47: ='App.2-B_FA Contin CGAAP 2011'!N47 -> 0 | D47: ='App.2-B_FA Contin MIFRS 2012'!F47 -> 0 | G47: 0 | H47: 0 | I47: 0 | J47: 0 | K47: =-'App.2-B_FA Contin MIFRS 2012'!K47 -> 0 | L47: 0 | M47: 0 | O47: 0
A48: 1955 | B48: Communication Equipment (Smart Meters) | C48: ='App.2-B_FA Contin CGAAP 2011'!N48 -> 0 | D48: ='App.2-B_FA Contin MIFRS 2012'!F48 -> 0 | G48: 0 | H48: 0 | I48: 0 | J48: 0 | K48: =-'App.2-B_FA Contin MIFRS 2012'!K48 -> 0 | L48: 0 | M48: 0 | O48: 0
A49: 1960 | B49: Miscellaneous Equipment | C49: ='App.2-B_FA Contin CGAAP 2011'!N49 -> 0 | D49: ='App.2-B_FA Contin MIFRS 2012'!F49 -> 0 | G49: 0 | H49: 0 | I49: 0 | J49: 0 | K49: =-'App.2-B_FA Contin MIFRS 2012'!K49 -> 0 | L49: 0 | M49: 0 | O49: 0
A50: 1975 | B50: Load Management Controls Utility Premises | C50: ='App.2-B_FA Contin CGAAP 2011'!N50 -> 0 | D50: ='App.2-B_FA Contin MIFRS 2012'!F50 -> 0 | G50: 0 | H50: 0 | I50: 0 | J50: 0 | K50: =-'App.2-B_FA Contin MIFRS 2012'!K50 -> 0 | L50: 0 | M50: 0 | O50: 0
A51: 1980 | B51: System Supervisor Equipment | C51: ='App.2-B_FA Contin CGAAP 2011'!N51 -> 618334 | D51: ='App.2-B_FA Contin MIFRS 2012'!F51 -> 367850 | E51: 7.2741 | F51: 15 | G51: 0.06666666667 | H51: 85004.88033 | I51: 12261.66667 | J51: 97266.547 | K51: =-'App.2-B_FA Contin MIFRS 2012'!K51 -> 97267 | L51: -0.4530044954 | M51: 24523.33333 | O51: 109528.2137
A52: 1985 | B52: Miscellaneous Fixed Assets | C52: ='App.2-B_FA Contin CGAAP 2011'!N52 -> 0 | D52: ='App.2-B_FA Contin MIFRS 2012'!F52 -> 0 | G52: 0 | H52: 0 | I52: 0 | J52: 0 | K52: =-'App.2-B_FA Contin MIFRS 2012'!K52 -> 0 | L52: 0 | M52: 0 | O52: 0
A53: 1995 | B53: Contributions & Grants | C53: ='App.2-B_FA Contin CGAAP 2011'!N53 -> -6144728 | D53: ='App.2-B_FA Contin MIFRS 2012'!F53 -> -1083954 | E53: 29.275 | F53: 35 | G53: 0.02857142857 | H53: -209896.772 | I53: -15485.05714 | J53: -225381.8291 | K53: =-'App.2-B_FA Contin MIFRS 2012'!K53 -> -225382 | L53: 0.1708673905 | M53: -30970.11429 | O53: -240866.8863
A54: etc. | G54: 0 | H54: 0 | I54: 0 | J54: 0 | L54: 0 | M54: 0 | O54: 0
G55: 0 | H55: 0 | I55: 0 | J55: 0 | L55: 0 | M55: 0 | O55: 0
B56: Total | C56: =SUM(C16:C55) -> 26054641 | D56: =SUM(D16:D55) -> 4083921 | H56: =SUM(H16:H55) -> 1437743.559 | I56: 101480.604 | J56: =SUM(J16:J55)+2 -> 1539226.163 | K56: 1539226 | L56: =SUM(L16:L55)+2 -> 0.1632392398 | M56: 202961.2079 | N56: =SUM(N16:N55) -> 45380 | O56: 1595324.767
A58: Notes:
A60: 1 | B60: Board policy of the "half-year" rule - the applicant must ensure that additions in the year attract a half-year depreciation expense in the first year. Deviations from this standard practice must be supported in the application.
A61: 2 | B61: The applicant must provide an explanation of material variances in evidence
A62: 3 | B62: The applicant should ensure that the years for new additions of assets are the asset useful lives determined by management in accordance with IFRS.
A63: 4 | B63: A recalculation should be performed to determine the average remaining life of opening balance of assets (i.e. excluding 2012 additions) under IFRS. For example, Asset A had a useful life of 20 years under CGAAP. On January 1, 2012, the date of transition, Asset A was 3 years depreciated. As a result, Asset A would have a remaining service life of 17 years (20 years less 3 years) under CGAAP as of January 1, 2012. Due to the transition to IFRS, management re-assessed the asset useful lives under IFRS principles and concluded that the revised useful life of Asset A is now 30 years. Therefore, the average remaining useful life of opening balance of Asset A is determined to be 27 years (30 years less 3 years) under IFRS as of January 1, 2012.
A64: 5 | B64: NBV must exclude assets still on the books but which have been fully amortized or depreciated.
A65: 6 | B65: This column refers to the calculated full year depreciation but excludes the depreciation expense on assets fully depreciated during the year. This column is used for the purpose of calculating depreciation expense in the following year on the next worksheet.
A67: General: | B67: Applicants must provide a breakdown of depreciation and amortization expense in the above format for all relevant accounts. Asset Retirement Obligations (AROs), depreciation and accretion expense should be disclosed separately consistent with the Notes of historical Audited Financial Statements.

Sheet App.2-CH_MIFRS_DepExp_2013
I1: File Number: | J1: ='LDC Info'!$E$18 -> EB-2012-0139
I2: Exhibit: | J2: 2
I3: Tab: | J3: 2
I4: Schedule: | J4: 4
I5: Page: | J5: 4
I7: Date: | J7: 2012-08-31
A9: Appendix 2-CH
A10: Depreciation and Amortization Expense
A11: Assumes the applicant adopted IFRS for financial reporting purposes January 1, 2013
C12: Year | D12: 2013 | E12: MIFRS
A14: Account | B14: Description | C14: Additions | D14: Years (new additions only) | E14: Depreciation Rate on New Additions | F14: 2013 Depreciation Expense 1 | G14: 2013 Depreciation Expense per Appendix 2-B Fixed Assets, Column K (l) | H14: Variance 2
C15: (d) | D15: (f) | E15: (g) = 1 / (f) | F15: (h)=2012 Full Year Depreciation + ((d)*0.5)/(f) | H15: (m) = (h) - (l)
A16: 1611 | B16: Computer Software (Formally known as Account 1925) | C16: ='App.2-B_FA Contin MIFRS 2013'!F16 -> 278500 | D16: ='App.2-CG_MIFRS_DepExp_2012'!F16 -> 3 | E16: =IF(D16=0,0,1/D16) -> 0.3333333333 | F16: =IF(D16=0,'App.2-CG_MIFRS_DepExp_2012'!O16,+'App.2-CG_MIFRS_DepExp_2012'!O16+((C16*0.5)/D16)) -> 174811.376 | G16: =-'App.2-B_FA Contin MIFRS 2013'!K16 -> 174811 | H16: =IF(ISERROR(+F16-G16), 0, +F16-G16) -> 0.3760384922
A17: 1612 | B17: Land Rights (Formally known as Account 1906) | C17: ='App.2-B_FA Contin MIFRS 2013'!F17 -> 0 | D17: ='App.2-CG_MIFRS_DepExp_2012'!F17 -> 0 | E17: 0 | F17: =IF(D17=0,'App.2-CG_MIFRS_DepExp_2012'!O17,+'App.2-CG_MIFRS_DepExp_2012'!O17+((C17*0.5)/D17)) -> 0 | G17: =-'App.2-B_FA Contin MIFRS 2013'!K17 -> 0 | H17: 0
A18: 1805 | B18: Land | C18: ='App.2-B_FA Contin MIFRS 2013'!F18 -> 0 | D18: ='App.2-CG_MIFRS_DepExp_2012'!F18 -> 0 | E18: 0 | F18: =IF(D18=0,'App.2-CG_MIFRS_DepExp_2012'!O18,+'App.2-CG_MIFRS_DepExp_2012'!O18+((C18*0.5)/D18)) -> 0 | G18: =-'App.2-B_FA Contin MIFRS 2013'!K18 -> 0 | H18: 0
A19: 1806 | B19: Land rights | C19: ='App.2-B_FA Contin MIFRS 2013'!F19 -> 0 | D19: 0 | E19: =IF(D19=0,0,1/D19) -> 0 | F19: =IF(D19=0,'App.2-CG_MIFRS_DepExp_2012'!O19,+'App.2-CG_MIFRS_DepExp_2012'!O19+((C19*0.5)/D19)) -> 14575.08488 | G19: =-'App.2-B_FA Contin MIFRS 2013'!K19 -> 14575 | H19: =IF(ISERROR(+F19-G19), 0, +F19-G19) -> 0.08487989355
A20: 1808 | B20: Buildings | C20: ='App.2-B_FA Contin MIFRS 2013'!F20 -> 0 | D20: ='App.2-CG_MIFRS_DepExp_2012'!F20 -> 0 | E20: 0 | F20: =IF(D20=0,'App.2-CG_MIFRS_DepExp_2012'!O20,+'App.2-CG_MIFRS_DepExp_2012'!O20+((C20*0.5)/D20)) -> 0 | G20: =-'App.2-B_FA Contin MIFRS 2013'!K20 -> 0 | H20: 0
A21: 1810 | B21: Leasehold Improvements | C21: ='App.2-B_FA Contin MIFRS 2013'!F21 -> 0 | D21: ='App.2-CG_MIFRS_DepExp_2012'!F21 -> 25 | E21: 0.04 | F21: =IF(D21=0,'App.2-CG_MIFRS_DepExp_2012'!O21,+'App.2-CG_MIFRS_DepExp_2012'!O21+((C21*0.5)/D21)) -> 3312.128 | G21: =-'App.2-B_FA Contin MIFRS 2013'!K21 -> 3312 | H21: 0.128
A22: 1815 | B22: Transformer Station Equipment >50 kV | C22: ='App.2-B_FA Contin MIFRS 2013'!F22 -> 0 | D22: ='App.2-CG_MIFRS_DepExp_2012'!F22 -> 0 | E22: 0 | F22: =IF(D22=0,'App.2-CG_MIFRS_DepExp_2012'!O22,+'App.2-CG_MIFRS_DepExp_2012'!O22+((C22*0.5)/D22)) -> 0 | G22: =-'App.2-B_FA Contin MIFRS 2013'!K22 -> 0 | H22: 0
A23: 1820 | B23: Distribution Station Equipment <50 kV | C23: ='App.2-B_FA Contin MIFRS 2013'!F23 -> 194422 | D23: ='App.2-CG_MIFRS_DepExp_2012'!F23 -> 40 | E23: 0.025 | F23: =IF(D23=0,'App.2-CG_MIFRS_DepExp_2012'!O23,+'App.2-CG_MIFRS_DepExp_2012'!O23+((C23*0.5)/D23)) -> 93751.17069 | G23: =-'App.2-B_FA Contin MIFRS 2013'!K23 -> 93752 | H23: -0.8293091959
A24: 1825 | B24: Storage Battery Equipment | C24: ='App.2-B_FA Contin MIFRS 2013'!F24 -> 0 | D24: ='App.2-CG_MIFRS_DepExp_2012'!F24 -> 0 | E24: 0 | F24: =IF(D24=0,'App.2-CG_MIFRS_DepExp_2012'!O24,+'App.2-CG_MIFRS_DepExp_2012'!O24+((C24*0.5)/D24)) -> 0 | G24: =-'App.2-B_FA Contin MIFRS 2013'!K24 -> 0 | H24: 0
A25: 1830 | B25: Poles, Towers & Fixtures | C25: ='App.2-B_FA Contin MIFRS 2013'!F25 -> 918153 | D25: ='App.2-CG_MIFRS_DepExp_2012'!F25 -> 45 | E25: 0.02222222222 | F25: =IF(D25=0,'App.2-CG_MIFRS_DepExp_2012'!O25,+'App.2-CG_MIFRS_DepExp_2012'!O25+((C25*0.5)/D25)) -> 210236.7563 | G25: =-'App.2-B_FA Contin MIFRS 2013'!K25 -> 210238 | H25: -1.243708718
A26: 1835 | B26: Overhead Conductors & Devices | C26: ='App.2-B_FA Contin MIFRS 2013'!F26 -> 1123543 | D26: ='App.2-CG_MIFRS_DepExp_2012'!F26 -> 60 | E26: 0.01666666667 | F26: =IF(D26=0,'App.2-CG_MIFRS_DepExp_2012'!O26,+'App.2-CG_MIFRS_DepExp_2012'!O26+((C26*0.5)/D26)) -> 167752.8011 | G26: =-'App.2-B_FA Contin MIFRS 2013'!K26 -> 167753 | H26: -0.1989255014
A27: 1840 | B27: Underground Conduit | C27: ='App.2-B_FA Contin MIFRS 2013'!F27 -> 38205 | D27: ='App.2-CG_MIFRS_DepExp_2012'!F27 -> 40 | E27: 0.025 | F27: =IF(D27=0,'App.2-CG_MIFRS_DepExp_2012'!O27,+'App.2-CG_MIFRS_DepExp_2012'!O27+((C27*0.5)/D27)) -> 49686.66854 | G27: =-'App.2-B_FA Contin MIFRS 2013'!K27 -> 49686 | H27: 0.6685372121
A28: 1845 | B28: Underground Conductors & Devices | C28: ='App.2-B_FA Contin MIFRS 2013'!F28 -> 157573 | D28: ='App.2-CG_MIFRS_DepExp_2012'!F28 -> 40 | E28: 0.025 | F28: =IF(D28=0,'App.2-CG_MIFRS_DepExp_2012'!O28,+'App.2-CG_MIFRS_DepExp_2012'!O28+((C28*0.5)/D28)) -> 323746.5276 | G28: =-'App.2-B_FA Contin MIFRS 2013'!K28 -> 323746 | H28: 0.5275857057
A29: 1850 | B29: Line Transformers | C29: ='App.2-B_FA Contin MIFRS 2013'!F29 -> 649500 | D29: ='App.2-CG_MIFRS_DepExp_2012'!F29 -> 40 | E29: 0.025 | F29: =IF(D29=0,'App.2-CG_MIFRS_DepExp_2012'!O29,+'App.2-CG_MIFRS_DepExp_2012'!O29+((C29*0.5)/D29)) -> 221576.8175 | G29: =-'App.2-B_FA Contin MIFRS 2013'!K29 -> 221577 | H29: -0.1825081196
A30: 1855 | B30: Services (Overhead & Underground) | C30: ='App.2-B_FA Contin MIFRS 2013'!F30 -> 216912 | D30: 50 | E30: 0.02 | F30: =IF(D30=0,'App.2-CG_MIFRS_DepExp_2012'!O30,+'App.2-CG_MIFRS_DepExp_2012'!O30+((C30*0.5)/D30)) -> 83993.8863 | G30: =-'App.2-B_FA Contin MIFRS 2013'!K30 -> 83994 | H30: -0.113699956
A31: 1860 | B31: Meters | C31: ='App.2-B_FA Contin MIFRS 2013'!F31 -> 0 | D31: ='App.2-CG_MIFRS_DepExp_2012'!F31 -> 25 | E31: 0.04 | F31: =IF(D31=0,'App.2-CG_MIFRS_DepExp_2012'!O31,+'App.2-CG_MIFRS_DepExp_2012'!O31+((C31*0.5)/D31)) -> 11490.24314 | G31: =-'App.2-B_FA Contin MIFRS 2013'!K31 -> 11490 | H31: 0.2431388918
A32: 1860 | B32: Meters (Smart Meters) | C32: ='App.2-B_FA Contin MIFRS 2013'!F32 -> 116170 | D32: ='App.2-CG_MIFRS_DepExp_2012'!F32 -> 15 | E32: 0.06666666667 | F32: =IF(D32=0,'App.2-CG_MIFRS_DepExp_2012'!O32,+'App.2-CG_MIFRS_DepExp_2012'!O32+((C32*0.5)/D32)) -> 152968.3914 | G32: =-'App.2-B_FA Contin MIFRS 2013'!K32 -> 152968 | H32: 0.3913653767
A33: 1875 | B33: Street Lighting | C33: ='App.2-B_FA Contin MIFRS 2013'!F33 -> 0 | D33: ='App.2-CG_MIFRS_DepExp_2012'!F33 -> 0 | E33: =IF(D33=0,0,1/D33) -> 0 | F33: =IF(D33=0,'App.2-CG_MIFRS_DepExp_2012'!O34,+'App.2-CG_MIFRS_DepExp_2012'!O34+((C33*0.5)/D33)) -> 0 | G33: =-'App.2-B_FA Contin MIFRS 2013'!K33 -> 0 | H33: =IF(ISERROR(+F33-G33), 0, +F33-G33) -> 0
A34: 1905 | B34: Land | C34: ='App.2-B_FA Contin MIFRS 2013'!F34 -> 0 | D34: ='App.2-CG_MIFRS_DepExp_2012'!F34 -> 0 | E34: 0 | F34: =IF(D34=0,'App.2-CG_MIFRS_DepExp_2012'!O34,+'App.2-CG_MIFRS_DepExp_2012'!O34+((C34*0.5)/D34)) -> 0 | G34: =-'App.2-B_FA Contin MIFRS 2013'!K34 -> 0 | H34: 0
A35: 1908 | B35: Buildings & Fixtures | C35: ='App.2-B_FA Contin MIFRS 2013'!F35+2000000 -> 7127500 | D35: ='App.2-CG_MIFRS_DepExp_2012'!F35 -> 50 | E35: 0.02 | F35: =IF(D35=0,'App.2-CG_MIFRS_DepExp_2012'!O35,+'App.2-CG_MIFRS_DepExp_2012'!O35+((C35*0.5)/D35)) -> 100390.6068 | G35: =-'App.2-B_FA Contin MIFRS 2013'!K35 -> 100391 | H35: -0.3932411674
A36: 1910 | B36: Leasehold Improvements | C36: ='App.2-B_FA Contin MIFRS 2013'!F36 -> 0 | D36: ='App.2-CG_MIFRS_DepExp_2012'!F36 -> 0 | E36: 0 | F36: =IF(D36=0,'App.2-CG_MIFRS_DepExp_2012'!O36,+'App.2-CG_MIFRS_DepExp_2012'!O36+((C36*0.5)/D36)) -> 0 | G36: =-'App.2-B_FA Contin MIFRS 2013'!K36 -> 0 | H36: 0
A37: 1915 | B37: Office Furniture & Equipment (10 years) | C37: ='App.2-B_FA Contin MIFRS 2013'!F37 -> 35000 | D37: ='App.2-CG_MIFRS_DepExp_2012'!F37 -> 10 | E37: 0.1 | F37: =IF(D37=0,'App.2-CG_MIFRS_DepExp_2012'!O37,+'App.2-CG_MIFRS_DepExp_2012'!O37+((C37*0.5)/D37)) -> 15561.13045 | G37: =-'App.2-B_FA Contin MIFRS 2013'!K37 -> 15561 | H37: 0.1304541077
A38: 1915 | B38: Office Furniture & Equipment (5 years) | C38: ='App.2-B_FA Contin MIFRS 2013'!F38 -> 0 | D38: ='App.2-CG_MIFRS_DepExp_2012'!F38 -> 0 | E38: 0 | F38: =IF(D38=0,'App.2-CG_MIFRS_DepExp_2012'!O38,+'App.2-CG_MIFRS_DepExp_2012'!O38+((C38*0.5)/D38)) -> 0 | G38: =-'App.2-B_FA Contin MIFRS 2013'!K38 -> 0 | H38: 0
A39: 1920 | B39: Computer Equipment - Hardware | C39: ='App.2-B_FA Contin MIFRS 2013'!F39 -> 128000 | D39: ='App.2-CG_MIFRS_DepExp_2012'!F39 -> 5 | E39: 0.2 | F39: =IF(D39=0,'App.2-CG_MIFRS_DepExp_2012'!O39,+'App.2-CG_MIFRS_DepExp_2012'!O39+((C39*0.5)/D39)) -> 75181.56105 | G39: =-'App.2-B_FA Contin MIFRS 2013'!K39 -> 75182 | H39: -0.4389534248
A40: 1920 | B40: Computer Equip.-Hardware(Post Mar. 22/04) | C40: ='App.2-B_FA Contin MIFRS 2013'!F40 -> 0 | D40: ='App.2-CG_MIFRS_DepExp_2012'!F40 -> 0 | E40: 0 | F40: =IF(D40=0,'App.2-CG_MIFRS_DepExp_2012'!O40,+'App.2-CG_MIFRS_DepExp_2012'!O40+((C40*0.5)/D40)) -> 0 | G40: =-'App.2-B_FA Contin MIFRS 2013'!K40 -> 0 | H40: 0
A41: 1920 | B41: Computer Equip.-Hardware(Post Mar. 19/07) | C41: ='App.2-B_FA Contin MIFRS 2013'!F41 -> 0 | D41: ='App.2-CG_MIFRS_DepExp_2012'!F41 -> 0 | E41: 0 | F41: =IF(D41=0,'App.2-CG_MIFRS_DepExp_2012'!O41,+'App.2-CG_MIFRS_DepExp_2012'!O41+((C41*0.5)/D41)) -> 0 | G41: =-'App.2-B_FA Contin MIFRS 2013'!K41 -> 0 | H41: 0
A42: 1930 | B42: Transportation Equipment | C42: ='App.2-B_FA Contin MIFRS 2013'!F42 -> 110000 | D42: ='App.2-CG_MIFRS_DepExp_2012'!F42 -> 5 | E42: 0.2 | F42: =IF(D42=0,'App.2-CG_MIFRS_DepExp_2012'!O42,+'App.2-CG_MIFRS_DepExp_2012'!O42+((C42*0.5)/D42)) -> 170800.4682 | G42: =-'App.2-B_FA Contin MIFRS 2013'!K42 -> 170800 | H42: 0.4681702421
A43: 1935 | B43: Stores Equipment | C43: ='App.2-B_FA Contin MIFRS 2013'!F43 -> 4200 | D43: ='App.2-CG_MIFRS_DepExp_2012'!F43 -> 10 | E43: 0.1 | F43: =IF(D43=0,'App.2-CG_MIFRS_DepExp_2012'!O43,+'App.2-CG_MIFRS_DepExp_2012'!O43+((C43*0.5)/D43)) -> 2363.628773 | G43: =-'App.2-B_FA Contin MIFRS 2013'!K43 -> 2364 | H43: -0.371226718
A44: 1940 | B44: Tools, Shop & Garage Equipment | C44: ='App.2-B_FA Contin MIFRS 2013'!F44 -> 20000 | D44: ='App.2-CG_MIFRS_DepExp_2012'!F44 -> 10 | E44: 0.1 | F44: =IF(D44=0,'App.2-CG_MIFRS_DepExp_2012'!O44,+'App.2-CG_MIFRS_DepExp_2012'!O44+((C44*0.5)/D44)) -> 34462.36363 | G44: =-'App.2-B_FA Contin MIFRS 2013'!K44 -> 34462 | H44: 0.3636251567
A45: 1945 | B45: Measurement & Testing Equipment | C45: ='App.2-B_FA Contin MIFRS 2013'!F45 -> 19000 | D45: ='App.2-CG_MIFRS_DepExp_2012'!F45 -> 10 | E45: 0.1 | F45: =IF(D45=0,'App.2-CG_MIFRS_DepExp_2012'!O45,+'App.2-CG_MIFRS_DepExp_2012'!O45+((C45*0.5)/D45)) -> 4005.757932 | G45: =-'App.2-B_FA Contin MIFRS 2013'!K45 -> 4006 | H45: -0.2420681551
A46: 1950 | B46: Power Operated Equipment | C46: ='App.2-B_FA Contin MIFRS 2013'!F46 -> 0 | D46: ='App.2-CG_MIFRS_DepExp_2012'!F46 -> 0 | E46: 0 | F46: =IF(D46=0,'App.2-CG_MIFRS_DepExp_2012'!O46,+'App.2-CG_MIFRS_DepExp_2012'!O46+((C46*0.5)/D46)) -> 0 | G46: =-'App.2-B_FA Contin MIFRS 2013'!K46 -> 0 | H46: 0
A47: 1955 | B47: Communications Equipment | C47: ='App.2-B_FA Contin MIFRS 2013'!F47 -> 0 | D47: ='App.2-CG_MIFRS_DepExp_2012'!F47 -> 0 | E47: 0 | F47: =IF(D47=0,'App.2-CG_MIFRS_DepExp_2012'!O47,+'App.2-CG_MIFRS_DepExp_2012'!O47+((C47*0.5)/D47)) -> 0 | G47: =-'App.2-B_FA Contin MIFRS 2013'!K47 -> 0 | H47: 0
A48: 1955 | B48: Communication Equipment (Smart Meters) | C48: ='App.2-B_FA Contin MIFRS 2013'!F48 -> 0 | D48: ='App.2-CG_MIFRS_DepExp_2012'!F48 -> 0 | E48: 0 | F48: =IF(D48=0,'App.2-CG_MIFRS_DepExp_2012'!O48,+'App.2-CG_MIFRS_DepExp_2012'!O48+((C48*0.5)/D48)) -> 0 | G48: =-'App.2-B_FA Contin MIFRS 2013'!K48 -> 0 | H48: 0
A49: 1960 | B49: Miscellaneous Equipment | C49: ='App.2-B_FA Contin MIFRS 2013'!F49 -> 0 | D49: ='App.2-CG_MIFRS_DepExp_2012'!F49 -> 0 | E49: 0 | F49: =IF(D49=0,'App.2-CG_MIFRS_DepExp_2012'!O49,+'App.2-CG_MIFRS_DepExp_2012'!O49+((C49*0.5)/D49)) -> 0 | G49: =-'App.2-B_FA Contin MIFRS 2013'!K49 -> 0 | H49: 0
A50: 1975 | B50: Load Management Controls Utility Premises | C50: ='App.2-B_FA Contin MIFRS 2013'!F50 -> 0 | D50: ='App.2-CG_MIFRS_DepExp_2012'!F50 -> 0 | E50: 0 | F50: =IF(D50=0,'App.2-CG_MIFRS_DepExp_2012'!O50,+'App.2-CG_MIFRS_DepExp_2012'!O50+((C50*0.5)/D50)) -> 0 | G50: =-'App.2-B_FA Contin MIFRS 2013'!K50 -> 0 | H50: 0
A51: 1980 | B51: System Supervisor Equipment | C51: ='App.2-B_FA Contin MIFRS 2013'!F51 -> 266697 | D51: ='App.2-CG_MIFRS_DepExp_2012'!F51 -> 15 | E51: 0.06666666667 | F51: =IF(D51=0,'App.2-CG_MIFRS_DepExp_2012'!O51,+'App.2-CG_MIFRS_DepExp_2012'!O51+((C51*0.5)/D51)) -> 118418.1137 | G51: =-'App.2-B_FA Contin MIFRS 2013'!K51 -> 118418 | H51: 0.1136621713
A52: 1985 | B52: Miscellaneous Fixed Assets | C52: ='App.2-B_FA Contin MIFRS 2013'!F52 -> 0 | D52: ='App.2-CG_MIFRS_DepExp_2012'!F52 -> 0 | E52: 0 | F52: =IF(D52=0,'App.2-CG_MIFRS_DepExp_2012'!O52,+'App.2-CG_MIFRS_DepExp_2012'!O52+((C52*0.5)/D52)) -> 0 | G52: =-'App.2-B_FA Contin MIFRS 2013'!K52 -> 0 | H52: 0
A53: 1995 | B53: Contributions & Grants | C53: ='App.2-B_FA Contin MIFRS 2013'!F53 -> -382523 | D53: ='App.2-CG_MIFRS_DepExp_2012'!F53 -> 35 | E53: 0.02857142857 | F53: =IF(D53=0,'App.2-CG_MIFRS_DepExp_2012'!O53,+'App.2-CG_MIFRS_DepExp_2012'!O53+((C53*0.5)/D53)) -> -246331.5006 | G53: =-'App.2-B_FA Contin MIFRS 2013'!K53 -> -246332 | H53: 0.4994388191
A54: etc. | E54: 0 | F54: =IF(D54=0,'App.2-CG_MIFRS_DepExp_2012'!O54,+'App.2-CG_MIFRS_DepExp_2012'!O54+((C54*0.5)/D54)) -> 0 | H54: 0
E55: 0 | F55: =IF(D55=0,'App.2-CG_MIFRS_DepExp_2012'!O55,+'App.2-CG_MIFRS_DepExp_2012'!O55+((C55*0.5)/D55)) -> 0 | H55: 0
B56: Total | C56: =SUM(C16:C55) -> 11020852 | F56: =SUM(F16:F55) -> 1782753.981 | G56: =SUM(G16:G55) -> 1782754 | H56: =SUM(H16:H55) -> -0.01874488721
B57: Depreciation expense adjustment resulting from amortization of Account 1575 | F57: ='App.2-EB_PP&E Deferral Account'!E40 -> -639864
B58: Total Depreciation expense to be included in the test year revenue requirement | F58: =+F57+F56 -> 1142889.981
A60: Notes:
A61: 1 | B61: Board policy of the "half-year" rule - the applicant must ensure that additions in the year attract a half-year depreciation expense in the first year. Deviations from this standard practice must be supported in the application.
A62: 2 | B62: The applicant must provide an explanation of material variances in evidence
A65: General: | B65: Applicants must provide a breakdown of depreciation and amortization expense in the above format for all relevant accounts. Asset Retirement Obligations (AROs), depreciation and accretion expense should be disclosed separately consistent with the Notes of historical Audited Financial Statements.

Sheet App.2-D_Overhead
L1: File Number: | M1: ='LDC Info'!$E$18 -> EB-2012-0139
L2: Exhibit: | M2: 2
L3: Tab: | M3: 5
L4: Schedule: | M4: 2
L5: Page:
L7: Date: | M7: 2012-08-31
A9: Appendix 2-D
A10: Overhead Expense
A12: The following table should be completed based on the information requested below. An explanation should be provided for any blank entries. The entries should include overhead costs that are currently capitalized on self-constructed assets under MIFRS or an alternate accounting standard.
E13: (A) 1 | F13: (B) | G13: (C) | H13: (D) | I13: (E) 1 | J13: (F) | K13: (G)
A14: Nature of the Overhead Costs | E14: Dollar | F14: Dollar | G14: Dollar | H14: Dollar Impact - | I14: Dollar Impact - | J14: Directly | K14: Reasons why the overhead costs are allowed to be
E15: Impact on PP&E | F15: Impact on PP&E | G15: Impact on PP&E | H15: PP&E Variance | I15: PP&E Variance | J15: Attributable? | K15: capitalized under MIFRS or an alternate accounting
E16: Historic Year | F16: Bridge Year | G16: Test Year | H16: Test versus Bridge | I16: Test versus Historic | J16: (Y/N) | K16: standard given limitations on capitalized overhead
A17: employee benefits | H17: =+G17-F17 -> 0 | I17: =+G17-E17 -> 0 | J17: Y | K17: Employee wages directly attributed to a capital job are recorded to the applicable capital account. The associated employee benefits are recorded with the wages.
A18: costs of site preparation | H18: 0 | I18: 0 | J18: N | K18: These costs are not currently capitalized by IHDSL.
A19: initial delivery and handling costs | H19: 0 | I19: 0 | J19: N | K19: These costs are not currently capitalized by IHDSL.
A20: costs of testing whether the asset is functioning properly | H20: 0 | I20: 0 | J20: N | K20: These costs are not currently capitalized by IHDSL.
A21: professional fees | H21: 0 | I21: 0 | J21: N | K21: These costs are not currently capitalized by IHDSL.
H22: 0 | I22: 0
A23: costs of opening a new facility | H23: 0 | I23: 0 | J23: N | K23: These costs are not currently capitalized by IHDSL.
A24: costs of introducing a new product or service (including costs of advertising and promotional activities) | H24: 0 | I24: 0 | J24: N | K24: These costs are not currently capitalized by IHDSL.
A25: costs of conducting business in a new location or with a new class of customer (including costs of staff training) | H25: 0 | I25: 0 | J25: N | K25: These costs are not currently capitalized by IHDSL.
A26: administration and other general overhead costs | H26: 0 | I26: 0 | J26: N | K26: These costs are not currently capitalized by IHDSL.
H27: 0 | I27: 0
H28: 0 | I28: 0
H29: 0 | I29: 0
A30: Insert description of additional item(s) and new rows if needed. | H30: 0 | I30: 0
A31: Total | E31: =SUM(E17:E30) -> 0 | F31: =SUM(F17:F30) -> 0 | G31: =SUM(G17:G30) -> 0 | H31: =SUM(H17:H30) -> 0 | I31: =SUM(I17:I30) -> 0
A34: The following table should be completed based on the information requested below. An explanation should be provided for any blank entries. The entries should include overhead costs that were capitalized on self-constructed assets under CGAAP but are no longer capitalized under MIFRS or an alternate accounting standard and are included in OM&A.
E35: (A) 1 | F35: (B) | G35: (C) | H35: (D) | I35: (E) 1 | J35: (F) | K35: (G)
A36: Nature of the Overhead Costs | E36: Dollar | F36: Dollar | G36: Dollar | H36: Dollar Impact - | I36: Dollar Impact - | J36: Directly | K36: Reasons why the overhead costs are not allowed to be
E37: Impact on OM&A | F37: Impact on OM&A | G37: Impact on OM&A | H37: OM&A Variance | I37: OM&A Variance | J37: Attributable? | K37: capitalized under MIFRS or an alternate accounting
E38: Historic Year | F38: Bridge Year | G38: Test Year | H38: Test versus Bridge | I38: Test versus Historic | J38: (Y/N) | K38: standard given limitations on capitalized overhead
A39: employee benefits | H39: =+G39-F39 -> 0 | I39: =+G39-E39 -> 0 | J39: Y | K39: Employee wages directly attributed to a capital job are recorded to the applicable capital account. The associated employee benefits are recorded with the wages.
A40: costs of site preparation | H40: =+G40-F40 -> 0 | I40: =+G40-E40 -> 0 | J40: N | K40: These costs are not currently capitalized by IHDSL.
A41: initial delivery and handling costs | H41: =+G41-F41 -> 0 | I41: =+G41-E41 -> 0 | J41: N | K41: These costs are not currently capitalized by IHDSL.
A42: costs of testing whether the asset is functioning properly | H42: =+G42-F42 -> 0 | I42: =+G42-E42 -> 0 | J42: N | K42: These costs are not currently capitalized by IHDSL.
A43: professional fees | H43: =+G43-F43 -> 0 | I43: =+G43-E43 -> 0 | J43: N | K43: These costs are not currently capitalized by IHDSL.
A45: costs of opening a new facility | H45: =+G45-F45 -> 0 | I45: =+G45-E45 -> 0 | J45: N | K45: These costs are not currently capitalized by IHDSL.
A46: costs of introducing a new product or service (including costs of advertising and promotional activities) | H46: 0 | I46: 0 | J46: N | K46: These costs are not currently capitalized by IHDSL.
A47: costs of conducting business in a new location or with a new class of customer (including costs of staff training) | H47: 0 | I47: 0 | J47: N | K47: These costs are not currently capitalized by IHDSL.
A48: administration and other general overhead costs | H48: 0 | I48: 0 | J48: N | K48: These costs are not currently capitalized by IHDSL.
H49: 0 | I49: 0
H50: 0 | I50: 0
H51: 0 | I51: 0
A52: Insert description of additional item(s) and new rows if needed. | H52: 0 | I52: 0
A53: Total | E53: =SUM(E39:E52) -> 0 | F53: =SUM(F39:F52) -> 0 | G53: =SUM(G39:G52) -> 0 | H53: =SUM(H39:H52) -> 0 | I53: =SUM(I39:I52) -> 0
A55: Notes:
A56: 1 | B56: If the applicant chooses to adopt IFRS or an alternate accounting standard for financial reporting purposes in 2013, the applicant does not need to complete Columns A, E. If the applicant adopts IFRS or an alternate accounting standard for financial reporting purposes in 2012, the applicant must complete all columns.

Sheet App.2-EB_PP&E Deferral Account
H1: File Number: | I1: ='LDC Info'!$E$18 -> EB-2012-0139
H2: Exhibit: | I2: 2
H3: Tab: | I3: 5
H4: Schedule: | I4: 4
H5: Page:
H7: Date: | I7: 2012-08-31
A9: Appendix 2-EB
A10: IFRS-CGAAP Transitional PP&E Amounts
A11: 2013 Adopters of IFRS for Financial Reporting Purposes
A13: For applicants that adopt IFRS on January 1, 2013 for financial reporting purposes
A15: Note: this sheet should be filled out if the applicant adopts IFRS for its financial reporting purpose as of January 1, 2013.
B17: 2009 Rebasing Year | C17: 2010 | D17: 2011 | E17: 2012 | F17: 2013 Rebasing Year | G17: 2014 | H17: 2015 | I17: 2016
A18: Reporting Basis | B18: CGAAP | C18: IRM | D18: IRM | E18: IRM | F18: MIFRS | G18: IRM | H18: IRM | I18: IRM
A19: Forecast vs. Actual Used in Rebasing Year | B19: Forecast | C19: Actual | D19: Actual | E19: Forecast | F19: Forecast
D20: $ | E20: $ | F20: $ | G20: $ | H20: $ | I20: $
A21: PP&E Values under CGAAP
A22: Opening net PP&E - Note 1 | E22: ='App.2-B_FA Contin CGAAP 2012'!E56+'App.2-B_FA Contin CGAAP 2012'!J56 -> 26060063
A23: Additions | E23: ='App.2-B_FA Contin CGAAP 2012'!F56+'App.2-B_FA Contin CGAAP 2012'!G56+'App.2-B_FA Contin CGAAP 2012'!L56 -> 6032445
A24: Depreciation (amounts should be negative) | E24: ='App.2-B_FA Contin CGAAP 2012'!K56 -> -2179090
A25: Closing net PP&E (1) | E25: =SUM(E22:E24) -> 29913418
A27: PP&E Values under MIFRS (Starts from 2012, the transition year)
A28: Opening net PP&E - Note 1 | E28: ='App.2-B_FA Contin MIFRS 2012'!E56+'App.2-B_FA Contin MIFRS 2012'!J56 -> 26060063
A29: Additions | E29: ='App.2-B_FA Contin MIFRS 2012'!F56+'App.2-B_FA Contin MIFRS 2012'!G56+'App.2-B_FA Contin MIFRS 2012'!L56 -> 6032445
A30: Depreciation (amounts should be negative) | E30: ='App.2-B_FA Contin MIFRS 2012'!K56 -> -1539226
A31: Closing net PP&E (2) | E31: =SUM(E28:E30) -> 30553282
A33: Difference in Closing net PP&E, CGAAP vs. MIFRS (Shown as adjustment to rate base on rebasing) | E33: =+E25-E31 -> -639864 | J33: This is the impact to the net assets for the change in useful lives due the to Kinetric study. Innisfil's net assets are increasing due to longer useful lives.
A35: Account 1575 - IFRS-CGAAP Transitional PP&E Amounts
A36: Opening balance | E36: =D40 -> 0 | F36: =E40 -> -639864 | G36: =F40 -> -479898 | H36: =G40 -> -319932 | I36: =H40 -> -159966
A37: Amounts added in the year | E37: =E33-D33 -> -639864
A38: Sub-total | E38: =E36+E37 -> -639864 | F38: =F36+F37 -> -639864 | G38: =G36+G37 -> -479898 | H38: =H36+H37 -> -319932 | I38: =I36+I37 -> -159966
A39: Amount of amortization, included in depreciation expense - Note 2 | F39: =IF(ISERROR(E33/I44), 0,-E33/I44) -> 159966 | G39: =+F39 -> 159966 | H39: =+F39 -> 159966 | I39: =+F39 -> 159966
A40: Closing balance in deferral account | E40: =E38+E39 -> -639864 | F40: =IF(ISERROR(F38+F39), 0, F38+F39) -> -479898 | G40: =G38+G39 -> -319932 | H40: =H38+H39 -> -159966 | I40: =I38+I39 -> 0
A42: Effect on Revenue Requirement
A43: Amortization of deferred balance as above - Note 2 | F43: =IF(ISERROR(E37/I44), 0, E37/I44) -> -159966 | H43: WACC | I43: 0.0659
A44: Return on Rate Base Associated with deferred PP&E balance at WACC - Note 3 | F44: =E33*I43 -> -42167.0376 | H44: Disposition Period - Note 4 | I44: 4 | J44: Years
A45: Amount included in Revenue Requirement on rebasing | F45: =SUM(F43:F44) -> -202133.0376
A47: Notes:
A48: 1 For an applicant that adopts IFRS on January 1, 2013, the PP&E values as of January 1, 2012 under both CGAAP and MIFRS should be the same.
A49: 2 Amortization of the deferred balance in Account 1575 will start from the rebasing year.
A50: Assume the utility requests for a certain disposition period, the amortization that should be included in the depreciation expense is calculated as:
A51: the opening balance of Account 1575 / the approved disposition period
A52: 3 Return on rate base associated with deferred balance is calculated as:
A53: the deferred account opening balance as of 2013 rebasing year x WACC
A54: * Please note that the calculation should be adjusted once WACC is updated and finalized in the rate application.
A55: 4 Consistent with the 4 year normal rate cycle, the model is using a 4 year amortization period as a default selection to "clear" the PP&E deferral account through a one-time adjustment to ratebase to capture and remove the impact of the accounting policy changes as caused by the transition from CGAAP to MIFRS.

Sheet App.2-F_Other_Oper_Rev
H1: File Number: | I1: ='LDC Info'!$E$18 -> EB-2012-0139
H2: Exhibit: | I2: 3
H3: Tab:
H4: Schedule:
H5: Page:
H7: Date: | I7: 2012-08-31
A9: Appendix 2-F
A10: Other Operating Revenue
A12: USoA # | B12: USoA Description | C12: =G13-3 & " Actual" -> 2009 Actual | D12: =G13-2 & " Actual" -> 2010 Actual | E12: =G13-1 & " Actual"& CHAR(178) -> 2011 Actual² | F12: =G13-1 & " Actual"& CHAR(178) -> 2011 Actual² | G12: ="Bridge Year" & CHAR(179) -> Bridge Year³ | H12: ="Bridge Year" & CHAR(179) -> Bridge Year³ | I12: Test Year
G13: ='LDC Info'!E26 -> 2012 | H13: ='LDC Info'!E26 -> 2012 | I13: ='LDC Info'!E28 -> 2013
B14: Reporting Basis | C14: CGAAP | D14: CGAAP | E14: CGAAP | F14: CGAAP | G14: CGAAP | H14: MIFRS | I14: MIFRS
A15: 4235 | B15: Specific Service Charges | C15: =44584+97610 -> 142194 | D15: =29002+98671 -> 127673 | E15: =42133+123934 -> 166067 | F15: =42133+123934 -> 166067 | G15: =39730+109940 -> 149670 | H15: =39730+109940 -> 149670 | I15: =40900+113200 -> 154100
A16: 4225 | B16: Late Payment Charges | C16: 105597 | D16: 111120 | E16: 104841 | F16: 104841 | G16: 110402 | H16: 110402 | I16: 113700
A17: 4082 | B17: Retail Services Revenues | C17: 35349 | D17: 42813 | E17: 78272 | F17: 78272 | G17: 54203 | H17: 54203 | I17: 55033
A18: 4210 | B18: Pole Rental | C18: 154992 | D18: 161381 | E18: 157442 | F18: 157442 | G18: 162676 | H18: 162676 | I18: 167600
A19: 4305 | B19: Regulatory Debit | C19: 0 | D19: 0 | E19: 0 | F19: 0 | G19: ='App.2-EB_PP&E Deferral Account'!E33 -> -639864 | H19: =G19 -> -639864 | I19: 0
A20: 4325 | B20: Special Purpose Chg Reco | D20: 49901
A21: 4355 | B21: Gain(Loss) on Disposal | C21: 33840 | D21: 0 | E21: -126618 | F21: -126618 | G21: -51476 | H21: -51476 | I21: -48825
A22: 4375 | B22: Misc Non-Utility Income | C22: =29091+348870 -> 377961 | D22: =18842+269154 -> 287996 | E22: =7575+272008 -> 279583 | F22: =7575+272008 -> 279583 | G22: =103406+6700+274700 -> 384806 | H22: =103406+6700+274700 -> 384806 | I22: =219168+6800+274700 -> 500668
A23: 4380 | B23: Misc Non-Utility Expense | C23: =-15630-315736 -> -331366 | D23: =-2888-386542 -> -389430 | E23: =-3965-264735 -> -268700 | F23: =-3965-264735 -> -268700 | G23: =-127762-3400-274700 -> -405862 | H23: =-127762-3400-274700 -> -405862 | I23: =-191128-3400-274700 -> -469228
A24: 4390 | B24: Misc Non-Utility Income | C24: 9629 | D24: 52823 | E24: 24952 | F24: 24952 | G24: 30009 | H24: 30009 | I24: 30900
A25: 4405 | B25: Interest Income | C25: =7765+15852 -> 23617 | D25: =31796+5043 -> 36839 | E25: =37901+15427 -> 53328 | F25: =37901+15427 -> 53328 | G25: 14600 | H25: 14600 | I25: 3000
A26: 4406 | B26: SRED Revenue | C26: 0 | D26: 0 | E26: 153377 | F26: 153377 | G26: 50000 | H26: 50000 | I26: 50000
A28: Specific Service Charges | C28: =C15 -> 142194 | D28: 127673 | E28: 166067 | F28: =F15 -> 166067 | G28: =G15 -> 149670 | H28: =H15 -> 149670 | I28: =I15 -> 154100
A29: Late Payment Charges | C29: 105597 | D29: 111120 | E29: 104841 | F29: =F16 -> 104841 | G29: =G16 -> 110402 | H29: =H16 -> 110402 | I29: =I16 -> 113700
A30: Other Operating Revenues | C30: =SUM(C17:C18) -> 190341 | D30: =SUM(D17:D18) -> 204194 | E30: 235714 | F30: 235714 | G30: 216879 | H30: 216879 | I30: 222633
A31: Other Income or Deductions | C31: =SUM(C19:C26) -> 113681 | D31: =SUM(D19:D26) -> 38129 | E31: 115922 | F31: 115922 | G31: -617787 | H31: -617787 | I31: 66515
A32: Total | C32: =SUM(C28:C31) -> 551813 | D32: 481116 | E32: 622544 | F32: 622544 | G32: -140836 | H32: -140836 | I32: 556948
A34: Description | C34: Account(s)
A35: Specific Service Charges: | C35: 4235
A36: Late Payment Charges: | C36: 4225
A37: Other Distribution Revenues: | C37: 4080, 4082, 4084, 4090, 4205, 4210, 4215, 4220, 4240, 4245
A38: Other Income and Expenses: | C38: 4305, 4310, 4315, 4320, 4325, 4330, 4335, 4340, 4345, 4350, 4355, 4360, 4365, 4370, 4375, 4380, 4385, 4390, 4395, 4398, 4405, 4415
A41: Note: Add all applicable accounts listed above to the table and include all relevant information.
A42: The above table assumes adoption of MIFRS as of January 1, 2013. If the adoption year differs, please adjust the table accordingly.
A45: Account Breakdown Details
A47: Account 4082 Retail Services Revenue
C48: =C$12 -> 2009 Actual | D48: 2010 Actual | E48: 2011 Actual² | F48: 2011 Actual² | G48: Bridge Year³ | H48: Bridge Year³ | I48: Test Year
A49: Reporting Basis | G49: =G$14 -> CGAAP | H49: =H$14 -> MIFRS | I49: =I$14 -> MIFRS
A50: Retail Services Revenue | C50: =C17 -> 35349 | D50: 42813 | E50: 78272 | F50: 78272 | G50: 54203 | H50: 54203 | I50: 55033
A51: Total | C51: =SUM(C50:C50) -> 35349 | D51: 42813 | E51: 78272 | F51: 78272 | G51: 54203 | H51: 54203 | I51: 55033
A53: Account 4210 Pole Rental
C54: =C$12 -> 2009 Actual | D54: 2010 Actual | E54: 2011 Actual² | F54: 2011 Actual² | G54: Bridge Year³ | H54: Bridge Year³ | I54: Test Year
A55: Reporting Basis | G55: =G$14 -> CGAAP | H55: =H$14 -> MIFRS | I55: =I$14 -> MIFRS
A56: Pole Attachment revenue | C56: =C18 -> 154992 | D56: =D18 -> 161381 | E56: 157442 | F56: 157442 | G56: 162676 | H56: 162676 | I56: 167600
A57: Total | C57: =SUM(C56:C56) -> 154992 | D57: 161381 | E57: 157442 | F57: 157442 | G57: 162676 | H57: 162676 | I57: 167600
A59: Account 4305 Regulatory Debit
C60: =C$12 -> 2009 Actual | D60: 2010 Actual | E60: 2011 Actual² | F60: 2011 Actual² | G60: Bridge Year³ | H60: Bridge Year³ | I60: Test Year
A61: Reporting Basis | G61: =G$14 -> CGAAP | H61: =H$14 -> MIFRS | I61: =I$14 -> MIFRS
A62: Depreciation variance due to chg in useful life | C62: =C19 -> 0 | D62: =D19 -> 0 | E62: 0 | F62: 0 | G62: -639864 | H62: -639864 | I62: 0
A63: Total | C63: =SUM(C62:C62) -> 0 | D63: 0 | E63: 0 | F63: 0 | G63: -639864 | H63: -639864 | I63: 0
A65: Account 4325
C66: =C$12 -> 2009 Actual | D66: 2010 Actual | E66: 2011 Actual² | F66: 2011 Actual² | G66: Bridge Year³ | H66: Bridge Year³ | I66: Test Year
A67: Reporting Basis | G67: =G$14 -> CGAAP | H67: =H$14 -> MIFRS | I67: =I$14 -> MIFRS
A68: Special Purpose charge recovery | C68: =C20 -> 0 | D68: =D20 -> 49901 | E68: 0 | F68: 0 | G68: 0 | H68: 0 | I68: 0
A69: Total | C69: =SUM(C68:C68) -> 0 | D69: 49901 | E69: 0 | F69: 0 | G69: 0 | H69: 0 | I69: 0
A71: Account 4355 Gain/(Loss) on disposals
C72: =C$12 -> 2009 Actual | D72: 2010 Actual | E72: 2011 Actual² | F72: 2011 Actual² | G72: Bridge Year³ | H72: Bridge Year³ | I72: Test Year
A73: Reporting Basis | G73: =G$14 -> CGAAP | H73: =H$14 -> MIFRS | I73: =I$14 -> MIFRS
A74: Gain/(Loss) on disposals of capital assets | C74: =C21 -> 33840 | D74: 0 | E74: -126618 | F74: -126618 | G74: -51476 | H74: -51476 | I74: -48825
A75: Total | C75: =SUM(C74:C74) -> 33840 | D75: 0 | E75: -126618 | F75: -126618 | G75: -51476 | H75: -51476 | I75: -48825
A77: Account 4375 Misc Non-Utility Income
C78: =C$12 -> 2009 Actual | D78: 2010 Actual | E78: 2011 Actual² | F78: 2011 Actual² | G78: Bridge Year³ | H78: Bridge Year³ | I78: Test Year
A79: Reporting Basis | G79: =G$14 -> CGAAP | H79: =H$14 -> MIFRS | I79: =I$14 -> MIFRS
A80: Water billing revenue | C80: 0 | D80: 0 | E80: 0 | F80: 0 | G80: 103406 | H80: 103406 | I80: 219168
A81: Interco management fee | C81: 29091 | D81: 18842 | E81: 7575 | F81: 7575 | G81: 6700 | H81: 6700 | I81: 6800
A82: OPA revenue | C82: 348870 | D82: 269154 | E82: 272008 | F82: 272008 | G82: 274700 | H82: 274700 | I82: 274700
A83: Total | C83: =SUM(C80:C82) -> 377961 | D83: =SUM(D80:D82) -> 287996 | E83: 279583 | F83: 279583 | G83: 384806 | H83: 384806 | I83: 500668
A85: Account 4380 Misc Non-Utility Expense
C86: =C$12 -> 2009 Actual | D86: 2010 Actual | E86: 2011 Actual² | F86: 2011 Actual² | G86: Bridge Year³ | H86: Bridge Year³ | I86: Test Year
A87: Reporting Basis | G87: =G$14 -> CGAAP | H87: =H$14 -> MIFRS | I87: =I$14 -> MIFRS
A88: Water billing expenses | C88: 0 | D88: 0 | E88: 0 | F88: 0 | G88: -127762 | H88: -127762 | I88: -191128
A89: Interco expense | C89: -15630 | D89: -2888 | E89: -3965 | F89: -3965 | G89: -3400 | H89: -3400 | I89: -3400
A90: OPA expenses | C90: -315736 | D90: -386542 | E90: -264735 | F90: -264735 | G90: -274700 | H90: -274700 | I90: -274700
A91: Total | C91: =SUM(C88:C90) -> -331366 | D91: -389430 | E91: -268700 | F91: -268700 | G91: -405862 | H91: -405862 | I91: -469228
A93: Account 4390 Misc Non-Utility Income
C94: =C$12 -> 2009 Actual | D94: 2010 Actual | E94: 2011 Actual² | F94: 2011 Actual² | G94: Bridge Year³ | H94: Bridge Year³ | I94: Test Year
A95: Reporting Basis | G95: =G$14 -> CGAAP | H95: =H$14 -> MIFRS | I95: =I$14 -> MIFRS
C96: =C24 -> 9629 | D96: =D24 -> 52823 | E96: 24952 | F96: 24952 | G96: 30009 | H96: 30009 | I96: 30900
A97: Total | C97: =SUM(C96:C96) -> 9629 | D97: 52823 | E97: 24952 | F97: 24952 | G97: 30009 | H97: 30009 | I97: 30900
A99: Account 4405 - Interest and Dividend Income
C100: =C$12 -> 2009 Actual | D100: 2010 Actual | E100: 2011 Actual² | F100: 2011 Actual² | G100: Bridge Year³ | H100: Bridge Year³ | I100: Test Year
A101: Reporting Basis | G101: =G$14 -> CGAAP | H101: =H$14 -> MIFRS | I101: =I$14 -> MIFRS
A102: Regulatory accounts interest | C102: 7765 | D102: 31796 | E102: 37901
A103: Bank interest | C103: 15852 | D103: 5043 | E103: 15427 | H103: 14600 | I103: 3000
A104: Total | C104: =SUM(C102:C103) -> 23617 | D104: 36839 | E104: 53328 | F104: 0 | G104: 0 | H104: 14600 | I104: 3000
A106: Account 4406
C107: =C$12 -> 2009 Actual | D107: 2010 Actual | E107: 2011 Actual² | F107: 2011 Actual² | G107: Bridge Year³ | H107: Bridge Year³ | I107: Test Year
A108: Reporting Basis | G108: =G$14 -> CGAAP | H108: =H$14 -> MIFRS | I108: =I$14 -> MIFRS
A109: SHRED revenue | C109: =C26 -> 0 | D109: 0 | E109: 153377 | F109: 153377 | G109: 50000 | H109: 50000 | I109: 50000
A110: Total | C110: =SUM(C109:C109) -> 0 | D110: 0 | E110: 153377 | F110: 153377 | G110: 50000 | H110: 50000 | I110: 50000
A113: For each "Other Operating Revenue" and "Other Income or Deductions" Account, a detailed breakdown of the account components is required. See the example below for Account 4405, Interest and Dividend Income.
A116: Account 4405 - Interest and Dividend Income
C117: =C12 -> 2009 Actual | D117: =D12 -> 2010 Actual | E117: =E12 -> 2011 Actual² | F117: =F12 -> 2011 Actual² | G117: Bridge Year | H117: Bridge Year | I117: Test Year
A118: Reporting Basis | C118: =IF(ISBLANK(C14), "", C14) -> CGAAP | D118: =IF(ISBLANK(D14), "", D14) -> CGAAP | E118: =IF(ISBLANK(E14), "", E14) -> CGAAP | G118: =IF(ISBLANK(G14), "", G14) -> CGAAP | H118: =IF(ISBLANK(H14), "", H14) -> MIFRS | I118: =IF(ISBLANK(I14), "", I14) -> MIFRS
A119: Short-term Investment Interest
A120: Bank Deposit Interest
A121: Miscellaneous Interest Revenue
A122: etc.1
A124: Total | C124: =SUM(C119:C123) -> 0 | D124: 0 | E124: 0 | F124: 0 | G124: 0 | H124: 0 | I124: 0
A127: Notes:
A128: 1 | B128: List and specify any other interest revenue
A129: 2 | B129: If the applicant is adopting IFRS or an alternate accounting standard as of January 1, 2012 for financial reporting purposes, 2011 must be presented on both a CGAAP and MIFRS (or alternate accounting standard) basis.
A130: 3 | B130: If the applicant is adopting IFRS or an alternate accounting standard as of January 1, 2013 for financial reporting purposes, 2012 must be presented on both a CGAAP and MIFRS (or alternate accounting standard) basis.

Sheet App.2-G_Detailed_OM&A_Expenses
H1: File Number: | I1: ='LDC Info'!$E$18 -> EB-2012-0139
H2: Exhibit: | I2: 4
H3: Tab: | I3: 2
H4: Schedule: | I4: 2
H5: Page:
H7: Date: | I7: 2012-08-31
A9: Appendix 2-G
A10: Detailed, Account by Account, OM&A Expense Table
A11: (excluding Depreciation and Amortization)
A14: Account | B14: Description | C14: ="Last Rebasing Year (" & 'LDC Info'!E30 & " Actuals)" -> Last Rebasing Year (2009 Actuals) | D14: ='LDC Info'!E26-2 & " Actual" -> 2010 Actual | E14: ='LDC Info'!E26-1 & " Actual" & CHAR(178) -> 2011 Actual² | F14: ='LDC Info'!E26-1 & " Actual"& CHAR(178) -> 2011 Actual² | G14: ="Bridge Year " & 'LDC Info'!E26& CHAR(179) -> Bridge Year 2012³ | H14: ="Bridge Year " & 'LDC Info'!E26& CHAR(179) -> Bridge Year 2012³ | I14: ="Test Year " & 'LDC Info'!E28 -> Test Year 2013
A15: Reporting Basis | C15: CGAAP | D15: CGAAP | E15: CGAAP | F15: CGAAP | G15: CGAAP | H15: MIFRS | I15: MIFRS
A16: Operations
A17: 5005 | B17: Operation Supervision and Engineering | C17: 94914 | D17: 128729 | E17: 142878 | F17: 142878 | G17: 188345 | H17: 188345 | I17: 199285
A18: 5010 | B18: Load Dispatching | C18: 8118 | D18: 6141 | E18: 10772 | F18: 10772 | G18: 10700 | H18: 10700 | I18: 11050
A19: 5012 | B19: Station Buildings and Fixtures Expense | C19: 43110 | D19: 48791 | E19: 40852 | F19: 40852 | G19: 45000 | H19: 45000 | I19: 47400
A20: 5014 | B20: Transformer Station Equipment - Operation Labour
A21: 5015 | B21: Transformer Station Equipment - Operation Supplies and Expenses
A22: 5016 | B22: Distribution Station Equipment - Operation Labour | C22: 6999 | D22: 6943 | E22: 6632 | F22: 6632 | G22: 6900 | H22: 6900 | I22: 7100
A23: 5017 | B23: Distribution Station Equipment - Operation Supplies and Expenses | C23: 1026 | D23: 1755 | E23: 2685 | F23: 2685 | G23: 2800 | H23: 2800 | I23: 2900
A24: 5020 | B24: Overhead Distribution Lines and Feeders - Operation Labour | C24: 69027 | D24: 74500 | E24: 96661 | F24: 96661 | G24: 107000 | H24: 107000 | I24: 109100
A25: 5025 | B25: Overhead Distribution Lines and Feeders - Operation Supplies and Expenses | C25: 36414 | D25: 34688 | E25: 21151 | F25: 21151 | G25: 24100 | H25: 24100 | I25: 25050
A26: 5030 | B26: Overhead Sub-transmission Feeders - Operation | C26: 1501 | D26: 2739 | E26: 3457 | F26: 3457 | G26: 3700 | H26: 3700 | I26: 3850
A27: 5035 | B27: Overhead Distribution Transformers - Operation | C27: 36 | D27: 308 | E27: 1260 | F27: 1260 | G27: 900 | H27: 900 | I27: 1000
A28: 5040 | B28: Underground Distribution Lines and Feeders - Operation Labour | C28: 23923 | D28: 24103 | E28: 40890 | F28: 40890 | G28: 35000 | H28: 35000 | I28: 36100
A29: 5045 | B29: Underground Distribution Lines and Feeders - Operation Supplies and Expenses | C29: 2814 | D29: 10394 | E29: 19559 | F29: 19559 | G29: 21400 | H29: 21400 | I29: 23650
A30: 5050 | B30: Underground Sub-transmission Feeders - Operation
A31: 5055 | B31: Underground Distribution Transformers - Operation
A32: 5060 | B32: Street Lighting and Signal System Expense
A33: 5065 | B33: Meter Expense | C33: 55781 | D33: 77690 | E33: 77675 | F33: 77675 | G33: 206500 | H33: 206500 | I33: 339849
A34: 5070 | B34: Customer Premises - Operation Labour | C34: 43380 | D34: 43122 | E34: 42062 | F34: 42062 | G34: 47000 | H34: 47000 | I34: 48400
A35: 5075 | B35: Customer Premises - Operation Materials and Expenses | C35: 3842 | D35: 7544 | E35: 13553 | F35: 13553 | G35: 14250 | H35: 14250 | I35: 14800
A36: 5085 | B36: Miscellaneous Distribution Expenses | C36: 300796 | D36: 394603 | E36: 420151 | F36: 420151 | G36: 438100 | H36: 438100 | I36: 546628
A37: 5090 | B37: Underground Distribution Lines and Feeders - Rental Paid
A38: 5095 | B38: Overhead Distribution Lines and Feeders - Rental Paid | C38: 2578 | D38: 8103 | E38: 7203 | F38: 7203 | G38: 7500 | H38: 7500 | I38: 7700
A39: 5096 | B39: Other Rent
A40: Total - Operations | C40: =SUM(C17:C39) -> 694259 | D40: =SUM(D17:D39) -> 870153 | E40: =SUM(E17:E39) -> 947441 | F40: =SUM(F17:F39) -> 947441 | G40: 1159195 | H40: 1159195 | I40: =SUM(I17:I39) -> 1423862
A41: Account | B41: Description | C41: =C14 -> Last Rebasing Year (2009 Actuals) | D41: 2010 Actual | E41: 2011 Actual² | F41: 2011 Actual² | G41: Bridge Year 2012³ | H41: Bridge Year 2012³ | I41: Test Year 2013
A42: Maintenance
A43: 5105 | B43: Maintenance Supervision and Engineering | C43: 16047 | D43: 17770 | E43: 16605 | F43: 16605 | G43: 18900 | H43: 18900 | I43: 19550
A44: 5110 | B44: Maintenance of Buildings and Fixtures - Distribution Stations
A45: 5112 | B45: Maintenance of Transformer Station Equipment
A46: 5114 | B46: Maintenance of Distribution Station Equipment | C46: 42337 | D46: 53377 | E46: 37758 | F46: 37758 | G46: 54600 | H46: 54600 | I46: 56230
A47: 5120 | B47: Maintenance of Poles, Towers and Fixtures | C47: 32833 | D47: 2423 | E47: 1671 | F47: 1671 | G47: 5550 | H47: 5550 | I47: 19340
A48: 5125 | B48: Maintenance of Overhead Conductors and Devices | C48: 55600 | D48: 60636 | E48: 47742 | F48: 47742 | G48: 72950 | H48: 72950 | I48: 101000
A49: 5130 | B49: Maintenance of Overhead Services | C49: 66730 | D49: 52512 | E49: 67089 | F49: 67089 | G49: 60750 | H49: 60750 | I49: 62650
A50: 5135 | B50: Overhead Distribution Lines and Feeders - Right of Way | C50: 177192 | D50: 127532 | E50: 184235 | F50: 184235 | G50: 215100 | H50: 215100 | I50: 222650
A51: 5145 | B51: Maintenance of Underground Conduit
A52: 5150 | B52: Maintenance of Underground Conductors and Devices | C52: 3716 | D52: 1996 | E52: 2587 | F52: 2587 | G52: 4750 | H52: 4750 | I52: 5050
A53: 5155 | B53: Maintenance of Underground Services | C53: 81414 | D53: 69956 | E53: 80843 | F53: 80843 | G53: 96850 | H53: 96850 | I53: 99850
A54: 5160 | B54: Maintenance of Line Transformers | C54: =23154+12388 -> 35542 | D54: =15633+1516 -> 17149 | E54: =53283+5704 -> 58987 | F54: =53283+5704 -> 58987 | G54: =25400+6250 -> 31650 | H54: =25400+6250 -> 31650 | I54: =26250+56280 -> 82530
A55: 5165 | B55: Maintenance of Street Lighting and Signal Systems
A56: 5170 | B56: Sentinel Lights - Labour
A57: 5172 | B57: Sentinel Lights - Materials and Expenses
A58: 5175 | B58: Maintenance of Meters | C58: 33351 | D58: 32857 | E58: 31356 | F58: 31356 | G58: 40700 | H58: 40700 | I58: 44800
A59: 5178 | B59: Customer Installations Expenses - Leased Property
A60: 5195 | B60: Maintenance of Other Installations on Customer Premises
A61: Total - Maintenance | C61: =SUM(C43:C60) -> 544762 | D61: =SUM(D43:D60) -> 436208 | E61: =SUM(E43:E60) -> 528873 | F61: =SUM(F43:F60) -> 528873 | G61: 601800 | H61: 601800 | I61: =SUM(I43:I60) -> 713650
A62: Account | B62: Description | C62: =C41 -> Last Rebasing Year (2009 Actuals) | D62: 2010 Actual | E62: 2011 Actual² | F62: 2011 Actual² | G62: Bridge Year 2012³ | H62: Bridge Year 2012³ | I62: Test Year 2013
A63: Billing and Collecting
A64: 5305 | B64: Supervision | C64: 50754 | D64: 55307 | E64: 63860 | F64: 63860 | G64: 64900 | H64: 64900 | I64: 66800
A65: 5310 | B65: Meter Reading Expense | C65: 137851 | D65: 125935 | E65: 69829 | F65: 69829 | G65: 33300 | H65: 33300 | I65: 38000
A66: 5315 | B66: Customer Billing | C66: 352201 | D66: 335375 | E66: 376323 | F66: 376323 | G66: 384600 | H66: 384600 | I66: 480600
A67: 5320 | B67: Collecting | C67: 293500 | D67: 268080 | E67: 286478 | F67: 286478 | G67: 327800 | H67: 327800 | I67: 340820
A68: 5325 | B68: Collecting - Cash Over and Short | C68: 30 | D68: 138 | E68: 35 | F68: 35 | G68: 50 | H68: 50 | I68: 100
A69: 5330 | B69: Collection Charges
A70: 5335 | B70: Bad Debt Expense | C70: 87724 | D70: 85020 | E70: 67044 | F70: 67044 | G70: 75000 | H70: 75000 | I70: 100000
A71: 5340 | B71: Miscellaneous Customer Accounts Expenses | C71: 48387 | D71: 52889 | E71: 61727 | F71: 61727 | G71: 69850 | H71: 69850 | I71: 79700
A72: Total - Billing and Collecting | C72: =SUM(C64:C71) -> 970447 | D72: =SUM(D64:D71) -> 922744 | E72: =SUM(E64:E71) -> 925296 | F72: =SUM(F64:F71) -> 925296 | G72: 955500 | H72: 955500 | I72: =SUM(I64:I71) -> 1106020
A73: Account | B73: Description | C73: =C62 -> Last Rebasing Year (2009 Actuals) | D73: =D62 -> 2010 Actual | E73: =E62 -> 2011 Actual² | F73: =F62 -> 2011 Actual² | G73: Bridge Year 2012³ | H73: Bridge Year 2012³ | I73: =I62 -> Test Year 2013
A74: Community Relations
A75: 5405 | B75: Supervision
A76: 5410 | B76: Community Relations - Sundry | C76: 7572 | D76: 5867 | E76: 15137 | F76: 15137 | G76: 14400 | H76: 14400 | I76: 19400
A77: 5415 | B77: Energy Conservation | C77: 0 | D77: 41 | E77: 208 | F77: 208
A78: 5420 | B78: Community Safety Program | C78: 1704 | D78: 1000 | E78: 0 | F78: 0 | G78: 1500 | H78: 1500 | I78: 1500
A79: 5425 | B79: Miscellaneous Customer Service and Informational Expenses | C79: 1550 | D79: 2206 | E79: 2547 | F79: 2547 | G79: 2500 | H79: 2500 | I79: 3000
A80: 5505 | B80: Supervision
A81: 5510 | B81: Demonstrating and Selling Expense
A82: 5515 | B82: Advertising Expenses
A83: 5520 | B83: Miscellaneous Sales Expense
A84: Total - Community Relations | C84: =SUM(C75:C83) -> 10826 | D84: =SUM(D75:D83) -> 9114 | E84: =SUM(E75:E83) -> 17892 | F84: =SUM(F75:F83) -> 17892 | G84: 18400 | H84: 18400 | I84: =SUM(I75:I83) -> 23900
A85: Account | B85: Description | C85: =C73 -> Last Rebasing Year (2009 Actuals) | D85: =D73 -> 2010 Actual | E85: =E73 -> 2011 Actual² | F85: =F73 -> 2011 Actual² | G85: Bridge Year 2012³ | H85: Bridge Year 2012³ | I85: =I73 -> Test Year 2013
A86: Administrative and General Expenses
A87: 5605 | B87: Executive Salaries and Expenses | C87: 209979 | D87: 209923 | E87: 218153 | F87: 218153 | G87: 227875 | H87: 227875 | I87: 233375
A88: 5610 | B88: Management Salaries and Expenses | C88: 189103 | D88: 201551 | E88: 214395 | F88: 214395 | G88: 225025 | H88: 225025 | I88: 232247
A89: 5615 | B89: General Administrative Salaries and Expenses | C89: 486302 | D89: 576121 | E89: 673158 | F89: 673158 | G89: 699800 | H89: 699800 | I89: 849125
A90: 5620 | B90: Office Supplies and Expenses | C90: 67522 | D90: 73767 | E90: 86725 | F90: 86725 | G90: 94000 | H90: 94000 | I90: 107000
A91: 5625 | B91: Administrative Expense Transferred - Credit
A92: 5630 | B92: Outside Services Employed | C92: 64876 | D92: 93488 | E92: 104144 | F92: 104144 | G92: 148500 | H92: 148500 | I92: 152895
A93: 5635 | B93: Property Insurance | C93: 39448 | D93: 75239 | E93: 57252 | F93: 57252 | G93: 59470 | H93: 59470 | I93: 61254
A94: 5640 | B94: Injuries and Damages | C94: 34487 | D94: 30319 | E94: 34561 | F94: 34561 | G94: 37000 | H94: 37000 | I94: 38110
A95: 5645 | B95: OMERS Pensions and Benefits | C95: 28828 | D95: 3555 | E95: 3461 | F95: 3461 | G95: 4400 | H95: 4400 | I95: 4500
A96: 5646 | B96: Employee Pensions and OPEB
A97: 5647 | B97: Employee Sick Leave
A98: 5650 | B98: Franchise Requirements
A99: 5655 | B99: Regulatory Expenses | C99: 99623 | D99: 44657 | E99: 56135 | F99: 56135 | G99: 56000 | H99: 56000 | I99: 107000
A100: 5660 | B100: General Advertising Expenses
A101: 5665 | B101: Miscellaneous General Expenses | C101: 91366 | D101: 104035 | E101: 105153 | F101: 105153 | G101: 116395 | H101: 116395 | I101: 114884
A102: 5670 | B102: Rent | C102: 755 | D102: 319 | E102: 335 | F102: 335 | G102: 600 | H102: 600 | I102: 750
A103: 5672 | B103: Lease Payment Charge
A104: 5675 | B104: Maintenance of General Plant | C104: 155401 | D104: 198768 | E104: 181370 | F104: 181370 | G104: 221000 | H104: 221000 | I104: 286500
A105: 5680 | B105: Electrical Safety Authority Fees | C105: 8427 | D105: =58428-49801 -> 8627 | E105: 8928 | F105: 8928 | G105: 9800 | H105: 9800 | I105: 10000
A106: 5681 | B106: Special Purpose Charge Expense | D106: 49901
A107: 5685 | B107: Independent Electricity System Operator Fees and Penalties
A108: 5695 | B108: OM&A Contra Account
A109: 6205 | B109: Donations | C109: 844 | D109: 1718 | E109: 531 | F109: 531 | G109: 1000 | H109: 1000 | I109: 1000
A110: 6205 | B110: Donations, Sub-account LEAP Funding | E110: 32483 | F110: 32483
A111: Total - Administrative and General Expenses | C111: =SUM(C87:C110) -> 1476961 | D111: =SUM(D87:D110) -> 1671988 | E111: 1776784 | F111: 1776784 | G111: 1900865 | H111: 1900865 | I111: 2198640
A112: Total OM&A | C112: =C40+C61+C72+C84+C111 -> 3697255 | D112: 3910207 | E112: 4196286 | F112: 4196286 | G112: 4635760 | H112: 4635760 | I112: 5466072
A113: Adjustments for non-recoverable items
A114: 5681 | B114: Special Purpose Charge Expense | D114: 49901 | E114: 0
A115: 6205 | B115: Donations1 | C115: 844 | D115: 1718 | E115: 531 | F115: 531 | G115: 1000 | H115: 1000 | I115: 1000
A119: Total Recoverable OM&A | C119: =C112-SUM(C114:C118) -> 3696411 | D119: =D112-SUM(D114:D118) -> 3858588 | E119: 4195755 | F119: =F112-SUM(F114:F118) -> 4195755 | G119: 4634760 | H119: 4634760 | I119: 5465072
A121: 1 Account 6205 - Donations is generally non-recoverable. However, the sub-account LEAP funding of account 6205 is generally recoverable.
A123: Note:
A124: 1 | B124: If it has been more than three years since the applicant last filed a cost of service application, additional years of historical actuals should be incorporated into the table, as necessary, to go back to the last cost of service application. If the applicant last filed a cost of service application less than three years ago, a minimum of three years of actual information is required.
A125: 2 | B125: If the applicant is adopting IFRS or an alternate accounting standard as of January 1, 2012 for financial reporting purposes, 2011 must be presented on both a CGAAP and MIFRS (or alternate accounting standard) basis.
A126: 3 | B126: If the applicant is adopting IFRS or an alternate accounting standard as of January 1, 2013 for financial reporting purposes, 2012 must be presented on both a CGAAP and MIFRS (or alternate accounting standard) basis.

Sheet App.2-H_OM&A_Detailed_Analysis
H1: File Number: | I1: ='LDC Info'!$E$18 -> EB-2012-0139
H2: Exhibit: | I2: 4
H3: Tab: | I3: 2
H4: Schedule: | I4: 3
H5: Page:
H7: Date: | I7: 2012-08-31
A9: Appendix 2-H
A10: OM&A Detailed Variance Analysis
A11: (excluding Depreciation and Amortization)
A14: Account | B14: Description | C14: ="Last Board-approved Rebasing Year ("&'LDC Info'!E30&" Year)" -> Last Board-approved Rebasing Year (2009 Year) | D14: Most Current Actuals Year 2011 | E14: ="Test Year " & 'LDC Info'!E28 -> Test Year 2013 | F14: Test Year Versus Last Rebasing | H14: Test Year Versus Most Current Actuals
F15: Variance ($) | G15: Percentage Change (%) | H15: Variance ($) | I15: Percentage Change (%)
A16: Reporting Basis | C16: CGAAP | D16: CGAAP | E16: MIFRS
A17: Operations
A18: 5005 | B18: Operation Supervision and Engineering | C18: 72325 | D18: ='App.2-G_Detailed_OM&A_Expenses'!E17 -> 142878 | E18: ='App.2-G_Detailed_OM&A_Expenses'!I17 -> 199285 | F18: =E18-C18 -> 126960 | G18: =IF(C18=0,"",(E18/C18)-1) -> 1.755409609 | H18: =E18-D18 -> 56407 | I18: =IF(D18=0,"",(E18/D18)-1) -> 0.3947913605
A19: 5010 | B19: Load Dispatching | C19: 6050 | D19: ='App.2-G_Detailed_OM&A_Expenses'!E18 -> 10772 | E19: ='App.2-G_Detailed_OM&A_Expenses'!I18 -> 11050 | F19: =E19-C19 -> 5000 | G19: =IF(C19=0,"",(E19/C19)-1) -> 0.826446281 | H19: =E19-D19 -> 278 | I19: =IF(D19=0,"",(E19/D19)-1) -> 0.02580764946
A20: 5012 | B20: Station Buildings and Fixtures Expense | C20: 40400 | D20: ='App.2-G_Detailed_OM&A_Expenses'!E19 -> 40852 | E20: ='App.2-G_Detailed_OM&A_Expenses'!I19 -> 47400 | F20: 7000 | G20: 0.1732673267 | H20: 6548 | I20: 0.1602859101
A21: 5014 | B21: Transformer Station Equipment - Operation Labour | D21: ='App.2-G_Detailed_OM&A_Expenses'!E20 -> 0 | E21: ='App.2-G_Detailed_OM&A_Expenses'!I20 -> 0 | F21: 0 | H21: 0
A22: 5015 | B22: Transformer Station Equipment - Operation Supplies and Expenses | D22: ='App.2-G_Detailed_OM&A_Expenses'!E21 -> 0 | E22: ='App.2-G_Detailed_OM&A_Expenses'!I21 -> 0 | F22: 0 | H22: 0
A23: 5016 | B23: Distribution Station Equipment - Operation Labour | C23: 7400 | D23: ='App.2-G_Detailed_OM&A_Expenses'!E22 -> 6632 | E23: ='App.2-G_Detailed_OM&A_Expenses'!I22 -> 7100 | F23: -300 | G23: -0.04054054054 | H23: 468 | I23: 0.07056694813
A24: 5017 | B24: Distribution Station Equipment - Operation Supplies and Expenses | C24: 2000 | D24: ='App.2-G_Detailed_OM&A_Expenses'!E23 -> 2685 | E24: ='App.2-G_Detailed_OM&A_Expenses'!I23 -> 2900 | F24: 900 | G24: 0.45 | H24: 215 | I24: 0.0800744879
A25: 5020 | B25: Overhead Distribution Lines and Feeders - Operation Labour | C25: 40850 | D25: ='App.2-G_Detailed_OM&A_Expenses'!E24 -> 96661 | E25: ='App.2-G_Detailed_OM&A_Expenses'!I24 -> 109100 | F25: 68250 | G25: 1.670746634 | H25: 12439 | I25: 0.1286868541
A26: 5025 | B26: Overhead Distribution Lines and Feeders - Operation Supplies and Expenses | C26: 36600 | D26: ='App.2-G_Detailed_OM&A_Expenses'!E25 -> 21151 | E26: ='App.2-G_Detailed_OM&A_Expenses'!I25 -> 25050 | F26: -11550 | G26: -0.3155737705 | H26: 3899 | I26: 0.1843411659
A27: 5030 | B27: Overhead Sub-transmission Feeders - Operation | C27: 3250 | D27: ='App.2-G_Detailed_OM&A_Expenses'!E26 -> 3457 | E27: ='App.2-G_Detailed_OM&A_Expenses'!I26 -> 3850 | F27: 600 | G27: 0.1846153846 | H27: 393 | I27: 0.1136823836
A28: 5035 | B28: Overhead Distribution Transformers - Operation | C28: 3650 | D28: ='App.2-G_Detailed_OM&A_Expenses'!E27 -> 1260 | E28: ='App.2-G_Detailed_OM&A_Expenses'!I27 -> 1000 | F28: -2650 | G28: -0.7260273973 | H28: -260 | I28: -0.2063492063
A29: 5040 | B29: Underground Distribution Lines and Feeders - Operation Labour | C29: 27000 | D29: ='App.2-G_Detailed_OM&A_Expenses'!E28 -> 40890 | E29: ='App.2-G_Detailed_OM&A_Expenses'!I28 -> 36100 | F29: 9100 | G29: 0.337037037 | H29: -4790 | I29: -0.1171435559
A30: 5045 | B30: Underground Distribution Lines and Feeders - Operation Supplies and Expenses | C30: 8950 | D30: ='App.2-G_Detailed_OM&A_Expenses'!E29 -> 19559 | E30: ='App.2-G_Detailed_OM&A_Expenses'!I29 -> 23650 | F30: 14700 | G30: 1.642458101 | H30: 4091 | I30: 0.2091620226
A31: 5050 | B31: Underground Sub-transmission Feeders - Operation | D31: ='App.2-G_Detailed_OM&A_Expenses'!E30 -> 0 | E31: ='App.2-G_Detailed_OM&A_Expenses'!I30 -> 0 | F31: 0 | H31: 0
A32: 5055 | B32: Underground Distribution Transformers - Operation | C32: 250 | D32: ='App.2-G_Detailed_OM&A_Expenses'!E31 -> 0 | E32: ='App.2-G_Detailed_OM&A_Expenses'!I31 -> 0 | F32: -250 | G32: -1 | H32: 0
A33: 5060 | B33: Street Lighting and Signal System Expense | D33: ='App.2-G_Detailed_OM&A_Expenses'!E32 -> 0 | E33: ='App.2-G_Detailed_OM&A_Expenses'!I32 -> 0 | F33: 0 | H33: 0
A34: 5065 | B34: Meter Expense | C34: 67750 | D34: ='App.2-G_Detailed_OM&A_Expenses'!E33 -> 77675 | E34: ='App.2-G_Detailed_OM&A_Expenses'!I33 -> 339849 | F34: 272099 | G34: 4.016221402 | H34: 262174 | I34: 3.375268748
A35: 5070 | B35: Customer Premises - Operation Labour | C35: 47200 | D35: ='App.2-G_Detailed_OM&A_Expenses'!E34 -> 42062 | E35: ='App.2-G_Detailed_OM&A_Expenses'!I34 -> 48400 | F35: 1200 | G35: 0.02542372881 | H35: 6338 | I35: 0.1506823261
A36: 5075 | B36: Customer Premises - Operation Materials and Expenses | C36: 9500 | D36: ='App.2-G_Detailed_OM&A_Expenses'!E35 -> 13553 | E36: ='App.2-G_Detailed_OM&A_Expenses'!I35 -> 14800 | F36: 5300 | G36: 0.5578947368 | H36: 1247 | I36: 0.09200914927
A37: 5085 | B37: Miscellaneous Distribution Expenses | C37: 401700 | D37: ='App.2-G_Detailed_OM&A_Expenses'!E36 -> 420151 | E37: ='App.2-G_Detailed_OM&A_Expenses'!I36 -> 546628 | F37: 144928 | G37: 0.3607866567 | H37: 126477 | I37: 0.3010274877
A38: 5090 | B38: Underground Distribution Lines and Feeders - Rental Paid | D38: ='App.2-G_Detailed_OM&A_Expenses'!E37 -> 0 | E38: ='App.2-G_Detailed_OM&A_Expenses'!I37 -> 0 | F38: 0 | H38: 0
A39: 5095 | B39: Overhead Distribution Lines and Feeders - Rental Paid | C39: 3700 | D39: ='App.2-G_Detailed_OM&A_Expenses'!E38 -> 7203 | E39: ='App.2-G_Detailed_OM&A_Expenses'!I38 -> 7700 | F39: 4000 | G39: 1.081081081 | H39: 497 | I39: 0.06899902818
A40: 5096 | B40: Other Rent | F40: 0 | H40: 0
A41: Total - Operations | C41: =SUM(C18:C40) -> 778575 | D41: =SUM(D18:D40) -> 947441 | E41: =SUM(E18:E40) -> 1423862 | F41: 645287 | G41: 0.828805189 | H41: 476421 | I41: 0.5028503094
A42: Account | B42: Description | C42: ="Last Board-approved Rebasing Year ("&'LDC Info'!E58&" Year)" -> Last Board-approved Rebasing Year ( Year) | D42: Most Current Actuals Year 2011 | E42: ="Test Year " & 'LDC Info'!E56 -> Test Year | F42: Test Year Versus Last Rebasing | H42: Test Year Versus Most Current Actuals
F43: Variance ($) | G43: Percentage Change (%) | H43: Variance ($) | I43: Percentage Change (%)
A44: Reporting Basis | C44: CGAAP | D44: CGAAP | E44: MIFRS
A45: Maintenance
A46: 5105 | B46: Maintenance Supervision and Engineering | C46: 11950 | D46: ='App.2-G_Detailed_OM&A_Expenses'!E43 -> 16605 | E46: ='App.2-G_Detailed_OM&A_Expenses'!I43 -> 19550 | F46: =E46-C46 -> 7600 | G46: =IF(C46=0,"",(E46/C46)-1) -> 0.6359832636 | H46: =E46-D46 -> 2945 | I46: =IF(D46=0,"",(E46/D46)-1) -> 0.177356218
A47: 5110 | B47: Maintenance of Buildings and Fixtures - Distribution Stations | D47: ='App.2-G_Detailed_OM&A_Expenses'!E44 -> 0 | E47: ='App.2-G_Detailed_OM&A_Expenses'!I44 -> 0 | F47: 0 | H47: 0
A48: 5112 | B48: Maintenance of Transformer Station Equipment | D48: ='App.2-G_Detailed_OM&A_Expenses'!E45 -> 0 | E48: ='App.2-G_Detailed_OM&A_Expenses'!I45 -> 0 | F48: 0 | H48: 0
A49: 5114 | B49: Maintenance of Distribution Station Equipment | C49: 39300 | D49: ='App.2-G_Detailed_OM&A_Expenses'!E46 -> 37758 | E49: ='App.2-G_Detailed_OM&A_Expenses'!I46 -> 56230 | F49: 16930 | G49: 0.4307888041 | H49: 18472 | I49: 0.4892208274
A50: 5120 | B50: Maintenance of Poles, Towers and Fixtures | C50: 44680 | D50: ='App.2-G_Detailed_OM&A_Expenses'!E47 -> 1671 | E50: ='App.2-G_Detailed_OM&A_Expenses'!I47 -> 19340 | F50: -25340 | G50: -0.5671441361 | H50: 17669 | I50: 10.57390784
A51: 5125 | B51: Maintenance of Overhead Conductors and Devices | C51: 143500 | D51: ='App.2-G_Detailed_OM&A_Expenses'!E48 -> 47742 | E51: ='App.2-G_Detailed_OM&A_Expenses'!I48 -> 101000 | F51: -42500 | G51: -0.2961672474 | H51: 53258 | I51: 1.115537682
A52: 5130 | B52: Maintenance of Overhead Services | C52: 67700 | D52: ='App.2-G_Detailed_OM&A_Expenses'!E49 -> 67089 | E52: ='App.2-G_Detailed_OM&A_Expenses'!I49 -> 62650 | F52: -5050 | G52: -0.07459379616 | H52: -4439 | I52: -0.06616583941
A53: 5135 | B53: Overhead Distribution Lines and Feeders - Right of Way | C53: 188100 | D53: ='App.2-G_Detailed_OM&A_Expenses'!E50 -> 184235 | E53: ='App.2-G_Detailed_OM&A_Expenses'!I50 -> 222650 | F53: 34550 | G53: 0.1836788942 | H53: 38415 | I53: 0.2085108693
A54: 5145 | B54: Maintenance of Underground Conduit | D54: ='App.2-G_Detailed_OM&A_Expenses'!E51 -> 0 | E54: ='App.2-G_Detailed_OM&A_Expenses'!I51 -> 0 | F54: 0 | H54: 0
A55: 5150 | B55: Maintenance of Underground Conductors and Devices | C55: 13050 | D55: ='App.2-G_Detailed_OM&A_Expenses'!E52 -> 2587 | E55: ='App.2-G_Detailed_OM&A_Expenses'!I52 -> 5050 | F55: -8000 | G55: -0.6130268199 | H55: 2463 | I55: 0.9520680325
A56: 5155 | B56: Maintenance of Underground Services | C56: 64550 | D56: ='App.2-G_Detailed_OM&A_Expenses'!E53 -> 80843 | E56: ='App.2-G_Detailed_OM&A_Expenses'!I53 -> 99850 | F56: 35300 | G56: 0.546862897 | H56: 19007 | I56: 0.2351100281
A57: 5160 | B57: Maintenance of Line Transformers | C57: 50250 | D57: ='App.2-G_Detailed_OM&A_Expenses'!E54 -> 58987 | E57: ='App.2-G_Detailed_OM&A_Expenses'!I54 -> 82530 | F57: 32280 | G57: 0.6423880597 | H57: 23543 | I57: 0.3991218404
A58: 5165 | B58: Maintenance of Street Lighting and Signal Systems | D58: ='App.2-G_Detailed_OM&A_Expenses'!E55 -> 0 | E58: ='App.2-G_Detailed_OM&A_Expenses'!I55 -> 0 | F58: 0 | H58: 0
A59: 5170 | B59: Sentinel Lights - Labour | D59: ='App.2-G_Detailed_OM&A_Expenses'!E56 -> 0 | E59: ='App.2-G_Detailed_OM&A_Expenses'!I56 -> 0 | F59: 0 | H59: 0
A60: 5172 | B60: Sentinel Lights - Materials and Expenses | D60: ='App.2-G_Detailed_OM&A_Expenses'!E57 -> 0 | E60: ='App.2-G_Detailed_OM&A_Expenses'!I57 -> 0 | F60: 0 | H60: 0
A61: 5175 | B61: Maintenance of Meters | C61: 34000 | D61: ='App.2-G_Detailed_OM&A_Expenses'!E58 -> 31356 | E61: ='App.2-G_Detailed_OM&A_Expenses'!I58 -> 44800 | F61: 10800 | G61: 0.3176470588 | H61: 13444 | I61: 0.4287536676
A62: 5178 | B62: Customer Installations Expenses - Leased Property | F62: 0 | H62: 0
A63: 5195 | B63: Maintenance of Other Installations on Customer Premises | F63: 0 | H63: 0
A64: Total - Maintenance | C64: =SUM(C46:C63) -> 657080 | D64: =SUM(D46:D63) -> 528873 | E64: =SUM(E46:E63) -> 713650 | F64: 56570 | G64: 0.08609301759 | H64: 184777 | I64: 0.3493787734
A65: Account | B65: Description | C65: ="Last Board-approved Rebasing Year ("&'LDC Info'!E81&" Year)" -> Last Board-approved Rebasing Year ( Year) | D65: Most Current Actuals Year 2011 | E65: ="Test Year " & 'LDC Info'!E79 -> Test Year | F65: Test Year Versus Last Rebasing | H65: Test Year Versus Most Current Actuals
F66: Variance ($) | G66: Percentage Change (%) | H66: Variance ($) | I66: Percentage Change (%)
A67: Reporting Basis | C67: CGAAP | D67: CGAAP | E67: MIFRS
A68: Billing and Collecting
A69: 5305 | B69: Supervision | C69: 44900 | D69: ='App.2-G_Detailed_OM&A_Expenses'!E64 -> 63860 | E69: ='App.2-G_Detailed_OM&A_Expenses'!I64 -> 66800 | F69: =E69-C69 -> 21900 | G69: =IF(C69=0,"",(E69/C69)-1) -> 0.4877505568 | H69: =E69-D69 -> 2940 | I69: =IF(D69=0,"",(E69/D69)-1) -> 0.04603820858
A70: 5310 | B70: Meter Reading Expense | C70: 153200 | D70: ='App.2-G_Detailed_OM&A_Expenses'!E65 -> 69829 | E70: ='App.2-G_Detailed_OM&A_Expenses'!I65 -> 38000 | F70: -115200 | G70: -0.7519582245 | H70: -31829 | I70: -0.4558134872
A71: 5315 | B71: Customer Billing | C71: 383950 | D71: ='App.2-G_Detailed_OM&A_Expenses'!E66 -> 376323 | E71: ='App.2-G_Detailed_OM&A_Expenses'!I66 -> 480600 | F71: 96650 | G71: 0.2517254851 | H71: 104277 | I71: 0.2770944109
A72: 5320 | B72: Collecting | C72: 345200 | D72: ='App.2-G_Detailed_OM&A_Expenses'!E67 -> 286478 | E72: ='App.2-G_Detailed_OM&A_Expenses'!I67 -> 340820 | F72: -4380 | G72: -0.01268829664 | H72: 54342 | I72: 0.1896899587
A73: 5325 | B73: Collecting - Cash Over and Short | C73: 50 | D73: ='App.2-G_Detailed_OM&A_Expenses'!E68 -> 35 | E73: ='App.2-G_Detailed_OM&A_Expenses'!I68 -> 100 | F73: 50 | G73: 1 | H73: 65 | I73: 1.857142857
A74: 5330 | B74: Collection Charges | D74: ='App.2-G_Detailed_OM&A_Expenses'!E69 -> 0 | E74: ='App.2-G_Detailed_OM&A_Expenses'!I69 -> 0 | F74: 0 | H74: 0
A75: 5335 | B75: Bad Debt Expense | C75: 30000 | D75: ='App.2-G_Detailed_OM&A_Expenses'!E70 -> 67044 | E75: ='App.2-G_Detailed_OM&A_Expenses'!I70 -> 100000 | F75: 70000 | G75: 2.333333333 | H75: 32956 | I75: 0.4915577829
A76: 5340 | B76: Miscellaneous Customer Accounts Expenses | C76: 53300 | D76: ='App.2-G_Detailed_OM&A_Expenses'!E71 -> 61727 | E76: ='App.2-G_Detailed_OM&A_Expenses'!I71 -> 79700 | F76: 26400 | G76: 0.4953095685 | H76: 17973 | I76: 0.2911691804
A77: Total - Billing and Collecting | C77: =SUM(C69:C76) -> 1010600 | D77: =SUM(D69:D76) -> 925296 | E77: =SUM(E69:E76) -> 1106020 | F77: 95420 | G77: 0.09441915694 | H77: 180724 | I77: 0.1953147966
A78: Account | B78: Description | C78: ="Last Board-approved Rebasing Year ("&'LDC Info'!E94&" Year)" -> Last Board-approved Rebasing Year ( Year) | D78: Most Current Actuals Year 2011 | E78: ="Test Year " & 'LDC Info'!E92 -> Test Year | F78: Test Year Versus Last Rebasing | H78: Test Year Versus Most Current Actuals
F79: Variance ($) | G79: Percentage Change (%) | H79: Variance ($) | I79: Percentage Change (%)
A80: Reporting Basis | C80: CGAAP | D80: CGAAP | E80: MIFRS
A81: Account | B81: Description
A82: Community Relations
A83: 5405 | B83: Supervision | C83: ='App.2-G_Detailed_OM&A_Expenses'!C75 -> 0 | D83: ='App.2-G_Detailed_OM&A_Expenses'!E75 -> 0 | E83: ='App.2-G_Detailed_OM&A_Expenses'!I75 -> 0 | F83: =E83-C83 -> 0 | G83: =IF(C83=0,"",(E83/C83)-1) ->  | H83: =E83-D83 -> 0 | I83: =IF(D83=0,"",(E83/D83)-1) -> 
A84: 5410 | B84: Community Relations - Sundry | C84: 8100 | D84: ='App.2-G_Detailed_OM&A_Expenses'!E76 -> 15137 | E84: ='App.2-G_Detailed_OM&A_Expenses'!I76 -> 19400 | F84: 11300 | G84: 1.395061728 | H84: 4263 | I84: 0.2816277994
A85: 5415 | B85: Energy Conservation | C85: 0 | D85: ='App.2-G_Detailed_OM&A_Expenses'!E77 -> 208 | E85: ='App.2-G_Detailed_OM&A_Expenses'!I77 -> 0 | F85: 0 | H85: -208 | I85: -1
A86: 5420 | B86: Community Safety Program | C86: 1000 | D86: ='App.2-G_Detailed_OM&A_Expenses'!E78 -> 0 | E86: ='App.2-G_Detailed_OM&A_Expenses'!I78 -> 1500 | F86: 500 | G86: 0.5 | H86: 1500
A87: 5425 | B87: Miscellaneous Customer Service and Informational Expenses | C87: 2600 | D87: ='App.2-G_Detailed_OM&A_Expenses'!E79 -> 2547 | E87: ='App.2-G_Detailed_OM&A_Expenses'!I79 -> 3000 | F87: 400 | G87: 0.1538461538 | H87: 453 | I87: 0.1778563015
A88: 5505 | B88: Supervision | C88: ='App.2-G_Detailed_OM&A_Expenses'!C80 -> 0 | D88: ='App.2-G_Detailed_OM&A_Expenses'!E80 -> 0 | E88: ='App.2-G_Detailed_OM&A_Expenses'!I80 -> 0 | F88: 0 | H88: 0
A89: 5510 | B89: Demonstrating and Selling Expense | C89: ='App.2-G_Detailed_OM&A_Expenses'!C81 -> 0 | D89: ='App.2-G_Detailed_OM&A_Expenses'!E81 -> 0 | E89: ='App.2-G_Detailed_OM&A_Expenses'!I81 -> 0 | F89: 0 | H89: 0
A90: 5515 | B90: Advertising Expenses | C90: ='App.2-G_Detailed_OM&A_Expenses'!C82 -> 0 | D90: ='App.2-G_Detailed_OM&A_Expenses'!E82 -> 0 | E90: ='App.2-G_Detailed_OM&A_Expenses'!I82 -> 0 | F90: 0 | H90: 0
A91: 5520 | B91: Miscellaneous Sales Expense | C91: ='App.2-G_Detailed_OM&A_Expenses'!C83 -> 0 | D91: ='App.2-G_Detailed_OM&A_Expenses'!E83 -> 0 | E91: ='App.2-G_Detailed_OM&A_Expenses'!I83 -> 0 | F91: 0 | H91: 0
A92: Total - Community Relations | C92: =SUM(C83:C91) -> 11700 | D92: =SUM(D83:D91) -> 17892 | E92: =SUM(E83:E91) -> 23900 | F92: 12200 | G92: 1.042735043 | H92: 6008 | I92: 0.335792533
A93: Account | B93: Description | C93: ="Last Board-approved Rebasing Year ("&'LDC Info'!E109&" Year)" -> Last Board-approved Rebasing Year ( Year) | D93: Most Current Actuals Year 2011 | E93: ="Test Year " & 'LDC Info'!E107 -> Test Year | F93: Test Year Versus Last Rebasing | H93: Test Year Versus Most Current Actuals
F94: Variance ($) | G94: Percentage Change (%) | H94: Variance ($) | I94: Percentage Change (%)
A95: Reporting Basis | C95: CGAAP | D95: CGAAP | E95: MIFRS
A96: Administrative and General Expenses
A97: 5605 | B97: Executive Salaries and Expenses | C97: 214350 | D97: ='App.2-G_Detailed_OM&A_Expenses'!E87 -> 218153 | E97: ='App.2-G_Detailed_OM&A_Expenses'!I87 -> 233375 | F97: =E97-C97 -> 19025 | G97: =IF(C97=0,"",(E97/C97)-1) -> 0.08875670632 | H97: =E97-D97 -> 15222 | I97: =IF(D97=0,"",(E97/D97)-1) -> 0.06977671634
A98: 5610 | B98: Management Salaries and Expenses | C98: 165525 | D98: ='App.2-G_Detailed_OM&A_Expenses'!E88 -> 214395 | E98: ='App.2-G_Detailed_OM&A_Expenses'!I88 -> 232247 | F98: 66722 | G98: 0.4030931883 | H98: 17852 | I98: 0.08326686723
A99: 5615 | B99: General Administrative Salaries and Expenses | C99: 519170 | D99: ='App.2-G_Detailed_OM&A_Expenses'!E89 -> 673158 | E99: ='App.2-G_Detailed_OM&A_Expenses'!I89 -> 849125 | F99: 329955 | G99: 0.635543271 | H99: 175967 | I99: 0.2614051976
A100: 5620 | B100: Office Supplies and Expenses | C100: 82450 | D100: ='App.2-G_Detailed_OM&A_Expenses'!E90 -> 86725 | E100: ='App.2-G_Detailed_OM&A_Expenses'!I90 -> 107000 | F100: 24550 | G100: 0.2977562159 | H100: 20275 | I100: 0.2337849524
A101: 5625 | B101: Administrative Expense Transferred - Credit | D101: ='App.2-G_Detailed_OM&A_Expenses'!E91 -> 0 | E101: ='App.2-G_Detailed_OM&A_Expenses'!I91 -> 0 | F101: 0 | H101: 0
A102: 5630 | B102: Outside Services Employed | C102: =81800-25000 -> 56800 | D102: ='App.2-G_Detailed_OM&A_Expenses'!E92 -> 104144 | E102: ='App.2-G_Detailed_OM&A_Expenses'!I92 -> 152895 | F102: 96095 | G102: 1.69181338 | H102: 48751 | I102: 0.4681114611
A103: 5635 | B103: Property Insurance | C103: 44200 | D103: ='App.2-G_Detailed_OM&A_Expenses'!E93 -> 57252 | E103: ='App.2-G_Detailed_OM&A_Expenses'!I93 -> 61254 | F103: 17054 | G103: 0.3858371041 | H103: 4002 | I103: 0.06990148816
A104: 5640 | B104: Injuries and Damages | C104: 40600 | D104: ='App.2-G_Detailed_OM&A_Expenses'!E94 -> 34561 | E104: ='App.2-G_Detailed_OM&A_Expenses'!I94 -> 38110 | F104: -2490 | G104: -0.06133004926 | H104: 3549 | I104: 0.1026880009
A105: 5645 | B105: OMERS Pensions and Benefits | C105: 7516 | D105: ='App.2-G_Detailed_OM&A_Expenses'!E95 -> 3461 | E105: ='App.2-G_Detailed_OM&A_Expenses'!I95 -> 4500 | F105: -3016 | G105: -0.4012772751 | H105: 1039 | I105: 0.3002022537
A106: 5646 | B106: Employee Pensions and OPEB | D106: ='App.2-G_Detailed_OM&A_Expenses'!E96 -> 0 | E106: ='App.2-G_Detailed_OM&A_Expenses'!I96 -> 0 | F106: =E106-C106 -> 0 | G106: =IF(C106=0,"",(E106/C106)-1) ->  | H106: =E106-D106 -> 0 | I106: =IF(D106=0,"",(E106/D106)-1) -> 
A107: 5647 | B107: Employee Sick Leave | D107: ='App.2-G_Detailed_OM&A_Expenses'!E97 -> 0 | E107: ='App.2-G_Detailed_OM&A_Expenses'!I97 -> 0 | F107: 0 | H107: 0
A108: 5650 | B108: Franchise Requirements | D108: ='App.2-G_Detailed_OM&A_Expenses'!E98 -> 0 | E108: ='App.2-G_Detailed_OM&A_Expenses'!I98 -> 0 | F108: 0 | H108: 0
A109: 5655 | B109: Regulatory Expenses | C109: 90690 | D109: ='App.2-G_Detailed_OM&A_Expenses'!E99 -> 56135 | E109: ='App.2-G_Detailed_OM&A_Expenses'!I99 -> 107000 | F109: 16310 | G109: 0.1798434226 | H109: 50865 | I109: 0.906119177
A110: 5660 | B110: General Advertising Expenses | D110: ='App.2-G_Detailed_OM&A_Expenses'!E100 -> 0 | E110: ='App.2-G_Detailed_OM&A_Expenses'!I100 -> 0 | F110: 0 | H110: 0
A111: 5665 | B111: Miscellaneous General Expenses | C111: 51434 | D111: ='App.2-G_Detailed_OM&A_Expenses'!E101 -> 105153 | E111: ='App.2-G_Detailed_OM&A_Expenses'!I101 -> 114884 | F111: 63450 | G111: 1.233619785 | H111: 9731 | I111: 0.09254134452
A112: 5670 | B112: Rent | C112: 350 | D112: ='App.2-G_Detailed_OM&A_Expenses'!E102 -> 335 | E112: ='App.2-G_Detailed_OM&A_Expenses'!I102 -> 750 | F112: =E112-C112 -> 400 | G112: =IF(C112=0,"",(E112/C112)-1) -> 1.142857143 | H112: =E112-D112 -> 415 | I112: 1.23880597
A113: 5672 | B113: Lease Payment Charge | D113: ='App.2-G_Detailed_OM&A_Expenses'!E103 -> 0 | E113: ='App.2-G_Detailed_OM&A_Expenses'!I103 -> 0 | F113: 0 | H113: 0
A114: 5675 | B114: Maintenance of General Plant | C114: 150600 | D114: ='App.2-G_Detailed_OM&A_Expenses'!E104 -> 181370 | E114: ='App.2-G_Detailed_OM&A_Expenses'!I104 -> 286500 | F114: 135900 | G114: 0.9023904382 | H114: 105130 | I114: 0.579643822
A115: 5680 | B115: Electrical Safety Authority Fees | C115: 16100 | D115: ='App.2-G_Detailed_OM&A_Expenses'!E105 -> 8928 | E115: ='App.2-G_Detailed_OM&A_Expenses'!I105 -> 10000 | F115: -6100 | G115: -0.3788819876 | H115: 1072 | I115: 0.1200716846
A116: 5681 | B116: Special Purpose Charge Expense | D116: ='App.2-G_Detailed_OM&A_Expenses'!E106 -> 0 | E116: ='App.2-G_Detailed_OM&A_Expenses'!I106 -> 0 | F116: 0 | H116: 0
A117: 5685 | B117: Independent Electricity System Operator Fees and Penalties | D117: ='App.2-G_Detailed_OM&A_Expenses'!E107 -> 0 | E117: ='App.2-G_Detailed_OM&A_Expenses'!I107 -> 0 | F117: 0 | H117: 0
A118: 5695 | B118: OM&A Contra Account | D118: ='App.2-G_Detailed_OM&A_Expenses'!E108 -> 0 | E118: ='App.2-G_Detailed_OM&A_Expenses'!I108 -> 0 | F118: 0 | H118: 0
A119: 6205 | B119: Donations | C119: 1600 | D119: ='App.2-G_Detailed_OM&A_Expenses'!E109 -> 531 | E119: ='App.2-G_Detailed_OM&A_Expenses'!I109 -> 1000 | F119: =E119-C119 -> -600 | G119: =IF(C119=0,"",(E119/C119)-1) -> -0.375 | H119: =E119-D119 -> 469 | I119: =IF(D119=0,"",(E119/D119)-1) -> 0.8832391714
A120: 6205 | B120: Donations, Sub-account LEAP Funding | C120: ='App.2-G_Detailed_OM&A_Expenses'!C110 -> 0 | D120: ='App.2-G_Detailed_OM&A_Expenses'!E110 -> 32483 | E120: ='App.2-G_Detailed_OM&A_Expenses'!I110 -> 0 | F120: 0 | H120: -32483 | I120: -1
A121: Total - Administrative and General Expenses | C121: =SUM(C97:C120) -> 1441385 | D121: =SUM(D97:D120) -> 1776784 | E121: =SUM(E97:E120) -> 2198640 | F121: 757255 | G121: 0.5253662276 | H121: 421856 | I121: 0.2374267215
A122: Total OM&A | C122: =C121+C92+C77+C64+C41 -> 3899340 | D122: =D121+D92+D77+D64+D41 -> 4196286 | E122: =E121+E92+E77+E64+E41 -> 5466072 | F122: 1566732 | G122: 0.4017941498 | H122: 1269786 | I122: 0.3025975827
A123: Adjustments for non-recoverable items
A124: 5681 | B124: Special Purpose Charge Expense | C124: ='App.2-G_Detailed_OM&A_Expenses'!C114 -> 0 | D124: ='App.2-G_Detailed_OM&A_Expenses'!E114 -> 0 | E124: ='App.2-G_Detailed_OM&A_Expenses'!I114 -> 0 | F124: =E124-C124 -> 0 | G124: =IF(C124=0,"",(E124/C124)-1) ->  | H124: =E124-D124 -> 0 | I124: =IF(D124=0,"",(E124/D124)-1) -> 
A125: 6205 | B125: Donations1 | C125: =C119 -> 1600 | D125: ='App.2-G_Detailed_OM&A_Expenses'!E115 -> 531 | E125: ='App.2-G_Detailed_OM&A_Expenses'!I115 -> 1000 | F125: =E125-C125 -> -600 | G125: =IF(C125=0,"",(E125/C125)-1) -> -0.375 | H125: =E125-D125 -> 469 | I125: =IF(D125=0,"",(E125/D125)-1) -> 0.8832391714
F126: =E126-C126 -> 0 | G126: =IF(C126=0,"",(E126/C126)-1) ->  | H126: =E126-D126 -> 0 | I126: =IF(D126=0,"",(E126/D126)-1) -> 
F127: =E127-C127 -> 0 | G127: =IF(C127=0,"",(E127/C127)-1) ->  | H127: =E127-D127 -> 0 | I127: =IF(D127=0,"",(E127/D127)-1) -> 
F128: =E128-C128 -> 0 | G128: =IF(C128=0,"",(E128/C128)-1) ->  | H128: =E128-D128 -> 0 | I128: =IF(D128=0,"",(E128/D128)-1) -> 
A129: Total Recoverable OM&A | C129: =C122-SUM(C124:C128) -> 3897740 | D129: =D122-SUM(D124:D128) -> 4195755 | E129: 5465072 | F129: 1567332 | G129: =IF(C129=0,"",(E129/C129)-1) -> 0.4021130193 | H129: 1269317 | I129: =IF(D129=0,"",(E129/D129)-1) -> 0.3025240988
A131: 1 Account 6205 - Donations is generally non-recoverable. However, the sub-account LEAP funding of account 6205 is generally recoverable.
A134: Note:
A136: 1 | B136: If the applicant is adopting IFRS or an alternate accounting standard as of January 1, 2013 for financial reporting purposes, Column D "Most Current Actual Year" must be provided on CGAAP.
A137: 2 | B137: If the applicant is adopting IFRS or an alternate accounting standard as of January 1, 2012 for financial reporting purposes, Column D "Most Current Actual Year" must be provided on that standard.

Sheet App.2-I_OM&A_Summary_Analys
K1: File Number: | L1: ='LDC Info'!$E$18 -> EB-2012-0139
K2: Exhibit: | L2: 4
K3: Tab: | L3: 1
K4: Schedule: | L4: 1
K5: Page:
K7: Date: | L7: 2012-08-31
A9: Appendix 2-I
A10: Summary of Recoverable OM&A Expenses
B13: ="Last Rebasing Year (" & 'LDC Info'!E30 & " BA)" -> Last Rebasing Year (2009 BA) | C13: ="Last Rebasing Year (" & 'LDC Info'!E30 & " Actuals)" -> Last Rebasing Year (2009 Actuals) | D13: ='LDC Info'!E26 -2 & " Actuals" -> 2010 Actuals | E13: ='LDC Info'!E26 -1 & " Actuals" -> 2011 Actuals | F13: ='LDC Info'!E26 & " Bridge Year" -> 2012 Bridge Year | G13: ='LDC Info'!E28 & " Test Year" -> 2013 Test Year
A14: Reporting Basis | B14: CGAAP | C14: CGAAP | D14: CGAAP | E14: CGAAP | F14: MIFRS | G14: MIFRS
A15: Operations | B15: ='App.2-H_OM&A_Detailed_Analysis'!C41 -> 778575 | C15: ='App.2-G_Detailed_OM&A_Expenses'!C40 -> 694259 | D15: ='App.2-G_Detailed_OM&A_Expenses'!D40 -> 870153 | E15: ='App.2-G_Detailed_OM&A_Expenses'!E40 -> 947441 | F15: ='App.2-G_Detailed_OM&A_Expenses'!H40 -> 1159195 | G15: ='App.2-G_Detailed_OM&A_Expenses'!I40 -> 1423862
A16: Maintenance | B16: ='App.2-H_OM&A_Detailed_Analysis'!C64 -> 657080 | C16: ='App.2-G_Detailed_OM&A_Expenses'!C61 -> 544762 | D16: ='App.2-G_Detailed_OM&A_Expenses'!D61 -> 436208 | E16: ='App.2-G_Detailed_OM&A_Expenses'!E61 -> 528873 | F16: ='App.2-G_Detailed_OM&A_Expenses'!H61 -> 601800 | G16: ='App.2-G_Detailed_OM&A_Expenses'!I61 -> 713650
A17: SubTotal | B17: =SUM(B15:B16) -> 1435655 | C17: =SUM(C15:C16) -> 1239021 | D17: 1306361 | E17: 1476314 | F17: 1760995 | G17: 2137512
A18: %Change (year over year) | D18: =IF(ISERROR((D17-C17)/C17), "", (D17-C17)/C17) -> 0.05434936131 | E18: =IF(ISERROR((E17-D17)/D17), "", (E17-D17)/D17) -> 0.1300965047 | F18: 0.1928322836 | G18: 0.2138092385
A19: %Change (Test Year vs Last Rebasing Year - Actual) | G19: =IF(ISERROR((G17-C17)/C17), "", (G17-C17)/C17) -> 0.7251620433
A20: Billing and Collecting | B20: ='App.2-H_OM&A_Detailed_Analysis'!C77 -> 1010600 | C20: ='App.2-G_Detailed_OM&A_Expenses'!C72 -> 970447 | D20: ='App.2-G_Detailed_OM&A_Expenses'!D72 -> 922744 | E20: ='App.2-G_Detailed_OM&A_Expenses'!E72 -> 925296 | F20: ='App.2-G_Detailed_OM&A_Expenses'!H72 -> 955500 | G20: ='App.2-G_Detailed_OM&A_Expenses'!I72 -> 1106020
A21: Community Relations | B21: ='App.2-H_OM&A_Detailed_Analysis'!C92 -> 11700 | C21: ='App.2-G_Detailed_OM&A_Expenses'!C84 -> 10826 | D21: ='App.2-G_Detailed_OM&A_Expenses'!D84 -> 9114 | E21: ='App.2-G_Detailed_OM&A_Expenses'!E84 -> 17892 | F21: ='App.2-G_Detailed_OM&A_Expenses'!H84 -> 18400 | G21: ='App.2-G_Detailed_OM&A_Expenses'!I84 -> 23900
A22: Administrative and General | B22: ='App.2-H_OM&A_Detailed_Analysis'!C121-'App.2-H_OM&A_Detailed_Analysis'!C125 -> 1439785 | C22: ='App.2-G_Detailed_OM&A_Expenses'!C111-'App.2-G_Detailed_OM&A_Expenses'!C114-'App.2-G_Detailed_OM&A_Expenses'!C115 -> 1476117 | D22: ='App.2-G_Detailed_OM&A_Expenses'!D111-'App.2-G_Detailed_OM&A_Expenses'!D114-'App.2-G_Detailed_OM&A_Expenses'!D115 -> 1620369 | E22: ='App.2-G_Detailed_OM&A_Expenses'!E111-'App.2-G_Detailed_OM&A_Expenses'!E114-'App.2-G_Detailed_OM&A_Expenses'!E115 -> 1776253 | F22: ='App.2-G_Detailed_OM&A_Expenses'!H111-'App.2-G_Detailed_OM&A_Expenses'!H114-'App.2-G_Detailed_OM&A_Expenses'!H115 -> 1899865 | G22: ='App.2-G_Detailed_OM&A_Expenses'!I111-'App.2-G_Detailed_OM&A_Expenses'!I114-'App.2-G_Detailed_OM&A_Expenses'!I115 -> 2197640
A23: SubTotal | B23: =SUM(B20:B22) -> 2462085 | C23: =SUM(C20:C22) -> 2457390 | D23: 2552227 | E23: 2719441 | F23: 2873765 | G23: 3327560
A24: %Change (year over year) | D24: =IF(ISERROR((D23-C23)/C23), "", (D23-C23)/C23) -> 0.03859257179 | E24: =IF(ISERROR((E23-D23)/D23), "", (E23-D23)/D23) -> 0.06551689955 | F24: =IF(ISERROR((F23-E23)/E23), "", (F23-E23)/E23) -> 0.05674842734 | G24: =IF(ISERROR((G23-F23)/F23), "", (G23-F23)/F23) -> 0.1579095716
A25: %Change (Test Year vs Last Rebasing Year - Actual) | G25: =IF(ISERROR((G23-C23)/C23), "", (G23-C23)/C23) -> 0.3541033373
A26: Total | B26: =SUM(B23,B17) -> 3897740 | C26: =SUM(C23,C17) -> 3696411 | D26: 3858588 | E26: 4195755 | F26: 4634760 | G26: 5465072
A27: %Change (year over year) | D27: =IF(ISERROR((D26-C26)/C26), "", (D26-C26)/C26) -> 0.04387417958 | E27: =IF(ISERROR((E26-D26)/D26), "", (E26-D26)/D26) -> 0.08738092795 | F27: =IF(ISERROR((F26-E26)/E26), "", (F26-E26)/E26) -> 0.1046307518 | G27: =IF(ISERROR((G26-F26)/F26), "", (G26-F26)/F26) -> 0.1791488664
B30: =B13 -> Last Rebasing Year (2009 BA) | C30: =C13 -> Last Rebasing Year (2009 Actuals) | D30: 2010 Actuals | E30: 2011 Actuals | F30: 2012 Bridge Year | G30: 2013 Test Year
A31: Operations | B31: =B15 -> 778575 | C31: =C15 -> 694259 | D31: 870153 | E31: 947441 | F31: 1159195 | G31: 1423862
A32: Maintenance | B32: =B16 -> 657080 | C32: =C16 -> 544762 | D32: 436208 | E32: 528873 | F32: 601800 | G32: 713650
A33: Billing and Collecting | B33: =B20 -> 1010600 | C33: =C20 -> 970447 | D33: 922744 | E33: 925296 | F33: 955500 | G33: 1106020
A34: Community Relations | B34: =B21 -> 11700 | C34: =C21 -> 10826 | D34: 9114 | E34: 17892 | F34: 18400 | G34: 23900
A35: Administrative and General | B35: =B22 -> 1439785 | C35: =C22 -> 1476117 | D35: 1620369 | E35: 1776253 | F35: 1899865 | G35: 2197640
A36: Total | B36: =SUM(B31:B35) -> 3897740 | C36: =SUM(C31:C35) -> 3696411 | D36: 3858588 | E36: 4195755 | F36: 4634760 | G36: 5465072
A37: %Change (year over year) | D37: =IF(ISERROR((D36-C36)/C36), "", (D36-C36)/C36) -> 0.04387417958 | E37: =IF(ISERROR((E36-D36)/D36), "", (E36-D36)/D36) -> 0.08738092795 | F37: =IF(ISERROR((F36-E36)/E36), "", (F36-E36)/E36) -> 0.1046307518 | G37: =IF(ISERROR((G36-F36)/F36), "", (G36-F36)/F36) -> 0.1791488664
B40: =B13 -> Last Rebasing Year (2009 BA) | C40: =C13 -> Last Rebasing Year (2009 Actuals) | D40: ="Variance " & 'LDC Info'!E30 & " BA – " & 'LDC Info'!E30 & " Actuals" -> Variance 2009 BA – 2009 Actuals | E40: =D13 -> 2010 Actuals | F40: ="Variance " & 'LDC Info'!E26 -2 & " Actuals vs. " & 'LDC Info'!E30 & " Actuals" -> Variance 2010 Actuals vs. 2009 Actuals | G40: =E13 -> 2011 Actuals | H40: ="Variance " & 'LDC Info'!E26 -1 & " Actuals vs. " & 'LDC Info'!E26-2 & " Actuals" -> Variance 2011 Actuals vs. 2010 Actuals | I40: =F13 -> 2012 Bridge Year | J40: ="Variance " & 'LDC Info'!E26 & " Bridge vs. " & 'LDC Info'!E26 -1 & " Actuals" -> Variance 2012 Bridge vs. 2011 Actuals | K40: =G13 -> 2013 Test Year | L40: ="Variance " & 'LDC Info'!E28 & " Test vs. " & 'LDC Info'!E26 & " Bridge" -> Variance 2013 Test vs. 2012 Bridge
A41: Operations | B41: =B15 -> 778575 | C41: 694259 | D41: =B41-C41 -> 84316 | E41: =D15 -> 870153 | F41: =E41-C41 -> 175894 | G41: =E15 -> 947441 | H41: =G41-E41 -> 77288 | I41: =F15 -> 1159195 | J41: =I41-G41 -> 211754 | K41: =G15 -> 1423862 | L41: =K41-I41 -> 264667
A42: Maintenance | B42: 657080 | C42: 544762 | D42: =B42-C42 -> 112318 | E42: =D16 -> 436208 | F42: =E42-C42 -> -108554 | G42: =E16 -> 528873 | H42: =G42-E42 -> 92665 | I42: =F16 -> 601800 | J42: 72927 | K42: =G16 -> 713650 | L42: 111850
A43: Billing and Collecting | B43: =B20 -> 1010600 | C43: 970447 | D43: 40153 | E43: =D20 -> 922744 | F43: -47703 | G43: =E20 -> 925296 | H43: 2552 | I43: =F20 -> 955500 | J43: 30204 | K43: =G20 -> 1106020 | L43: 150520
A44: Community Relations | B44: 11700 | C44: 10826 | D44: 874 | E44: =D21 -> 9114 | F44: -1712 | G44: =E21 -> 17892 | H44: 8778 | I44: =F21 -> 18400 | J44: 508 | K44: =G21 -> 23900 | L44: 5500
A45: Administrative and General | B45: 1439785 | C45: 1476117 | D45: -36332 | E45: 1620369 | F45: 144252 | G45: 1776253 | H45: 155884 | I45: 1899865 | J45: 123612 | K45: 2197640 | L45: 297775
A46: Total OM&A Expenses | B46: =SUM(B41:B45) -> 3897740 | C46: =SUM(C41:C45) -> 3696411 | D46: 201329 | E46: 3858588 | F46: 162177 | G46: 4195755 | H46: 337167 | I46: 4634760 | J46: 439005 | K46: 5465072 | L46: 830312
A47: Variance from previous year | E47: =E46-C46 -> 162177 | G47: =G46-E46 -> 337167 | I47: =I46-G46 -> 439005 | K47: =K46-I46 -> 830312
A48: Percent change (year over year) | E48: =IF(ISERROR(E47/C46), "", E47/C46) -> 0.04387417958 | G48: =IF(ISERROR(G47/E46), "", G47/E46) -> 0.08738092795 | I48: =IF(ISERROR(I47/G46), "", I47/G46) -> 0.1046307518 | K48: =IF(ISERROR(K47/I46), "", K47/I46) -> 0.1791488664
A49: Percent Change: Test year vs. Most Current Actual | G49: =IF(ISERROR((K46-G46)/G46), "", (K46-G46)/G46) -> 0.3025240988
A50: Simple average of % variance for all years | G50: =IF(ISERROR((K46-C46)/C46), "", (K46-C46)/C46) -> 0.4784806127 | L50: =IF(ISERROR(AVERAGE(E48,G48,I48,K48)), "", AVERAGE(E48,G48,I48,K48)) -> 0.1037586814
A51: Compound Annual Growth Rate for all years | G51: =IF(ISERROR((K47-C47)/C47), "", (K47-C47)/C47) ->  | L51: =IF((K46-C46)=0, "", (K46/C46)^(1/4)-100%) -> 0.1026911995
A52: ="Compound Growth Rate (" & E13 & " vs. " & 'LDC Info'!E30 & " Actuals)" -> Compound Growth Rate (2011 Actuals vs. 2009 Actuals) | G52: =IF(ISERROR((G46/C46)^(1/(2010-2008)) - 1), "", (G46-C46)/C46) -> 0.135088874
A54: Note:
A56: 1 "BA" = Board-Approved
A57: 2 If it has been more than three years since the applicant last filed a cost of service application, additional years of historical actuals should be incorporated into the table, as necessary, to go back to the last cost of service application. If the applicant last filed a cost of service application less than three years ago, a minimum of three years of actual information is required.
A59: 3 Recoverable OM&A that is included on these tables should be identical to the recoverable OM&A that is shown for the corresponding periods on Appendix 2-H.

Sheet App.2-J_OM&A_Cost _Drivers
F1: File Number: | G1: ='LDC Info'!$E$18 -> EB-2012-0139
F2: Exhibit: | G2: 1900-01-04
F3: Tab: | G3: 1900-01-02
F4: Schedule: | G4: 1900-01-03
F5: Page:
F7: Date: | G7: 2012-08-31
A10: Appendix 2-J
A11: OM&A Cost Driver Table
A13: OM&A | B13: ="Last Rebasing Year (" & 'LDC Info'!E30 & " Actuals)" -> Last Rebasing Year (2009 Actuals) | C13: 2009 Actuals | D13: ='LDC Info'!E26 -2 & " Actuals" -> 2010 Actuals | E13: ='LDC Info'!E26 -1 & " Actuals" -> 2011 Actuals | F13: ='LDC Info'!E26 & " Bridge Year" -> 2012 Bridge Year | G13: ='LDC Info'!E28 & " Test Year" -> 2013 Test Year
A14: Reporting Basis
A15: Opening Balance | B15: ='App.2-I_OM&A_Summary_Analys'!B26 -> 3897740 | C15: =B24 -> 3696411 | D15: =IF(ISERROR(FIND("2008", $B$13)), B24, C24) -> 3696411 | E15: =D24 -> 3858587.997 | F15: =E24 -> 4195754.97 | G15: =F24 -> 4634759.869
A16: Cost Driver #1 - 3% inflation | D16: 110892.33 | E16: 115757.6399 | F16: 125872.6491 | G16: 139042.7961
A17: Cost Driver #2 - Asset Mgt Plan | B17: -174800 | D17: -193602 | E17: -301710 | F17: -94856 | G17: 81834
A18: Cost Driver #3 - Meter/Smart meter costs | B18: 0 | D18: 0 | E18: -47000 | F18: 155800 | G18: 25000
A19: Cost Driver #4 - Payroll cost | B19: -91500 | D19: 198786.6667 | E19: 563119.3333 | F19: 231781.25 | G19: 436225
A20: Cost Driver #5 - Bad debts | B20: 58000 | D20: -2700 | E20: -20500 | F20: 8000 | G20: 22750
A21: Cost Driver #6 - Admin services | B21: 6971 | D21: 48800 | E21: 19000 | F21: 12407 | G21: 125460
A22: Cost Driver #7 - Annual leap program | E22: 8500
A24: Closing Balance | B24: =SUM(B15:B23) -> 3696411 | C24: 3696411 | D24: 3858587.997 | E24: 4195754.97 | F24: 4634759.869 | G24: 5465071.665
A27: Notes:
A29: 1 | B29: For each year, a detailed explanation for each cost driver and associated amount is
B30: required.
A31: 2 | B31: The closing balance for each year becomes the opening balance for the next year.
A32: 3 | B32: If it has been more than three years since the applicant last filed a cost of service application, additional years of historical actuals should be incorporated into the table, as necessary, to go back to the last cost of service application. If the applicant last filed a cost of service application less than three years ago, a minimum of three years of actual information is required.
A36: 4 | B36: Opening Balance for "Last Rebasing Year" (cell B15) should be equal to the Board-Approved amount.

Sheet App.2-K_Employee Costs
F1: File Number: | G1: ='LDC Info'!$E$18 -> EB-2012-0139
F2: Exhibit:
F3: Tab:
F4: Schedule:
F5: Page:
F7: Date: | G7: 2012-08-31
A9: Appendix 2-K
A10: Employee Costs
B12: ="Last Rebasing Year (" & 'LDC Info'!E30 & " Board-Approved)" -> Last Rebasing Year (2009 Board-Approved) | C12: ="Last Rebasing Year (" & 'LDC Info'!E30 & " Actuals)" -> Last Rebasing Year (2009 Actuals) | D12: ='LDC Info'!E26 -2 & " Actuals" -> 2010 Actuals | E12: ='LDC Info'!E26 -1 & " Actuals" -> 2011 Actuals | F12: ='LDC Info'!E26 & " Bridge Year" -> 2012 Bridge Year | G12: ='LDC Info'!E28 & " Test Year" -> 2013 Test Year
A13: Reporting Basis | B13: CGAAP | C13: CGAAP | D13: CGAAP | E13: CGAAP | F13: CGAAP | G13: MIFRS
A14: Number of Employees (FTEs including Part-Time)1
A15: Executive
A16: Management | B16: 8 | C16: 9 | D16: 10 | E16: 10.5 | F16: 11.5 | G16: 11.5
A17: Non-Union
A18: Union | B18: 18.3 | C18: 17.8 | D18: 22.5 | E18: 23.8 | F18: 24.8 | G18: 29
A19: Total | B19: =SUM(B15:B18) -> 26.3 | C19: 26.8 | D19: 32.5 | E19: 34.3 | F19: 36.3 | G19: 40.5
A20: Number of Part-Time Employees
A21: Executive
A22: Management | E22: 0.5 | F22: 0.5 | G22: 0.5
A23: Non-Union
A24: Union | D24: 0.5 | E24: 0.5 | F24: 0.5 | G24: 1
A25: Total | B25: =SUM(B21:B24) -> 0 | C25: 0 | D25: 0.5 | E25: 1 | F25: 1 | G25: 1.5
A26: Total Salary and Wages
A27: Executive
A28: Management | B28: 763988 | C28: 753181.015 | D28: 884165.7025 | E28: 995529.667 | F28: 1162162.286 | G28: 1217027
A29: Non-Union
A30: Union | B30: 944616.2092 | C30: 857885.96 | D30: 964138.7375 | E30: 1349451.931 | F30: 1533214.093 | G30: 1916707
A31: Total | B31: =SUM(B27:B30) -> 1708604.209 | C31: 1611066.975 | D31: 1848304.44 | E31: 2344981.598 | F31: 2695376.379 | G31: 3133734
A32: Current Benefits
A33: Executive
A34: Management | B34: 174099.6834 | C34: 157020.8233 | D34: 186476.7831 | E34: 217805.2067 | F34: 272290.5715 | G34: 296878
A35: Non-Union
A36: Union | B36: 234593.5691 | C36: 188589.7112 | D36: 213432.2409 | E36: 299127.7237 | F36: 362439.5431 | G36: 475994
A37: Total | B37: =SUM(B33:B36) -> 408693.2525 | C37: 345610.5345 | D37: 399909.024 | E37: 516932.9304 | F37: 634730.1147 | G37: 772872
A38: Accrued Pension and Post-Retirement Benefits
A39: Executive
A40: Management | B40: 2192.243346 | C40: 1511.19403 | D40: 1093.846154 | E40: 1059.489796 | F40: 1393.939394 | G40: 1278
A41: Non-Union
A42: Union | B42: 5014.756654 | C42: 2988.80597 | D42: 2461.153846 | E42: 2401.510204 | F42: 3006.060606 | G42: 3222
A43: Total | B43: =SUM(B39:B42) -> 7207 | C43: 4500 | D43: 3555 | E43: 3461 | F43: 4400 | G43: 4500
A44: Total Benefits (Current + Accrued)
A45: Executive | B45: =B33+B39 -> 0 | C45: 0 | D45: 0 | E45: 0 | F45: 0 | G45: 0
A46: Management | B46: =B34+B40 -> 176291.9268 | C46: 158532.0173 | D46: 187570.6292 | E46: 218864.6965 | F46: 273684.5109 | G46: 298156
A47: Non-Union | B47: 0 | C47: 0 | D47: 0 | E47: 0 | F47: 0 | G47: 0
A48: Union | B48: 239608.3257 | C48: 191578.5172 | D48: 215893.3948 | E48: 301529.2339 | F48: 365445.6037 | G48: 479216
A49: Total | B49: 415900.2525 | C49: 350110.5345 | D49: 403464.024 | E49: 520393.9304 | F49: 639130.1147 | G49: 777372
A50: Total Compensation (Salary, Wages, & Benefits)
A51: Executive | B51: =B27+B45 -> 0 | C51: 0 | D51: 0 | E51: 0 | F51: 0 | G51: 0
A52: Management | B52: 940279.9268 | C52: 911713.0323 | D52: 1071736.332 | E52: 1214394.364 | F52: 1435846.797 | G52: 1515183
A53: Non-Union | B53: 0 | C53: 0 | D53: 0 | E53: 0 | F53: 0 | G53: 0
A54: Union | B54: 1184224.535 | C54: 1049464.477 | D54: 1180032.132 | E54: 1650981.164 | F54: 1898659.696 | G54: 2395923
A55: Total | B55: 2124504.462 | C55: 1961177.51 | D55: 2251768.464 | E55: 2865375.528 | F55: 3334506.493 | G55: 3911106
A57: Compensation - Average Yearly Base Wages
A58: Executive
A59: Management | B59: 90993.5 | C59: 79303.44611 | D59: 82878.57025 | E59: 88269.58733 | F59: 94709.76401 | G59: 99290.18737
A60: Non-Union
A61: Union | B61: 51500.38251 | C61: 48158.7618 | D61: 42159.455 | E61: 53482.51809 | F61: 58457.99083 | G61: 63129.22992
A62: Total
A63: Compensation - Average Yearly Overtime
A64: Executive
A65: Management | B65: 4505 | C65: 4383.333333 | D65: 5538 | E65: 6542.761905 | F65: 6347.826087 | G65: 6538.26087
A66: Non-Union
A67: Union | B67: 117.9895716 | C67: 37.07865169 | D67: 691.1555556 | E67: 3217.142857 | F67: 3365.158065 | G67: 2964.124055
A68: Total
A69: Compensation - Average Yearly Incentive Pay
A70: Executive
A71: Management
A72: Non-Union
A73: Union
A74: Total
A75: Compensation - Average Yearly Benefits
A76: Executive
A77: Management | B77: 22036.49085 | C77: 17446.75814 | D77: 18647.67831 | E77: 20743.35302 | F77: 23677.441 | G77: 25815.44872
A78: Non-Union
A79: Union | B79: 13093.35113 | C79: 10594.9276 | D79: 9485.877375 | E79: 12568.39175 | F79: 14614.49771 | G79: 16413.59978
A80: Total
A82: Total Compensation | B82: =SUM(B51:B54) -> 2124504.462 | C82: =SUM(C51:C54) -> 1961177.51 | D82: 2251768.464 | E82: 2865375.528 | F82: 3334506.493 | G82: 3911106
A83: Total Compensation Capitalized (CGAAP) | B83: 147000 | C83: 135014 | D83: 245271 | E83: 474840 | F83: 697092
A84: Total Compensation Charged to OM&A (CGAAP) | B84: =B82-B83 -> 1977504.462 | C84: =C82-C83 -> 1826163.51 | D84: =D82-D83 -> 2006497.464 | E84: =E82-E83 -> 2390535.528 | F84: =F82-F83 -> 2637414.493
A86: Total Compensation Capitalized (MIFRS) | E86: =E83 -> 474840 | F86: 697092 | G86: 792446
A87: Total Compensation Charged to OM&A (MIFRS) | E87: =E82-E86 -> 2390535.528 | F87: =F82-F86 -> 2637414.493 | G87: =G82-G86 -> 3118660
A90: 1 If an applicant wishes to use headcount, it must also file the same schedule on an FTE basis.
A92: Note:
A93: 1 Please report compensation on a CGAAP and MIFRS basis for your transition year.

Sheet App.2-L_OM&A_per_Cust_FTEE
G1: File Number: | H1: ='LDC Info'!$E$18 -> EB-2012-0139
G2: Exhibit: | H2: 4
G3: Tab: | H3: 1
G4: Schedule: | H4: 1
G5: Page:
G7: Date: | H7: 2012-08-31
A9: Appendix 2-L
A10: Recoverable OM&A Cost per Customer and per FTEE
C12: ="Last Rebasing Year (" & 'LDC Info'!E30 & " Board-Approved)" -> Last Rebasing Year (2009 Board-Approved) | D12: ="Last Rebasing Year (" & 'LDC Info'!E30 & " Actuals)" -> Last Rebasing Year (2009 Actuals) | E12: ='LDC Info'!E26 -2 & " Actuals" -> 2010 Actuals | F12: ='LDC Info'!E26 -1 & " Actuals" -> 2011 Actuals | G12: ='LDC Info'!E26 & " Bridge Year" -> 2012 Bridge Year | H12: ='LDC Info'!E28 & " Test Year" -> 2013 Test Year
A13: Reporting Basis | C13: CGAAP | D13: CGAAP | E13: CGAAP | F13: CGAAP | G13: CGAAP | H13: MIFRS
A14: Number of Customers | C14: 14411 | D14: 14460 | E14: 14584 | F14: 14742 | G14: 14952 | H14: 15165
A15: Total Recoverable OM&A from Appendix 2-I | C15: ='App.2-I_OM&A_Summary_Analys'!B36 -> 3897740 | D15: ='App.2-I_OM&A_Summary_Analys'!C36 -> 3696411 | E15: ='App.2-I_OM&A_Summary_Analys'!D36 -> 3858588 | F15: ='App.2-I_OM&A_Summary_Analys'!E36 -> 4195755 | G15: ='App.2-I_OM&A_Summary_Analys'!F36 -> 4634760 | H15: ='App.2-I_OM&A_Summary_Analys'!G36 -> 5465072
A16: OM&A cost per customer | C16: =IF(C14=0,"",C15/C14) -> 270.46978 | D16: 255.630083 | E16: 264.5767965 | F16: 284.6123321 | G16: 309.975923 | H16: 360.3740191
A17: Number of FTEEs | C17: 26.3 | D17: 26.8 | E17: 32.5 | F17: 34.3 | G17: 36.3 | H17: 40.5
A18: Customers/FTEEs | C18: =IF(C17=0,"",C14/C17) -> 547.9467681 | D18: 539.5522388 | E18: 448.7384615 | F18: 429.7959184 | G18: 411.9008264 | H18: 374.4444444
A19: OM&A Cost per FTEE | C19: =IF(C17=0,"",C15/C17) -> 148203.0418 | D19: 137925.7836 | E19: 118725.7846 | F19: 122325.2187 | G19: 127679.3388 | H19: 134940.0494
A21: Notes:
A23: 1 | B23: If it has been more than three years since the applicant last filed a cost of service application, additional years of historical actuals should be incorporated into the table, as necessary, to go back to the last cost of service application. If the applicant last filed a cost of service application less than three years ago, a minimum of three years of actual information is required.
A27: 2 | B27: The method of calculating the number of customers must be identified. The number of residential, GS<>50 per load forecast
A28: 3 | B28: The method of calculating the number of FTEEs must be identified. See also Appendix 2-K
A29: 4 | B29: The number of customers and the number of FTEEs should correspond to mid-year or average of January 1 and December 31 figures.

Sheet App.2-M_Regulatory_Costs
J1: File Number: | K1: ='LDC Info'!$E$18 -> EB-2012-0139
J2: Exhibit: | K2: 4
J3: Tab: | K3: 1
J4: Schedule: | K4: 1
J5: Page:
J7: Date: | K7: 2012-08-31
A9: Appendix 2-M
A10: Regulatory Cost Schedule
A13: Regulatory Cost Category | C13: USoA Account | D13: USoA Account Balance | E13: Ongoing or One-time Cost? 2 | F13: ="Last Rebasing Year (" & 'LDC Info'!E30 & " Board Approved)" -> Last Rebasing Year (2009 Board Approved) | G13: Most Current Actuals Year 2011 | H13: ='LDC Info'!E26 & " Bridge Year" -> 2012 Bridge Year | I13: Annual % Change | J13: ='LDC Info'!E28 & " Test Year" -> 2013 Test Year | K13: Annual % Change
A14: (A) | C14: (B) | D14: (C ) | E14: (D) | F14: (E) | G14: (F) | H14: (G) | I14: (H) = [(G)-(F)]/(F) | J14: (I) | K14: (J) = [(I)-(G)]/(G)
A15: 1 | B15: OEB Annual Assessment | C15: 5655 | E15: On-Going | F15: 49990 | G15: 46951 | H15: 48000 | I15: =IF(G15=0,"",(H15-G15)/G15) -> 0.02234244212 | J15: 49000 | K15: =IF(H15=0,"",(J15-H15)/H15) -> 0.02083333333
A16: 2 | B16: OEB Section 30 Costs (Applicant-originated) | C16: 5655 | E16: On-Going | F16: 4000 | G16: 6546 | H16: 8000 | I16: =IF(G16=0,"",(H16-G16)/G16) -> 0.2221203789 | J16: 8000 | K16: =IF(H16=0,"",(J16-H16)/H16) -> 0
A17: 3 | B17: OEB Section 30 Costs (OEB-initiated) | C17: 5655 | E17: On-Going | F17: 4000 | G17: 6546 | H17: 8000 | I17: 0.2221203789 | J17: 8000 | K17: 0
A18: 4 | B18: Expert Witness costs for regulatory matters | C18: 5655 | E18: On-Time | J18: 16000
A19: 5 | B19: Legal costs for regulatory matters
A20: 6 | B20: Consultants' costs for regulatory matters | C20: 5655 | E20: On-Time | F20: 28700 | G20: 0 | H20: 0 | J20: =41000-16000 -> 25000
A21: 7 | B21: Operating expenses associated with staff resources allocated to regulatory matters
A22: 8 | B22: Operating expenses associated with other resources allocated to regulatory matters 1
A23: 9 | B23: Other regulatory agency fees or assessments
A24: 10 | B24: Any other costs for regulatory matters (please define)
A25: 11 | B25: Intervenor costs | E25: On-Time | F25: 8000 | J25: 9000
A26: 12 | B26: Sub-total - Ongoing Costs 3 | D26: =SUMIF($E15:$E25,$E11,D15:D25) -> 0 | F26: =SUM(F15:F25) -> 94690 | G26: =SUM(G15:G25) -> 60043 | H26: =SUM(H15:H25) -> 64000 | I26: 0.06590276968 | J26: =SUM(J15:J25) -> 115000 | K26: 0.796875
A27: 13 | B27: Sub-total - One-time Costs 4 | D27: =SUMIF($E15:$E25,$E12,D15:D25) -> 0 | F27: =SUMIF($E15:$E25,$E12,F15:F25) -> 0 | G27: =SUMIF($E15:$E25,$E12,G15:G25) -> 0 | H27: =SUMIF($E15:$E25,$E12,H15:H25) -> 0 | J27: =SUMIF($E15:$E25,$E12,J15:J25) -> 0
A28: 14 | B28: Total | D28: =D26+D27 -> 0 | F28: =F26+F27 -> 94690 | G28: =G26+G27 -> 60043 | H28: =H26+H27 -> 64000 | I28: 0.06590276968 | J28: =J26+J27 -> 115000 | K28: 0.796875
A31: 1 | B31: Please identify the resources involved.
A32: 2 | B32: Where a category's costs include both one-time and ongoing costs, the applicant should prove a separate breakdown between one-time and ongoing costs.
A33: 3 | B33: Sum of all ongoing costs identified in rows 1 to 11 inclusive.
A34: 4 | B34: Sum of all one-time costs identified in rows 1 to 11 inclusive.
A37: Please fill out the following table for all one-time costs related to this cost of service application
C39: Historical Year(s) | D39: =H13 -> 2012 Bridge Year | E39: =J13 -> 2013 Test Year
A40: 4 | B40: Expert Witness costs for regulatory matters | D40: =H18 -> 0 | E40: =J18 -> 16000
A41: 6 | B41: Consultants' costs for regulatory matters | C41: =(28822+21470+26798)/4 -> 19272.5 | D41: =H20 -> 0 | E41: =J20 -> 25000
A42: 7 | B42: Operating expenses associated with staff resources allocated to regulatory matters | D42: =H21 -> 0 | E42: =J21 -> 0
A43: 8 | B43: Operating expenses associated with other resources allocated to regulatory matters 1 | D43: =H22 -> 0 | E43: =J22 -> 0
A44: 11 | B44: Intervenor costs | C44: =32172/4 -> 8043 | D44: =H25 -> 0 | E44: =J25 -> 9000
B45: Total | C45: =SUM(C40:C44) -> 27315.5 | E45: =SUM(E40:E44) -> 50000

Sheet App.2-N_Corp_Cost_Allocation
F1: File Number: | G1: ='LDC Info'!$E$18 -> EB-2012-0139
F2: Exhibit:
F3: Tab:
F4: Schedule:
F5: Page:
F7: Date: | G7: 2012-08-31
A9: Appendix 2-N
A10: Shared Services and Corporate Cost Allocation
A12: Shared Services
B13: Year: | C13: 2009
A14: Name of Company | C14: Service Offered | D14: Pricing Methdology | E14: Price for the Service | F14: Cost for the Service
A15: From | B15: To
E16: $ | F16: $
A17: Innisfil Hydro | B17: Innisfil Energy Services Ltd | C17: Accounting & CSR | D17: Cost plus | E17: 29091 | F17: 15630 | G17: =1-F17/E17 -> 0.462720429
B21: Year: | C21: 2010
A22: Name of Company | C22: Service Offered | D22: Pricing Methdology | E22: Price for the Service | F22: Cost for the Service
A23: From | B23: To
E24: $ | F24: $
A25: Innisfil Hydro | B25: Innisfil Energy Services Ltd | C25: Accounting & CSR | D25: Cost plus | E25: =F25/0.53 -> 5449.056604 | F25: 2888 | G25: =1-F25/E25 -> 0.47
B29: Year: | C29: 2011
A30: Name of Company | C30: Service Offered | D30: Pricing Methdology | E30: Price for the Service | F30: Cost for the Service
A31: From | B31: To
E32: $ | F32: $
A33: Innisfil Hydro | B33: Innisfil Energy Services Ltd | C33: Accounting & CSR | D33: Cost plus | E33: 7575 | F33: 3965 | G33: =1-F33/E33 -> 0.4765676568
B37: Year: | C37: 2012
A38: Name of Company | C38: Service Offered | D38: Pricing Methdology | E38: Price for the Service | F38: Cost for the Service
A39: From | B39: To
E40: $ | F40: $
A41: Innisfil Hydro | B41: Innisfil Energy Services Ltd | C41: Accounting & CSR | D41: Cost plus | E41: 6700 | F41: 3400 | G41: =1-F41/E41 -> 0.4925373134
B45: Year: | C45: 2013
A46: Name of Company | C46: Service Offered | D46: Pricing Methdology | E46: Price for the Service | F46: Cost for the Service
A47: From | B47: To
E48: $ | F48: $
A49: Innisfil Hydro | B49: Innisfil Energy Services Ltd | C49: Accounting & CSR | D49: Cost plus | E49: 6800 | F49: 3400 | G49: =1-F49/E49 -> 0.5
A54: Corporate Cost Allocation - N/A
A56: Name of Company | C56: Service Offered | D56: Pricing Methdology | E56: % of Corporate Costs Allocated | F56: Amount Allocated
A57: From | B57: To
E58: % | F58: $
A59: eg: parent company | B59: eg: regulated entity
A68: Note:
A69: 1 | B69: This appendix must be completed in relation to each service provided or received for the Historical (actuals), Bridge and Test years.

Sheet App.2-OA Capital Structure
K1: File Number: | O1: ='LDC Info'!$E$18 -> EB-2012-0139
K2: Exhibit: | O2: 5
K3: Tab: | O3: 1
K4: Schedule: | O4: 2
K5: Page:
K7: Date: | O7: 2012-08-31
C10: Appendix 2-OA
C11: Capital Structure and Cost of Capital
A13: This table must be completed for the required years of all historical years, the bridge year and the test year.
A15: Line No.
C16: Particulars | E16: Capitalization Ratio | K16: Cost Rate | O16: Return
C17: 2009 Board Approved
E18: (%) | I18: ($) | K18: (%) | O18: ($)
C19: Debt
A20: 1 | C20: Long-term Debt | E20: 0.5267 | I20: =$I$29*E20 -> 12045623.73 | K20: 0.07283773502 | O20: =K20*I20 -> 877375.9496
A21: 2 | C21: Short-term Debt | E21: 0.04 | G21: (1) | I21: =$I$29*E21 -> 914799.6 | K21: 0.0133 | O21: =K21*I21 -> 12166.83468
A22: 3 | C22: Total Debt | E22: =SUM(E20:E21) -> 0.5667 | I22: =SUM(I20:I21) -> 12960423.33 | K22: =IF(E22=0,0,SUMPRODUCT(E20:E21,K20:K21)/E22) -> 0.06863531857 | O22: =SUM(O20:O21) -> 889542.7843
C24: Equity
A25: 4 | C25: Common Equity | E25: 0.4333 | I25: =$I$29*E25 -> 9909566.667 | K25: 0.0801 | O25: =K25*I25 -> 793756.29
A26: 5 | C26: Preferred Shares | I26: =$I$29*E26 -> 0 | O26: =K26*I26 -> 0
A27: 6 | C27: Total Equity | E27: =SUM(E25:E26) -> 0.4333 | I27: =SUM(I25:I26) -> 9909566.667 | K27: =IF(E27=0,0,SUMPRODUCT(E25:E26,K25:K26)/E27) -> 0.0801 | O27: =SUM(O25:O26) -> 793756.29
A29: 7 | C29: Total | E29: 1 | I29: 22869990 | K29: =(K22*E22)+(K27*E27) -> 0.07360296504 | O29: =O22+O27 -> 1683299.074
A32: Line No.
C33: Particulars | E33: Capitalization Ratio | K33: Cost Rate | O33: Return
C35: 2009
E36: (%) | I36: ($) | K36: (%) | O36: ($)
C37: Debt
A38: 1 | C38: Long-term Debt | E38: 0.5267 | I38: =$I$47*E38 -> 11574236.19 | K38: 0.07205727355 | O38: =K38*I38 -> 834007.9031
A39: 2 | C39: Short-term Debt | E39: 0.04 | G39: (1) | I39: =$I$47*E39 -> 879000.28 | K39: 0.0133 | O39: =K39*I39 -> 11690.70372
A40: 3 | C40: Total Debt | E40: =SUM(E38:E39) -> 0.5667 | I40: =SUM(I38:I39) -> 12453236.47 | K40: =IF(E40=0,0,SUMPRODUCT(E38:E39,K38:K39)/E40) -> 0.06790994526 | O40: =SUM(O38:O39) -> 845698.6068
C42: Equity
A43: 4 | C43: Common Equity | E43: 0.4333 | I43: =$I$47*E43 -> 9521770.533 | K43: 0.0801 | O43: =K43*I43 -> 762693.8197
A44: 5 | C44: Preferred Shares | I44: =$I$47*E44 -> 0 | O44: =K44*I44 -> 0
A45: 6 | C45: Total Equity | E45: =SUM(E43:E44) -> 0.4333 | I45: =SUM(I43:I44) -> 9521770.533 | K45: =IF(E45=0,0,SUMPRODUCT(E43:E44,K43:K44)/E45) -> 0.0801 | O45: =SUM(O43:O44) -> 762693.8197
A47: 7 | C47: Total | E47: 1 | I47: 21975007 | K47: =(K40*E40)+(K45*E45) -> 0.07319189598 | O47: =O40+O45 -> 1608392.426
A50: Line No.
C51: Particulars | E51: Capitalization Ratio | K51: Cost Rate | O51: Return
C53: 2010
E54: (%) | I54: ($) | K54: (%) | O54: ($)
C55: Debt
A56: 1 | C56: Long-term Debt | E56: 0.56 | I56: =$I$65*E56 -> 13890430.96 | K56: 0.05478722727 | O56: =K56*I56 -> 761018.1979
A57: 2 | C57: Short-term Debt | E57: 0.04 | G57: (1) | I57: =$I$65*E57 -> 992173.64 | K57: 0.0133 | O57: =K57*I57 -> 13195.90941
A58: 3 | C58: Total Debt | E58: =SUM(E56:E57) -> 0.6 | I58: =SUM(I56:I57) -> 14882604.6 | K58: =IF(E58=0,0,SUMPRODUCT(E56:E57,K56:K57)/E58) -> 0.05202141212 | O58: =SUM(O56:O57) -> 774214.1073
C60: Equity
A61: 4 | C61: Common Equity | E61: 0.4 | I61: =$I$65*E61 -> 9921736.4 | K61: 0.0801 | O61: =K61*I61 -> 794731.0856
A62: 5 | C62: Preferred Shares | I62: =$I$65*E62 -> 0 | O62: =K62*I62 -> 0
A63: 6 | C63: Total Equity | E63: =SUM(E61:E62) -> 0.4 | I63: =SUM(I61:I62) -> 9921736.4 | K63: =IF(E63=0,0,SUMPRODUCT(E61:E62,K61:K62)/E63) -> 0.0801 | O63: =SUM(O61:O62) -> 794731.0856
A65: 7 | C65: Total | E65: 1 | I65: 24804341 | K65: =(K58*E58)+(K63*E63) -> 0.06325284727 | O65: =O58+O63 -> 1568945.193
A68: Line No.
C69: Particulars | E69: Capitalization Ratio | K69: Cost Rate | O69: Return
C71: 2011
E72: (%) | I72: ($) | K72: (%) | O72: ($)
C73: Debt
A74: 1 | C74: Long-term Debt | E74: 0.56 | I74: =$I$83*E74 -> 15272322.8 | K74: 0.05178297213 | O74: =K74*I74 -> 790846.2658
A75: 2 | C75: Short-term Debt | E75: 0.04 | G75: (1) | I75: 1090880.2 | K75: 0.0133 | O75: =K75*I75 -> 14508.70666
A76: 3 | C76: Total Debt | E76: =SUM(E74:E75) -> 0.6 | I76: =SUM(I74:I75) -> 16363203 | K76: =IF(E76=0,0,SUMPRODUCT(E74:E75,K74:K75)/E76) -> 0.04921744065 | O76: =SUM(O74:O75) -> 805354.9725
C78: Equity
A79: 4 | C79: Common Equity | E79: 0.4 | I79: =$I$83*E79 -> 10908802 | K79: 0.0801 | O79: =K79*I79 -> 873795.0402
A80: 5 | C80: Preferred Shares | I80: =$I$83*E80 -> 0 | O80: =K80*I80 -> 0
A81: 6 | C81: Total Equity | E81: =SUM(E79:E80) -> 0.4 | I81: =SUM(I79:I80) -> 10908802 | K81: =IF(E81=0,0,SUMPRODUCT(E79:E80,K79:K80)/E81) -> 0.0801 | O81: =SUM(O79:O80) -> 873795.0402
A83: 7 | C83: Total | E83: 1 | I83: 27272005 | K83: =(K76*E76)+(K81*E81) -> 0.06157046439 | O83: =O76+O81 -> 1679150.013
A86: Line No.
C87: Particulars | E87: Capitalization Ratio | K87: Cost Rate | O87: Return
C89: 2012 Bridge
E90: (%) | I90: ($) | K90: (%) | O90: ($)
C91: Debt
A92: 1 | C92: Long-term Debt | E92: 0.56 | I92: =$I$101*E92 -> 17767758.96 | K92: 0.05225936201 | O92: =K92*I92 -> 928531.7476
A93: 2 | C93: Short-term Debt | E93: 0.04 | G93: (1) | I93: 1269125.64 | K93: 0.0133 | O93: =K93*I93 -> 16879.37101
A94: 3 | C94: Total Debt | E94: =SUM(E92:E93) -> 0.6 | I94: =SUM(I92:I93) -> 19036884.6 | K94: =IF(E94=0,0,SUMPRODUCT(E92:E93,K92:K93)/E94) -> 0.04966207121 | O94: =SUM(O92:O93) -> 945411.1186
C96: Equity
A97: 4 | C97: Common Equity | E97: 0.4 | I97: =$I$101*E97 -> 12691256.4 | K97: 0.0801 | O97: =K97*I97 -> 1016569.638
A98: 5 | C98: Preferred Shares | I98: =$I$101*E98 -> 0 | O98: =K98*I98 -> 0
A99: 6 | C99: Total Equity | E99: =SUM(E97:E98) -> 0.4 | I99: =SUM(I97:I98) -> 12691256.4 | K99: =IF(E99=0,0,SUMPRODUCT(E97:E98,K97:K98)/E99) -> 0.0801 | O99: =SUM(O97:O98) -> 1016569.638
A101: 7 | C101: Total | E101: 1 | I101: 31728141 | K101: =(K94*E94)+(K99*E99) -> 0.06183724273 | O101: =O94+O99 -> 1961980.756
A104: Line No.
C105: Particulars | E105: Capitalization Ratio | K105: Cost Rate | O105: Return
C107: 2013 Test
E108: (%) | I108: ($) | K108: (%) | O108: ($)
C109: Debt
A110: 1 | C110: Long-term Debt | E110: 0.56 | I110: =$I$119*E110 -> 21286134.24 | K110: 0.05112196949 | O110: =K110*I110 -> 1088189.105
A111: 2 | C111: Short-term Debt | E111: 0.04 | G111: (1) | I111: 1520438.16 | K111: 0.0208 | O111: =K111*I111 -> 31625.11373
A112: 3 | C112: Total Debt | E112: =SUM(E110:E111) -> 0.6 | I112: =SUM(I110:I111) -> 22806572.4 | K112: =IF(E112=0,0,SUMPRODUCT(E110:E111,K110:K111)/E112) -> 0.04910050485 | O112: =SUM(O110:O111) -> 1119814.219
C114: Equity
A115: 4 | C115: Common Equity | E115: 0.4 | I115: =$I$119*E115 -> 15204381.6 | K115: 0.0912 | O115: =K115*I115 -> 1386639.602
A116: 5 | C116: Preferred Shares | I116: =$I$119*E116 -> 0 | O116: =K116*I116 -> 0
A117: 6 | C117: Total Equity | E117: =SUM(E115:E116) -> 0.4 | I117: =SUM(I115:I116) -> 15204381.6 | K117: =IF(E117=0,0,SUMPRODUCT(E115:E116,K115:K116)/E117) -> 0.0912 | O117: =SUM(O115:O116) -> 1386639.602
A119: 7 | C119: Total | E119: 1 | I119: 38010954 | K119: =(K112*E112)+(K117*E117) -> 0.06594030291 | O119: =O112+O117 -> 2506453.821
A123: Notes
A124: (1) | C124: 4.0% unless an applicant has proposed or been approved for a different amount.

Sheet App.2-OB_Debt Instruments
J1: File Number: | K1: ='LDC Info'!$E$18 -> EB-2012-0139
J2: Exhibit: | K2: 5
J3: Tab: | K3: 1
J4: Schedule: | K4: 2
J5: Page:
J7: Date: | K7: 2012-08-31
A10: Appendix 2-OB
A11: Debt Instruments
A13: This table must be completed for the required years of all historical years, the bridge year and the test year.
D14: Year | E14: 2009
A16: Row | B16: Description | C16: Lender | D16: Affiliated or Third-Party Debt? | E16: Fixed or Variable-Rate? | F16: Start Date | G16: Term (years) | H16: Principal ($) | I16: Rate (%) (Note 2) | J16: Interest ($) (Note 1)
A17: 1 | B17: Notes Payable | C17: Town of Innsfil | D17: Affiliated | E17: Variable Rate | F17: 2007-12-31 | G17: 3 | H17: 2107444 | I17: 0.0113 | J17: =H17*I17 -> 23814.1172
A18: 2 | B18: Debentures | C18: Town of Innsfil | D18: Third-Party | E18: Fixed Rate | F18: 1995-04-01 | G18: 20 | H18: 5032000 | I18: 0.0975 | J18: =H18*I18 -> 490620
A19: 3 | J19: 0
A20: 4 | J20: 0
A21: 5 | J21: 0
A22: 6 | J22: 0
A23: 7 | J23: 0
A24: 8 | J24: 0
A25: 9 | J25: 0
A26: 10 | J26: 0
A27: 11 | J27: 0
A28: 12 | J28: 0
A30: Total | H30: =SUM(H17:H28) -> 7139444 | I30: =IF(H30=0,"",J30/H30) -> 0.07205520727 | J30: =SUM(J17:J28) -> 514434.1172
D33: Year | F33: 2010
A35: Row | B35: Description | C35: Lender | D35: Affiliated or Third-Party Debt? | E35: Fixed or Variable-Rate? | F35: Start Date | G35: Term (years) | H35: Principal ($) | I35: Rate (%) (Note 2) | J35: Interest ($) (Note 1)
A36: 1 | B36: Bank Loan | C36: Toronto Dominion Bank | D36: Third-Party | E36: Fixed Rate | F36: 2010-10-29 | G36: 20 | H36: 2096644 | I36: 0.0453 | J36: 28420.00942
A37: 2 | B37: Debentures | C37: Town of Innsfil | D37: Third-Party | E37: Fixed Rate | F37: 1995-04-01 | G37: 20 | H37: 4382000 | I37: 0.0975 | J37: =H37*I37 -> 427245
A38: 3 | B38: Construction Loan | C38: Infrastructure Ontario | D38: Third-Party | E38: Variable Rate | F38: 2010-04-15 | G38: Demand | H38: 2500000 | I38: 0.0145 | J38: 36250
A39: 4 | J39: 0
A40: 5 | J40: 0
A41: 6 | J41: 0
A42: 7 | J42: 0
A43: 8 | J43: 0
A44: 9 | J44: 0
A45: 10 | J45: 0
A46: 11 | J46: 0
A47: 12 | J47: 0
A49: Total | H49: =SUM(H36:H47) -> 8978644 | I49: =IF(H49=0,"",J49/H49) -> 0.05478722727 | J49: =SUM(J36:J47) -> 491915.0094
D52: Year | F52: 2011
A54: Row | B54: Description | C54: Lender | D54: Affiliated or Third-Party Debt? | E54: Fixed or Variable-Rate? | F54: Start Date | G54: Term (years) | H54: Principal ($) | I54: Rate (%) (Note 2) | J54: Interest ($) (Note 1)
A55: 1 | B55: Bank Loan | C55: Toronto Dominion Bank | D55: Third-Party | E55: Fixed Rate | F55: 2010-10-29 | G55: 20 | H55: 2029826 | I55: 0.0453 | J55: =H55*I55 -> 91951.1178
A56: 2 | B56: Debentures | C56: Town of Innsfil | D56: Third-Party | E56: Fixed Rate | F56: 1995-04-01 | G56: 20 | H56: 3666000 | I56: 0.0975 | J56: =H56*I56 -> 357435
A57: 3 | B57: Debentures | C57: Infrastructure Ontario | D57: Third-Party | E57: Fixed Rate | F57: 2011-08-15 | G57: 15 | H57: 2500000 | I57: 0.0391 | J57: 97750
A58: 4 | B58: Demand Load | C58: Toronto Dominion Bank | D58: Third-Party | E58: Variable Rate | F58: 2011-01-01 | G58: Demand | H58: 4000000 | I58: 0.0211 | J58: 84400
A59: 5 | J59: 0
A60: 6 | J60: 0
A61: 7 | J61: 0
A62: 8 | J62: 0
A63: 9 | J63: 0
A64: 10 | J64: 0
A65: 11 | J65: 0
A66: 12 | J66: 0
A68: Total | H68: =SUM(H55:H66) -> 12195826 | I68: =IF(H68=0,"",J68/H68) -> 0.05178297213 | J68: =SUM(J55:J66) -> 631536.1178
D71: Year | E71: 2012
A73: Row | B73: Description | C73: Lender | D73: Affiliated or Third-Party Debt? | E73: Fixed or Variable-Rate? | F73: Start Date | G73: Term (years) | H73: Principal ($) | I73: Rate (%) (Note 2) | J73: Interest ($) (Note 1)
A74: 1 | B74: Bank Loan | C74: Toronto Dominion Bank | D74: Third-Party | E74: Fixed Rate | F74: 2010-10-29 | G74: 20 | H74: 1960178 | I74: 0.0453 | J74: =H74*I74 -> 88796.0634
A75: 2 | B75: Debentures | C75: Town of Innsfil | D75: Third-Party | E75: Fixed Rate | F75: 1995-04-01 | G75: 20 | H75: 2876000 | I75: 0.0975 | J75: =H75*I75 -> 280410
A76: 3 | B76: Debentures | C76: Infrastructure Ontario | D76: Third-Party | E76: Fixed Rate | F76: 2011-08-15 | G76: 15 | H76: 2333333 | I76: 0.0391 | J76: 91233.3203
A77: 4 | B77: Commercial Loan | C77: Toronto Dominion Bank | D77: Third-Party | E77: Fixed Rate | F77: 2012-03-14 | G77: 24 | H77: 3909391 | I77: 0.0405 | J77: 158330.3355
A78: 5 | B78: Demand Loan | C78: Toronto Dominion Bank | D78: Third-Party | E78: Variable Rate | F78: 2012-01-01 | G78: Demand | H78: 5481662 | I78: 0.045 | J78: 246674.79
A79: 6 | J79: 0
A80: 7 | J80: 0
A81: 8 | J81: 0
A82: 9 | J82: 0
A83: 10 | J83: 0
A84: 11 | J84: 0
A85: 12 | J85: 0
A87: Total | H87: =SUM(H74:H85) -> 16560564 | I87: =IF(H87=0,"",J87/H87) -> 0.05225936201 | J87: =SUM(J74:J85) -> 865444.5092
D90: Year | E90: 2013
A92: Row | B92: Description | C92: Lender | D92: Affiliated or Third-Party Debt? | E92: Fixed or Variable-Rate? | F92: Start Date | G92: Term (years) | H92: Principal ($) | I92: Rate (%) (Note 2) | J92: Interest ($) (Note 1)
A93: 1 | B93: Bank Loan | C93: Toronto Dominion Bank | D93: Third-Party | E93: Fixed Rate | F93: 2010-10-29 | G93: 20 | H93: 1887048 | I93: 0.0453 | J93: =H93*I93 -> 85483.2744
A94: 2 | B94: Debentures | C94: Town of Innsfil | D94: Third-Party | E94: Fixed Rate | F94: 1995-04-01 | G94: 20 | H94: 2005000 | I94: 0.0975 | J94: =H94*I94 -> 195487.5
A95: 3 | B95: Debentures | C95: Infrastructure Ontario | D95: Third-Party | E95: Fixed Rate | F95: 2011-08-15 | G95: 15 | H95: 2166667 | I95: 0.0391 | J95: 84716.6797
A96: 4 | B96: Commercial Loan | C96: Toronto Dominion Bank | D96: Third-Party | E96: Fixed Rate | F96: 2012-03-14 | G96: 24 | H96: 3805466 | I96: 0.0405 | J96: 154121.373
A97: 5 | B97: Demand | C97: Toronto Dominion Bank | D97: Third-Party | E97: Variable Rate | F97: 2012-01-01 | G97: Demand | H97: 13843930 | I97: 0.05 | J97: 692196.5
A98: 6 | J98: 0
A99: 7 | J99: 0
A100: 8 | J100: 0
A101: 9 | J101: 0
A102: 10 | J102: 0
A103: 11 | J103: 0
A104: 12 | J104: 0
A106: Total | H106: =SUM(H93:H104) -> 23708111 | I106: =IF(H106=0,"",J106/H106) -> 0.05112196949 | J106: =SUM(J93:J104) -> 1212005.327
A110: Notes
A112: 1 | B112: If financing is in place only part of the year, calculate the pro-rated interest and input in the cell.
A113: 2 | B113: Input actual or deemed long-term debt rate in accordance with the guidelines in The Report of the Board on the Cost of Capital for Ontario's Regulated Utilities, issued December 11, 2009
A114: 3 | B114: Add more lines above row 12 if necessary.

Sheet App.2-P_Cost_Allocation
E1: File Number: | F1: ='LDC Info'!$E$18 -> EB-2012-0139
E2: Exhibit: | F2: 7
E3: Tab:
E4: Schedule: | F4: 1
E5: Page: | F5: 7
E7: Date: | F7: Sep. 10, 2012
A9: Appendix 2-P
A10: Cost Allocation
A12: Please complete the following four tables.
A14: A) Allocated Costs
A16: Classes | B16: Costs Allocated from Previous Study | C16: % | D16: Costs Allocated in Test Year Study (Column 7A) | E16: %
A17: Residential | B17: 6458733.54 | C17: =IF(B$24=0,"",B17/B$24) -> 0.7836660822 | D17: ='[3]O1 Revenue to cost|RR'!$D$40 -> 7902556.929 | E17: =IF(D$24=0,"",D17/D$24) -> 0.8389451267
A18: GS < 50 kW | B18: 600098.19 | C18: 0.07281250954 | D18: ='[3]O1 Revenue to cost|RR'!$E$40 -> 550328.2565 | E18: 0.05842352204
A19: GS > 50 kW-4,999 kW | B19: 524422.07 | C19: 0.06363039851 | D19: ='[3]O1 Revenue to cost|RR'!$F$40 -> 442688.3964 | E19: 0.04699634259
A20: Street Lighting | B20: 539062.01 | C20: 0.06540672577 | D20: ='[3]O1 Revenue to cost|RR'!$J$40 -> 464772.8037 | E20: 0.04934085034
A21: Sentinel Lighting | B21: 43871.69 | C21: 0.005323141946 | D21: ='[3]O1 Revenue to cost|RR'!$K$40 -> 41367.05529 | E21: 0.004391577277
A22: Unmetered Scattered Load (USL) | B22: 75503.3 | C22: 0.009161142032 | D22: ='[3]O1 Revenue to cost|RR'!$L$40 -> 17921.61946 | E22: 0.001902581081
A23: Embedded distributor class | C23: 0 | E23: 0
A24: Total | B24: =SUM(B17:B23) -> 8241690.8 | C24: =SUM(C17:C23) -> 1 | D24: =SUM(D17:D23) -> 9419635.06 | E24: =SUM(E17:E23) -> 1
A26: Notes
A28: 1 Customer Classification - If proposed rate classes differ from those in place in the previous Cost Allocation study, modify the rate classes to match the current application as closely as possible.
A31: 2 Host Distributors - Provide information on embedded distributor(s) as a separate class, if applicable. If embedded distributor(s) are billed as customers in a General Service class, include the allocated cost and revenue of the embedded distributor(s) in the applicable class. Also complete Appendix 2-Q.
A35: 3 Class Revenue Requirements - If using the Board-issued model, in column 7A enter the results from Worksheet O-1, Revenue Requirement (row 40 in the 2013 model). This excludes costs in deferral and variance accounts. Note to Embedded Distributor(s), it also does not include Account 4750 - Low Voltage (LV) Costs.
A39: B) Calculated Class Revenues
C41: Column 7B | D41: Column 7C | E41: Column 7D | F41: Column 7E
A42: Classes (same as previous table) | C42: Load Forecast (LF) X current approved rates | D42: L.F. X current approved rates X (1 + d) | E42: LF X proposed rates | F42: Miscellaneous Revenue
A44: =A17 -> Residential | C44: ='[3]O1 Revenue to cost|RR'!$D$18 -> 6344681.808 | D44: ='[3]O1 Revenue to cost|RR'!$D$23 -> 6941360.979 | E44: ='[4]Cost Allocation Study-RD6'!$K$5 -> 7234972.725 | F44: ='[4]Cost Allocation Study-RD6'!$D$5 -> 477568.0124
A45: GS < 50 kW | C45: ='[3]O1 Revenue to cost|RR'!$E$18 -> 654386.6626 | D45: ='[3]O1 Revenue to cost|RR'!$E$23 -> 715927.7931 | E45: ='[4]Cost Allocation Study-RD6'!$K$6 -> 629480.6138 | F45: ='[4]Cost Allocation Study-RD6'!$D$6 -> 30913.29402
A46: GS > 50 kW-4,999 kW | C46: ='[3]O1 Revenue to cost|RR'!$F$18 -> 673571.0186 | D46: ='[3]O1 Revenue to cost|RR'!$F$23 -> 736916.3224 | E46: ='[4]Cost Allocation Study-RD6'!$K$7 -> 518208.034 | F46: ='[4]Cost Allocation Study-RD6'!$D$7 -> 13018.04161
A47: Street Lighting | C47: ='[3]O1 Revenue to cost|RR'!$J$18 -> 351024.3789 | D47: ='[3]O1 Revenue to cost|RR'!$J$23 -> 384036.1108 | E47: ='[4]Cost Allocation Study-RD6'!$K$11 -> 422247.4408 | F47: ='[4]Cost Allocation Study-RD6'!$D$11 -> 31349.94737
A48: Sentinel Lighting | C48: ='[3]O1 Revenue to cost|RR'!$K$18 -> 31826.32059 | D48: ='[3]O1 Revenue to cost|RR'!$K$23 -> 34819.39465 | E48: ='[4]Cost Allocation Study-RD6'!$K$10 -> 37807.22224 | F48: ='[4]Cost Allocation Study-RD6'!$D$10 -> 2565.166338
A49: Unmetered Scattered Load (USL) | C49: ='[3]O1 Revenue to cost|RR'!$L$18 -> 45360.57129 | D49: ='[3]O1 Revenue to cost|RR'!$L$23 -> 49626.46025 | E49: ='[4]Cost Allocation Study-RD6'!$K$12 -> 19972.40507 | F49: ='[4]Cost Allocation Study-RD6'!$D$12 -> 1533.538282
A50: Embedded distributor class
A51: Total | C51: =SUM(C44:C50) -> 8100850.76 | D51: =SUM(D44:D50) -> 8862687.06 | E51: =SUM(E44:E50) -> 8862688.441 | F51: =SUM(F44:F50) -> 556948
A53: Notes:
A55: 1 Columns 7B to 7D - LF means Load Forecast of Annual Billing Quantities (i.e. customers or connections X 12, (kWh or kW, as applicable). Revenue Quantities should be net of Transfomrer Ownership Allowance. Exclude revenue from rate adders and rate riders.
A58: 2 Columns 7C and 7D - Column total in each column should equal the Base Revenue Requirement
A60: 3 Columns 7C - The Board cost allocation model calculates "1+d" in worksheet O-1, cell C21. "d" is defined as Revenue Deficiency/ Revenue at Current Rates.
A63: 4 Columns 7E - If using the Board-issued Cost Allocation model, enter Miscellaneous Revenue as it appears in Worksheet O-1, row 19.
A66: C) Rebalancing Revenue-to-Cost (R/C) Ratios
A68: Class | C68: Previously Approved Ratios | D68: Status Quo Ratios | E68: Proposed Ratios | F68: Policy Range
C69: Most Recent Year: | D69: (7C + 7E) / (7A) | E69: (7D + 7E) / (7A)
C70: May,1,2009
C71: % | D71: % | E71: % | F71: %
A72: =A44 -> Residential | C72: 101.2 | D72: =IF(D17=0,"",(D44+F44)/D17*100) -> 93.88010815 | E72: ='[4]Cost Allocation Study-RD6'!$H$5 -> 0.9759551 | F72: 85 - 115
A73: GS < 50 kW | C73: 116.2 | D73: 135.7082938 | E73: ='[4]Cost Allocation Study-RD6'!$H$6 -> 1.2 | F73: 80 - 120
A74: GS > 50 kW-4,999 kW | C74: 135.8 | D74: 169.4045677 | E74: ='[4]Cost Allocation Study-RD6'!$H$7 -> 1.2 | F74: 80 - 120
A75: Street Lighting | C75: 70 | D75: 89.37400271 | E75: ='[4]Cost Allocation Study-RD6'!$H$11 -> 0.9759551 | F75: 70 - 120
A76: Sentinel Lighting | C76: 70 | D76: 90.37278755 | E76: ='[4]Cost Allocation Study-RD6'!$H$10 -> 0.9759551 | F76: 80 - 120
A77: Unmetered Scattered Load (USL) | C77: 80 | D77: 285.4652653 | E77: ='[4]Cost Allocation Study-RD6'!$H$12 -> 1.2 | F77: 80 - 120
A78: Embedded distributor class | E78: =IF(D23=0,"",(E50+F50)/D23*100) -> 
A80: Notes
A82: 1 Previously Approved Revenue-to-Cost Ratios - For most applicants, Most Recent Year would be the third year of the IRM 3 period, e.g. if the applicant rebased in 2009 with further adjustments over 2 years, the Most recent year is 2011. For applicants that have had rates adjusted only under IRM 2, the Most Recent Year is 2006, and the applicant should enter the ratios from their Informational Filing.
A85: 2 Status Quo Ratios - The Board's updated Cost Allocation Model yields the Status Quo Ratios in Worksheet O-1. Status Quo means "Before Rebalancing".
A87: D) Proposed Revenue-to-Cost Ratios
A89: Class | C89: Proposed Revenue-to-Cost Ratios | F89: Policy Range
C90: 2013 | D90: 2014 | E90: 2015
C91: % | D91: % | E91: % | F91: %
A92: =A72 -> Residential | C92: =E72 -> 0.9759551 | F92: =F72 -> 85 - 115
A93: GS < 50 kW | C93: 1.2 | F93: =F73 -> 80 - 120
A94: GS > 50 kW-4,999 kW | C94: 1.2 | F94: =F74 -> 80 - 120
A95: Street Lighting | C95: 0.9759551 | F95: =F75 -> 70 - 120
A96: Sentinel Lighting | C96: 0.9759551 | F96: 80 - 120
A97: Unmetered Scattered Load (USL) | C97: 1.2 | F97: 80 - 120
A98: =A78 -> Embedded distributor class
A100: Note
A101: 1 The applicant should complete Table D if it is applying for approval of a revenue to cost ratio in 2012 that is outside the Board’s policy range for any customer class. Table (d) will show the information that the distributor would likely enter in the IRM model) in 2013. In 2013 Table (d), enter the planned ratios for the classes that will be ‘Change’ and ‘No Change’ in 2013 (in the current Revenue Cost Ratio Adjustment Workform, Worksheet C1.1 ‘Decision – Cost Revenue Adjustment’, column d), and enter TBD for class(es) that will be entered as ‘Rebalance’.
A111: Class | C111: Status Quo | D111: Proposed | E111: BOARD PolicyRange
C112: Ratios | D112: Ratios
E113: %
A114: Residential | C114: 0.9571 | D114: 0.999 | E114: 85-115
A115: GS< 50 kW | C115: 1.3607 | D115: 1.2 | E115: 80-120
A116: GS > 50 kW - 4,999 kW | C116: 1.6947 | D116: 1.2 | E116: 80-120
A117: Street Lighting | C117: 0.6831 | D117: 0.7 | E117: 70-120
A118: Sentinel Lighting | C118: 0.813 | D118: 0.811 | E118: 80-120
A119: Unmetered Scattered Load | C119: 2.516 | D119: 1.2 | E119: 80-120

Sheet App.2-Q_Cost of Serv. Emb. Dx
F1: File Number: | G1: ='LDC Info'!$E$18 -> EB-2012-0139
F2: Exhibit:
F3: Tab:
F4: Schedule:
F5: Page:
F7: Date: | G7: 2012-08-31
A9: Appendix 2-Q
A10: Cost of Serving Embedded Distributor(s)
A12: To be completed by Host Distributors*
A13: (Not required if Host Distributor has an Embedded Distributor rate class, i.e. a separate row in Appendix 2-P.)
A17: Proposed Rate Class for Billing Embedded Distributor(s)
A19: Host's Distribution Facilities used by Embedded Distributor(s)
A21: (1) | B21: (2) | C21: (3) | D21: (4) | E21: (5) | F21: (6) = '(3) + (4)
A22: Asset Class | B22: Total OM&A costs asociated with asset class | C22: Original cost of asset class | D22: Accumulated amortization of asset class | E22: Annual amortization of asset class | F22: Net Book Value of asset class
A23: Totals for Host Distributor: | B23: ($) | C23: ($) | D23: ($) | E23: ($)
A24: Distribution Stations | F24: =C24+D24 -> 0
A25: Low Voltage Line | F25: 0
A26: LV Line category # 2 (if applcable) | F26: 0
A27: TS (owned by host) | F27: 0
A28: add rows if necessary... | F28: 0
F29: 0
F30: 0
A32: (1) | B32: (7) | C32: (8) | D32: (9) | E32: (10) | F32: (11)
A33: =A22 -> Asset Class | B33: Total line length or station capacity in asset class | C33: Line length or capacity required to provide LV service to Embedded Distributor(s) | D33: Annual total demand on station/line providing LV services (sum of 12 monthly peaks) | E33: Annual billed Embedded Distributor demand on station/line providing LV services | F33: Embedded Distributor(s)' Responsibility Share
A34: Embedded Distributor's share: | B34: kW or kVa; km | C34: kW or kVA; km | D34: kW or kVA | E34: kW or kVA | F34: percent
A35: Distribution Stations | F35: =IF(D35=0,0,(C35/B35)*(E35/D35)) -> 0
A36: Low Voltage Line | F36: =IF(D36=0,0,(C36/B36)*(E36/D36)) -> 0
A37: LV Line # 2 (if applicable) | F37: =IF(D37=0,0,(C37/B37)*(E37/D37)) -> 0
A38: TS (owned by host) | F38: =IF(D38=0,0,(C38/B38)*(E38/D38)) -> 0
A39: add rows if necessary | F39: =IF(D39=0,0,(C39/B39)*(E39/D39)) -> 0
A41: (1) | B41: (12) | C41: (12a) | D41: (13) | E41: (14) | F41: (15) | G41: (16)
A42: =A33 -> Asset Class | B42: Return on Assets used to Provide LV services | C42: Taxes/PILs | D42: Annual amortization on assets used to provide LV services | E42: OM&A costs with burden associated with assets used to provide LV services | F42: Total annual cost associated with assets used to provide LV services | G42: Monthly cost associated with the delivery of LV services
B43: ($) | C43: ($) | D43: ($) | E43: ($) | F43: ($) | G43: $/kW or $/kVA
A44: Distribution Stations | B44: =E$55*(F24+B24*E$60)*F35 -> 0 | C44: =(B44-(B$55*C$55*F35*(F24+B24*E58)+B$56*C$56*F35*(F24+B24*E$58)))*E$58/(1-E$58) -> 0 | D44: =E24*F35 -> 0 | E44: =B24*F35 -> 0 | F44: =SUM(B44:E44) -> 0 | G44: =IF(E35=0,0,(D44/E35)) -> 0
A45: Low Voltage Line | B45: =E$55*(F25+B25*E$60)*F36 -> 0 | C45: =(B45-(B$55*C$55*F36*(F25+B25*E59)+B$56*C$56*F36*(F25+B25*E59)))*E$58/(1-E$58) -> 0 | D45: =E25*F36 -> 0 | E45: =B25*F36 -> 0 | F45: =SUM(B45:E45) -> 0 | G45: =IF(E36=0,0,(D45/E36)) -> 0
A46: LV Line # 2 (if applicable) | B46: =E$55*(F26+B26*E$60)*F37 -> 0 | C46: =(B46-(B$55*C$55*F37*(F26+B26*E60)+B$56*C$56*F37*(F26+B26*E$60)))*E$58/(1-E$58) -> 0 | D46: =E26*F37 -> 0 | E46: =B26*F37 -> 0 | F46: =SUM(B46:E46) -> 0 | G46: =IF(E37=0,0,(D46/E37)) -> 0
A47: TS (owned by host) | B47: =E$55*(F27+B27*E$60)*F38 -> 0 | C47: =(B47-(B$55*C$55*F38*(F27+B27*E61)+B$56*C$56*F38*(F27+B27*E61)))*E$58/(1-E$58) -> 0 | D47: =E27*F38 -> 0 | E47: =B27*F38 -> 0 | F47: =SUM(B47:E47) -> 0 | G47: =IF(E38=0,0,(D47/E38)) -> 0
A48: add rows if necessary | B48: =E$55*(F28+B28*E$60)*F39 -> 0 | C48: =(B48-(B$55*C$55*F39*(F28+B28*I62)+B$56*C$56*F39*(F28+B28*I62)))*E$58/(1-E$58) -> 0 | D48: =E28*F39 -> 0 | E48: =B28*F39 -> 0 | F48: =SUM(B48:E48) -> 0 | G48: =IF(E39=0,0,(D48/E39)) -> 0
A50: Total | F50: =SUM(F44:F48) -> 0 | G50: =SUM(G44:G48) -> 0
A52: (17) | B52: (18) | C52: (19) | D52: (20) | E52: (21)
B53: Capital Structure | C53: Cost Rate
B54: (%) | C54: (%) | E54: (%)
A55: Long-Term Debt | D55: Weighted Average Cost of Capital | E55: =IF(B61=0%,0,SUMPRODUCT(B55:B59,C55:C59)/B61) -> 0
A56: Short-term Debt
A58: Common Equity | D58: Tax/PILs Rate
A59: Preferred Shares
D60: Working Capital Allowance Factor
A61: Total | B61: =SUM(B55:B59) -> 0

Sheet App.2-R_Loss Factors
G1: File Number: | H1: ='LDC Info'!$E$18 -> EB-2012-0139
G2: Exhibit: | H2: 8
G3: Tab:
G4: Schedule: | H4: 1
G5: Page:
G7: Date: | H7: 2012-08-31
A9: Appendix 2-R
A10: Loss Factors
C14: Historical Years | H14: 5-Year Average
C15: =IF(ISBLANK('LDC Info'!E26-5), "Year 5", 'LDC Info'!E26-5) -> 2007 | D15: =IF(ISBLANK('LDC Info'!E26-4), "Year 5", 'LDC Info'!E26-4) -> 2008 | E15: =IF(ISBLANK('LDC Info'!E26-3), "Year 5", 'LDC Info'!E26-3) -> 2009 | F15: =IF(ISBLANK('LDC Info'!E26-2), "Year 5", 'LDC Info'!E26-2) -> 2010 | G15: =IF(ISBLANK('LDC Info'!E26-1), "Year 5", 'LDC Info'!E26-1) -> 2011
B16: Losses Within Distributor's System
A17: A(1) | B17: "Wholesale" kWh delivered to distributor (higher value) | C17: 241154636 | D17: 245623028 | E17: 247239189 | F17: 250239379 | G17: 246758167 | H17: =IF(SUM(C17:G17)=0,0,AVERAGE(C17:G17)) -> 246202879.8
A18: A(2) | B18: "Wholesale" kWh delivered to distributor (lower value) | C18: 235121981 | D18: 240965463 | E18: 240653353 | F18: 244035081 | G18: 240111859 | H18: =IF(SUM(C18:G18)=0,0,AVERAGE(C18:G18)) -> 240177547.4
A19: B | B19: Portion of "Wholesale" kWh delivered to distributor for its Large Use Customer(s) | H19: =IF(SUM(C19:G19)=0,0,AVERAGE(C19:G19)) -> 0
A20: C | B20: Net "Wholesale" kWh delivered to distributor = A(2) - B | C20: =C18-C19 -> 235121981 | D20: 240965463 | E20: 240653353 | F20: 244035081 | G20: 240111859 | H20: 240177547.4
A21: D | B21: "Retail" kWh delivered by distributor | C21: 224169495 | D21: 226442150 | E21: 229263240 | F21: 231788047 | G21: 231635167 | H21: =IF(SUM(C21:G21)=0,0,AVERAGE(C21:G21)) -> 228659619.8 | I21: Per 2011 PBR filing (load forecast is based on month billed)
A22: E | B22: Portion of "Retail" kWh delivered by distributor to its Large Use Customer(s) | H22: =IF(SUM(C22:G22)=0,0,AVERAGE(C22:G22)) -> 0
A23: F | B23: Net "Retail" kWh delivered by distributor = D - E | C23: =C21-C22 -> 224169495 | D23: 226442150 | E23: 229263240 | F23: 231788047 | G23: 231635167 | H23: 228659619.8
A24: G | B24: Loss Factor in Distributor's system = C / F | C24: =IF(C23=0,"",C20/C23) -> 1.048858057 | D24: 1.064136968 | E24: 1.049681375 | F24: 1.052837211 | G24: 1.036595013 | H24: 1.050371498
B25: Losses Upstream of Distributor's System
A26: H | B26: Supply Facilities Loss Factor | C26: 1.026 | D26: 1.019 | E26: 1.027 | F26: 1.025 | G26: 1.028 | H26: =IF(SUM(C26:G26)=0,0,AVERAGE(C26:G26)) -> 1.025
B27: Total Losses
A28: I | B28: Total Loss Factor = G x H | C28: =IF(C24="","",C24*C26) -> 1.076128367 | D28: 1.084355571 | E28: 1.078022772 | F28: 1.079158142 | G28: 1.065619674 | H28: 1.076630786
A30: Notes
A33: A(1) | B33: If directly connected to the IESO-controlled grid, kWh pertains to the virtual meter on the primary or high voltage side of the transformer at the interface with the transmission grid. This corresponds to the "With Losses" kWh value provided by the IESO's MV-WEB. It is the higher of the two values provided by MV-WEB.
B37: If fully embedded within a host distributor, kWh pertains to the virtual meter on the primary or high voltage side of the transformer, at the interface between the host distributor and the transmission grid. For example, if the host distributor is Hydro One Networks Inc., kWh from the Hydro One Networks' invoice corresponding to "Total kWh w Losses" should be reported. This corresponds to the higher of the two kWh values provided in Hydro One Networks' invoice.
B42: If partially embedded, kWh pertains to the sum of the above.
A44: A(2) | B44: If directly connected to the IESO-controlled grid, kWh pertains to a metering installation on the secondary or low voltage side of the transformer at the interface with the transmission grid. This corresponds to the "Without Losses" kWh value provided by the IESO's MV-WEB. It is the lower of the two kWh values provided by MV-WEB.
B48: If fully embedded with the host distributor, kWh pertains to an actual or virtual meter at the interface between the embedded distributor and the host distributor. For example, if the host distributor is Hydro One Networks Inc., kWh from the Hydro One Networks' invoice corresponding to "Total kWh" should be reported. This corresponds to the lower of the two kWh values provided in Hydro One Networks' invoice.
B53: If partially embedded, kWh pertains to the sum of the above.
B55: Additionally, kWh pertaining to distributed generation directly connected to the distributor's own distribution network should be included in A(2).
A58: B | B58: If a Large Use Customer is metered on the secondary or low voltage side of the transformer, the default loss is 1% (i.e., B = 1.01 X E).
A61: D | B61: kWh corresponding to D should equal metered or estimated kWh at the customer’s delivery point.
A64: G and I | B64: These loss factors pertain to secondary-metered customers with demand less than 5,000 kW.
A66: H | B66: If directly connected to the IESO-controlled grid, SFLF = 1.0045.
B68: If fully embedded within a host distributor, SFLF = loss factor re losses in transformer at grid interface X loss factor re losses in host distributor's system. If the host distributor is Hydro One Networks Inc., SFLF = 1.0060 X 1.0278 = 1.0340. If partially embedded, SFLF should be calculated as the weighted average of above.
B72: Distributors that wish to propose a different SFLF should provide appropriate justification for any such proposal including supporting
B73: calculations and any other relevant material.

Sheet App.2-S_Stranded Meters
G1: File Number: | H1: ='LDC Info'!$E$18 -> EB-2012-0139
G2: Exhibit: | H2: 3
G3: Tab: | H3: 1
G4: Schedule: | H4: 1
G5: Page:
G7: Date: | H7: 2012-08-31
A9: Appendix 2-S
A10: Stranded Meter Treatment
A12: Year | B12: Notes | C12: Gross Asset Value | D12: Accumulated Amortization | E12: Contributed Capital (Net of Amortization) | F12: Net Asset | G12: Proceeds on Disposition | H12: Residual Net Book Value
C13: (A) | D13: (B) | E13: (C) | F13: (D ) = (A) - (B) - (C) | G13: (E) | H13: (F) = (D) - (E)
A14: 2006 | F14: =C14-D14-E14 -> 0 | H14: =F14-G14 -> 0
A15: 2007 | F15: 0 | H15: 0
A16: 2008 | F16: 0 | H16: 0 | I16: Cummulative NBV
A17: 2009 | B17: Actual | C17: 1270515 | D17: 1068807 | F17: 201708 | H17: 201708 | I17: =SUM(H$17:H17) -> 201708
A18: 2010 | B18: Actual | C18: 426641 | D18: 181320 | F18: 245321 | H18: 245321 | I18: =SUM(H$17:H18) -> 447029
A19: 2011 | B19: Actual | D19: 31125 | F19: -31125 | H19: -31125 | I19: =SUM(H$17:H19) -> 415904
A20: 2012 | B20: Forecast | D20: 42532 | F20: =C20-D20-E20 -> -42532 | H20: =F20-G20 -> -42532 | I20: =SUM(H$17:H20) -> 373372
A21: 2013 | B21: Forecast | D21: =42532/12*4 -> 14177.33333 | F21: -14177.33333 | H21: -14177.33333 | I21: =SUM(H$17:H21) -> 359194.6667
A22: as at 12/31/11 | C22: =SUM(C17:C19) -> 1697156 | D22: =SUM(D17:D19) -> 1281252
F24: =SUM(F17:F21) -> 359194.6667 | H24: =SUM(H17:H21) -> 359194.6667
A25: Notes:
A27: (1) | B27: For 2012, please indicate whether the amounts provided are on a forecast or actual basis.
A29: Some distributors have transferred the cost of stranded meters from Account 1860 - Meters to "Sub-account Stranded Meter Costs of Account 1555", while in some cases distributors have left these costs in Account 1860. Depending on which treatment the applicant has chosen. please provide the information under either of the two scenarios (A and B below), as applicable.
A34: Scenario A: If the stranded meter costs were transferred to "Sub-account Stranded Meter Costs" of Account 1555, the above table should be completed and the following information should be provided.
A37: 1 | B37: A description of the accounting treatment followed by the applicant on stranded meter costs for financial accounting and reporting purposes.
B40: Stranded meters cost and accumulated depreciation were transferred to account 1555 and continued depreciation. The
B41: stranded meters were reported within the regulatory asset classification within the balance sheet.
A43: 2 | B43: The amount of the pooled residual net book value of the removed from service stranded meters, less any contributed capital (net of accumulated amortization), and less any net proceeds from sales, which were transferred to this sub-account as of December 31, 2010.
B47: The amount of the pooled residual net book value of the stranded meters as of Dec 31, 2010 is forecasted $447,029.
A49: 3 | B49: A statement as to whether or not, since transferring the removed stranded meter costs to the sub-account, the recording of depreciation expenses was continued in order to reduce the net book value through accumulated depreciation. If so, the total depreciation expense amount for the period from the time the costs for the stranded meters were transferred to the sub-account to December 31, 2010 should be provided.
B54: Depreciation has continued since transferring the stranded meter costs to account 1555. The amount of depreciation
B55: since the stranded meters were transferred equals $31,125 for 2011, $42,532 for 2012 and $14,177 equalling $87,834.
B57: If no depreciation expenses were recorded to reduce the net book value of stranded meter costs through accumulated depreciation, the total depreciation expense amount that would have been applicable from the time that the stranded meter costs were transferred to the sub-account of Account 1555 to December 31, 2010 should be provided. In addition, the following information should be provided:
B62: a) | C62: Whether or not carrying charges were recorded for the stranded meter cost balances in the sub-account, and if so, the total carrying charges recorded to December 31, 2010.
C65: No carrying charges were recorded for the stranded meter cost balances in account 1555.
B67: b) | C67: The estimated amount of the pooled residual net book value of the removed from service meters, less any net proceeds from sales and contributed capital, at the time when the smart meters will have been fully deployed (e.g., as of December 31, 2010). If the smart meters have been fully deployed, the actual amount should be provided.
C72: The amount of the pooled residual net book value of the stranded meters when the smart meters were fully deployed
C73: as of Dec 31, 2011 is $415,904
B75: c) | C75: A description as to how the applicant intends to recover in rates the remaining costs for stranded meters, including the proposed accounting treatment, the proposed disposition period, and the associated bill impacts.
C79: The pooled residual net book value of the stranded meters as of April 2013 is forecasted to be $359,195. Innisfil Hydro is
C80: proposing to recover the residual net book value of the stranded meters for a 2 year period to the residential and GS<50 customer
C81: classes. Innisfil Hydro is proposing to transfer the residual net book value of the stranded meter to a sub account of the DVA recovery
C82: account 1595 and record the customer recovery to sub DVA account 1595.
A84: Scenario B: If the stranded meter costs remained recorded in Account 1860, the above table should be completed and the following information should be provided:
A87: 1 | B87: A description of the accounting treatment followed by the applicant on stranded meter costs for financial accounting and reporting purposes.
A90: 2 | B90: The amount of the pooled residual net book value of the removed from service stranded meters, less any contributed capital (net of accumulated amortization), and less any net proceeds from sales, as of December 31, 2010.
A94: 3 | B94: A statement as to whether or not the recording of depreciation expenses continued in order to reduce the net book value through accumulated depreciation. If so, provision of the total (cumulative) depreciation expense for the period from the time that the meters became stranded to December 31, 2010.
A98: 4 | B98: If no depreciation expenses were recorded to reduce the net book value of stranded meters through accumulated depreciation, the total (cumulative) depreciation expense amount that would have been applicable for the period from the time that the meters became stranded to December 31, 2010.
A102: 5 | B102: The estimated amount of the pooled residual net book value of the removed from service meters, less any net proceeds from sales and contributed capital, at the time when smart meters will have been fully deployed. If the smart meters have been fully deployed, please provide the actual amount.
A106: 6 | B106: A description as to how the applicant intends to recover in rates the costs for stranded meters, including the proposed accounting treatment, the proposed disposition period and the associated bill impacts.
A109: Distributors should also provide the Net Book Value per class of meter as of December 31, 2010 as well as the number of meters that were removed / stranded. In preparing this information, distributors should review the Board's letter of January 16, 2007 Stranded Meter Costs Related to the Installation of Smart Meters which stated that records were to be kept of the type and number of each meter to support the stranded meter costs.

Sheet App.2-T_1592_Tax_Variance
C1: File Number: | E1: ='LDC Info'!$E$18 -> EB-2012-0139
C2: Exhibit:
C3: Tab:
C4: Schedule:
C5: Page:
C7: Date: | E7: 2012-08-31
A9: Appendix 2-T
A10: Deferred PILs Account 1592 Balances
A12: The following table should be completed based on the information requested below, in accordance with the notes following the table. An explanation should be provided for any blank entries.
A14: Tax Item | E14: Principal as of
E15: December 31,
E16: 2012
A17: Large Corporation Tax grossed-up proxy from 2006 EDR application PILs model for the period from May 1, 2006 to April 30, 2007
A18: Large Corporation Tax grossed-up proxy from 2006 EDR application PILs model for the period from January 1, 2006 to April 30, 2006 (4/12ths of the approved grossed-up proxy), if not recorded in PILs account 1562
A19: Ontario Capital Tax rate decrease and increase in capital deduction for 2007
A20: Ontario Capital Tax rate decrease and increase in capital deduction for 2008
A21: Ontario Capital Tax rate decrease and increase in capital deduction for 2009
A22: Ontario Capital Tax rate decrease and increase in capital deduction for 2010
A23: Capital Cost Allowance class changes from 2006 EDR application for 2006
A24: Capital Cost Allowance class changes from 2006 EDR application for 2007
A25: Capital Cost Allowance class changes from 2006 EDR application for 2008
A26: Capital Cost Allowance class changes from 2006 EDR application for 2009
A27: Capital Cost Allowance class changes from 2006 EDR application for 2010
A28: Capital Cost Allowance class changes from 2006 EDR application for 2011
A29: Capital Cost Allowance class changes from any prior application not recorded above. Please provide details and explanation separately.
A30: PST Savings due to the PST becoming part of HST effective July 1, 2010. The amount represented is 50% of the PST savings due to the ratepayer 7/10 to 12/12. | E30: =-G48 -> -43208.5
A31: Insert description of additional item(s) and new rows if needed.
A32: Total | E32: =SUM(E17:E31) -> -43208.5
A34: Notes:
A36: 1 | B36: Revise the deferral and variance account continuity schedule to include account 1592 as a group 2 account and enter all relevant information for transactions, adjustments, etc., for all relevant years.
A39: 2 | B39: Describe each type of tax item that has been recorded in account 1592.
A41: 3 | B41: Provide the calculations that show how each item was determined and provide any pertinent supporting evidence and documentation.
C44: 2010 | E44: 2011 | F44: 2012 | G44: Total
B45: OM&A expenses PST savings | C45: =25713*0.5 -> 12856.5 | E45: 25713 | F45: 25713 | G45: =SUM(C45:F45) -> 64282.5
B46: Captial items PST savings | C46: =4025*0.5 -> 2012.5 | E46: 8049 | F46: 12073 | G46: =SUM(C46:F46) -> 22134.5
B47: Total Annual PST savings | C47: =SUM(C45:C46) -> 14869 | E47: =SUM(E45:E46) -> 33762 | F47: =SUM(F45:F46) -> 37786 | G47: =SUM(G45:G46) -> 86417
B48: 50% Savings for rate payer by year | C48: =C47*0.5 -> 7434.5 | E48: =E47*0.5 -> 16881 | F48: =F47*0.5 -> 18893 | G48: =SUM(C48:F48) -> 43208.5
B49: 50% Savings for rate payer cummulative by year | C49: =SUM($C48:C48) -> 7434.5 | E49: =SUM($C48:E48) -> 24315.5 | F49: =SUM($C48:F48) -> 43208.5
B51: The pst savings resulting from PST converting to HST effective July 2010 is based on the 2009 actual financial results as a typical
B52: year.
A54: 4 | B54: Please state whether or not the applicant followed the guidance provided in the FAQ of July 2007. If not, please provide an explanation.
B57: Any tax sharing changes that have occurred since the last COS filing (2009) have been incorporated within the IRM filings.
A59: 5 | B59: Identify the account balance as of December 31, 2011 as per the 2011 Audited Financial Statements. Identify the account balance as of December 31, 2011 as per the April 2012 2.1.7 RRR filing to the Board. Provide a reconciliation if the balances provided are not identical to each other and to the total shown on the continuity schedule.
B64: The account balance as of December 31, 2011 per audited statements and the April 2012 2.1.7 RRR filing to the Board is $48,631.
A66: 6 | B66: Complete the above table based on the answers to the previous. Add rows as required to complete the analysis in an informative manner. Please provide the completed table as a working Excel spreadsheet.

Sheet App.2-U_IFRS Transition Costs
J1: File Number: | K1: ='LDC Info'!$E$18 -> EB-2012-0139
J2: Exhibit: | K2: 9
J3: Tab: | K3: 2
J4: Schedule: | K4: 1
J5: Page:
J7: Date: | K7: 2012-08-31
A9: Appendix 2-U
A10: One-Time Incremental IFRS Transition Costs
A12: The following table should be completed based on the information requested below. An explanation should be provided for any blank entries. The entries should include one-time incremental IFRS transition costs that are currently included in Account 1508, Other Regulatory Assets, sub-account Deferred IFRS Transition Costs Account, or Account 1508, Other Regulatory Assets, sub-account IFRS Transition Costs Variance Account.
A14: Nature of One-Time Incremental IFRS Transition Costs 1 | E14: Audited Actual | F14: Audited Actual | G14: Audited Actual | H14: Audited Carrying | I14: Total Audited | J14: RRR 2.1.7 | K14: Variance 2 | L14: Reasons why the costs recorded meet the criteria of one-time IFRS administrative incremental costs
E15: Costs Incurred | F15: Costs Incurred | G15: Costs Incurred | H15: Charges | I15: Actual Costs | J15: Balance
E16: 2009 | F16: 2010 | G16: 2011 | H16: to Dec 31, 2011 | I16: to Dec 31, 2011 | J16: 2011-12-31
A17: professional accounting fees | E17: 7813 | F17: 85046 | G17: 10495 | I17: =SUM(E17:H17) -> 103354 | L17: One time costs incurred to create an distribution open item asset listing
A18: professional legal fees | I18: =SUM(E18:H18) -> 0
A19: salaries, wages and benefits of staff added to support the transition to IFRS | I19: 0
A20: associated staff training and development costs | E20: 2874 | I20: 2874 | L20: One time initial training costs
A21: costs related to system upgrades, or replacements or changes where IFRS was the major reason for conversion | E21: 1246 | F21: 53175 | G21: 195484 | I21: 249905 | L21: Initial setup costs incurred to develop and implement a identifiable asset process within GIS and financial reporting system for disposition referencing.
I22: 0
A23: Recovery of estimated IFRS costs from ratepayers | E23: -16667 | F23: -25000 | G23: -25000 | I23: -66667
A24: Total net carrying charges | H24: 3354 | I24: 3354
I25: 0
I26: 0
I27: 0
I28: 0
A29: Insert description of additional item(s) and new rows if needed. | I29: 0
A30: Total | E30: =SUM(E17:E29) -> -4734 | F30: =SUM(F17:F29) -> 113221 | G30: =SUM(G17:G29) -> 180979 | H30: =SUM(H17:H29) -> 3354 | I30: =SUM(I17:I29) -> 292820 | J30: =289466+3354 -> 292820 | K30: =+I30-J30 -> 0
A33: Note:
A34: 1 | B34: The Deferred IFRS Transition Costs Account and the IFRS Transition Costs Variance Account are exclusively for necessary, incremental transition costs and shall not include ongoing IFRS compliance costs or impacts arising from adopting accounting policy changes that reflect changes in the timing of the recognition of income. The incremental costs in these accounts shall not include costs related to system upgrades, or replacements or changes where IFRS was not the major reason for conversion. In addition, incremental IFRS costs shall not include capital assets or expenditures.
A36: 2 | B36: Applicants are to provide an explanation of material variances in evidence

Sheet App.2-V_Rev_Reconciliation
O1: File Number: | P1: ='LDC Info'!$E$18 -> EB-2012-0139
O2: Exhibit: | P2: 8
O3: Tab:
O4: Schedule: | P4: 7
O5: Page:
O7: Date: | P7: 2012-09-10
A9: Appendix 2-V
A10: Revenue Reconciliation
A12: Rate Class | B12: Customers/ Connections | C12: Number of Customers/Connections | F12: Test Year Consumption | H12: Proposed Rates | K12: Revenues at Proposed Rates | M12: Class Specific Revenue Requirement | N12: Transformer Allowance Credit | O12: Total | P12: Difference
C13: Start of Test Year | D13: End of Test Year | E13: Average | F13: kWh | G13: kW | H13: Monthly Service Charge | I13: Volumetric
I14: kWh | J14: kW
A16: Residential | B16: Customers | D16: ='[4]Forecast Data For2013-RD3'!$C$5 -> 14189.19721 | E16: =IF(SUM(C16:D16)=0,0,AVERAGE(C16:D16)) -> 14189.19721 | F16: ='[4]Forecast Data For2013-RD3'!$C$6 -> 146562898 | H16: ='[4]Rates By Rate Class-RD7'!$E$25 -> 24.03796276 | I16: ='[4]Rates By Rate Class-RD7'!$E$6 -> 0.02143803131 | K16: =H16*E16*12+I16*F16+J16*G16 -> 7234972.725 | M16: ='[4]Cost Allocation Study-RD6'!$K$5 -> 7234972.725 | O16: =SUM(M16:N16) -> 7234972.725 | P16: =O16-K16 -> 0
A17: GS < 50 kW | B17: Customers | D17: ='[4]Forecast Data For2013-RD3'!$C$7 -> 909.6658897 | E17: 909.6658897 | F17: ='[4]Forecast Data For2013-RD3'!$C$8 -> 31437454.72 | H17: ='[4]Rates By Rate Class-RD7'!$E$26 -> 33.84104423 | I17: ='[4]Rates By Rate Class-RD7'!$E$7 -> 0.008272682785 | K17: 629480.6138 | M17: ='[4]Cost Allocation Study-RD6'!$K$6 -> 629480.6138 | O17: 629480.6138 | P17: 0
A18: GS > 50 to 4,999 kW | B18: Customers | D18: ='[4]Forecast Data For2013-RD3'!$C$9 -> 66.14217304 | E18: 66.14217304 | G18: ='[4]Forecast Data For2013-RD3'!$C$10 -> 146479.7493 | H18: ='[4]Rates By Rate Class-RD7'!$E$27 -> 246.6825612 | J18: ='[4]Rates By Rate Class-RD7'!$E$8 -> 2.315196386 | K18: 534922.834 | M18: ='[4]Cost Allocation Study-RD6'!$K$7 -> 518208.034 | N18: ='[4]Rates By Rate Class-RD7'!$H$8 -> 16714.8 | O18: 534922.834 | P18: 0
A19: Large Use | E19: 0 | K19: 0 | O19: 0 | P19: 0
A20: Streetlighting | B20: Connections | D20: ='[4]Forecast Data For2013-RD3'!$C$21 -> 2889.170802 | E20: 2889.170802 | G20: ='[4]Forecast Data For2013-RD3'!$C$22 -> 4400.160066 | H20: ='[4]Rates By Rate Class-RD7'!$E$31 -> 6.483634308 | J20: ='[4]Rates By Rate Class-RD7'!$E$12 -> 44.87553059 | K20: 422247.4408 | M20: ='[4]Cost Allocation Study-RD6'!$K$11 -> 422247.4408 | O20: 422247.4408 | P20: 0
A21: Sentinel Lighting | B21: Connections | D21: ='[4]Forecast Data For2013-RD3'!$C$18 -> 237.3231639 | E21: 237.3231639 | G21: ='[4]Forecast Data For2013-RD3'!$C$19 -> 289.3664027 | H21: ='[4]Rates By Rate Class-RD7'!$E$30 -> 9.075732682 | J21: ='[4]Rates By Rate Class-RD7'!$E$11 -> 41.33390396 | K21: 37807.22224 | M21: ='[4]Cost Allocation Study-RD6'!$K$10 -> 37807.22224 | O21: 37807.22224 | P21: 0
A22: Unmetered Scattered Load | B22: Connections | D22: ='[4]Forecast Data For2013-RD3'!$C$24 -> 77.65725276 | E22: 77.65725276 | F22: ='[4]Forecast Data For2013-RD3'!$C$25 -> 592219.8774 | H22: ='[4]Rates By Rate Class-RD7'!$E$32 -> 10.35152842 | I22: ='[4]Rates By Rate Class-RD7'!$E$13 -> 0.01743600704 | K22: 19972.40507 | M22: ='[4]Cost Allocation Study-RD6'!$K$12 -> 19972.40507 | O22: 19972.40507 | P22: 0
A23: Standby Power | E23: 0 | K23: 0 | O23: 0 | P23: 0
A24: Embedded Distributor Class | E24: 0 | K24: 0 | O24: 0 | P24: 0
A25: etc. | E25: 0 | K25: 0 | O25: 0 | P25: 0
E26: 0 | K26: 0 | O26: 0 | P26: 0
E27: 0 | K27: 0 | O27: 0 | P27: 0
E28: 0 | K28: 0 | O28: 0 | P28: 0
A30: Total | D30: =SUM(D16:D29) -> 18369.15649 | F30: =SUM(F16:F29) -> 178592572.6 | K30: =SUM(K16:K28) -> 8879403.241 | M30: =SUM(M16:M28) -> 8862688.441 | N30: =SUM(N16:N28) -> 16714.8 | O30: =M30+N30 -> 8879403.241 | P30: =O30-K30 -> 0
A32: Note
A34: 1 The class specific revenue requirements in column N must be the amounts used in the final rate design process. The total of column N should equate to the proposed base revenue requirement

Sheet App.2-W_Residential Impacts
N1: File Number: | O1: ='LDC Info'!$E$18 -> EB-2012-0139 | S1: 1900-01-01
N2: Exhibit: | O2: 8
N3: Tab:
N4: Schedule: | O4: 9
N5: Page:
N7: Date: | O7: 2012-09-10
B10: Appendix 2-W
B11: Bill Impacts
B14: Customer Class: | D14: Residential | R14: Customer Class: | T14: Residential
D16: Consumption | F16: 800 | G16: kWh | T16: Consumption | V16: 800 | W16: kWh
F18: Current Board-Approved | J18: Proposed | N18: Impact | V18: Current Board-Approved | Z18: Proposed | AD18: Impact
D19: Charge Unit | F19: Rate | G19: Volume | H19: Charge | J19: Rate | K19: Volume | L19: Charge | N19: $ Change | O19: % Change | T19: Charge Unit | V19: Rate | W19: Volume | X19: Charge | Z19: Rate | AA19: Volume | AB19: Charge | AD19: $ Change | AE19: % Change
F20: ($) | H20: ($) | J20: ($) | L20: ($) | V20: ($) | X20: ($) | Z20: ($) | AB20: ($)
B21: Monthly Service Charge | D21: Monthly | F21: =V21 -> 21.08 | G21: 1 | H21: =G21*F21 -> 21.08 | J21: =Z21 -> 24.04 | K21: 1 | L21: =K21*J21 -> 24.04 | N21: =L21-H21 -> 2.96 | O21: =IF((H21)=0,"",(N21/H21)) -> 0.1404174573 | R21: Monthly Service Charge | T21: monthly | V21: =+'[4]2012 Existing Rates-RD4'!$C$6 -> 21.08 | W21: 1 | X21: =W21*V21 -> 21.08 | Z21: =+'[4]Rate Schedule (Part 1)-RD13'!$E$10 -> 24.04 | AA21: 1 | AB21: =AA21*Z21 -> 24.04 | AD21: =AB21-X21 -> 2.96 | AE21: =IF((X21)=0,"",(AD21/X21)) -> 0.1404174573
B22: Smart Meter Disposition Rider | D22: Monthly | F22: =V22 -> 0.27 | G22: 1 | H22: =G22*F22 -> 0.27 | J22: =Z22 -> 0.27 | K22: 1 | L22: =K22*J22 -> 0.27 | N22: =L22-H22 -> 0 | O22: =IF((H22)=0,"",(N22/H22)) -> 0 | R22: Smart Meter Disposition Rider | T22: monthly | V22: =+'[4]2012 Existing Rates-RD4'!$B$43 -> 0.27 | W22: 1 | X22: 0.27 | Z22: =V22 -> 0.27 | AA22: 1 | AB22: 0.27 | AD22: 0 | AE22: 0
B23: Stranded Meter Rider | D23: Monthly | F23: 0 | G23: 1 | H23: 0 | J23: =Z34 -> 0.83 | K23: 1 | L23: =K23*J23 -> 0.83 | N23: =L23-H23 -> 0.83 | O23: =IF((H23)=0,"",(N23/H23)) ->  | R23: Smart Meter Inc Rev Req Rider | T23: monthly | V23: ='[4]2012 Existing Rates-RD4'!$C$43 -> 1.86 | W23: 1 | X23: 1.86 | AA23: 1 | AB23: 0 | AD23: -1.86 | AE23: -1
B24: SMIRR | D24: Monthly | F24: =V23 -> 1.86 | G24: 1 | H24: 1.86 | J24: 0 | K24: 1 | L24: 0 | N24: -1.86 | O24: -1 | R24: GEA Rate Adder/Rider | T24: monthly | W24: 1 | X24: 0 | Z24: ='[4]Rate Schedule (Part 1)-RD13'!$E$14 -> 0.5233 | AA24: 1 | AB24: 0.5233 | AD24: 0.5233
B25: GEA Rate Adder | D25: Monthly | F25: 0 | G25: 1 | H25: 0 | J25: =Z24 -> 0.5233 | K25: 1 | L25: 0.5233 | N25: 0.5233 | W25: 1 | X25: 0 | AA25: 1 | AB25: 0 | AD25: 0
G26: 1 | H26: 0 | K26: 1 | L26: 0 | N26: 0 | R26: Service Charge Rate Rider(s) | W26: 1 | X26: 0 | AA26: 1 | AB26: 0 | AD26: 0
B27: Distribution Volumetric Rate | D27: per kWh | F27: =V27 -> 0.0188 | G27: =$F$16 -> 800 | H27: 15.04 | J27: =Z27 -> 0.0214 | K27: =$F$16 -> 800 | L27: 17.12 | N27: 2.08 | O27: 0.1382978723 | R27: Distribution Volumetric Rate | T27: per kWh | V27: =+'[4]2012 Existing Rates-RD4'!$B$68 -> 0.0188 | W27: =V16 -> 800 | X27: 15.04 | Z27: =+'[4]Rate Schedule (Part 1)-RD13'!$E$11 -> 0.0214 | AA27: =V16 -> 800 | AB27: 17.12 | AD27: 2.08 | AE27: 0.1382978723
B28: LRAM & SSM Rate Rider | D28: Monthly | F28: 0 | G28: =$F$16 -> 800 | H28: 0 | J28: 0 | K28: =$F$16 -> 800 | L28: 0 | N28: 0 | R28: Low Voltage Rate Adder | T28: per kWh | V28: =+'[4]2012 Existing Rates-RD4'!$B$31 -> 0.0022 | W28: =W27 -> 800 | X28: 1.76 | Z28: =+'[4]Rate Schedule (Part 1)-RD13'!$E$12 -> 0.0022 | AA28: =AA27 -> 800 | AB28: 1.76 | AD28: 0 | AE28: 0
G29: =$F$16 -> 800 | H29: 0 | K29: 800 | L29: 0 | N29: 0 | R29: Volumetric Rate Adder(s) | W29: 800 | X29: 0 | AA29: 800 | AB29: 0 | AD29: 0
G30: =$F$16 -> 800 | H30: =G30*F30 -> 0 | K30: 800 | L30: =K30*J30 -> 0 | N30: =L30-H30 -> 0 | O30: =IF((H30)=0,"",(N30/H30)) ->  | R30: Volumetric Rate Rider(s) | W30: 800 | X30: 0 | AA30: 800 | AB30: 0 | AD30: 0
G31: 800 | H31: 0 | K31: 800 | L31: 0 | N31: 0 | R31: Smart Meter Disposition Rider | W31: 800 | X31: 0 | AA31: 800 | AB31: 0 | AD31: 0
G32: 800 | H32: 0 | K32: 800 | L32: 0 | N32: 0 | R32: LRAM & SSM Rate Rider | T32: per kWh | V32: ='[4]2012 Existing Rates-RD4'!$B$55 -> 0 | W32: 800 | X32: 0 | Z32: ='[4]Rate Schedule (Part 1)-RD13'!C91 -> 0 | AA32: 800 | AB32: 0 | AD32: 0
G33: =$F$16 -> 800 | H33: 0 | K33: 800 | L33: 0 | N33: 0 | R33: Deferral/Variance Account Disposition Rate Rider | T33: per kWh | V33: =+'[4]2012 Existing Rates-RD4'!$B$19 -> -0.0032 | W33: 800 | X33: -2.56 | Z33: =+'[4]Rate Schedule (Part 1)-RD13'!$E$16 -> -0.0051 | AA33: 800 | AB33: -4.08 | AD33: -1.52 | AE33: 0.59375
G34: 800 | H34: 0 | K34: 800 | L34: 0 | N34: 0 | R34: Stranded meter rider | T34: monthly | V34: 0 | W34: 1 | X34: 0 | Z34: ='[4]2013 Rate Rider-RD11'!$B$60 -> 0.83 | AA34: 1 | AB34: 0.83 | AD34: 0.83
G35: 800 | H35: 0 | K35: 800 | L35: 0 | N35: 0 | X35: 0 | AB35: 0 | AD35: 0
G36: 800 | H36: 0 | K36: 800 | L36: 0 | N36: 0 | X36: 0 | AB36: 0 | AD36: 0
B37: Sub-Total A | H37: =SUM(H21:H36) -> 38.25 | L37: =SUM(L21:L36) -> 42.7833 | N37: 4.5333 | O37: 0.1185176471 | X37: 0 | AB37: 0 | AD37: 0
B38: Deferral/Variance Account Disposition Rate Rider | D38: per kWh | F38: =V33 -> -0.0032 | G38: =$F$16 -> 800 | H38: =G38*F38 -> -2.56 | J38: =Z33 -> -0.0051 | K38: =$F$16 -> 800 | L38: =K38*J38 -> -4.08 | N38: =L38-H38 -> -1.52 | O38: =IF((H38)=0,"",(N38/H38)) -> 0.59375 | R38: Sub-Total A - Distribution | X38: =SUM(X21:X37) -> 37.45 | AB38: =SUM(AB21:AB37) -> 40.4633 | AD38: 3.0133 | AE38: 0.08046194927
G39: =$F$16 -> 800 | H39: =G39*F39 -> 0 | K39: =$F$16 -> 800 | L39: =K39*J39 -> 0 | N39: =L39-H39 -> 0 | O39: =IF((H39)=0,"",(N39/H39)) ->  | R39: RTSR - Network | T39: per kWh | V39: ='[4]Other Electriciy Rates-RD17'!$B$8 -> 0.0052 | W39: =V16*(1+V53) -> 859.68 | X39: =W39*V39 -> 4.470336 | Z39: ='[4]Other Electriciy Rates-RD17'!$B$23 -> 0.005 | AA39: =V16*(1+Z53) -> 861.28 | AB39: =AA39*Z39 -> 4.3064 | AD39: -0.163936 | AE39: -0.03667196381
G40: 800 | H40: 0 | K40: 800 | L40: 0 | N40: 0 | R40: RTSR - Line and Transformation Connection | T40: per kWh | V40: ='[4]Other Electriciy Rates-RD17'!$C$8 -> 0.0041 | W40: =W39 -> 859.68 | X40: =W40*V40 -> 3.524688 | Z40: ='[4]Other Electriciy Rates-RD17'!$C$23 -> 0.004 | AA40: =AA39 -> 861.28 | AB40: =AA40*Z40 -> 3.44512 | AD40: -0.079568 | AE40: -0.02257448035
G41: 800 | H41: 0 | K41: 800 | L41: 0 | N41: 0 | R41: Sub-Total B - Delivery (including Sub-Total A) | X41: =SUM(X38:X40) -> 45.445024 | AB41: =SUM(AB38:AB40) -> 48.21482 | AD41: 2.769796 | AE41: 0.06094827896
B42: Low Voltage Service Charge | D42: per kWh | F42: =V28 -> 0.0022 | G42: 800 | H42: =G42*F42 -> 1.76 | J42: =Z28 -> 0.0022 | K42: 800 | L42: =K42*J42 -> 1.76 | N42: =L42-H42 -> 0 | O42: =IF((H42)=0,"",(N42/H42)) -> 0 | R42: Wholesale Market Service Charge (WMSC) | T42: per kWh | V42: ='[4]Other Electriciy Rates-RD17'!$D$8 -> 0.0052 | W42: =W40 -> 859.68 | X42: =W42*V42 -> 4.470336 | Z42: ='[4]Other Electriciy Rates-RD17'!$D$23 -> 0.0052 | AA42: =AA40 -> 861.28 | AB42: =AA42*Z42 -> 4.478656 | AD42: 0.00832 | AE42: 0.00186115764
B43: Smart Meter Entity Charge | K43: 800 | L43: =K43*J43 -> 0 | N43: =L43-H43 -> 0 | R43: Rural and Remote Rate Protection (RRRP) | T43: per kWh | V43: ='[4]Other Electriciy Rates-RD17'!$E$8 -> 0.0011 | W43: =W40 -> 859.68 | X43: 0.945648 | Z43: ='[4]Other Electriciy Rates-RD17'!$E$23 -> 0.0011 | AA43: =AA40 -> 861.28 | AB43: 0.947408 | AD43: 0.00176 | AE43: 0.00186115764
B44: Sub-Total B - Distribution (includes Sub-Total A) | H44: =SUM(H38:H42)+H37 -> 37.45 | L44: =SUM(L38:L42)+L37 -> 40.4633 | N44: =L44-H44 -> 3.0133 | O44: =IF((H44)=0,"",(N44/H44)) -> 0.08046194927 | R44: Standard Supply Service Charge | T44: monthly | V44: 0.25 | W44: 1 | X44: 0.25 | Z44: 0.25 | AA44: 1 | AB44: 0.25 | AD44: 0 | AE44: 0
B45: RTSR - Network | F45: =V39 -> 0.0052 | G45: =F16*(1+F71) -> 859.68 | H45: =G45*F45 -> 4.470336 | J45: =Z39 -> 0.005 | K45: =F16*(1+J71) -> 861.28 | L45: =K45*J45 -> 4.3064 | N45: -0.163936 | O45: -0.03667196381 | R45: Debt Retirement Charge (DRC) | T45: per kWh | V45: ='[4]Other Electriciy Rates-RD17'!$F$8 -> 0.007 | W45: =W42 -> 859.68 | X45: 6.01776 | Z45: ='[4]Other Electriciy Rates-RD17'!$F$23 -> 0.007 | AA45: =AA42 -> 861.28 | AB45: 6.02896 | AD45: 0.0112 | AE45: 0.00186115764
B46: RTSR - Line and Transformation Connection | F46: =V40 -> 0.0041 | G46: =G45 -> 859.68 | H46: =G46*F46 -> 3.524688 | J46: =Z40 -> 0.004 | K46: =K45 -> 861.28 | L46: =K46*J46 -> 3.44512 | N46: -0.079568 | O46: -0.02257448035 | R46: Energy | X46: 0 | AB46: 0 | AD46: 0
B47: Sub-Total C - Delivery (including Sub-Total B) | H47: =SUM(H44:H46) -> 45.445024 | L47: =SUM(L44:L46) -> 48.21482 | N47: 2.769796 | O47: 0.06094827896 | R47: Energy First Block | T47: per kWh | V47: =+'[4]Other Electriciy Rates-RD17'!$M$8 -> 0.075 | W47: =IF($X16*(1+$X53)>600,600,($X16*(1+$X53))) -> 0 | X47: 0 | Z47: =+'[4]Other Electriciy Rates-RD17'!$M$23 -> 0.075 | AA47: =IF($X16*(1+$AB53)>600,600,($X16*(1+$AB53))) -> 0 | AB47: 0 | AD47: 0
B48: Wholesale Market Service Charge (WMSC) | D48: per kWh | F48: =V42 -> 0.0052 | G48: =G46 -> 859.68 | H48: =G48*F48 -> 4.470336 | J48: =Z42 -> 0.0052 | K48: =K46 -> 861.28 | L48: =K48*J48 -> 4.478656 | N48: 0.00832 | O48: 0.00186115764 | R48: Energy Second Block | V48: =+'[4]Other Electriciy Rates-RD17'!$N$8 -> 0.088 | W48: =IF($X16*(1+$X53)>600,$X16*(1+$X53)-$Y47,0) -> 0 | X48: 0 | Z48: =+'[4]Other Electriciy Rates-RD17'!$N$23 -> 0.088 | AA48: =IF($X16*(1+$AB53)>600,$X16*(1+$AB53)-$Y47,0) -> 0 | AB48: 0 | AD48: 0
B49: Rural and Remote Rate Protection (RRRP) | D49: per kWh | F49: =V43 -> 0.0011 | G49: =G46 -> 859.68 | H49: 0.945648 | J49: =Z43 -> 0.0011 | K49: =K46 -> 861.28 | L49: 0.947408 | N49: 0.00176 | O49: 0.00186115764 | R49: Total Bill (before Taxes) | X49: =SUM(X41:X48) -> 57.128768 | AB49: =SUM(AB41:AB48) -> 59.919844 | AD49: 2.791076 | AE49: 0.0488558759
B50: Standard Supply Service Charge | D50: Monthly | F50: =V44 -> 0.25 | G50: 1900-01-01 | H50: 0.25 | J50: =Z44 -> 0.25 | K50: 1900-01-01 | L50: 0.25 | N50: 0 | O50: 0 | R50: HST | V50: 0.13 | X50: =X49*V50 -> 7.42673984 | Z50: 0.13 | AB50: =AB49*Z50 -> 7.78957972 | AD50: 0.36283988 | AE50: 0.0488558759
B51: Debt Retirement Charge (DRC) | D51: per kWh | F51: =V45 -> 0.007 | G51: =G49 -> 859.68 | H51: 6.01776 | J51: =Z45 -> 0.007 | K51: =K49 -> 861.28 | L51: 6.02896 | N51: 0.0112 | O51: 0.00186115764 | R51: Total Bill (including Sub-total B) | X51: =ROUND(SUM(X49:X50),2) -> 64.56 | AB51: =ROUND(SUM(AB49:AB50),2) -> 67.71 | AD51: 3.15 | AE51: 0.04879182156
B52: Energy - RPP - Tier 1 | F52: 0.075 | G52: 0 | H52: =G52*F52 -> 0 | J52: 0.075 | K52: 0 | L52: =K52*J52 -> 0 | N52: 0
B53: Energy - RPP - Tier 2 | F53: 0.088 | G53: 0 | H53: =G53*F53 -> 0 | J53: 0.088 | K53: 0 | L53: =K53*J53 -> 0 | N53: 0 | R53: Loss Factor (%) | V53: ='[4]Other Electriciy Rates-RD17'!$O$8-1 -> 0.0746 | Z53: ='[4]Other Electriciy Rates-RD17'!$O$23-1 -> 0.0766
B54: TOU - Off Peak | F54: 0.065 | G54: =0.64*$F$16*(1+$F$71) -> 550.1952 | H54: 35.762688 | J54: 0.065 | K54: =0.64*$F$16*(1+$J$71) -> 551.2192 | L54: 35.829248 | N54: 0.06656 | O54: 0.00186115764
B55: TOU - Mid Peak | F55: 0.1 | G55: =0.18*$F$16*(1+$F$71) -> 154.7424 | H55: 15.47424 | J55: 0.1 | K55: =0.18*$F$16*(1+$J$71) -> 155.0304 | L55: 15.50304 | N55: 0.0288 | O55: 0.00186115764 | Z55: TOU variance | AD55: 0.13
B56: TOU - On Peak | F56: 0.117 | G56: =0.18*$F$16*(1+$F$71) -> 154.7424 | H56: 18.1048608 | J56: 0.117 | K56: =0.18*$F$16*(1+$J$71) -> 155.0304 | L56: 18.1385568 | N56: 0.033696 | O56: 0.00186115764 | Z56: OCEB | AD56: -0.31
B58: Total Bill on RPP (before Taxes) | H58: =SUM(H47:H53) -> 57.128768 | L58: =SUM(L47:L53) -> 59.919844 | N58: 2.791076 | O58: 0.0488558759 | Z58: Total | AD58: =SUM(AD51:AD56) -> 2.97
B59: HST | F59: 0.13 | H59: =H58*F59 -> 7.42673984 | J59: 0.13 | L59: =L58*J59 -> 7.78957972 | N59: =L59-H59 -> 0.36283988 | O59: =IF((H59)=0,"",(N59/H59)) -> 0.0488558759
B60: Total Bill (including HST) | H60: =H58+H59 -> 64.55550784 | L60: =L58+L59 -> 67.70942372 | N60: =L60-H60 -> 3.15391588 | O60: =IF((H60)=0,"",(N60/H60)) -> 0.0488558759
B61: Ontario Clean Energy Benefit 1 | H61: =ROUND(-H60*10%,2) -> -6.46 | L61: =ROUND(-L60*10%,2) -> -6.77 | N61: =L61-H61 -> -0.31 | O61: =IF((H61)=0,"",(N61/H61)) -> 0.0479876161
B62: Total Bill on RPP (including OCEB) | H62: =SUM(H60:H61) -> 58.09550784 | L62: =SUM(L60:L61) -> 60.93942372 | N62: 2.84391588 | O62: 0.0489524231
B64: Total Bill on TOU (before Taxes) | H64: =SUM(H47:H51,H54:H56) -> 126.4705568 | L64: =SUM(L47:L51,L54:L56) -> 129.3906888 | N64: =L64-H64 -> 2.920132 | O64: =IF((H64)=0,"",(N64/H64)) -> 0.02308942155
B65: HST | F65: 0.13 | H65: =H64*F65 -> 16.44117238 | J65: 0.13 | L65: =L64*J65 -> 16.82078954 | N65: 0.37961716 | O65: 0.02308942155
B66: Total Bill (including HST) | H66: =H64+H65 -> 142.9117292 | L66: =L64+L65 -> 146.2114783 | N66: 3.29974916 | O66: 0.02308942155
B67: Ontario Clean Energy Benefit 1 | H67: =ROUND(-H66*10%,2) -> -14.29 | L67: =ROUND(-L66*10%,2) -> -14.62 | N67: -0.33 | O67: 0.02309307208
B68: Total Bill on TOU (including OCEB) | H68: =H66+H67 -> 128.6217292 | L68: =L66+L67 -> 131.5914783 | N68: 2.96974916 | O68: 0.02308901598
B71: Loss Factor (%) | F71: =V53 -> 0.0746 | J71: =Z53 -> 0.0766
A73: 1 Applicable to eligible customers only. Refer to the Ontario Clean Energy Benefit Act, 2010.
A75: Note that the "Charge $" columns provide breakdowns of the amounts that each bill component contributes to the total monthly bill at the referenced
A76: consumption level at existing and proposed rates.
A78: Applicants must provide bill impacts for residential at 800 kWh and GS<50kW at 2000 kWh. In addition, their filing should cover the range that is relevant
A79: to their service territory, class by class. A general guideline of consumption levels follows:
A81: Residential (kWh) - 100, 250, 500, 800, 1000, 1500, 2000
A82: GS<50kW (kWh) - 1000, 2000, 5000, 10000, 15000
A83: GS>50kW (kW) - 60, 100, 500, 1000
A84: Large User - range appropriate for utility
A85: Lighting Classes and USL - 150 kWh and 1 kW, range appropriate for utility.

Sheet App.2.W_GS.50 Impacts
N1: File Number: | O1: ='LDC Info'!$E$18 -> EB-2012-0139
N2: Exhibit: | O2: 8
N3: Tab:
N4: Schedule: | O4: 9
N5: Page:
N7: Date: | O7: 2012-09-10
B10: Appendix 2-W
B11: Bill Impacts
B14: Customer Class: | D14: GS> 50 kW
D16: Consumption | F16: 2000 | G16: kWh
F18: Current Board-Approved | J18: Proposed | N18: Impact
D19: Charge Unit | F19: Rate | G19: Volume | H19: Charge | J19: Rate | K19: Volume | L19: Charge | N19: $ Change | O19: % Change
F20: ($) | H20: ($) | J20: ($) | L20: ($)
B21: Monthly Service Charge | D21: Monthly | F21: =F95 -> 35.18 | G21: 1 | H21: =G21*F21 -> 35.18 | J21: =J95 -> 33.84 | K21: 1 | L21: =K21*J21 -> 33.84 | N21: =L21-H21 -> -1.34 | O21: =IF((H21)=0,"",(N21/H21)) -> -0.03808982376
B22: Smart Meter Disposition Rider | D22: Monthly | F22: =F96 -> 0.92 | G22: 1 | H22: =G22*F22 -> 0.92 | J22: =J96 -> 0.92 | K22: 1 | L22: =K22*J22 -> 0.92 | N22: =L22-H22 -> 0 | O22: =IF((H22)=0,"",(N22/H22)) -> 0
B23: Stranded Meter Rider | D23: Monthly | F23: 0 | G23: 1 | H23: 0 | J23: =J108 -> 3.53 | K23: 1 | L23: =K23*J23 -> 3.53 | N23: =L23-H23 -> 3.53 | O23: =IF((H23)=0,"",(N23/H23)) -> 
B24: SMIRR | D24: Monthly | F24: =F97 -> 6.33 | G24: 1 | H24: 6.33 | J24: 0 | K24: 1 | L24: 0 | N24: -6.33 | O24: -1
B25: GEA Rate Adder | D25: Monthly | F25: 0 | G25: 1 | H25: 0 | J25: =J98 -> 0.5233 | K25: 1 | L25: 0.5233 | N25: 0.5233
G26: 1 | H26: 0 | K26: 1 | L26: 0 | N26: 0
B27: Distribution Volumetric Rate | D27: per kWh | F27: =F101 -> 0.0086 | G27: =$F$16 -> 2000 | H27: 17.2 | J27: =J101 -> 0.0083 | K27: =$F$16 -> 2000 | L27: 16.6 | N27: -0.6 | O27: -0.03488372093
B28: LRAM & SSM Rate Rider | D28: Monthly | F28: 0 | G28: =$F$16 -> 2000 | H28: 0 | J28: 0 | K28: =$F$16 -> 2000 | L28: 0 | N28: 0
G29: =$F$16 -> 2000 | H29: 0 | K29: 2000 | L29: 0 | N29: 0
G30: =$F$16 -> 2000 | H30: 0 | K30: 2000 | L30: 0 | N30: 0
G31: 2000 | H31: 0 | K31: 2000 | L31: 0 | N31: 0
G32: 2000 | H32: 0 | K32: 2000 | L32: 0 | N32: 0
G33: 2000 | H33: 0 | K33: 2000 | L33: 0 | N33: 0
G34: 2000 | H34: 0 | K34: 2000 | L34: 0 | N34: 0
G35: 2000 | H35: 0 | K35: 2000 | L35: 0 | N35: 0
G36: 2000 | H36: 0 | K36: 2000 | L36: 0 | N36: 0
B37: Sub-Total A | H37: =SUM(H21:H36) -> 59.63 | L37: =SUM(L21:L36) -> 55.4133 | N37: -4.2167 | O37: -0.0707144055
B38: Deferral/Variance Account Disposition Rate Rider | D38: per kWh | F38: =F107 -> -0.0026 | G38: =$F$16 -> 2000 | H38: =G38*F38 -> -5.2 | J38: =J107 -> 0.0007 | K38: =$F$16 -> 2000 | L38: =K38*J38 -> 1.4 | N38: =L38-H38 -> 6.6 | O38: =IF((H38)=0,"",(N38/H38)) -> -1.269230769
G39: =$F$16 -> 2000 | H39: =G39*F39 -> 0 | K39: =$F$16 -> 2000 | L39: =K39*J39 -> 0 | N39: =L39-H39 -> 0 | O39: =IF((H39)=0,"",(N39/H39)) -> 
G40: 2000 | H40: 0 | K40: 2000 | L40: 0 | N40: 0
G41: 2000 | H41: 0 | K41: 2000 | L41: 0 | N41: 0
B42: Low Voltage Service Charge | D42: per kWh | F42: =F102 -> 0.002 | G42: 2000 | H42: =G42*F42 -> 4 | J42: =J102 -> 0.0021 | K42: 2000 | L42: =K42*J42 -> 4.2 | N42: =L42-H42 -> 0.2 | O42: =IF((H42)=0,"",(N42/H42)) -> 0.05
B43: Smart Meter Entity Charge | K43: 2000 | L43: =K43*J43 -> 0 | N43: =L43-H43 -> 0
B44: Sub-Total B - Distribution (includes Sub-Total A) | H44: =SUM(H38:H42)+H37 -> 58.43 | L44: =SUM(L38:L42)+L37 -> 61.0133 | N44: =L44-H44 -> 2.5833 | O44: =IF((H44)=0,"",(N44/H44)) -> 0.04421187746
B45: RTSR - Network | F45: =F113 -> 0.0047 | G45: =F16*(1+F71) -> 2149.2 | H45: =G45*F45 -> 10.10124 | J45: =J113 -> 0.0046 | K45: =F16*(1+J71) -> 2153.2 | L45: =K45*J45 -> 9.90472 | N45: -0.19652 | O45: -0.0194550372
B46: RTSR - Line and Transformation Connection | F46: =F114 -> 0.0038 | G46: =G45 -> 2149.2 | H46: =G46*F46 -> 8.16696 | J46: =J114 -> 0.0037 | K46: =K45 -> 2153.2 | L46: =K46*J46 -> 7.96684 | N46: -0.20012 | O46: -0.02450360967
B47: Sub-Total C - Delivery (including Sub-Total B) | H47: =SUM(H44:H46) -> 76.6982 | L47: =SUM(L44:L46) -> 78.88486 | N47: 2.18666 | O47: 0.02850992592
B48: Wholesale Market Service Charge (WMSC) | D48: per kWh | F48: =F116 -> 0.0052 | G48: =G46 -> 2149.2 | H48: =G48*F48 -> 11.17584 | J48: =J116 -> 0.0052 | K48: =K46 -> 2153.2 | L48: =K48*J48 -> 11.19664 | N48: 0.0208 | O48: 0.00186115764
B49: Rural and Remote Rate Protection (RRRP) | D49: per kWh | F49: =F117 -> 0.0011 | G49: =G46 -> 2149.2 | H49: 2.36412 | J49: =J117 -> 0.0011 | K49: =K46 -> 2153.2 | L49: 2.36852 | N49: 0.0044 | O49: 0.00186115764
B50: Standard Supply Service Charge | D50: Monthly | F50: =F118 -> 0.25 | G50: 1900-01-01 | H50: 0.25 | J50: =J118 -> 0.25 | K50: 1900-01-01 | L50: 0.25 | N50: 0 | O50: 0
B51: Debt Retirement Charge (DRC) | D51: per kWh | F51: =F119 -> 0.007 | G51: =G49 -> 2149.2 | H51: 15.0444 | J51: =J119 -> 0.007 | K51: =K49 -> 2153.2 | L51: 15.0724 | N51: 0.028 | O51: 0.00186115764
B52: Energy - RPP - Tier 1 | F52: 0.075 | G52: 0 | H52: =G52*F52 -> 0 | J52: 0.075 | K52: 0 | L52: =K52*J52 -> 0 | N52: 0
B53: Energy - RPP - Tier 2 | F53: 0.088 | G53: 0 | H53: =G53*F53 -> 0 | J53: 0.088 | K53: 0 | L53: =K53*J53 -> 0 | N53: 0
B54: TOU - Off Peak | F54: 0.065 | G54: =0.64*$F$16*(1+$F$71) -> 1375.488 | H54: 89.40672 | J54: 0.065 | K54: =0.64*$F$16*(1+$J$71) -> 1378.048 | L54: 89.57312 | N54: 0.1664 | O54: 0.00186115764
B55: TOU - Mid Peak | F55: 0.1 | G55: =0.18*$F$16*(1+$F$71) -> 386.856 | H55: 38.6856 | J55: 0.1 | K55: =0.18*$F$16*(1+$J$71) -> 387.576 | L55: 38.7576 | N55: 0.072 | O55: 0.00186115764
B56: TOU - On Peak | F56: 0.117 | G56: =0.18*$F$16*(1+$F$71) -> 386.856 | H56: 45.262152 | J56: 0.117 | K56: =0.18*$F$16*(1+$J$71) -> 387.576 | L56: 45.346392 | N56: 0.08424 | O56: 0.00186115764
B58: Total Bill on RPP (before Taxes) | H58: =SUM(H47:H53) -> 105.53256 | L58: =SUM(L47:L53) -> 107.77242 | N58: 2.23986 | O58: 0.0212243501
B59: HST | F59: 0.13 | H59: =H58*F59 -> 13.7192328 | J59: 0.13 | L59: =L58*J59 -> 14.0104146 | N59: 0.2911818 | O59: 0.0212243501
B60: Total Bill (including HST) | H60: =H58+H59 -> 119.2517928 | L60: =L58+L59 -> 121.7828346 | N60: 2.5310418 | O60: 0.0212243501
B61: Ontario Clean Energy Benefit 1 | H61: =ROUND(-H60*10%,2) -> -11.93 | L61: =ROUND(-L60*10%,2) -> -12.18 | N61: -0.25 | O61: 0.02095557418
B62: Total Bill on RPP (including OCEB) | H62: =SUM(H60:H61) -> 107.3217928 | L62: =SUM(L60:L61) -> 109.6028346 | N62: 2.2810418 | O62: 0.0212542275
B64: Total Bill on TOU (before Taxes) | H64: =SUM(H47:H51,H54:H56) -> 278.887032 | L64: =SUM(L47:L51,L54:L56) -> 281.449532 | N64: =L64-H64 -> 2.5625 | O64: =IF((H64)=0,"",(N64/H64)) -> 0.009188308189
B65: HST | F65: 0.13 | H65: =H64*F65 -> 36.25531416 | J65: 0.13 | L65: =L64*J65 -> 36.58843916 | N65: 0.333125 | O65: 0.009188308189
B66: Total Bill (including HST) | H66: =H64+H65 -> 315.1423462 | L66: =L64+L65 -> 318.0379712 | N66: 2.895625 | O66: 0.009188308189
B67: Ontario Clean Energy Benefit 1 | H67: =ROUND(-H66*10%,2) -> -31.51 | L67: =ROUND(-L66*10%,2) -> -31.8 | N67: -0.29 | O67: 0.009203427483
B68: Total Bill on TOU (including OCEB) | H68: =H66+H67 -> 283.6323462 | L68: =L66+L67 -> 286.2379712 | N68: 2.605625 | O68: 0.009186628518
B71: Loss Factor (%) | F71: 0.0746 | J71: 0.0766
A73: 1 Applicable to eligible customers only. Refer to the Ontario Clean Energy Benefit Act, 2010.
A75: Note that the "Charge $" columns provide breakdowns of the amounts that each bill component contributes to the total monthly bill at the referenced
A76: consumption level at existing and proposed rates.
A78: Applicants must provide bill impacts for residential at 800 kWh and GS<50kW at 2000 kWh. In addition, their filing should cover the range that is relevant
A79: to their service territory, class by class. A general guideline of consumption levels follows:
A81: Residential (kWh) - 100, 250, 500, 800, 1000, 1500, 2000
A82: GS<50kW (kWh) - 1000, 2000, 5000, 10000, 15000
A83: GS>50kW (kW) - 60, 100, 500, 1000
A84: Large User - range appropriate for utility
A85: Lighting Classes and USL - 150 kWh and 1 kW, range appropriate for utility.
B88: Customer Class: | D88: General Service < 50
D90: Consumption | F90: 2000 | G90: kWh
F92: Current Board-Approved | J92: Proposed | N92: Impact
D93: Charge Unit | F93: Rate | G93: Volume | H93: Charge | J93: Rate | K93: Volume | L93: Charge | N93: $ Change | O93: % Change
F94: ($) | H94: ($) | J94: ($) | L94: ($)
B95: Monthly Service Charge | D95: monthly | F95: =+'[4]2012 Existing Rates-RD4'!$C$7 -> 35.18 | G95: 1 | H95: =G95*F95 -> 35.18 | J95: =+'[4]Rate Schedule (Part 1)-RD13'!$E$19 -> 33.84 | K95: 1 | L95: =K95*J95 -> 33.84 | N95: =L95-H95 -> -1.34 | O95: =IF((H95)=0,"",(N95/H95)) -> -0.03808982376
B96: Smart Meter Disposition Rider | D96: monthly | F96: =+'[4]2012 Existing Rates-RD4'!$B$44 -> 0.92 | G96: 1 | H96: 0.92 | J96: =F96 -> 0.92 | K96: 1 | L96: 0.92 | N96: 0 | O96: 0
B97: Smart Meter Inc Rev Req Rider | D97: monthly | F97: ='[4]2012 Existing Rates-RD4'!$C$44 -> 6.33 | G97: 1 | H97: 6.33 | K97: 1 | L97: 0 | N97: -6.33 | O97: -1
B98: GEA Rate Adder/Rider | D98: monthly | G98: 1 | H98: 0 | J98: ='[4]Rate Schedule (Part 1)-RD13'!$E$23 -> 0.5233 | K98: 1 | L98: 0.5233 | N98: 0.5233
B99: Service Charge Rate Adder(s) | G99: 1 | H99: 0 | K99: 1 | L99: 0 | N99: 0
B100: Service Charge Rate Rider(s) | G100: 1 | H100: 0 | K100: 1 | L100: 0 | N100: 0
B101: Distribution Volumetric Rate | D101: per kWh | F101: =+'[4]2012 Existing Rates-RD4'!$B$69 -> 0.0086 | G101: =F90 -> 2000 | H101: 17.2 | J101: =+'[4]Rate Schedule (Part 1)-RD13'!$E$20 -> 0.0083 | K101: =F90 -> 2000 | L101: 16.6 | N101: -0.6 | O101: -0.03488372093
B102: Low Voltage Rate Adder | D102: per kWh | F102: =+'[4]2012 Existing Rates-RD4'!$B$32 -> 0.002 | G102: =G101 -> 2000 | H102: 4 | J102: =+'[4]Rate Schedule (Part 1)-RD13'!$E$21 -> 0.0021 | K102: =K101 -> 2000 | L102: 4.2 | N102: 0.2 | O102: 0.05
B103: Volumetric Rate Adder(s) | G103: 2000 | H103: 0 | K103: 2000 | L103: 0 | N103: =L103-H103 -> 0 | O103: =IF((H103)=0,"",(N103/H103)) -> 
B104: Volumetric Rate Rider(s) | G104: 2000 | H104: 0 | K104: 2000 | L104: 0 | N104: =L104-H104 -> 0 | O104: =IF((H104)=0,"",(N104/H104)) -> 
B105: Smart Meter Disposition Rider | G105: 2000 | H105: 0 | K105: 2000 | L105: 0 | N105: =L105-H105 -> 0 | O105: =IF((H105)=0,"",(N105/H105)) -> 
B106: LRAM & SSM Rate Rider | D106: per kWh | F106: ='[4]2012 Existing Rates-RD4'!$B$56 -> 0 | G106: 2000 | H106: 0 | J106: ='[4]Rate Schedule (Part 1)-RD13'!$E$22 -> 0 | K106: 2000 | L106: 0 | N106: =L106-H106 -> 0 | O106: =IF((H106)=0,"",(N106/H106)) -> 
B107: Deferral/Variance Account Disposition Rate Rider | D107: per kWh | F107: =+'[4]2012 Existing Rates-RD4'!$B$20 -> -0.0026 | G107: 2000 | H107: -5.2 | J107: =+'[4]Rate Schedule (Part 1)-RD13'!$E$25 -> 0.0007 | K107: 2000 | L107: 1.4 | N107: 6.6 | O107: -1.269230769
B108: Stranded meter Rider | D108: monthly | H108: 0 | J108: ='[4]Rate Schedule (Part 1)-RD13'!$E$24 -> 3.53 | K108: 1 | L108: 3.53 | N108: 3.53
H109: 0 | L109: 0 | N109: 0
H110: 0 | L110: 0 | N110: 0
H111: 0 | L111: 0 | N111: 0
B112: Sub-Total A - Distribution | H112: =SUM(H95:H111) -> 58.43 | L112: =SUM(L95:L111) -> 61.0133 | N112: 2.5833 | O112: 0.04421187746
B113: RTSR - Network | D113: per kWh | F113: ='[4]Other Electriciy Rates-RD17'!$B$9 -> 0.0047 | G113: =F90*(1+F127) -> 2149.2 | H113: =G113*F113 -> 10.10124 | J113: ='[4]Other Electriciy Rates-RD17'!$B$24 -> 0.0046 | K113: =F90*(1+J127) -> 2153.2 | L113: =K113*J113 -> 9.90472 | N113: -0.19652 | O113: -0.0194550372
B114: RTSR - Line and Transformation Connection | D114: per kWh | F114: ='[4]Other Electriciy Rates-RD17'!$C$9 -> 0.0038 | G114: =G113 -> 2149.2 | H114: =G114*F114 -> 8.16696 | J114: ='[4]Other Electriciy Rates-RD17'!$C$24 -> 0.0037 | K114: =K113 -> 2153.2 | L114: =K114*J114 -> 7.96684 | N114: -0.20012 | O114: -0.02450360967
B115: Sub-Total B - Delivery (including Sub-Total A) | H115: =SUM(H112:H114) -> 76.6982 | L115: =SUM(L112:L114) -> 78.88486 | N115: 2.18666 | O115: 0.02850992592
B116: Wholesale Market Service Charge (WMSC) | D116: per kWh | F116: ='[4]Other Electriciy Rates-RD17'!$D$9 -> 0.0052 | G116: =G114 -> 2149.2 | H116: =G116*F116 -> 11.17584 | J116: ='[4]Other Electriciy Rates-RD17'!$D$24 -> 0.0052 | K116: =K114 -> 2153.2 | L116: =K116*J116 -> 11.19664 | N116: 0.0208 | O116: 0.00186115764
B117: Rural and Remote Rate Protection (RRRP) | D117: per kWh | F117: ='[4]Other Electriciy Rates-RD17'!$E$9 -> 0.0011 | G117: =G114 -> 2149.2 | H117: 2.36412 | J117: ='[4]Other Electriciy Rates-RD17'!$E$24 -> 0.0011 | K117: =K114 -> 2153.2 | L117: 2.36852 | N117: 0.0044 | O117: 0.00186115764
B118: Standard Supply Service Charge | D118: monthly | F118: 0.25 | G118: 1 | H118: 0.25 | J118: 0.25 | K118: 1 | L118: 0.25 | N118: 0 | O118: 0
B119: Debt Retirement Charge (DRC) | D119: per kWh | F119: ='[4]Other Electriciy Rates-RD17'!$F$9 -> 0.007 | G119: =+$H90 -> 0 | H119: 0 | J119: ='[4]Other Electriciy Rates-RD17'!$F$24 -> 0.007 | K119: =+$H90 -> 0 | L119: 0 | N119: 0
B120: Energy | H120: 0 | L120: 0 | N120: 0
B121: Energy First Block | D121: per kWh | F121: =+'[4]Other Electriciy Rates-RD17'!$M$9 -> 0.075 | G121: 600 | H121: 45 | J121: =+'[4]Other Electriciy Rates-RD17'!$M$24 -> 0.075 | K121: 600 | L121: 45 | N121: 0 | O121: 0
B122: Energy Second Block | F122: =+'[4]Other Electriciy Rates-RD17'!$N$9 -> 0.088 | G122: =IF($H90*(1+$H127)>600,$H90*(1+$H127)-$I121,0) -> 0 | H122: 0 | J122: =+'[4]Other Electriciy Rates-RD17'!$N$24 -> 0.088 | K122: 474.6 | L122: 41.7648 | N122: 41.7648
B123: Total Bill (before Taxes) | H123: =SUM(H115:H122) -> 135.48816 | L123: =SUM(L115:L122) -> 179.46482 | N123: 43.97666 | O123: 0.3245793581
B124: HST | F124: 0.13 | H124: =H123*F124 -> 17.6134608 | J124: 0.13 | L124: =L123*J124 -> 23.3304266 | N124: 5.7169658 | O124: 0.3245793581
